Workbook

Sheet Players
H1: Martin Foster | L1: David Jackson | P1: Jens Dekeyser | T1: Louis Maylin | X1: Ian Maylin | AB1: Ian Woodland | AF1: Fran Carbone | AJ1: Jack Clayton | AN1: Karen Woodland | AR1: Andrew Woodland | AV1: Malcolm Clayton | AZ1: Liam Pattison | BD1: Chris Staples | BH1: Jenny Burgess | BL1: Andrew Burgess | BP1: Steve Bell | BT1: Judith Bell | BX1: Andy Maylin | CB1: Sue Overend | CF1: John Overend | CJ1: Loic Martens | CN1: Wesley Piters | CR1: Carl Van Geysel | CV1: Stijn Stengele | CZ1: Lee Henderson | DD1: Ray Charlton | DH1: Richard Scorer | DL1: Joe Glackin | DP1: Philip Hornby | DT1: Karen Connerney | DX1: Andrew Hammond | EB1: Barry Braine | EF1: Jack Braine | EJ1: Sophia Braine | EN1: Tony Cathrew | ER1: Glen Fulham | EV1: Hannah Braine | EZ1: Dave Herbert | FD1: Rhoda Miles | FH1: Kevin West | FL1: Terry Bennett | FP1: Fiona Bennett | FT1: Alfie Bennett | FX1: Helena Bennett | GB1: Wal West | GF1: Graham Clayton | GJ1: Tom Clayton | GN1: Joe Kendal | GR1: Matt Bowld | GV1: Dan Clarke | GZ1: Oscar Brown | HD1: Vid Brownlee | HH1: Diana Brownlee | HL1: Chris Maylin | HP1: Lindy Berry | HT1: Steve Berry | HX1: Andrew Foggo | IB1: John Irwin | IF1: Nigel Newman | IJ1: Andy Kay | IN1: John Walshe | IR1: Lawrence Barnard | IV1: Andy Mallett | IZ1: Andy Breen | JD1: Michael Frain | JH1: Adrian Jones | JL1: Steve James | JP1: Molly James | JT1: Claire Yates | JX1: Dan Newell | KB1: Jack Newell | KF1: Jonathan Harriss | KJ1: Neil Thompson | KN1: Rob Pitman | KR1: John Whittle | KV1: Farzad Mohebati | KZ1: Andy Turvil | LD1: Richard Cogan | LH1: Vitalii Caisin | LL1: Jack O'Toole | LP1: Jon Jackson | LT1: Gordon Geddes | LX1: Mark Akhurst | MB1: Jon Gregory | MF1: Chaz Brookes | MJ1: Stewie Burgess | MN1: Matt Burgess | MR1: Sam Thompson | MV1: Alex Berry | MZ1: Sam May | ND1: Scott McEvoy | NH1: Dick Falkner | NL1: Amy Bridge | NP1: Josh Lucas | NT1: Theo Smout | NX1: James Evans | OB1: Sam King | OF1: Sam Merrick | OJ1: Elliot Taylor | ON1: Connor Falkner | OR1: Rob Collins | OV1: Hamish Owen | OZ1: George Geaves | PD1: Jack Butler | PH1: Beth Hemming | PL1: Moeti Sparks | PP1: Tess Bannister | PT1: Cat Moreira | PX1: Jes Moon | QB1: Tony Martin | QF1: Dan Hughes | QJ1: Steve Melton
A2: DATE | C2: MATCH | E2: RESULT | H2: Pred. | K2: Points | L2: Pred. | O2: Points | P2: Pred. | S2: Points | T2: Pred. | W2: Points | X2: Pred. | AA2: Points | AB2: Pred. | AE2: Points | AF2: Pred. | AI2: Points | AJ2: Pred. | AM2: Points | AN2: Pred. | AQ2: Points | AR2: Pred. | AU2: Points | AV2: Pred. | AY2: Points | AZ2: Pred. | BC2: Points | BD2: Pred. | BG2: Points | BH2: Pred. | BK2: Points | BL2: Pred. | BO2: Points | BP2: Pred. | BS2: Points | BT2: Pred. | BW2: Points | BX2: Pred. | CA2: Points | CB2: Pred. | CE2: Points | CF2: Pred. | CI2: Points | CJ2: Pred. | CM2: Points | CN2: Pred. | CQ2: Points | CR2: Pred. | CU2: Points | CV2: Pred. | CY2: Points | CZ2: Pred. | DC2: Points | DD2: Pred. | DG2: Points | DH2: Pred. | DK2: Points | DL2: Pred. | DO2: Points | DP2: Pred. | DS2: Points | DT2: Pred. | DW2: Points | DX2: Pred. | EA2: Points | EB2: Pred. | EE2: Points | EF2: Pred. | EI2: Points | EJ2: Pred. | EM2: Points | EN2: Pred. | EQ2: Points | ER2: Pred. | EU2: Points | EV2: Pred. | EY2: Points | EZ2: Pred. | FC2: Points | FD2: Pred. | FG2: Points | FH2: Pred. | FK2: Points | FL2: Pred. | FO2: Points | FP2: Pred. | FS2: Points | FT2: Pred. | FW2: Points | FX2: Pred. | GA2: Points | GB2: Pred. | GE2: Points | GF2: Pred. | GI2: Points | GJ2: Pred. | GM2: Points | GN2: Pred. | GQ2: Points | GR2: Pred. | GU2: Points | GV2: Pred. | GY2: Points | GZ2: Pred. | HC2: Points | HD2: Pred. | HG2: Points | HH2: Pred. | HK2: Points | HL2: Pred. | HO2: Points | HP2: Pred. | HS2: Points | HT2: Pred. | HW2: Points | HX2: Pred. | IA2: Points | IB2: Pred. | IE2: Points | IF2: Pred. | II2: Points | IJ2: Pred. | IM2: Points | IN2: Pred. | IQ2: Points | IR2: Pred. | IU2: Points | IV2: Pred. | IY2: Points | IZ2: Pred. | JC2: Points | JD2: Pred. | JG2: Points | JH2: Pred. | JK2: Points | JL2: Pred. | JO2: Points | JP2: Pred. | JS2: Points | JT2: Pred. | JW2: Points | JX2: Pred. | KA2: Points | KB2: Pred. | KE2: Points | KF2: Pred. | KI2: Points | KJ2: Pred. | KM2: Points | KN2: Pred. | KQ2: Points | KR2: Pred. | KU2: Points | KV2: Pred. | KY2: Points | KZ2: Pred. | LC2: Points | LD2: Pred. | LG2: Points | LH2: Pred. | LK2: Points | LL2: Pred. | LO2: Points | LP2: Pred. | LS2: Points | LT2: Pred. | LW2: Points | LX2: Pred. | MA2: Points | MB2: Pred. | ME2: Points | MF2: Pred. | MI2: Points | MJ2: Pred. | MM2: Points | MN2: Pred. | MQ2: Points | MR2: Pred. | MU2: Points | MV2: Pred. | MY2: Points | MZ2: Pred. | NC2: Points | ND2: Pred. | NG2: Points | NH2: Pred. | NK2: Points | NL2: Pred. | NO2: Points | NP2: Pred. | NS2: Points | NT2: Pred. | NW2: Points | NX2: Pred. | OA2: Points | OB2: Pred. | OE2: Points | OF2: Pred. | OI2: Points | OJ2: Pred. | OM2: Points | ON2: Pred. | OQ2: Points | OR2: Pred. | OU2: Points | OV2: Pred. | OY2: Points | OZ2: Pred. | PC2: Points | PD2: Pred. | PG2: Points | PH2: Pred. | PK2: Points | PL2: Pred. | PO2: Points | PP2: Pred. | PS2: Points | PT2: Pred. | PW2: Points | PX2: Pred. | QA2: Points | QB2: Pred. | QE2: Points | QF2: Pred. | QI2: Points | QJ2: Pred. | QM2: Points | QO2: No of Red Tens | QP2: Total Points | QQ2: Highest Score | QR2: No. Getting Score
A3: 2021-06-11 | B3: 1 | C3: Turkey | D3: Italy | E3: 0 | F3: - | G3: 3 | H3: 1 | I3: - | J3: 1 | K3: =ResultsCalc(Players!$E3,Players!$G3,Players!H3,Players!J3) -> 0 | L3: 2 | M3: - | N3: 2 | O3: =ResultsCalc(Players!$E3,Players!$G3,Players!L3,Players!N3) -> 0 | P3: 0 | Q3: - | R3: 0 | S3: =ResultsCalc(Players!$E3,Players!$G3,Players!P3,Players!R3) -> 2 | T3: 0 | U3: - | V3: 2 | W3: =ResultsCalc(Players!$E3,Players!$G3,Players!T3,Players!V3) -> 6 | X3: 0 | Y3: - | Z3: 3 | AA3: =ResultsCalc(Players!$E3,Players!$G3,Players!X3,Players!Z3) -> 13 | AB3: 1 | AC3: - | AD3: 2 | AE3: =ResultsCalc(Players!$E3,Players!$G3,Players!AB3,Players!AD3) -> 4 | AF3: 0 | AG3: - | AH3: 2 | AI3: =ResultsCalc(Players!$E3,Players!$G3,Players!AF3,Players!AH3) -> 6 | AJ3: 1 | AK3: - | AL3: 2 | AM3: =ResultsCalc(Players!$E3,Players!$G3,Players!AJ3,Players!AL3) -> 4 | AN3: 1 | AO3: - | AP3: 2 | AQ3: =ResultsCalc(Players!$E3,Players!$G3,Players!AN3,Players!AP3) -> 4 | AR3: 0 | AS3: - | AT3: 1 | AU3: =ResultsCalc(Players!$E3,Players!$G3,Players!AR3,Players!AT3) -> 6 | AV3: 0 | AW3: - | AX3: 1 | AY3: =ResultsCalc(Players!$E3,Players!$G3,Players!AV3,Players!AX3) -> 6 | AZ3: 0 | BA3: - | BB3: 2 | BC3: =ResultsCalc(Players!$E3,Players!$G3,Players!AZ3,Players!BB3) -> 6 | BD3: 0 | BE3: - | BF3: 1 | BG3: =ResultsCalc(Players!$E3,Players!$G3,Players!BD3,Players!BF3) -> 6 | BH3: 2 | BI3: - | BJ3: 1 | BK3: =ResultsCalc(Players!$E3,Players!$G3,Players!BH3,Players!BJ3) -> 0 | BL3: 0 | BM3: - | BN3: 1 | BO3: =ResultsCalc(Players!$E3,Players!$G3,Players!BL3,Players!BN3) -> 6 | BP3: 1 | BQ3: - | BR3: 1 | BS3: =ResultsCalc(Players!$E3,Players!$G3,Players!BP3,Players!BR3) -> 0 | BT3: 1 | BU3: - | BV3: 2 | BW3: =ResultsCalc(Players!$E3,Players!$G3,Players!BT3,Players!BV3) -> 4 | BX3: 1 | BY3: - | BZ3: 1 | CA3: =ResultsCalc(Players!$E3,Players!$G3,Players!BX3,Players!BZ3) -> 0 | CB3: 1 | CC3: - | CD3: 1 | CE3: =ResultsCalc(Players!$E3,Players!$G3,Players!CB3,Players!CD3) -> 0 | CF3: 0 | CG3: - | CH3: 0 | CI3: =ResultsCalc(Players!$E3,Players!$G3,Players!CF3,Players!CH3) -> 2 | CJ3: 0 | CK3: - | CL3: 2 | CM3: =ResultsCalc(Players!$E3,Players!$G3,Players!CJ3,Players!CL3) -> 6 | CN3: 1 | CO3: - | CP3: 2 | CQ3: =ResultsCalc(Players!$E3,Players!$G3,Players!CN3,Players!CP3) -> 4 | CR3: 0 | CS3: - | CT3: 1 | CU3: =ResultsCalc(Players!$E3,Players!$G3,Players!CR3,Players!CT3) -> 6 | CV3: 1 | CW3: - | CX3: 1 | CY3: =ResultsCalc(Players!$E3,Players!$G3,Players!CV3,Players!CX3) -> 0 | CZ3: 0 | DA3: - | DB3: 2 | DC3: =ResultsCalc(Players!$E3,Players!$G3,Players!CZ3,Players!DB3) -> 6 | DD3: 1 | DE3: - | DF3: 2 | DG3: =ResultsCalc(Players!$E3,Players!$G3,Players!DD3,Players!DF3) -> 4 | DH3: 0 | DI3: - | DJ3: 2 | DK3: =ResultsCalc(Players!$E3,Players!$G3,Players!DH3,Players!DJ3) -> 6 | DL3: 0 | DM3: - | DN3: 1 | DO3: =ResultsCalc(Players!$E3,Players!$G3,Players!DL3,Players!DN3) -> 6 | DP3: 1 | DQ3: - | DR3: 2 | DS3: =ResultsCalc(Players!$E3,Players!$G3,Players!DP3,Players!DR3) -> 4 | DT3: 0 | DU3: - | DV3: 2 | DW3: =ResultsCalc(Players!$E3,Players!$G3,Players!DT3,Players!DV3) -> 6 | DX3: 1 | DY3: - | DZ3: 3 | EA3: =ResultsCalc(Players!$E3,Players!$G3,Players!DX3,Players!DZ3) -> 6 | EB3: 2 | EC3: - | ED3: 0 | EE3: =ResultsCalc(Players!$E3,Players!$G3,Players!EB3,Players!ED3) -> 0 | EF3: 2 | EG3: - | EH3: 1 | EI3: =ResultsCalc(Players!$E3,Players!$G3,Players!EF3,Players!EH3) -> 0 | EJ3: 1 | EK3: - | EL3: 2 | EM3: =ResultsCalc(Players!$E3,Players!$G3,Players!EJ3,Players!EL3) -> 4 | EN3: 1 | EO3: - | EP3: 2 | EQ3: =ResultsCalc(Players!$E3,Players!$G3,Players!EN3,Players!EP3) -> 4 | ER3: 0 | ES3: - | ET3: 2 | EU3: =ResultsCalc(Players!$E3,Players!$G3,Players!ER3,Players!ET3) -> 6 | EV3: 0 | EW3: - | EX3: 2 | EY3: =ResultsCalc(Players!$E3,Players!$G3,Players!EV3,Players!EX3) -> 6 | EZ3: 0 | FA3: - | FB3: 1 | FC3: =ResultsCalc(Players!$E3,Players!$G3,Players!EZ3,Players!FB3) -> 6 | FD3: 1 | FE3: - | FF3: 2 | FG3: =ResultsCalc(Players!$E3,Players!$G3,Players!FD3,Players!FF3) -> 4 | FH3: 1 | FI3: - | FJ3: 1 | FK3: =ResultsCalc(Players!$E3,Players!$G3,Players!FH3,Players!FJ3) -> 0 | FL3: 1 | FM3: - | FN3: 2 | FO3: =ResultsCalc(Players!$E3,Players!$G3,Players!FL3,Players!FN3) -> 4 | FP3: 1 | FQ3: - | FR3: 1 | FS3: =ResultsCalc(Players!$E3,Players!$G3,Players!FP3,Players!FR3) -> 0 | FT3: 1 | FU3: - | FV3: 2 | FW3: =ResultsCalc(Players!$E3,Players!$G3,Players!FT3,Players!FV3) -> 4 | FX3: 1 | FY3: - | FZ3: 2 | GA3: =ResultsCalc(Players!$E3,Players!$G3,Players!FX3,Players!FZ3) -> 4 | GB3: 1 | GC3: - | GD3: 2 | GE3: =ResultsCalc(Players!$E3,Players!$G3,Players!GB3,Players!GD3) -> 4 | GF3: 0 | GG3: - | GH3: 2 | GI3: =ResultsCalc(Players!$E3,Players!$G3,Players!GF3,Players!GH3) -> 6 | GJ3: 0 | GK3: - | GL3: 1 | GM3: =ResultsCalc(Players!$E3,Players!$G3,Players!GJ3,Players!GL3) -> 6 | GN3: 0 | GO3: - | GP3: 3 | GQ3: =ResultsCalc(Players!$E3,Players!$G3,Players!GN3,Players!GP3) -> 13 | GR3: 1 | GS3: - | GT3: 2 | GU3: =ResultsCalc(Players!$E3,Players!$G3,Players!GR3,Players!GT3) -> 4 | GV3: 0 | GW3: - | GX3: 2 | GY3: =ResultsCalc(Players!$E3,Players!$G3,Players!GV3,Players!GX3) -> 6 | GZ3: 1 | HA3: - | HB3: 3 | HC3: =ResultsCalc(Players!$E3,Players!$G3,Players!GZ3,Players!HB3) -> 6 | HD3: 1 | HE3: - | HF3: 1 | HG3: =ResultsCalc(Players!$E3,Players!$G3,Players!HD3,Players!HF3) -> 0 | HH3: 0 | HI3: - | HJ3: 2 | HK3: =ResultsCalc(Players!$E3,Players!$G3,Players!HH3,Players!HJ3) -> 6 | HL3: 0 | HM3: - | HN3: 2 | HO3: =ResultsCalc(Players!$E3,Players!$G3,Players!HL3,Players!HN3) -> 6 | HP3: 1 | HQ3: - | HR3: 2 | HS3: =ResultsCalc(Players!$E3,Players!$G3,Players!HP3,Players!HR3) -> 4 | HT3: 0 | HU3: - | HV3: 2 | HW3: =ResultsCalc(Players!$E3,Players!$G3,Players!HT3,Players!HV3) -> 6 | HX3: 0 | HY3: - | HZ3: 1 | IA3: =ResultsCalc(Players!$E3,Players!$G3,Players!HX3,Players!HZ3) -> 6 | IB3: 0 | IC3: - | ID3: 3 | IE3: =ResultsCalc(Players!$E3,Players!$G3,Players!IB3,Players!ID3) -> 13 | IF3: 1 | IG3: - | IH3: 2 | II3: =ResultsCalc(Players!$E3,Players!$G3,Players!IF3,Players!IH3) -> 4 | IJ3: 2 | IK3: - | IL3: 1 | IM3: =ResultsCalc(Players!$E3,Players!$G3,Players!IJ3,Players!IL3) -> 0 | IN3: 0 | IO3: - | IP3: 4 | IQ3: =ResultsCalc(Players!$E3,Players!$G3,Players!IN3,Players!IP3) -> 6 | IR3: 0 | IS3: - | IT3: 2 | IU3: =ResultsCalc(Players!$E3,Players!$G3,Players!IR3,Players!IT3) -> 6 | IV3: 1 | IW3: - | IX3: 2 | IY3: =ResultsCalc(Players!$E3,Players!$G3,Players!IV3,Players!IX3) -> 4 | IZ3: 0 | JA3: - | JB3: 1 | JC3: =ResultsCalc(Players!$E3,Players!$G3,Players!IZ3,Players!JB3) -> 6 | JD3: 0 | JE3: - | JF3: 6 | JG3: =ResultsCalc(Players!$E3,Players!$G3,Players!JD3,Players!JF3) -> 6 | JH3: 0 | JI3: - | JJ3: 2 | JK3: =ResultsCalc(Players!$E3,Players!$G3,Players!JH3,Players!JJ3) -> 6 | JL3: 1 | JM3: - | JN3: 2 | JO3: =ResultsCalc(Players!$E3,Players!$G3,Players!JL3,Players!JN3) -> 4 | JP3: 1 | JQ3: - | JR3: 2 | JS3: =ResultsCalc(Players!$E3,Players!$G3,Players!JP3,Players!JR3) -> 4 | JT3: 1 | JU3: - | JV3: 2 | JW3: =ResultsCalc(Players!$E3,Players!$G3,Players!JT3,Players!JV3) -> 4 | JX3: 0 | JY3: - | JZ3: 2 | KA3: =ResultsCalc(Players!$E3,Players!$G3,Players!JX3,Players!JZ3) -> 6 | KB3: 1 | KC3: - | KD3: 3 | KE3: =ResultsCalc(Players!$E3,Players!$G3,Players!KB3,Players!KD3) -> 6 | KF3: 0 | KG3: - | KH3: 2 | KI3: =ResultsCalc(Players!$E3,Players!$G3,Players!KF3,Players!KH3) -> 6 | KJ3: 1 | KK3: - | KL3: 2 | KM3: =ResultsCalc(Players!$E3,Players!$G3,Players!KJ3,Players!KL3) -> 4 | KN3: 0 | KO3: - | KP3: 2 | KQ3: =ResultsCalc(Players!$E3,Players!$G3,Players!KN3,Players!KP3) -> 6 | KR3: 1 | KS3: - | KT3: 2 | KU3: =ResultsCalc(Players!$E3,Players!$G3,Players!KR3,Players!KT3) -> 4 | KV3: 1 | KW3: - | KX3: 1 | KY3: =ResultsCalc(Players!$E3,Players!$G3,Players!KV3,Players!KX3) -> 0 | KZ3: 1 | LA3: - | LB3: 2 | LC3: =ResultsCalc(Players!$E3,Players!$G3,Players!KZ3,Players!LB3) -> 4 | LD3: 1 | LE3: - | LF3: 2 | LG3: =ResultsCalc(Players!$E3,Players!$G3,Players!LD3,Players!LF3) -> 4 | LH3: 0 | LI3: - | LJ3: 2 | LK3: =ResultsCalc(Players!$E3,Players!$G3,Players!LH3,Players!LJ3) -> 6 | LL3: 1 | LM3: - | LN3: 2 | LO3: =ResultsCalc(Players!$E3,Players!$G3,Players!LL3,Players!LN3) -> 4 | LP3: 1 | LQ3: - | LR3: 2 | LS3: =ResultsCalc(Players!$E3,Players!$G3,Players!LP3,Players!LR3) -> 4 | LT3: 1 | LU3: - | LV3: 1 | LW3: =ResultsCalc(Players!$E3,Players!$G3,Players!LT3,Players!LV3) -> 0 | LX3: 1 | LY3: - | LZ3: 2 | MA3: =ResultsCalc(Players!$E3,Players!$G3,Players!LX3,Players!LZ3) -> 4 | MB3: 0 | MC3: - | MD3: 0 | ME3: =ResultsCalc(Players!$E3,Players!$G3,Players!MB3,Players!MD3) -> 2 | MF3: 0 | MG3: - | MH3: 2 | MI3: =ResultsCalc(Players!$E3,Players!$G3,Players!MF3,Players!MH3) -> 6 | MJ3: 1 | MK3: - | ML3: 1 | MM3: =ResultsCalc(Players!$E3,Players!$G3,Players!MJ3,Players!ML3) -> 0 | MN3: 0 | MO3: - | MP3: 2 | MQ3: =ResultsCalc(Players!$E3,Players!$G3,Players!MN3,Players!MP3) -> 6 | MR3: 0 | MS3: - | MT3: 2 | MU3: =ResultsCalc(Players!$E3,Players!$G3,Players!MR3,Players!MT3) -> 6 | MV3: 1 | MW3: - | MX3: 3 | MY3: =ResultsCalc(Players!$E3,Players!$G3,Players!MV3,Players!MX3) -> 6 | MZ3: 0 | NA3: - | NB3: 2 | NC3: =ResultsCalc(Players!$E3,Players!$G3,Players!MZ3,Players!NB3) -> 6 | ND3: 1 | NE3: - | NF3: 3 | NG3: =ResultsCalc(Players!$E3,Players!$G3,Players!ND3,Players!NF3) -> 6 | NH3: 0 | NI3: - | NJ3: 2 | NK3: =ResultsCalc(Players!$E3,Players!$G3,Players!NH3,Players!NJ3) -> 6 | NL3: 1 | NM3: - | NN3: 3 | NO3: =ResultsCalc(Players!$E3,Players!$G3,Players!NL3,Players!NN3) -> 6 | NP3: 1 | NQ3: - | NR3: 3 | NS3: =ResultsCalc(Players!$E3,Players!$G3,Players!NP3,Players!NR3) -> 6 | NT3: 0 | NU3: - | NV3: 2 | NW3: =ResultsCalc(Players!$E3,Players!$G3,Players!NT3,Players!NV3) -> 6 | NX3: 0 | NY3: - | NZ3: 2 | OA3: =ResultsCalc(Players!$E3,Players!$G3,Players!NX3,Players!NZ3) -> 6 | OB3: 1 | OC3: - | OD3: 3 | OE3: =ResultsCalc(Players!$E3,Players!$G3,Players!OB3,Players!OD3) -> 6 | OF3: 0 | OG3: - | OH3: 1 | OI3: =ResultsCalc(Players!$E3,Players!$G3,Players!OF3,Players!OH3) -> 6 | OJ3: 1 | OK3: - | OL3: 2 | OM3: =ResultsCalc(Players!$E3,Players!$G3,Players!OJ3,Players!OL3) -> 4 | ON3: 0 | OO3: - | OP3: 1 | OQ3: =ResultsCalc(Players!$E3,Players!$G3,Players!ON3,Players!OP3) -> 6 | OR3: 0 | OS3: - | OT3: 2 | OU3: =ResultsCalc(Players!$E3,Players!$G3,Players!OR3,Players!OT3) -> 6 | OV3: 1 | OW3: - | OX3: 3 | OY3: =ResultsCalc(Players!$E3,Players!$G3,Players!OV3,Players!OX3) -> 6 | OZ3: 1 | PA3: - | PB3: 2 | PC3: =ResultsCalc(Players!$E3,Players!$G3,Players!OZ3,Players!PB3) -> 4 | PD3: 0 | PE3: - | PF3: 2 | PG3: =ResultsCalc(Players!$E3,Players!$G3,Players!PD3,Players!PF3) -> 6 | PH3: 1 | PI3: - | PJ3: 2 | PK3: =ResultsCalc(Players!$E3,Players!$G3,Players!PH3,Players!PJ3) -> 4 | PL3: 2 | PM3: - | PN3: 3 | PO3: =ResultsCalc(Players!$E3,Players!$G3,Players!PL3,Players!PN3) -> 6 | PP3: 1 | PQ3: - | PR3: 3 | PS3: =ResultsCalc(Players!$E3,Players!$G3,Players!PP3,Players!PR3) -> 6 | PT3: 1 | PU3: - | PV3: 2 | PW3: =ResultsCalc(Players!$E3,Players!$G3,Players!PT3,Players!PV3) -> 4 | PX3: 2 | PY3: - | PZ3: 0 | QA3: =ResultsCalc(Players!$E3,Players!$G3,Players!PX3,Players!PZ3) -> 0 | QB3: 0 | QC3: - | QD3: 2 | QE3: =ResultsCalc(Players!$E3,Players!$G3,Players!QB3,Players!QD3) -> 6 | QF3: 1 | QG3: - | QH3: 2 | QI3: =ResultsCalc(Players!$E3,Players!$G3,Players!QF3,Players!QH3) -> 4 | QJ3: 0 | QK3: - | QL3: 1 | QM3: =ResultsCalc(Players!$E3,Players!$G3,Players!QJ3,Players!QL3) -> 6 | QO3: =COUNTIF(H3:QM3,">9") -> 3 | QQ3: =MAX(H3:QM3) -> 13 | QR3: =COUNTIF(H3:QM3,(MAX(H3:QM3))) -> 3
A4: 2021-06-12 | B4: 2 | C4: Wales | D4: Switzerland | E4: 1 | F4: - | G4: 1 | H4: 2 | I4: - | J4: 1 | K4: =ResultsCalc(Players!$E4,Players!$G4,Players!H4,Players!J4) -> 2 | L4: 1 | M4: - | N4: 3 | O4: =ResultsCalc(Players!$E4,Players!$G4,Players!L4,Players!N4) -> 2 | P4: 0 | Q4: - | R4: 2 | S4: =ResultsCalc(Players!$E4,Players!$G4,Players!P4,Players!R4) -> 0 | T4: 2 | U4: - | V4: 2 | W4: =ResultsCalc(Players!$E4,Players!$G4,Players!T4,Players!V4) -> 6 | X4: 1 | Y4: - | Z4: 1 | AA4: =ResultsCalc(Players!$E4,Players!$G4,Players!X4,Players!Z4) -> 12 | AB4: 0 | AC4: - | AD4: 2 | AE4: =ResultsCalc(Players!$E4,Players!$G4,Players!AB4,Players!AD4) -> 0 | AF4: 0 | AG4: - | AH4: 1 | AI4: =ResultsCalc(Players!$E4,Players!$G4,Players!AF4,Players!AH4) -> 2 | AJ4: 2 | AK4: - | AL4: 2 | AM4: =ResultsCalc(Players!$E4,Players!$G4,Players!AJ4,Players!AL4) -> 6 | AN4: 1 | AO4: - | AP4: 1 | AQ4: =ResultsCalc(Players!$E4,Players!$G4,Players!AN4,Players!AP4) -> 12 | AR4: 0 | AS4: - | AT4: 2 | AU4: =ResultsCalc(Players!$E4,Players!$G4,Players!AR4,Players!AT4) -> 0 | AV4: 1 | AW4: - | AX4: 1 | AY4: =ResultsCalc(Players!$E4,Players!$G4,Players!AV4,Players!AX4) -> 12 | AZ4: 1 | BA4: - | BB4: 3 | BC4: =ResultsCalc(Players!$E4,Players!$G4,Players!AZ4,Players!BB4) -> 2 | BD4: 1 | BE4: - | BF4: 1 | BG4: =ResultsCalc(Players!$E4,Players!$G4,Players!BD4,Players!BF4) -> 12 | BH4: 2 | BI4: - | BJ4: 1 | BK4: =ResultsCalc(Players!$E4,Players!$G4,Players!BH4,Players!BJ4) -> 2 | BL4: 1 | BM4: - | BN4: 1 | BO4: =ResultsCalc(Players!$E4,Players!$G4,Players!BL4,Players!BN4) -> 12 | BP4: 1 | BQ4: - | BR4: 1 | BS4: =ResultsCalc(Players!$E4,Players!$G4,Players!BP4,Players!BR4) -> 12 | BT4: 1 | BU4: - | BV4: 1 | BW4: =ResultsCalc(Players!$E4,Players!$G4,Players!BT4,Players!BV4) -> 12 | BX4: 0 | BY4: - | BZ4: 1 | CA4: =ResultsCalc(Players!$E4,Players!$G4,Players!BX4,Players!BZ4) -> 2 | CB4: 0 | CC4: - | CD4: 1 | CE4: =ResultsCalc(Players!$E4,Players!$G4,Players!CB4,Players!CD4) -> 2 | CF4: 1 | CG4: - | CH4: 0 | CI4: =ResultsCalc(Players!$E4,Players!$G4,Players!CF4,Players!CH4) -> 2 | CJ4: 1 | CK4: - | CL4: 1 | CM4: =ResultsCalc(Players!$E4,Players!$G4,Players!CJ4,Players!CL4) -> 12 | CN4: 0 | CO4: - | CP4: 2 | CQ4: =ResultsCalc(Players!$E4,Players!$G4,Players!CN4,Players!CP4) -> 0 | CR4: 0 | CS4: - | CT4: 2 | CU4: =ResultsCalc(Players!$E4,Players!$G4,Players!CR4,Players!CT4) -> 0 | CV4: 0 | CW4: - | CX4: 2 | CY4: =ResultsCalc(Players!$E4,Players!$G4,Players!CV4,Players!CX4) -> 0 | CZ4: 1 | DA4: - | DB4: 2 | DC4: =ResultsCalc(Players!$E4,Players!$G4,Players!CZ4,Players!DB4) -> 2 | DD4: 1 | DE4: - | DF4: 1 | DG4: =ResultsCalc(Players!$E4,Players!$G4,Players!DD4,Players!DF4) -> 12 | DH4: 2 | DI4: - | DJ4: 1 | DK4: =ResultsCalc(Players!$E4,Players!$G4,Players!DH4,Players!DJ4) -> 2 | DL4: 1 | DM4: - | DN4: 1 | DO4: =ResultsCalc(Players!$E4,Players!$G4,Players!DL4,Players!DN4) -> 12 | DP4: 0 | DQ4: - | DR4: 1 | DS4: =ResultsCalc(Players!$E4,Players!$G4,Players!DP4,Players!DR4) -> 2 | DT4: 1 | DU4: - | DV4: 1 | DW4: =ResultsCalc(Players!$E4,Players!$G4,Players!DT4,Players!DV4) -> 12 | DX4: 1 | DY4: - | DZ4: 2 | EA4: =ResultsCalc(Players!$E4,Players!$G4,Players!DX4,Players!DZ4) -> 2 | EB4: 1 | EC4: - | ED4: 1 | EE4: =ResultsCalc(Players!$E4,Players!$G4,Players!EB4,Players!ED4) -> 12 | EF4: 1 | EG4: - | EH4: 2 | EI4: =ResultsCalc(Players!$E4,Players!$G4,Players!EF4,Players!EH4) -> 2 | EJ4: 1 | EK4: - | EL4: 0 | EM4: =ResultsCalc(Players!$E4,Players!$G4,Players!EJ4,Players!EL4) -> 2 | EN4: 1 | EO4: - | EP4: 1 | EQ4: =ResultsCalc(Players!$E4,Players!$G4,Players!EN4,Players!EP4) -> 12 | ER4: 1 | ES4: - | ET4: 1 | EU4: =ResultsCalc(Players!$E4,Players!$G4,Players!ER4,Players!ET4) -> 12 | EV4: 1 | EW4: - | EX4: 1 | EY4: =ResultsCalc(Players!$E4,Players!$G4,Players!EV4,Players!EX4) -> 12 | EZ4: 1 | FA4: - | FB4: 1 | FC4: =ResultsCalc(Players!$E4,Players!$G4,Players!EZ4,Players!FB4) -> 12 | FD4: 1 | FE4: - | FF4: 1 | FG4: =ResultsCalc(Players!$E4,Players!$G4,Players!FD4,Players!FF4) -> 12 | FH4: 2 | FI4: - | FJ4: 1 | FK4: =ResultsCalc(Players!$E4,Players!$G4,Players!FH4,Players!FJ4) -> 2 | FL4: 1 | FM4: - | FN4: 2 | FO4: =ResultsCalc(Players!$E4,Players!$G4,Players!FL4,Players!FN4) -> 2 | FP4: 2 | FQ4: - | FR4: 1 | FS4: =ResultsCalc(Players!$E4,Players!$G4,Players!FP4,Players!FR4) -> 2 | FT4: 1 | FU4: - | FV4: 1 | FW4: =ResultsCalc(Players!$E4,Players!$G4,Players!FT4,Players!FV4) -> 12 | FX4: 2 | FY4: - | FZ4: 2 | GA4: =ResultsCalc(Players!$E4,Players!$G4,Players!FX4,Players!FZ4) -> 6 | GB4: 0 | GC4: - | GD4: 0 | GE4: =ResultsCalc(Players!$E4,Players!$G4,Players!GB4,Players!GD4) -> 6 | GF4: 1 | GG4: - | GH4: 1 | GI4: =ResultsCalc(Players!$E4,Players!$G4,Players!GF4,Players!GH4) -> 12 | GJ4: 1 | GK4: - | GL4: 1 | GM4: =ResultsCalc(Players!$E4,Players!$G4,Players!GJ4,Players!GL4) -> 12 | GN4: 0 | GO4: - | GP4: 2 | GQ4: =ResultsCalc(Players!$E4,Players!$G4,Players!GN4,Players!GP4) -> 0 | GR4: 2 | GS4: - | GT4: 1 | GU4: =ResultsCalc(Players!$E4,Players!$G4,Players!GR4,Players!GT4) -> 2 | GV4: 1 | GW4: - | GX4: 2 | GY4: =ResultsCalc(Players!$E4,Players!$G4,Players!GV4,Players!GX4) -> 2 | GZ4: 0 | HA4: - | HB4: 1 | HC4: =ResultsCalc(Players!$E4,Players!$G4,Players!GZ4,Players!HB4) -> 2 | HD4: 1 | HE4: - | HF4: 2 | HG4: =ResultsCalc(Players!$E4,Players!$G4,Players!HD4,Players!HF4) -> 2 | HH4: 0 | HI4: - | HJ4: 1 | HK4: =ResultsCalc(Players!$E4,Players!$G4,Players!HH4,Players!HJ4) -> 2 | HL4: 0 | HM4: - | HN4: 1 | HO4: =ResultsCalc(Players!$E4,Players!$G4,Players!HL4,Players!HN4) -> 2 | HP4: 2 | HQ4: - | HR4: 1 | HS4: =ResultsCalc(Players!$E4,Players!$G4,Players!HP4,Players!HR4) -> 2 | HT4: 1 | HU4: - | HV4: 1 | HW4: =ResultsCalc(Players!$E4,Players!$G4,Players!HT4,Players!HV4) -> 12 | HX4: 0 | HY4: - | HZ4: 1 | IA4: =ResultsCalc(Players!$E4,Players!$G4,Players!HX4,Players!HZ4) -> 2 | IB4: 1 | IC4: - | ID4: 1 | IE4: =ResultsCalc(Players!$E4,Players!$G4,Players!IB4,Players!ID4) -> 12 | IF4: 1 | IG4: - | IH4: 1 | II4: =ResultsCalc(Players!$E4,Players!$G4,Players!IF4,Players!IH4) -> 12 | IJ4: 2 | IK4: - | IL4: 2 | IM4: =ResultsCalc(Players!$E4,Players!$G4,Players!IJ4,Players!IL4) -> 6 | IN4: 0 | IO4: - | IP4: 1 | IQ4: =ResultsCalc(Players!$E4,Players!$G4,Players!IN4,Players!IP4) -> 2 | IR4: 1 | IS4: - | IT4: 1 | IU4: =ResultsCalc(Players!$E4,Players!$G4,Players!IR4,Players!IT4) -> 12 | IV4: 1 | IW4: - | IX4: 1 | IY4: =ResultsCalc(Players!$E4,Players!$G4,Players!IV4,Players!IX4) -> 12 | IZ4: 1 | JA4: - | JB4: 1 | JC4: =ResultsCalc(Players!$E4,Players!$G4,Players!IZ4,Players!JB4) -> 12 | JD4: 2 | JE4: - | JF4: 2 | JG4: =ResultsCalc(Players!$E4,Players!$G4,Players!JD4,Players!JF4) -> 6 | JH4: 1 | JI4: - | JJ4: 1 | JK4: =ResultsCalc(Players!$E4,Players!$G4,Players!JH4,Players!JJ4) -> 12 | JL4: 1 | JM4: - | JN4: 2 | JO4: =ResultsCalc(Players!$E4,Players!$G4,Players!JL4,Players!JN4) -> 2 | JP4: 1 | JQ4: - | JR4: 1 | JS4: =ResultsCalc(Players!$E4,Players!$G4,Players!JP4,Players!JR4) -> 12 | JT4: 1 | JU4: - | JV4: 1 | JW4: =ResultsCalc(Players!$E4,Players!$G4,Players!JT4,Players!JV4) -> 12 | JX4: 1 | JY4: - | JZ4: 1 | KA4: =ResultsCalc(Players!$E4,Players!$G4,Players!JX4,Players!JZ4) -> 12 | KB4: 2 | KC4: - | KD4: 1 | KE4: =ResultsCalc(Players!$E4,Players!$G4,Players!KB4,Players!KD4) -> 2 | KF4: 1 | KG4: - | KH4: 1 | KI4: =ResultsCalc(Players!$E4,Players!$G4,Players!KF4,Players!KH4) -> 12 | KJ4: 0 | KK4: - | KL4: 0 | KM4: =ResultsCalc(Players!$E4,Players!$G4,Players!KJ4,Players!KL4) -> 6 | KN4: 1 | KO4: - | KP4: 2 | KQ4: =ResultsCalc(Players!$E4,Players!$G4,Players!KN4,Players!KP4) -> 2 | KR4: 1 | KS4: - | KT4: 1 | KU4: =ResultsCalc(Players!$E4,Players!$G4,Players!KR4,Players!KT4) -> 12 | KV4: 1 | KW4: - | KX4: 3 | KY4: =ResultsCalc(Players!$E4,Players!$G4,Players!KV4,Players!KX4) -> 2 | KZ4: 1 | LA4: - | LB4: 0 | LC4: =ResultsCalc(Players!$E4,Players!$G4,Players!KZ4,Players!LB4) -> 2 | LD4: 1 | LE4: - | LF4: 1 | LG4: =ResultsCalc(Players!$E4,Players!$G4,Players!LD4,Players!LF4) -> 12 | LH4: 1 | LI4: - | LJ4: 1 | LK4: =ResultsCalc(Players!$E4,Players!$G4,Players!LH4,Players!LJ4) -> 12 | LL4: 1 | LM4: - | LN4: 1 | LO4: =ResultsCalc(Players!$E4,Players!$G4,Players!LL4,Players!LN4) -> 12 | LP4: 1 | LQ4: - | LR4: 1 | LS4: =ResultsCalc(Players!$E4,Players!$G4,Players!LP4,Players!LR4) -> 12 | LT4: 0 | LU4: - | LV4: 1 | LW4: =ResultsCalc(Players!$E4,Players!$G4,Players!LT4,Players!LV4) -> 2 | LX4: 2 | LY4: - | LZ4: 2 | MA4: =ResultsCalc(Players!$E4,Players!$G4,Players!LX4,Players!LZ4) -> 6 | MB4: 0 | MC4: - | MD4: 0 | ME4: =ResultsCalc(Players!$E4,Players!$G4,Players!MB4,Players!MD4) -> 6 | MF4: 1 | MG4: - | MH4: 1 | MI4: =ResultsCalc(Players!$E4,Players!$G4,Players!MF4,Players!MH4) -> 12 | MJ4: 1 | MK4: - | ML4: 3 | MM4: =ResultsCalc(Players!$E4,Players!$G4,Players!MJ4,Players!ML4) -> 2 | MN4: 1 | MO4: - | MP4: 1 | MQ4: =ResultsCalc(Players!$E4,Players!$G4,Players!MN4,Players!MP4) -> 12 | MR4: 1 | MS4: - | MT4: 1 | MU4: =ResultsCalc(Players!$E4,Players!$G4,Players!MR4,Players!MT4) -> 12 | MV4: 2 | MW4: - | MX4: 2 | MY4: =ResultsCalc(Players!$E4,Players!$G4,Players!MV4,Players!MX4) -> 6 | MZ4: 1 | NA4: - | NB4: 0 | NC4: =ResultsCalc(Players!$E4,Players!$G4,Players!MZ4,Players!NB4) -> 2 | ND4: 1 | NE4: - | NF4: 1 | NG4: =ResultsCalc(Players!$E4,Players!$G4,Players!ND4,Players!NF4) -> 12 | NH4: 0 | NI4: - | NJ4: 1 | NK4: =ResultsCalc(Players!$E4,Players!$G4,Players!NH4,Players!NJ4) -> 2 | NL4: 1 | NM4: - | NN4: 0 | NO4: =ResultsCalc(Players!$E4,Players!$G4,Players!NL4,Players!NN4) -> 2 | NP4: 0 | NQ4: - | NR4: 2 | NS4: =ResultsCalc(Players!$E4,Players!$G4,Players!NP4,Players!NR4) -> 0 | NT4: 1 | NU4: - | NV4: 1 | NW4: =ResultsCalc(Players!$E4,Players!$G4,Players!NT4,Players!NV4) -> 12 | NX4: 1 | NY4: - | NZ4: 0 | OA4: =ResultsCalc(Players!$E4,Players!$G4,Players!NX4,Players!NZ4) -> 2 | OB4: 1 | OC4: - | OD4: 1 | OE4: =ResultsCalc(Players!$E4,Players!$G4,Players!OB4,Players!OD4) -> 12 | OF4: 2 | OG4: - | OH4: 1 | OI4: =ResultsCalc(Players!$E4,Players!$G4,Players!OF4,Players!OH4) -> 2 | OJ4: 2 | OK4: - | OL4: 2 | OM4: =ResultsCalc(Players!$E4,Players!$G4,Players!OJ4,Players!OL4) -> 6 | ON4: 1 | OO4: - | OP4: 1 | OQ4: =ResultsCalc(Players!$E4,Players!$G4,Players!ON4,Players!OP4) -> 12 | OR4: 0 | OS4: - | OT4: 1 | OU4: =ResultsCalc(Players!$E4,Players!$G4,Players!OR4,Players!OT4) -> 2 | OV4: 1 | OW4: - | OX4: 1 | OY4: =ResultsCalc(Players!$E4,Players!$G4,Players!OV4,Players!OX4) -> 12 | OZ4: 0 | PA4: - | PB4: 2 | PC4: =ResultsCalc(Players!$E4,Players!$G4,Players!OZ4,Players!PB4) -> 0 | PD4: 1 | PE4: - | PF4: 1 | PG4: =ResultsCalc(Players!$E4,Players!$G4,Players!PD4,Players!PF4) -> 12 | PH4: 1 | PI4: - | PJ4: 2 | PK4: =ResultsCalc(Players!$E4,Players!$G4,Players!PH4,Players!PJ4) -> 2 | PL4: 2 | PM4: - | PN4: 5 | PO4: =ResultsCalc(Players!$E4,Players!$G4,Players!PL4,Players!PN4) -> 0 | PP4: 1 | PQ4: - | PR4: 2 | PS4: =ResultsCalc(Players!$E4,Players!$G4,Players!PP4,Players!PR4) -> 2 | PT4: 1 | PU4: - | PV4: 1 | PW4: =ResultsCalc(Players!$E4,Players!$G4,Players!PT4,Players!PV4) -> 12 | PX4: 1 | PY4: - | PZ4: 1 | QA4: =ResultsCalc(Players!$E4,Players!$G4,Players!PX4,Players!PZ4) -> 12 | QB4: 1 | QC4: - | QD4: 1 | QE4: =ResultsCalc(Players!$E4,Players!$G4,Players!QB4,Players!QD4) -> 12 | QF4: 2 | QG4: - | QH4: 1 | QI4: =ResultsCalc(Players!$E4,Players!$G4,Players!QF4,Players!QH4) -> 2 | QJ4: 1 | QK4: - | QL4: 1 | QM4: =ResultsCalc(Players!$E4,Players!$G4,Players!QJ4,Players!QL4) -> 12 | QO4: =COUNTIF(H4:QM4,">9") -> 49 | QQ4: =MAX(H4:QM4) -> 12 | QR4: 49
A5: 2021-06-12 | B5: 3 | C5: Denmark | D5: Finland | E5: 0 | F5: - | G5: 1 | H5: 3 | I5: - | J5: 0 | K5: =ResultsCalc(Players!$E5,Players!$G5,Players!H5,Players!J5) -> 0 | L5: 2 | M5: - | N5: 0 | O5: =ResultsCalc(Players!$E5,Players!$G5,Players!L5,Players!N5) -> 0 | P5: 2 | Q5: - | R5: 0 | S5: =ResultsCalc(Players!$E5,Players!$G5,Players!P5,Players!R5) -> 0 | T5: 3 | U5: - | V5: 1 | W5: =ResultsCalc(Players!$E5,Players!$G5,Players!T5,Players!V5) -> 2 | X5: 1 | Y5: - | Z5: 0 | AA5: =ResultsCalc(Players!$E5,Players!$G5,Players!X5,Players!Z5) -> 0 | AB5: 1 | AC5: - | AD5: 0 | AE5: =ResultsCalc(Players!$E5,Players!$G5,Players!AB5,Players!AD5) -> 0 | AF5: 1 | AG5: - | AH5: 0 | AI5: =ResultsCalc(Players!$E5,Players!$G5,Players!AF5,Players!AH5) -> 0 | AJ5: 2 | AK5: - | AL5: 1 | AM5: =ResultsCalc(Players!$E5,Players!$G5,Players!AJ5,Players!AL5) -> 2 | AN5: 2 | AO5: - | AP5: 1 | AQ5: =ResultsCalc(Players!$E5,Players!$G5,Players!AN5,Players!AP5) -> 2 | AR5: 2 | AS5: - | AT5: 0 | AU5: =ResultsCalc(Players!$E5,Players!$G5,Players!AR5,Players!AT5) -> 0 | AV5: 3 | AW5: - | AX5: 0 | AY5: =ResultsCalc(Players!$E5,Players!$G5,Players!AV5,Players!AX5) -> 0 | AZ5: 2 | BA5: - | BB5: 0 | BC5: =ResultsCalc(Players!$E5,Players!$G5,Players!AZ5,Players!BB5) -> 0 | BD5: 2 | BE5: - | BF5: 1 | BG5: =ResultsCalc(Players!$E5,Players!$G5,Players!BD5,Players!BF5) -> 2 | BH5: 1 | BI5: - | BJ5: 1 | BK5: =ResultsCalc(Players!$E5,Players!$G5,Players!BH5,Players!BJ5) -> 2 | BL5: 2 | BM5: - | BN5: 0 | BO5: =ResultsCalc(Players!$E5,Players!$G5,Players!BL5,Players!BN5) -> 0 | BP5: 2 | BQ5: - | BR5: 1 | BS5: =ResultsCalc(Players!$E5,Players!$G5,Players!BP5,Players!BR5) -> 2 | BT5: 2 | BU5: - | BV5: 0 | BW5: =ResultsCalc(Players!$E5,Players!$G5,Players!BT5,Players!BV5) -> 0 | BX5: 2 | BY5: - | BZ5: 0 | CA5: =ResultsCalc(Players!$E5,Players!$G5,Players!BX5,Players!BZ5) -> 0 | CB5: 1 | CC5: - | CD5: 1 | CE5: =ResultsCalc(Players!$E5,Players!$G5,Players!CB5,Players!CD5) -> 2 | CF5: 2 | CG5: - | CH5: 1 | CI5: =ResultsCalc(Players!$E5,Players!$G5,Players!CF5,Players!CH5) -> 2 | CJ5: 2 | CK5: - | CL5: 0 | CM5: =ResultsCalc(Players!$E5,Players!$G5,Players!CJ5,Players!CL5) -> 0 | CN5: 1 | CO5: - | CP5: 1 | CQ5: =ResultsCalc(Players!$E5,Players!$G5,Players!CN5,Players!CP5) -> 2 | CR5: 2 | CS5: - | CT5: 1 | CU5: =ResultsCalc(Players!$E5,Players!$G5,Players!CR5,Players!CT5) -> 2 | CV5: 2 | CW5: - | CX5: 0 | CY5: =ResultsCalc(Players!$E5,Players!$G5,Players!CV5,Players!CX5) -> 0 | CZ5: 2 | DA5: - | DB5: 0 | DC5: =ResultsCalc(Players!$E5,Players!$G5,Players!CZ5,Players!DB5) -> 0 | DD5: 2 | DE5: - | DF5: 0 | DG5: =ResultsCalc(Players!$E5,Players!$G5,Players!DD5,Players!DF5) -> 0 | DH5: 1 | DI5: - | DJ5: 1 | DK5: =ResultsCalc(Players!$E5,Players!$G5,Players!DH5,Players!DJ5) -> 2 | DL5: 1 | DM5: - | DN5: 0 | DO5: =ResultsCalc(Players!$E5,Players!$G5,Players!DL5,Players!DN5) -> 0 | DP5: 1 | DQ5: - | DR5: 0 | DS5: =ResultsCalc(Players!$E5,Players!$G5,Players!DP5,Players!DR5) -> 0 | DT5: 2 | DU5: - | DV5: 0 | DW5: =ResultsCalc(Players!$E5,Players!$G5,Players!DT5,Players!DV5) -> 0 | DX5: 2 | DY5: - | DZ5: 0 | EA5: =ResultsCalc(Players!$E5,Players!$G5,Players!DX5,Players!DZ5) -> 0 | EB5: 1 | EC5: - | ED5: 0 | EE5: =ResultsCalc(Players!$E5,Players!$G5,Players!EB5,Players!ED5) -> 0 | EF5: 1 | EG5: - | EH5: 1 | EI5: =ResultsCalc(Players!$E5,Players!$G5,Players!EF5,Players!EH5) -> 2 | EJ5: 1 | EK5: - | EL5: 1 | EM5: =ResultsCalc(Players!$E5,Players!$G5,Players!EJ5,Players!EL5) -> 2 | EN5: 1 | EO5: - | EP5: 1 | EQ5: =ResultsCalc(Players!$E5,Players!$G5,Players!EN5,Players!EP5) -> 2 | ER5: 1 | ES5: - | ET5: 0 | EU5: =ResultsCalc(Players!$E5,Players!$G5,Players!ER5,Players!ET5) -> 0 | EV5: 0 | EW5: - | EX5: 0 | EY5: =ResultsCalc(Players!$E5,Players!$G5,Players!EV5,Players!EX5) -> 2 | EZ5: 1 | FA5: - | FB5: 0 | FC5: =ResultsCalc(Players!$E5,Players!$G5,Players!EZ5,Players!FB5) -> 0 | FD5: 2 | FE5: - | FF5: 0 | FG5: =ResultsCalc(Players!$E5,Players!$G5,Players!FD5,Players!FF5) -> 0 | FH5: 2 | FI5: - | FJ5: 2 | FK5: =ResultsCalc(Players!$E5,Players!$G5,Players!FH5,Players!FJ5) -> 0 | FL5: 2 | FM5: - | FN5: 0 | FO5: =ResultsCalc(Players!$E5,Players!$G5,Players!FL5,Players!FN5) -> 0 | FP5: 3 | FQ5: - | FR5: 2 | FS5: =ResultsCalc(Players!$E5,Players!$G5,Players!FP5,Players!FR5) -> 0 | FT5: 1 | FU5: - | FV5: 0 | FW5: =ResultsCalc(Players!$E5,Players!$G5,Players!FT5,Players!FV5) -> 0 | FX5: 1 | FY5: - | FZ5: 0 | GA5: =ResultsCalc(Players!$E5,Players!$G5,Players!FX5,Players!FZ5) -> 0 | GB5: 2 | GC5: - | GD5: 0 | GE5: =ResultsCalc(Players!$E5,Players!$G5,Players!GB5,Players!GD5) -> 0 | GF5: 2 | GG5: - | GH5: 0 | GI5: =ResultsCalc(Players!$E5,Players!$G5,Players!GF5,Players!GH5) -> 0 | GJ5: 2 | GK5: - | GL5: 0 | GM5: =ResultsCalc(Players!$E5,Players!$G5,Players!GJ5,Players!GL5) -> 0 | GN5: 1 | GO5: - | GP5: 1 | GQ5: =ResultsCalc(Players!$E5,Players!$G5,Players!GN5,Players!GP5) -> 2 | GR5: 2 | GS5: - | GT5: 0 | GU5: =ResultsCalc(Players!$E5,Players!$G5,Players!GR5,Players!GT5) -> 0 | GV5: 1 | GW5: - | GX5: 0 | GY5: =ResultsCalc(Players!$E5,Players!$G5,Players!GV5,Players!GX5) -> 0 | GZ5: 1 | HA5: - | HB5: 0 | HC5: =ResultsCalc(Players!$E5,Players!$G5,Players!GZ5,Players!HB5) -> 0 | HD5: 2 | HE5: - | HF5: 2 | HG5: =ResultsCalc(Players!$E5,Players!$G5,Players!HD5,Players!HF5) -> 0 | HH5: 3 | HI5: - | HJ5: 0 | HK5: =ResultsCalc(Players!$E5,Players!$G5,Players!HH5,Players!HJ5) -> 0 | HL5: 2 | HM5: - | HN5: 2 | HO5: =ResultsCalc(Players!$E5,Players!$G5,Players!HL5,Players!HN5) -> 0 | HP5: 2 | HQ5: - | HR5: 1 | HS5: =ResultsCalc(Players!$E5,Players!$G5,Players!HP5,Players!HR5) -> 2 | HT5: 2 | HU5: - | HV5: 0 | HW5: =ResultsCalc(Players!$E5,Players!$G5,Players!HT5,Players!HV5) -> 0 | HX5: 2 | HY5: - | HZ5: 0 | IA5: =ResultsCalc(Players!$E5,Players!$G5,Players!HX5,Players!HZ5) -> 0 | IB5: 2 | IC5: - | ID5: 0 | IE5: =ResultsCalc(Players!$E5,Players!$G5,Players!IB5,Players!ID5) -> 0 | IF5: 1 | IG5: - | IH5: 0 | II5: =ResultsCalc(Players!$E5,Players!$G5,Players!IF5,Players!IH5) -> 0 | IJ5: 3 | IK5: - | IL5: 0 | IM5: =ResultsCalc(Players!$E5,Players!$G5,Players!IJ5,Players!IL5) -> 0 | IN5: 2 | IO5: - | IP5: 0 | IQ5: =ResultsCalc(Players!$E5,Players!$G5,Players!IN5,Players!IP5) -> 0 | IR5: 3 | IS5: - | IT5: 1 | IU5: =ResultsCalc(Players!$E5,Players!$G5,Players!IR5,Players!IT5) -> 2 | IV5: 2 | IW5: - | IX5: 1 | IY5: =ResultsCalc(Players!$E5,Players!$G5,Players!IV5,Players!IX5) -> 2 | IZ5: 2 | JA5: - | JB5: 0 | JC5: =ResultsCalc(Players!$E5,Players!$G5,Players!IZ5,Players!JB5) -> 0 | JD5: 3 | JE5: - | JF5: 2 | JG5: =ResultsCalc(Players!$E5,Players!$G5,Players!JD5,Players!JF5) -> 0 | JH5: 3 | JI5: - | JJ5: 0 | JK5: =ResultsCalc(Players!$E5,Players!$G5,Players!JH5,Players!JJ5) -> 0 | JL5: 1 | JM5: - | JN5: 0 | JO5: =ResultsCalc(Players!$E5,Players!$G5,Players!JL5,Players!JN5) -> 0 | JP5: 1 | JQ5: - | JR5: 0 | JS5: =ResultsCalc(Players!$E5,Players!$G5,Players!JP5,Players!JR5) -> 0 | JT5: 1 | JU5: - | JV5: 1 | JW5: =ResultsCalc(Players!$E5,Players!$G5,Players!JT5,Players!JV5) -> 2 | JX5: 2 | JY5: - | JZ5: 1 | KA5: =ResultsCalc(Players!$E5,Players!$G5,Players!JX5,Players!JZ5) -> 2 | KB5: 2 | KC5: - | KD5: 0 | KE5: =ResultsCalc(Players!$E5,Players!$G5,Players!KB5,Players!KD5) -> 0 | KF5: 2 | KG5: - | KH5: 0 | KI5: =ResultsCalc(Players!$E5,Players!$G5,Players!KF5,Players!KH5) -> 0 | KJ5: 2 | KK5: - | KL5: 0 | KM5: =ResultsCalc(Players!$E5,Players!$G5,Players!KJ5,Players!KL5) -> 0 | KN5: 1 | KO5: - | KP5: 2 | KQ5: =ResultsCalc(Players!$E5,Players!$G5,Players!KN5,Players!KP5) -> 6 | KR5: 3 | KS5: - | KT5: 1 | KU5: =ResultsCalc(Players!$E5,Players!$G5,Players!KR5,Players!KT5) -> 2 | KV5: 4 | KW5: - | KX5: 1 | KY5: =ResultsCalc(Players!$E5,Players!$G5,Players!KV5,Players!KX5) -> 2 | KZ5: 2 | LA5: - | LB5: 0 | LC5: =ResultsCalc(Players!$E5,Players!$G5,Players!KZ5,Players!LB5) -> 0 | LD5: 2 | LE5: - | LF5: 0 | LG5: =ResultsCalc(Players!$E5,Players!$G5,Players!LD5,Players!LF5) -> 0 | LH5: 2 | LI5: - | LJ5: 1 | LK5: =ResultsCalc(Players!$E5,Players!$G5,Players!LH5,Players!LJ5) -> 2 | LL5: 2 | LM5: - | LN5: 0 | LO5: =ResultsCalc(Players!$E5,Players!$G5,Players!LL5,Players!LN5) -> 0 | LP5: 1 | LQ5: - | LR5: 0 | LS5: =ResultsCalc(Players!$E5,Players!$G5,Players!LP5,Players!LR5) -> 0 | LT5: 2 | LU5: - | LV5: 1 | LW5: =ResultsCalc(Players!$E5,Players!$G5,Players!LT5,Players!LV5) -> 2 | LX5: 2 | LY5: - | LZ5: 1 | MA5: =ResultsCalc(Players!$E5,Players!$G5,Players!LX5,Players!LZ5) -> 2 | MB5: 1 | MC5: - | MD5: 0 | ME5: =ResultsCalc(Players!$E5,Players!$G5,Players!MB5,Players!MD5) -> 0 | MF5: 2 | MG5: - | MH5: 0 | MI5: =ResultsCalc(Players!$E5,Players!$G5,Players!MF5,Players!MH5) -> 0 | MJ5: 2 | MK5: - | ML5: 2 | MM5: =ResultsCalc(Players!$E5,Players!$G5,Players!MJ5,Players!ML5) -> 0 | MN5: 0 | MO5: - | MP5: 0 | MQ5: =ResultsCalc(Players!$E5,Players!$G5,Players!MN5,Players!MP5) -> 2 | MR5: 2 | MS5: - | MT5: 1 | MU5: =ResultsCalc(Players!$E5,Players!$G5,Players!MR5,Players!MT5) -> 2 | MV5: 2 | MW5: - | MX5: 1 | MY5: =ResultsCalc(Players!$E5,Players!$G5,Players!MV5,Players!MX5) -> 2 | MZ5: 1 | NA5: - | NB5: 1 | NC5: =ResultsCalc(Players!$E5,Players!$G5,Players!MZ5,Players!NB5) -> 2 | ND5: 4 | NE5: - | NF5: 0 | NG5: =ResultsCalc(Players!$E5,Players!$G5,Players!ND5,Players!NF5) -> 0 | NH5: 0 | NI5: - | NJ5: 0 | NK5: =ResultsCalc(Players!$E5,Players!$G5,Players!NH5,Players!NJ5) -> 2 | NL5: 1 | NM5: - | NN5: 0 | NO5: =ResultsCalc(Players!$E5,Players!$G5,Players!NL5,Players!NN5) -> 0 | NP5: 3 | NQ5: - | NR5: 1 | NS5: =ResultsCalc(Players!$E5,Players!$G5,Players!NP5,Players!NR5) -> 2 | NT5: 2 | NU5: - | NV5: 0 | NW5: =ResultsCalc(Players!$E5,Players!$G5,Players!NT5,Players!NV5) -> 0 | NX5: 1 | NY5: - | NZ5: 0 | OA5: =ResultsCalc(Players!$E5,Players!$G5,Players!NX5,Players!NZ5) -> 0 | OB5: 1 | OC5: - | OD5: 0 | OE5: =ResultsCalc(Players!$E5,Players!$G5,Players!OB5,Players!OD5) -> 0 | OF5: 2 | OG5: - | OH5: 0 | OI5: =ResultsCalc(Players!$E5,Players!$G5,Players!OF5,Players!OH5) -> 0 | OJ5: 3 | OK5: - | OL5: 0 | OM5: =ResultsCalc(Players!$E5,Players!$G5,Players!OJ5,Players!OL5) -> 0 | ON5: 0 | OO5: - | OP5: 0 | OQ5: =ResultsCalc(Players!$E5,Players!$G5,Players!ON5,Players!OP5) -> 2 | OR5: 2 | OS5: - | OT5: 0 | OU5: =ResultsCalc(Players!$E5,Players!$G5,Players!OR5,Players!OT5) -> 0 | OV5: 3 | OW5: - | OX5: 1 | OY5: =ResultsCalc(Players!$E5,Players!$G5,Players!OV5,Players!OX5) -> 2 | OZ5: 3 | PA5: - | PB5: 0 | PC5: =ResultsCalc(Players!$E5,Players!$G5,Players!OZ5,Players!PB5) -> 0 | PD5: 1 | PE5: - | PF5: 0 | PG5: =ResultsCalc(Players!$E5,Players!$G5,Players!PD5,Players!PF5) -> 0 | PH5: 1 | PI5: - | PJ5: 1 | PK5: =ResultsCalc(Players!$E5,Players!$G5,Players!PH5,Players!PJ5) -> 2 | PL5: 0 | PM5: - | PN5: 0 | PO5: =ResultsCalc(Players!$E5,Players!$G5,Players!PL5,Players!PN5) -> 2 | PP5: 2 | PQ5: - | PR5: 1 | PS5: =ResultsCalc(Players!$E5,Players!$G5,Players!PP5,Players!PR5) -> 2 | PT5: 1 | PU5: - | PV5: 0 | PW5: =ResultsCalc(Players!$E5,Players!$G5,Players!PT5,Players!PV5) -> 0 | PX5: 0 | PY5: - | PZ5: 2 | QA5: =ResultsCalc(Players!$E5,Players!$G5,Players!PX5,Players!PZ5) -> 6 | QB5: 2 | QC5: - | QD5: 1 | QE5: =ResultsCalc(Players!$E5,Players!$G5,Players!QB5,Players!QD5) -> 2 | QF5: 2 | QG5: - | QH5: 0 | QI5: =ResultsCalc(Players!$E5,Players!$G5,Players!QF5,Players!QH5) -> 0 | QJ5: 1 | QK5: - | QL5: 1 | QM5: =ResultsCalc(Players!$E5,Players!$G5,Players!QJ5,Players!QL5) -> 2 | QO5: 0 | QQ5: 6 | QR5: 2
A6: 2021-06-12 | B6: 4 | C6: Belgium | D6: Russia | E6: 3 | F6: - | G6: 0 | H6: 2 | I6: - | J6: 1 | K6: =ResultsCalc(Players!$E6,Players!$G6,Players!H6,Players!J6) -> 4 | L6: 4 | M6: - | N6: 1 | O6: =ResultsCalc(Players!$E6,Players!$G6,Players!L6,Players!N6) -> 6 | P6: 1 | Q6: - | R6: 1 | S6: =ResultsCalc(Players!$E6,Players!$G6,Players!P6,Players!R6) -> 0 | T6: 3 | U6: - | V6: 2 | W6: =ResultsCalc(Players!$E6,Players!$G6,Players!T6,Players!V6) -> 6 | X6: 2 | Y6: - | Z6: 0 | AA6: =ResultsCalc(Players!$E6,Players!$G6,Players!X6,Players!Z6) -> 6 | AB6: 3 | AC6: - | AD6: 0 | AE6: =ResultsCalc(Players!$E6,Players!$G6,Players!AB6,Players!AD6) -> 13 | AF6: 2 | AG6: - | AH6: 0 | AI6: =ResultsCalc(Players!$E6,Players!$G6,Players!AF6,Players!AH6) -> 6 | AJ6: 3 | AK6: - | AL6: 0 | AM6: =ResultsCalc(Players!$E6,Players!$G6,Players!AJ6,Players!AL6) -> 13 | AN6: 1 | AO6: - | AP6: 1 | AQ6: =ResultsCalc(Players!$E6,Players!$G6,Players!AN6,Players!AP6) -> 0 | AR6: 1 | AS6: - | AT6: 1 | AU6: =ResultsCalc(Players!$E6,Players!$G6,Players!AR6,Players!AT6) -> 0 | AV6: 3 | AW6: - | AX6: 0 | AY6: =ResultsCalc(Players!$E6,Players!$G6,Players!AV6,Players!AX6) -> 13 | AZ6: 3 | BA6: - | BB6: 1 | BC6: =ResultsCalc(Players!$E6,Players!$G6,Players!AZ6,Players!BB6) -> 6 | BD6: 2 | BE6: - | BF6: 1 | BG6: =ResultsCalc(Players!$E6,Players!$G6,Players!BD6,Players!BF6) -> 4 | BH6: 1 | BI6: - | BJ6: 1 | BK6: =ResultsCalc(Players!$E6,Players!$G6,Players!BH6,Players!BJ6) -> 0 | BL6: 2 | BM6: - | BN6: 0 | BO6: =ResultsCalc(Players!$E6,Players!$G6,Players!BL6,Players!BN6) -> 6 | BP6: 3 | BQ6: - | BR6: 1 | BS6: =ResultsCalc(Players!$E6,Players!$G6,Players!BP6,Players!BR6) -> 6 | BT6: 2 | BU6: - | BV6: 1 | BW6: =ResultsCalc(Players!$E6,Players!$G6,Players!BT6,Players!BV6) -> 4 | BX6: 2 | BY6: - | BZ6: 0 | CA6: =ResultsCalc(Players!$E6,Players!$G6,Players!BX6,Players!BZ6) -> 6 | CB6: 1 | CC6: - | CD6: 2 | CE6: =ResultsCalc(Players!$E6,Players!$G6,Players!CB6,Players!CD6) -> 0 | CF6: 2 | CG6: - | CH6: 1 | CI6: =ResultsCalc(Players!$E6,Players!$G6,Players!CF6,Players!CH6) -> 4 | CJ6: 4 | CK6: - | CL6: 1 | CM6: =ResultsCalc(Players!$E6,Players!$G6,Players!CJ6,Players!CL6) -> 6 | CN6: 2 | CO6: - | CP6: 1 | CQ6: =ResultsCalc(Players!$E6,Players!$G6,Players!CN6,Players!CP6) -> 4 | CR6: 2 | CS6: - | CT6: 1 | CU6: =ResultsCalc(Players!$E6,Players!$G6,Players!CR6,Players!CT6) -> 4 | CV6: 3 | CW6: - | CX6: 1 | CY6: =ResultsCalc(Players!$E6,Players!$G6,Players!CV6,Players!CX6) -> 6 | CZ6: 2 | DA6: - | DB6: 0 | DC6: =ResultsCalc(Players!$E6,Players!$G6,Players!CZ6,Players!DB6) -> 6 | DD6: 1 | DE6: - | DF6: 0 | DG6: =ResultsCalc(Players!$E6,Players!$G6,Players!DD6,Players!DF6) -> 6 | DH6: 2 | DI6: - | DJ6: 1 | DK6: =ResultsCalc(Players!$E6,Players!$G6,Players!DH6,Players!DJ6) -> 4 | DL6: 2 | DM6: - | DN6: 2 | DO6: =ResultsCalc(Players!$E6,Players!$G6,Players!DL6,Players!DN6) -> 0 | DP6: 2 | DQ6: - | DR6: 0 | DS6: =ResultsCalc(Players!$E6,Players!$G6,Players!DP6,Players!DR6) -> 6 | DT6: 3 | DU6: - | DV6: 1 | DW6: =ResultsCalc(Players!$E6,Players!$G6,Players!DT6,Players!DV6) -> 6 | DX6: 4 | DY6: - | DZ6: 0 | EA6: =ResultsCalc(Players!$E6,Players!$G6,Players!DX6,Players!DZ6) -> 6 | EB6: 2 | EC6: - | ED6: 1 | EE6: =ResultsCalc(Players!$E6,Players!$G6,Players!EB6,Players!ED6) -> 4 | EF6: 2 | EG6: - | EH6: 1 | EI6: =ResultsCalc(Players!$E6,Players!$G6,Players!EF6,Players!EH6) -> 4 | EJ6: 2 | EK6: - | EL6: 1 | EM6: =ResultsCalc(Players!$E6,Players!$G6,Players!EJ6,Players!EL6) -> 4 | EN6: 2 | EO6: - | EP6: 1 | EQ6: =ResultsCalc(Players!$E6,Players!$G6,Players!EN6,Players!EP6) -> 4 | ER6: 3 | ES6: - | ET6: 1 | EU6: =ResultsCalc(Players!$E6,Players!$G6,Players!ER6,Players!ET6) -> 6 | EV6: 3 | EW6: - | EX6: 2 | EY6: =ResultsCalc(Players!$E6,Players!$G6,Players!EV6,Players!EX6) -> 6 | EZ6: 2 | FA6: - | FB6: 1 | FC6: =ResultsCalc(Players!$E6,Players!$G6,Players!EZ6,Players!FB6) -> 4 | FD6: 1 | FE6: - | FF6: 0 | FG6: =ResultsCalc(Players!$E6,Players!$G6,Players!FD6,Players!FF6) -> 6 | FH6: 4 | FI6: - | FJ6: 1 | FK6: =ResultsCalc(Players!$E6,Players!$G6,Players!FH6,Players!FJ6) -> 6 | FL6: 3 | FM6: - | FN6: 1 | FO6: =ResultsCalc(Players!$E6,Players!$G6,Players!FL6,Players!FN6) -> 6 | FP6: 1 | FQ6: - | FR6: 3 | FS6: =ResultsCalc(Players!$E6,Players!$G6,Players!FP6,Players!FR6) -> 0 | FT6: 3 | FU6: - | FV6: 0 | FW6: =ResultsCalc(Players!$E6,Players!$G6,Players!FT6,Players!FV6) -> 13 | FX6: 2 | FY6: - | FZ6: 0 | GA6: =ResultsCalc(Players!$E6,Players!$G6,Players!FX6,Players!FZ6) -> 6 | GB6: 3 | GC6: - | GD6: 3 | GE6: =ResultsCalc(Players!$E6,Players!$G6,Players!GB6,Players!GD6) -> 2 | GF6: 3 | GG6: - | GH6: 1 | GI6: =ResultsCalc(Players!$E6,Players!$G6,Players!GF6,Players!GH6) -> 6 | GJ6: 2 | GK6: - | GL6: 0 | GM6: =ResultsCalc(Players!$E6,Players!$G6,Players!GJ6,Players!GL6) -> 6 | GN6: 3 | GO6: - | GP6: 0 | GQ6: =ResultsCalc(Players!$E6,Players!$G6,Players!GN6,Players!GP6) -> 13 | GR6: 3 | GS6: - | GT6: 1 | GU6: =ResultsCalc(Players!$E6,Players!$G6,Players!GR6,Players!GT6) -> 6 | GV6: 4 | GW6: - | GX6: 1 | GY6: =ResultsCalc(Players!$E6,Players!$G6,Players!GV6,Players!GX6) -> 6 | GZ6: 4 | HA6: - | HB6: 2 | HC6: =ResultsCalc(Players!$E6,Players!$G6,Players!GZ6,Players!HB6) -> 4 | HD6: 3 | HE6: - | HF6: 1 | HG6: =ResultsCalc(Players!$E6,Players!$G6,Players!HD6,Players!HF6) -> 6 | HH6: 2 | HI6: - | HJ6: 1 | HK6: =ResultsCalc(Players!$E6,Players!$G6,Players!HH6,Players!HJ6) -> 4 | HL6: 3 | HM6: - | HN6: 0 | HO6: =ResultsCalc(Players!$E6,Players!$G6,Players!HL6,Players!HN6) -> 13 | HP6: 1 | HQ6: - | HR6: 3 | HS6: =ResultsCalc(Players!$E6,Players!$G6,Players!HP6,Players!HR6) -> 0 | HT6: 3 | HU6: - | HV6: 0 | HW6: =ResultsCalc(Players!$E6,Players!$G6,Players!HT6,Players!HV6) -> 13 | HX6: 2 | HY6: - | HZ6: 1 | IA6: =ResultsCalc(Players!$E6,Players!$G6,Players!HX6,Players!HZ6) -> 4 | IB6: 3 | IC6: - | ID6: 1 | IE6: =ResultsCalc(Players!$E6,Players!$G6,Players!IB6,Players!ID6) -> 6 | IF6: 3 | IG6: - | IH6: 1 | II6: =ResultsCalc(Players!$E6,Players!$G6,Players!IF6,Players!IH6) -> 6 | IJ6: 2 | IK6: - | IL6: 1 | IM6: =ResultsCalc(Players!$E6,Players!$G6,Players!IJ6,Players!IL6) -> 4 | IN6: 2 | IO6: - | IP6: 1 | IQ6: =ResultsCalc(Players!$E6,Players!$G6,Players!IN6,Players!IP6) -> 4 | IR6: 3 | IS6: - | IT6: 0 | IU6: =ResultsCalc(Players!$E6,Players!$G6,Players!IR6,Players!IT6) -> 13 | IV6: 2 | IW6: - | IX6: 0 | IY6: =ResultsCalc(Players!$E6,Players!$G6,Players!IV6,Players!IX6) -> 6 | IZ6: 3 | JA6: - | JB6: 1 | JC6: =ResultsCalc(Players!$E6,Players!$G6,Players!IZ6,Players!JB6) -> 6 | JD6: 2 | JE6: - | JF6: 0 | JG6: =ResultsCalc(Players!$E6,Players!$G6,Players!JD6,Players!JF6) -> 6 | JH6: 3 | JI6: - | JJ6: 1 | JK6: =ResultsCalc(Players!$E6,Players!$G6,Players!JH6,Players!JJ6) -> 6 | JL6: 3 | JM6: - | JN6: 2 | JO6: =ResultsCalc(Players!$E6,Players!$G6,Players!JL6,Players!JN6) -> 6 | JP6: 2 | JQ6: - | JR6: 1 | JS6: =ResultsCalc(Players!$E6,Players!$G6,Players!JP6,Players!JR6) -> 4 | JT6: 2 | JU6: - | JV6: 1 | JW6: =ResultsCalc(Players!$E6,Players!$G6,Players!JT6,Players!JV6) -> 4 | JX6: 3 | JY6: - | JZ6: 1 | KA6: =ResultsCalc(Players!$E6,Players!$G6,Players!JX6,Players!JZ6) -> 6 | KB6: 3 | KC6: - | KD6: 0 | KE6: =ResultsCalc(Players!$E6,Players!$G6,Players!KB6,Players!KD6) -> 13 | KF6: 3 | KG6: - | KH6: 1 | KI6: =ResultsCalc(Players!$E6,Players!$G6,Players!KF6,Players!KH6) -> 6 | KJ6: 2 | KK6: - | KL6: 0 | KM6: =ResultsCalc(Players!$E6,Players!$G6,Players!KJ6,Players!KL6) -> 6 | KN6: 3 | KO6: - | KP6: 1 | KQ6: =ResultsCalc(Players!$E6,Players!$G6,Players!KN6,Players!KP6) -> 6 | KR6: 1 | KS6: - | KT6: 1 | KU6: =ResultsCalc(Players!$E6,Players!$G6,Players!KR6,Players!KT6) -> 0 | KV6: 3 | KW6: - | KX6: 1 | KY6: =ResultsCalc(Players!$E6,Players!$G6,Players!KV6,Players!KX6) -> 6 | KZ6: 3 | LA6: - | LB6: 1 | LC6: =ResultsCalc(Players!$E6,Players!$G6,Players!KZ6,Players!LB6) -> 6 | LD6: 3 | LE6: - | LF6: 0 | LG6: =ResultsCalc(Players!$E6,Players!$G6,Players!LD6,Players!LF6) -> 13 | LH6: 2 | LI6: - | LJ6: 2 | LK6: =ResultsCalc(Players!$E6,Players!$G6,Players!LH6,Players!LJ6) -> 0 | LL6: 3 | LM6: - | LN6: 1 | LO6: =ResultsCalc(Players!$E6,Players!$G6,Players!LL6,Players!LN6) -> 6 | LP6: 2 | LQ6: - | LR6: 1 | LS6: =ResultsCalc(Players!$E6,Players!$G6,Players!LP6,Players!LR6) -> 4 | LT6: 2 | LU6: - | LV6: 1 | LW6: =ResultsCalc(Players!$E6,Players!$G6,Players!LT6,Players!LV6) -> 4 | LX6: 4 | LY6: - | LZ6: 2 | MA6: =ResultsCalc(Players!$E6,Players!$G6,Players!LX6,Players!LZ6) -> 4 | MB6: 1 | MC6: - | MD6: 0 | ME6: =ResultsCalc(Players!$E6,Players!$G6,Players!MB6,Players!MD6) -> 6 | MF6: 3 | MG6: - | MH6: 0 | MI6: =ResultsCalc(Players!$E6,Players!$G6,Players!MF6,Players!MH6) -> 13 | MJ6: 3 | MK6: - | ML6: 2 | MM6: =ResultsCalc(Players!$E6,Players!$G6,Players!MJ6,Players!ML6) -> 6 | MN6: 3 | MO6: - | MP6: 0 | MQ6: =ResultsCalc(Players!$E6,Players!$G6,Players!MN6,Players!MP6) -> 13 | MR6: 3 | MS6: - | MT6: 1 | MU6: =ResultsCalc(Players!$E6,Players!$G6,Players!MR6,Players!MT6) -> 6 | MV6: 3 | MW6: - | MX6: 1 | MY6: =ResultsCalc(Players!$E6,Players!$G6,Players!MV6,Players!MX6) -> 6 | MZ6: 2 | NA6: - | NB6: 0 | NC6: =ResultsCalc(Players!$E6,Players!$G6,Players!MZ6,Players!NB6) -> 6 | ND6: 2 | NE6: - | NF6: 0 | NG6: =ResultsCalc(Players!$E6,Players!$G6,Players!ND6,Players!NF6) -> 6 | NH6: 3 | NI6: - | NJ6: 1 | NK6: =ResultsCalc(Players!$E6,Players!$G6,Players!NH6,Players!NJ6) -> 6 | NL6: 3 | NM6: - | NN6: 1 | NO6: =ResultsCalc(Players!$E6,Players!$G6,Players!NL6,Players!NN6) -> 6 | NP6: 3 | NQ6: - | NR6: 0 | NS6: =ResultsCalc(Players!$E6,Players!$G6,Players!NP6,Players!NR6) -> 13 | NT6: 3 | NU6: - | NV6: 1 | NW6: =ResultsCalc(Players!$E6,Players!$G6,Players!NT6,Players!NV6) -> 6 | NX6: 3 | NY6: - | NZ6: 0 | OA6: =ResultsCalc(Players!$E6,Players!$G6,Players!NX6,Players!NZ6) -> 13 | OB6: 2 | OC6: - | OD6: 1 | OE6: =ResultsCalc(Players!$E6,Players!$G6,Players!OB6,Players!OD6) -> 4 | OF6: 3 | OG6: - | OH6: 0 | OI6: =ResultsCalc(Players!$E6,Players!$G6,Players!OF6,Players!OH6) -> 13 | OJ6: 3 | OK6: - | OL6: 0 | OM6: =ResultsCalc(Players!$E6,Players!$G6,Players!OJ6,Players!OL6) -> 13 | ON6: 1 | OO6: - | OP6: 0 | OQ6: =ResultsCalc(Players!$E6,Players!$G6,Players!ON6,Players!OP6) -> 6 | OR6: 2 | OS6: - | OT6: 0 | OU6: =ResultsCalc(Players!$E6,Players!$G6,Players!OR6,Players!OT6) -> 6 | OV6: 4 | OW6: - | OX6: 2 | OY6: =ResultsCalc(Players!$E6,Players!$G6,Players!OV6,Players!OX6) -> 4 | OZ6: 2 | PA6: - | PB6: 0 | PC6: =ResultsCalc(Players!$E6,Players!$G6,Players!OZ6,Players!PB6) -> 6 | PD6: 3 | PE6: - | PF6: 0 | PG6: =ResultsCalc(Players!$E6,Players!$G6,Players!PD6,Players!PF6) -> 13 | PH6: 2 | PI6: - | PJ6: 1 | PK6: =ResultsCalc(Players!$E6,Players!$G6,Players!PH6,Players!PJ6) -> 4 | PL6: 3 | PM6: - | PN6: 1 | PO6: =ResultsCalc(Players!$E6,Players!$G6,Players!PL6,Players!PN6) -> 6 | PP6: 3 | PQ6: - | PR6: 2 | PS6: =ResultsCalc(Players!$E6,Players!$G6,Players!PP6,Players!PR6) -> 6 | PT6: 2 | PU6: - | PV6: 1 | PW6: =ResultsCalc(Players!$E6,Players!$G6,Players!PT6,Players!PV6) -> 4 | PX6: 0 | PY6: - | PZ6: 3 | QA6: =ResultsCalc(Players!$E6,Players!$G6,Players!PX6,Players!PZ6) -> 0 | QB6: 2 | QC6: - | QD6: 1 | QE6: =ResultsCalc(Players!$E6,Players!$G6,Players!QB6,Players!QD6) -> 4 | QF6: 3 | QG6: - | QH6: 1 | QI6: =ResultsCalc(Players!$E6,Players!$G6,Players!QF6,Players!QH6) -> 6 | QJ6: 2 | QK6: - | QL6: 0 | QM6: =ResultsCalc(Players!$E6,Players!$G6,Players!QJ6,Players!QL6) -> 6 | QO6: 17 | QQ6: 13 | QR6: 17
A7: 2021-06-13 | B7: 5 | C7: England | D7: Croatia | E7: 1 | F7: - | G7: 0 | H7: 2 | I7: - | J7: 2 | K7: =ResultsCalc(Players!$E7,Players!$G7,Players!H7,Players!J7) -> 0 | L7: 1 | M7: - | N7: 0 | O7: =ResultsCalc(Players!$E7,Players!$G7,Players!L7,Players!N7) -> 11 | P7: 2 | Q7: - | R7: 1 | S7: =ResultsCalc(Players!$E7,Players!$G7,Players!P7,Players!R7) -> 6 | T7: 2 | U7: - | V7: 1 | W7: =ResultsCalc(Players!$E7,Players!$G7,Players!T7,Players!V7) -> 6 | X7: 2 | Y7: - | Z7: 0 | AA7: =ResultsCalc(Players!$E7,Players!$G7,Players!X7,Players!Z7) -> 6 | AB7: 1 | AC7: - | AD7: 0 | AE7: =ResultsCalc(Players!$E7,Players!$G7,Players!AB7,Players!AD7) -> 11 | AF7: 2 | AG7: - | AH7: 1 | AI7: =ResultsCalc(Players!$E7,Players!$G7,Players!AF7,Players!AH7) -> 6 | AJ7: 2 | AK7: - | AL7: 1 | AM7: =ResultsCalc(Players!$E7,Players!$G7,Players!AJ7,Players!AL7) -> 6 | AN7: 2 | AO7: - | AP7: 1 | AQ7: =ResultsCalc(Players!$E7,Players!$G7,Players!AN7,Players!AP7) -> 6 | AR7: 2 | AS7: - | AT7: 1 | AU7: =ResultsCalc(Players!$E7,Players!$G7,Players!AR7,Players!AT7) -> 6 | AV7: 2 | AW7: - | AX7: 1 | AY7: =ResultsCalc(Players!$E7,Players!$G7,Players!AV7,Players!AX7) -> 6 | AZ7: 2 | BA7: - | BB7: 1 | BC7: =ResultsCalc(Players!$E7,Players!$G7,Players!AZ7,Players!BB7) -> 6 | BD7: 2 | BE7: - | BF7: 1 | BG7: =ResultsCalc(Players!$E7,Players!$G7,Players!BD7,Players!BF7) -> 6 | BH7: 2 | BI7: - | BJ7: 1 | BK7: =ResultsCalc(Players!$E7,Players!$G7,Players!BH7,Players!BJ7) -> 6 | BL7: 1 | BM7: - | BN7: 0 | BO7: =ResultsCalc(Players!$E7,Players!$G7,Players!BL7,Players!BN7) -> 11 | BP7: 2 | BQ7: - | BR7: 1 | BS7: =ResultsCalc(Players!$E7,Players!$G7,Players!BP7,Players!BR7) -> 6 | BT7: 2 | BU7: - | BV7: 1 | BW7: =ResultsCalc(Players!$E7,Players!$G7,Players!BT7,Players!BV7) -> 6 | BX7: 2 | BY7: - | BZ7: 0 | CA7: =ResultsCalc(Players!$E7,Players!$G7,Players!BX7,Players!BZ7) -> 6 | CB7: 0 | CC7: - | CD7: 1 | CE7: =ResultsCalc(Players!$E7,Players!$G7,Players!CB7,Players!CD7) -> 0 | CF7: 1 | CG7: - | CH7: 2 | CI7: =ResultsCalc(Players!$E7,Players!$G7,Players!CF7,Players!CH7) -> 2 | CJ7: 1 | CK7: - | CL7: 1 | CM7: =ResultsCalc(Players!$E7,Players!$G7,Players!CJ7,Players!CL7) -> 2 | CN7: 1 | CO7: - | CP7: 0 | CQ7: =ResultsCalc(Players!$E7,Players!$G7,Players!CN7,Players!CP7) -> 11 | CR7: 1 | CS7: - | CT7: 1 | CU7: =ResultsCalc(Players!$E7,Players!$G7,Players!CR7,Players!CT7) -> 2 | CV7: 1 | CW7: - | CX7: 1 | CY7: =ResultsCalc(Players!$E7,Players!$G7,Players!CV7,Players!CX7) -> 2 | CZ7: 1 | DA7: - | DB7: 0 | DC7: =ResultsCalc(Players!$E7,Players!$G7,Players!CZ7,Players!DB7) -> 11 | DD7: 3 | DE7: - | DF7: 1 | DG7: =ResultsCalc(Players!$E7,Players!$G7,Players!DD7,Players!DF7) -> 4 | DH7: 2 | DI7: - | DJ7: 0 | DK7: =ResultsCalc(Players!$E7,Players!$G7,Players!DH7,Players!DJ7) -> 6 | DL7: 1 | DM7: - | DN7: 1 | DO7: =ResultsCalc(Players!$E7,Players!$G7,Players!DL7,Players!DN7) -> 2 | DP7: 2 | DQ7: - | DR7: 1 | DS7: =ResultsCalc(Players!$E7,Players!$G7,Players!DP7,Players!DR7) -> 6 | DT7: 2 | DU7: - | DV7: 1 | DW7: =ResultsCalc(Players!$E7,Players!$G7,Players!DT7,Players!DV7) -> 6 | DX7: 2 | DY7: - | DZ7: 0 | EA7: =ResultsCalc(Players!$E7,Players!$G7,Players!DX7,Players!DZ7) -> 6 | EB7: 1 | EC7: - | ED7: 0 | EE7: =ResultsCalc(Players!$E7,Players!$G7,Players!EB7,Players!ED7) -> 11 | EF7: 1 | EG7: - | EH7: 2 | EI7: =ResultsCalc(Players!$E7,Players!$G7,Players!EF7,Players!EH7) -> 2 | EJ7: 2 | EK7: - | EL7: 1 | EM7: =ResultsCalc(Players!$E7,Players!$G7,Players!EJ7,Players!EL7) -> 6 | EN7: 1 | EO7: - | EP7: 1 | EQ7: =ResultsCalc(Players!$E7,Players!$G7,Players!EN7,Players!EP7) -> 2 | ER7: 2 | ES7: - | ET7: 0 | EU7: =ResultsCalc(Players!$E7,Players!$G7,Players!ER7,Players!ET7) -> 6 | EV7: 2 | EW7: - | EX7: 0 | EY7: =ResultsCalc(Players!$E7,Players!$G7,Players!EV7,Players!EX7) -> 6 | EZ7: 2 | FA7: - | FB7: 1 | FC7: =ResultsCalc(Players!$E7,Players!$G7,Players!EZ7,Players!FB7) -> 6 | FD7: 2 | FE7: - | FF7: 1 | FG7: =ResultsCalc(Players!$E7,Players!$G7,Players!FD7,Players!FF7) -> 6 | FH7: 2 | FI7: - | FJ7: 1 | FK7: =ResultsCalc(Players!$E7,Players!$G7,Players!FH7,Players!FJ7) -> 6 | FL7: 1 | FM7: - | FN7: 1 | FO7: =ResultsCalc(Players!$E7,Players!$G7,Players!FL7,Players!FN7) -> 2 | FP7: 2 | FQ7: - | FR7: 1 | FS7: =ResultsCalc(Players!$E7,Players!$G7,Players!FP7,Players!FR7) -> 6 | FT7: 2 | FU7: - | FV7: 2 | FW7: =ResultsCalc(Players!$E7,Players!$G7,Players!FT7,Players!FV7) -> 0 | FX7: 1 | FY7: - | FZ7: 1 | GA7: =ResultsCalc(Players!$E7,Players!$G7,Players!FX7,Players!FZ7) -> 2 | GB7: 1 | GC7: - | GD7: 1 | GE7: =ResultsCalc(Players!$E7,Players!$G7,Players!GB7,Players!GD7) -> 2 | GF7: 1 | GG7: - | GH7: 1 | GI7: =ResultsCalc(Players!$E7,Players!$G7,Players!GF7,Players!GH7) -> 2 | GJ7: 2 | GK7: - | GL7: 1 | GM7: =ResultsCalc(Players!$E7,Players!$G7,Players!GJ7,Players!GL7) -> 6 | GN7: 2 | GO7: - | GP7: 1 | GQ7: =ResultsCalc(Players!$E7,Players!$G7,Players!GN7,Players!GP7) -> 6 | GR7: 2 | GS7: - | GT7: 1 | GU7: =ResultsCalc(Players!$E7,Players!$G7,Players!GR7,Players!GT7) -> 6 | GV7: 2 | GW7: - | GX7: 0 | GY7: =ResultsCalc(Players!$E7,Players!$G7,Players!GV7,Players!GX7) -> 6 | GZ7: 0 | HA7: - | HB7: 0 | HC7: =ResultsCalc(Players!$E7,Players!$G7,Players!GZ7,Players!HB7) -> 2 | HD7: 2 | HE7: - | HF7: 0 | HG7: =ResultsCalc(Players!$E7,Players!$G7,Players!HD7,Players!HF7) -> 6 | HH7: 2 | HI7: - | HJ7: 1 | HK7: =ResultsCalc(Players!$E7,Players!$G7,Players!HH7,Players!HJ7) -> 6 | HL7: 2 | HM7: - | HN7: 1 | HO7: =ResultsCalc(Players!$E7,Players!$G7,Players!HL7,Players!HN7) -> 6 | HP7: 2 | HQ7: - | HR7: 1 | HS7: =ResultsCalc(Players!$E7,Players!$G7,Players!HP7,Players!HR7) -> 6 | HT7: 1 | HU7: - | HV7: 1 | HW7: =ResultsCalc(Players!$E7,Players!$G7,Players!HT7,Players!HV7) -> 2 | HX7: 2 | HY7: - | HZ7: 1 | IA7: =ResultsCalc(Players!$E7,Players!$G7,Players!HX7,Players!HZ7) -> 6 | IB7: 2 | IC7: - | ID7: 1 | IE7: =ResultsCalc(Players!$E7,Players!$G7,Players!IB7,Players!ID7) -> 6 | IF7: 2 | IG7: - | IH7: 1 | II7: =ResultsCalc(Players!$E7,Players!$G7,Players!IF7,Players!IH7) -> 6 | IJ7: 3 | IK7: - | IL7: 1 | IM7: =ResultsCalc(Players!$E7,Players!$G7,Players!IJ7,Players!IL7) -> 4 | IN7: 1 | IO7: - | IP7: 0 | IQ7: =ResultsCalc(Players!$E7,Players!$G7,Players!IN7,Players!IP7) -> 11 | IR7: 2 | IS7: - | IT7: 1 | IU7: =ResultsCalc(Players!$E7,Players!$G7,Players!IR7,Players!IT7) -> 6 | IV7: 1 | IW7: - | IX7: 1 | IY7: =ResultsCalc(Players!$E7,Players!$G7,Players!IV7,Players!IX7) -> 2 | IZ7: 1 | JA7: - | JB7: 1 | JC7: =ResultsCalc(Players!$E7,Players!$G7,Players!IZ7,Players!JB7) -> 2 | JD7: 2 | JE7: - | JF7: 2 | JG7: =ResultsCalc(Players!$E7,Players!$G7,Players!JD7,Players!JF7) -> 0 | JH7: 2 | JI7: - | JJ7: 1 | JK7: =ResultsCalc(Players!$E7,Players!$G7,Players!JH7,Players!JJ7) -> 6 | JL7: 1 | JM7: - | JN7: 1 | JO7: =ResultsCalc(Players!$E7,Players!$G7,Players!JL7,Players!JN7) -> 2 | JP7: 2 | JQ7: - | JR7: 2 | JS7: =ResultsCalc(Players!$E7,Players!$G7,Players!JP7,Players!JR7) -> 0 | JT7: 3 | JU7: - | JV7: 2 | JW7: =ResultsCalc(Players!$E7,Players!$G7,Players!JT7,Players!JV7) -> 6 | JX7: 2 | JY7: - | JZ7: 1 | KA7: =ResultsCalc(Players!$E7,Players!$G7,Players!JX7,Players!JZ7) -> 6 | KB7: 3 | KC7: - | KD7: 2 | KE7: =ResultsCalc(Players!$E7,Players!$G7,Players!KB7,Players!KD7) -> 6 | KF7: 2 | KG7: - | KH7: 0 | KI7: =ResultsCalc(Players!$E7,Players!$G7,Players!KF7,Players!KH7) -> 6 | KJ7: 1 | KK7: - | KL7: 1 | KM7: =ResultsCalc(Players!$E7,Players!$G7,Players!KJ7,Players!KL7) -> 2 | KN7: 1 | KO7: - | KP7: 1 | KQ7: =ResultsCalc(Players!$E7,Players!$G7,Players!KN7,Players!KP7) -> 2 | KR7: 1 | KS7: - | KT7: 1 | KU7: =ResultsCalc(Players!$E7,Players!$G7,Players!KR7,Players!KT7) -> 2 | KV7: 2 | KW7: - | KX7: 1 | KY7: =ResultsCalc(Players!$E7,Players!$G7,Players!KV7,Players!KX7) -> 6 | KZ7: 1 | LA7: - | LB7: 0 | LC7: =ResultsCalc(Players!$E7,Players!$G7,Players!KZ7,Players!LB7) -> 11 | LD7: 1 | LE7: - | LF7: 0 | LG7: =ResultsCalc(Players!$E7,Players!$G7,Players!LD7,Players!LF7) -> 11 | LH7: 2 | LI7: - | LJ7: 1 | LK7: =ResultsCalc(Players!$E7,Players!$G7,Players!LH7,Players!LJ7) -> 6 | LL7: 1 | LM7: - | LN7: 0 | LO7: =ResultsCalc(Players!$E7,Players!$G7,Players!LL7,Players!LN7) -> 11 | LP7: 1 | LQ7: - | LR7: 1 | LS7: =ResultsCalc(Players!$E7,Players!$G7,Players!LP7,Players!LR7) -> 2 | LT7: 2 | LU7: - | LV7: 1 | LW7: =ResultsCalc(Players!$E7,Players!$G7,Players!LT7,Players!LV7) -> 6 | LX7: 1 | LY7: - | LZ7: 1 | MA7: =ResultsCalc(Players!$E7,Players!$G7,Players!LX7,Players!LZ7) -> 2 | MB7: 0 | MC7: - | MD7: 1 | ME7: =ResultsCalc(Players!$E7,Players!$G7,Players!MB7,Players!MD7) -> 0 | MF7: 2 | MG7: - | MH7: 1 | MI7: =ResultsCalc(Players!$E7,Players!$G7,Players!MF7,Players!MH7) -> 6 | MJ7: 2 | MK7: - | ML7: 1 | MM7: =ResultsCalc(Players!$E7,Players!$G7,Players!MJ7,Players!ML7) -> 6 | MN7: 1 | MO7: - | MP7: 1 | MQ7: =ResultsCalc(Players!$E7,Players!$G7,Players!MN7,Players!MP7) -> 2 | MR7: 2 | MS7: - | MT7: 1 | MU7: =ResultsCalc(Players!$E7,Players!$G7,Players!MR7,Players!MT7) -> 6 | MV7: 2 | MW7: - | MX7: 1 | MY7: =ResultsCalc(Players!$E7,Players!$G7,Players!MV7,Players!MX7) -> 6 | MZ7: 2 | NA7: - | NB7: 1 | NC7: =ResultsCalc(Players!$E7,Players!$G7,Players!MZ7,Players!NB7) -> 6 | ND7: 2 | NE7: - | NF7: 1 | NG7: =ResultsCalc(Players!$E7,Players!$G7,Players!ND7,Players!NF7) -> 6 | NH7: 2 | NI7: - | NJ7: 1 | NK7: =ResultsCalc(Players!$E7,Players!$G7,Players!NH7,Players!NJ7) -> 6 | NL7: 1 | NM7: - | NN7: 1 | NO7: =ResultsCalc(Players!$E7,Players!$G7,Players!NL7,Players!NN7) -> 2 | NP7: 2 | NQ7: - | NR7: 1 | NS7: =ResultsCalc(Players!$E7,Players!$G7,Players!NP7,Players!NR7) -> 6 | NT7: 2 | NU7: - | NV7: 2 | NW7: =ResultsCalc(Players!$E7,Players!$G7,Players!NT7,Players!NV7) -> 0 | NX7: 4 | NY7: - | NZ7: 0 | OA7: =ResultsCalc(Players!$E7,Players!$G7,Players!NX7,Players!NZ7) -> 6 | OB7: 2 | OC7: - | OD7: 0 | OE7: =ResultsCalc(Players!$E7,Players!$G7,Players!OB7,Players!OD7) -> 6 | OF7: 2 | OG7: - | OH7: 1 | OI7: =ResultsCalc(Players!$E7,Players!$G7,Players!OF7,Players!OH7) -> 6 | OJ7: 2 | OK7: - | OL7: 1 | OM7: =ResultsCalc(Players!$E7,Players!$G7,Players!OJ7,Players!OL7) -> 6 | ON7: 2 | OO7: - | OP7: 1 | OQ7: =ResultsCalc(Players!$E7,Players!$G7,Players!ON7,Players!OP7) -> 6 | OR7: 1 | OS7: - | OT7: 1 | OU7: =ResultsCalc(Players!$E7,Players!$G7,Players!OR7,Players!OT7) -> 2 | OV7: 1 | OW7: - | OX7: 0 | OY7: =ResultsCalc(Players!$E7,Players!$G7,Players!OV7,Players!OX7) -> 11 | OZ7: 1 | PA7: - | PB7: 1 | PC7: =ResultsCalc(Players!$E7,Players!$G7,Players!OZ7,Players!PB7) -> 2 | PD7: 1 | PE7: - | PF7: 1 | PG7: =ResultsCalc(Players!$E7,Players!$G7,Players!PD7,Players!PF7) -> 2 | PH7: 3 | PI7: - | PJ7: 0 | PK7: =ResultsCalc(Players!$E7,Players!$G7,Players!PH7,Players!PJ7) -> 6 | PL7: 1 | PM7: - | PN7: 3 | PO7: =ResultsCalc(Players!$E7,Players!$G7,Players!PL7,Players!PN7) -> 2 | PP7: 2 | PQ7: - | PR7: 1 | PS7: =ResultsCalc(Players!$E7,Players!$G7,Players!PP7,Players!PR7) -> 6 | PT7: 2 | PU7: - | PV7: 2 | PW7: =ResultsCalc(Players!$E7,Players!$G7,Players!PT7,Players!PV7) -> 0 | PX7: 1 | PY7: - | PZ7: 2 | QA7: =ResultsCalc(Players!$E7,Players!$G7,Players!PX7,Players!PZ7) -> 2 | QB7: 1 | QC7: - | QD7: 0 | QE7: =ResultsCalc(Players!$E7,Players!$G7,Players!QB7,Players!QD7) -> 11 | QF7: 3 | QG7: - | QH7: 0 | QI7: =ResultsCalc(Players!$E7,Players!$G7,Players!QF7,Players!QH7) -> 6 | QJ7: 1 | QK7: - | QL7: 1 | QM7: =ResultsCalc(Players!$E7,Players!$G7,Players!QJ7,Players!QL7) -> 2 | QO7: 12 | QQ7: 11 | QR7: 12
A8: 2021-06-13 | B8: 6 | C8: Austria | D8: North Macedonia | E8: 3 | F8: - | G8: 1 | H8: 1 | I8: - | J8: 0 | K8: =ResultsCalc(Players!$E8,Players!$G8,Players!H8,Players!J8) -> 4 | L8: 1 | M8: - | N8: 0 | O8: =ResultsCalc(Players!$E8,Players!$G8,Players!L8,Players!N8) -> 4 | P8: 3 | Q8: - | R8: 0 | S8: =ResultsCalc(Players!$E8,Players!$G8,Players!P8,Players!R8) -> 6 | T8: 3 | U8: - | V8: 0 | W8: =ResultsCalc(Players!$E8,Players!$G8,Players!T8,Players!V8) -> 6 | X8: 1 | Y8: - | Z8: 0 | AA8: =ResultsCalc(Players!$E8,Players!$G8,Players!X8,Players!Z8) -> 4 | AB8: 1 | AC8: - | AD8: 1 | AE8: =ResultsCalc(Players!$E8,Players!$G8,Players!AB8,Players!AD8) -> 2 | AF8: 1 | AG8: - | AH8: 0 | AI8: =ResultsCalc(Players!$E8,Players!$G8,Players!AF8,Players!AH8) -> 4 | AJ8: 1 | AK8: - | AL8: 1 | AM8: =ResultsCalc(Players!$E8,Players!$G8,Players!AJ8,Players!AL8) -> 2 | AN8: 0 | AO8: - | AP8: 0 | AQ8: =ResultsCalc(Players!$E8,Players!$G8,Players!AN8,Players!AP8) -> 0 | AR8: 0 | AS8: - | AT8: 0 | AU8: =ResultsCalc(Players!$E8,Players!$G8,Players!AR8,Players!AT8) -> 0 | AV8: 2 | AW8: - | AX8: 2 | AY8: =ResultsCalc(Players!$E8,Players!$G8,Players!AV8,Players!AX8) -> 0 | AZ8: 2 | BA8: - | BB8: 0 | BC8: =ResultsCalc(Players!$E8,Players!$G8,Players!AZ8,Players!BB8) -> 6 | BD8: 1 | BE8: - | BF8: 0 | BG8: =ResultsCalc(Players!$E8,Players!$G8,Players!BD8,Players!BF8) -> 4 | BH8: 0 | BI8: - | BJ8: 0 | BK8: =ResultsCalc(Players!$E8,Players!$G8,Players!BH8,Players!BJ8) -> 0 | BL8: 2 | BM8: - | BN8: 0 | BO8: =ResultsCalc(Players!$E8,Players!$G8,Players!BL8,Players!BN8) -> 6 | BP8: 2 | BQ8: - | BR8: 0 | BS8: =ResultsCalc(Players!$E8,Players!$G8,Players!BP8,Players!BR8) -> 6 | BT8: 2 | BU8: - | BV8: 0 | BW8: =ResultsCalc(Players!$E8,Players!$G8,Players!BT8,Players!BV8) -> 6 | BX8: 3 | BY8: - | BZ8: 0 | CA8: =ResultsCalc(Players!$E8,Players!$G8,Players!BX8,Players!BZ8) -> 6 | CB8: 0 | CC8: - | CD8: 2 | CE8: =ResultsCalc(Players!$E8,Players!$G8,Players!CB8,Players!CD8) -> 0 | CF8: 0 | CG8: - | CH8: 2 | CI8: =ResultsCalc(Players!$E8,Players!$G8,Players!CF8,Players!CH8) -> 0 | CJ8: 2 | CK8: - | CL8: 0 | CM8: =ResultsCalc(Players!$E8,Players!$G8,Players!CJ8,Players!CL8) -> 6 | CN8: 2 | CO8: - | CP8: 2 | CQ8: =ResultsCalc(Players!$E8,Players!$G8,Players!CN8,Players!CP8) -> 0 | CR8: 1 | CS8: - | CT8: 1 | CU8: =ResultsCalc(Players!$E8,Players!$G8,Players!CR8,Players!CT8) -> 2 | CV8: 1 | CW8: - | CX8: 0 | CY8: =ResultsCalc(Players!$E8,Players!$G8,Players!CV8,Players!CX8) -> 4 | CZ8: 1 | DA8: - | DB8: 0 | DC8: =ResultsCalc(Players!$E8,Players!$G8,Players!CZ8,Players!DB8) -> 4 | DD8: 3 | DE8: - | DF8: 0 | DG8: =ResultsCalc(Players!$E8,Players!$G8,Players!DD8,Players!DF8) -> 6 | DH8: 0 | DI8: - | DJ8: 1 | DK8: =ResultsCalc(Players!$E8,Players!$G8,Players!DH8,Players!DJ8) -> 2 | DL8: 0 | DM8: - | DN8: 0 | DO8: =ResultsCalc(Players!$E8,Players!$G8,Players!DL8,Players!DN8) -> 0 | DP8: 1 | DQ8: - | DR8: 0 | DS8: =ResultsCalc(Players!$E8,Players!$G8,Players!DP8,Players!DR8) -> 4 | DT8: 1 | DU8: - | DV8: 0 | DW8: =ResultsCalc(Players!$E8,Players!$G8,Players!DT8,Players!DV8) -> 4 | DX8: 5 | DY8: - | DZ8: 0 | EA8: =ResultsCalc(Players!$E8,Players!$G8,Players!DX8,Players!DZ8) -> 4 | EB8: 1 | EC8: - | ED8: 2 | EE8: =ResultsCalc(Players!$E8,Players!$G8,Players!EB8,Players!ED8) -> 0 | EF8: 0 | EG8: - | EH8: 1 | EI8: =ResultsCalc(Players!$E8,Players!$G8,Players!EF8,Players!EH8) -> 2 | EJ8: 1 | EK8: - | EL8: 0 | EM8: =ResultsCalc(Players!$E8,Players!$G8,Players!EJ8,Players!EL8) -> 4 | EN8: 0 | EO8: - | EP8: 0 | EQ8: =ResultsCalc(Players!$E8,Players!$G8,Players!EN8,Players!EP8) -> 0 | ER8: 2 | ES8: - | ET8: 0 | EU8: =ResultsCalc(Players!$E8,Players!$G8,Players!ER8,Players!ET8) -> 6 | EV8: 1 | EW8: - | EX8: 0 | EY8: =ResultsCalc(Players!$E8,Players!$G8,Players!EV8,Players!EX8) -> 4 | EZ8: 2 | FA8: - | FB8: 0 | FC8: =ResultsCalc(Players!$E8,Players!$G8,Players!EZ8,Players!FB8) -> 6 | FD8: 1 | FE8: - | FF8: 1 | FG8: =ResultsCalc(Players!$E8,Players!$G8,Players!FD8,Players!FF8) -> 2 | FH8: 2 | FI8: - | FJ8: 0 | FK8: =ResultsCalc(Players!$E8,Players!$G8,Players!FH8,Players!FJ8) -> 6 | FL8: 2 | FM8: - | FN8: 0 | FO8: =ResultsCalc(Players!$E8,Players!$G8,Players!FL8,Players!FN8) -> 6 | FP8: 3 | FQ8: - | FR8: 2 | FS8: =ResultsCalc(Players!$E8,Players!$G8,Players!FP8,Players!FR8) -> 6 | FT8: 2 | FU8: - | FV8: 0 | FW8: =ResultsCalc(Players!$E8,Players!$G8,Players!FT8,Players!FV8) -> 6 | FX8: 1 | FY8: - | FZ8: 0 | GA8: =ResultsCalc(Players!$E8,Players!$G8,Players!FX8,Players!FZ8) -> 4 | GB8: 0 | GC8: - | GD8: 1 | GE8: =ResultsCalc(Players!$E8,Players!$G8,Players!GB8,Players!GD8) -> 2 | GF8: 2 | GG8: - | GH8: 0 | GI8: =ResultsCalc(Players!$E8,Players!$G8,Players!GF8,Players!GH8) -> 6 | GJ8: 2 | GK8: - | GL8: 0 | GM8: =ResultsCalc(Players!$E8,Players!$G8,Players!GJ8,Players!GL8) -> 6 | GN8: 1 | GO8: - | GP8: 0 | GQ8: =ResultsCalc(Players!$E8,Players!$G8,Players!GN8,Players!GP8) -> 4 | GR8: 0 | GS8: - | GT8: 0 | GU8: =ResultsCalc(Players!$E8,Players!$G8,Players!GR8,Players!GT8) -> 0 | GV8: 1 | GW8: - | GX8: 1 | GY8: =ResultsCalc(Players!$E8,Players!$G8,Players!GV8,Players!GX8) -> 2 | GZ8: 2 | HA8: - | HB8: 0 | HC8: =ResultsCalc(Players!$E8,Players!$G8,Players!GZ8,Players!HB8) -> 6 | HD8: 2 | HE8: - | HF8: 0 | HG8: =ResultsCalc(Players!$E8,Players!$G8,Players!HD8,Players!HF8) -> 6 | HH8: 1 | HI8: - | HJ8: 1 | HK8: =ResultsCalc(Players!$E8,Players!$G8,Players!HH8,Players!HJ8) -> 2 | HL8: 4 | HM8: - | HN8: 0 | HO8: =ResultsCalc(Players!$E8,Players!$G8,Players!HL8,Players!HN8) -> 4 | HP8: 3 | HQ8: - | HR8: 1 | HS8: =ResultsCalc(Players!$E8,Players!$G8,Players!HP8,Players!HR8) -> 14 | HT8: 2 | HU8: - | HV8: 0 | HW8: =ResultsCalc(Players!$E8,Players!$G8,Players!HT8,Players!HV8) -> 6 | HX8: 2 | HY8: - | HZ8: 1 | IA8: =ResultsCalc(Players!$E8,Players!$G8,Players!HX8,Players!HZ8) -> 6 | IB8: 4 | IC8: - | ID8: 0 | IE8: =ResultsCalc(Players!$E8,Players!$G8,Players!IB8,Players!ID8) -> 4 | IF8: 0 | IG8: - | IH8: 0 | II8: =ResultsCalc(Players!$E8,Players!$G8,Players!IF8,Players!IH8) -> 0 | IJ8: 3 | IK8: - | IL8: 2 | IM8: =ResultsCalc(Players!$E8,Players!$G8,Players!IJ8,Players!IL8) -> 6 | IN8: 1 | IO8: - | IP8: 0 | IQ8: =ResultsCalc(Players!$E8,Players!$G8,Players!IN8,Players!IP8) -> 4 | IR8: 2 | IS8: - | IT8: 1 | IU8: =ResultsCalc(Players!$E8,Players!$G8,Players!IR8,Players!IT8) -> 6 | IV8: 1 | IW8: - | IX8: 0 | IY8: =ResultsCalc(Players!$E8,Players!$G8,Players!IV8,Players!IX8) -> 4 | IZ8: 2 | JA8: - | JB8: 0 | JC8: =ResultsCalc(Players!$E8,Players!$G8,Players!IZ8,Players!JB8) -> 6 | JD8: 3 | JE8: - | JF8: 2 | JG8: =ResultsCalc(Players!$E8,Players!$G8,Players!JD8,Players!JF8) -> 6 | JH8: 2 | JI8: - | JJ8: 2 | JK8: =ResultsCalc(Players!$E8,Players!$G8,Players!JH8,Players!JJ8) -> 0 | JL8: 3 | JM8: - | JN8: 0 | JO8: =ResultsCalc(Players!$E8,Players!$G8,Players!JL8,Players!JN8) -> 6 | JP8: 2 | JQ8: - | JR8: 0 | JS8: =ResultsCalc(Players!$E8,Players!$G8,Players!JP8,Players!JR8) -> 6 | JT8: 1 | JU8: - | JV8: 0 | JW8: =ResultsCalc(Players!$E8,Players!$G8,Players!JT8,Players!JV8) -> 4 | JX8: 1 | JY8: - | JZ8: 0 | KA8: =ResultsCalc(Players!$E8,Players!$G8,Players!JX8,Players!JZ8) -> 4 | KB8: 1 | KC8: - | KD8: 1 | KE8: =ResultsCalc(Players!$E8,Players!$G8,Players!KB8,Players!KD8) -> 2 | KF8: 3 | KG8: - | KH8: 0 | KI8: =ResultsCalc(Players!$E8,Players!$G8,Players!KF8,Players!KH8) -> 6 | KJ8: 4 | KK8: - | KL8: 0 | KM8: =ResultsCalc(Players!$E8,Players!$G8,Players!KJ8,Players!KL8) -> 4 | KN8: 2 | KO8: - | KP8: 0 | KQ8: =ResultsCalc(Players!$E8,Players!$G8,Players!KN8,Players!KP8) -> 6 | KR8: 2 | KS8: - | KT8: 0 | KU8: =ResultsCalc(Players!$E8,Players!$G8,Players!KR8,Players!KT8) -> 6 | KV8: 5 | KW8: - | KX8: 1 | KY8: =ResultsCalc(Players!$E8,Players!$G8,Players!KV8,Players!KX8) -> 6 | KZ8: 2 | LA8: - | LB8: 0 | LC8: =ResultsCalc(Players!$E8,Players!$G8,Players!KZ8,Players!LB8) -> 6 | LD8: 2 | LE8: - | LF8: 2 | LG8: =ResultsCalc(Players!$E8,Players!$G8,Players!LD8,Players!LF8) -> 0 | LH8: 3 | LI8: - | LJ8: 0 | LK8: =ResultsCalc(Players!$E8,Players!$G8,Players!LH8,Players!LJ8) -> 6 | LL8: 4 | LM8: - | LN8: 0 | LO8: =ResultsCalc(Players!$E8,Players!$G8,Players!LL8,Players!LN8) -> 4 | LP8: 3 | LQ8: - | LR8: 1 | LS8: =ResultsCalc(Players!$E8,Players!$G8,Players!LP8,Players!LR8) -> 14 | LT8: 1 | LU8: - | LV8: 1 | LW8: =ResultsCalc(Players!$E8,Players!$G8,Players!LT8,Players!LV8) -> 2 | LX8: 3 | LY8: - | LZ8: 0 | MA8: =ResultsCalc(Players!$E8,Players!$G8,Players!LX8,Players!LZ8) -> 6 | MB8: 2 | MC8: - | MD8: 0 | ME8: =ResultsCalc(Players!$E8,Players!$G8,Players!MB8,Players!MD8) -> 6 | MF8: 2 | MG8: - | MH8: 0 | MI8: =ResultsCalc(Players!$E8,Players!$G8,Players!MF8,Players!MH8) -> 6 | MJ8: 2 | MK8: - | ML8: 1 | MM8: =ResultsCalc(Players!$E8,Players!$G8,Players!MJ8,Players!ML8) -> 6 | MN8: 2 | MO8: - | MP8: 0 | MQ8: =ResultsCalc(Players!$E8,Players!$G8,Players!MN8,Players!MP8) -> 6 | MR8: 2 | MS8: - | MT8: 1 | MU8: =ResultsCalc(Players!$E8,Players!$G8,Players!MR8,Players!MT8) -> 6 | MV8: 2 | MW8: - | MX8: 0 | MY8: =ResultsCalc(Players!$E8,Players!$G8,Players!MV8,Players!MX8) -> 6 | MZ8: 2 | NA8: - | NB8: 0 | NC8: =ResultsCalc(Players!$E8,Players!$G8,Players!MZ8,Players!NB8) -> 6 | ND8: 0 | NE8: - | NF8: 0 | NG8: =ResultsCalc(Players!$E8,Players!$G8,Players!ND8,Players!NF8) -> 0 | NH8: 2 | NI8: - | NJ8: 0 | NK8: =ResultsCalc(Players!$E8,Players!$G8,Players!NH8,Players!NJ8) -> 6 | NL8: 2 | NM8: - | NN8: 1 | NO8: =ResultsCalc(Players!$E8,Players!$G8,Players!NL8,Players!NN8) -> 6 | NP8: 2 | NQ8: - | NR8: 0 | NS8: =ResultsCalc(Players!$E8,Players!$G8,Players!NP8,Players!NR8) -> 6 | NT8: 3 | NU8: - | NV8: 0 | NW8: =ResultsCalc(Players!$E8,Players!$G8,Players!NT8,Players!NV8) -> 6 | NX8: 1 | NY8: - | NZ8: 0 | OA8: =ResultsCalc(Players!$E8,Players!$G8,Players!NX8,Players!NZ8) -> 4 | OB8: 2 | OC8: - | OD8: 1 | OE8: =ResultsCalc(Players!$E8,Players!$G8,Players!OB8,Players!OD8) -> 6 | OF8: 0 | OG8: - | OH8: 0 | OI8: =ResultsCalc(Players!$E8,Players!$G8,Players!OF8,Players!OH8) -> 0 | OJ8: 1 | OK8: - | OL8: 0 | OM8: =ResultsCalc(Players!$E8,Players!$G8,Players!OJ8,Players!OL8) -> 4 | ON8: 2 | OO8: - | OP8: 0 | OQ8: =ResultsCalc(Players!$E8,Players!$G8,Players!ON8,Players!OP8) -> 6 | OR8: 3 | OS8: - | OT8: 0 | OU8: =ResultsCalc(Players!$E8,Players!$G8,Players!OR8,Players!OT8) -> 6 | OV8: 3 | OW8: - | OX8: 1 | OY8: =ResultsCalc(Players!$E8,Players!$G8,Players!OV8,Players!OX8) -> 14 | OZ8: 3 | PA8: - | PB8: 1 | PC8: =ResultsCalc(Players!$E8,Players!$G8,Players!OZ8,Players!PB8) -> 14 | PD8: 2 | PE8: - | PF8: 0 | PG8: =ResultsCalc(Players!$E8,Players!$G8,Players!PD8,Players!PF8) -> 6 | PH8: 3 | PI8: - | PJ8: 1 | PK8: =ResultsCalc(Players!$E8,Players!$G8,Players!PH8,Players!PJ8) -> 14 | PL8: 0 | PM8: - | PN8: 0 | PO8: =ResultsCalc(Players!$E8,Players!$G8,Players!PL8,Players!PN8) -> 0 | PP8: 3 | PQ8: - | PR8: 1 | PS8: =ResultsCalc(Players!$E8,Players!$G8,Players!PP8,Players!PR8) -> 14 | PT8: 1 | PU8: - | PV8: 0 | PW8: =ResultsCalc(Players!$E8,Players!$G8,Players!PT8,Players!PV8) -> 4 | PX8: 0 | PY8: - | PZ8: 2 | QA8: =ResultsCalc(Players!$E8,Players!$G8,Players!PX8,Players!PZ8) -> 0 | QB8: 3 | QC8: - | QD8: 0 | QE8: =ResultsCalc(Players!$E8,Players!$G8,Players!QB8,Players!QD8) -> 6 | QF8: 2 | QG8: - | QH8: 0 | QI8: =ResultsCalc(Players!$E8,Players!$G8,Players!QF8,Players!QH8) -> 6 | QJ8: 2 | QK8: - | QL8: 1 | QM8: =ResultsCalc(Players!$E8,Players!$G8,Players!QJ8,Players!QL8) -> 6 | QO8: 6 | QQ8: 14 | QR8: 6
A9: 2021-06-13 | B9: 7 | C9: Netherlands | D9: Ukraine | E9: 3 | F9: - | G9: 2 | H9: 3 | I9: - | J9: 1 | K9: =ResultsCalc(Players!$E9,Players!$G9,Players!H9,Players!J9) -> 6 | L9: 1 | M9: - | N9: 1 | O9: =ResultsCalc(Players!$E9,Players!$G9,Players!L9,Players!N9) -> 0 | P9: 2 | Q9: - | R9: 1 | S9: =ResultsCalc(Players!$E9,Players!$G9,Players!P9,Players!R9) -> 6 | T9: 3 | U9: - | V9: 1 | W9: =ResultsCalc(Players!$E9,Players!$G9,Players!T9,Players!V9) -> 6 | X9: 3 | Y9: - | Z9: 1 | AA9: =ResultsCalc(Players!$E9,Players!$G9,Players!X9,Players!Z9) -> 6 | AB9: 3 | AC9: - | AD9: 1 | AE9: =ResultsCalc(Players!$E9,Players!$G9,Players!AB9,Players!AD9) -> 6 | AF9: 1 | AG9: - | AH9: 1 | AI9: =ResultsCalc(Players!$E9,Players!$G9,Players!AF9,Players!AH9) -> 0 | AJ9: 3 | AK9: - | AL9: 2 | AM9: =ResultsCalc(Players!$E9,Players!$G9,Players!AJ9,Players!AL9) -> 15 | AN9: 1 | AO9: - | AP9: 1 | AQ9: =ResultsCalc(Players!$E9,Players!$G9,Players!AN9,Players!AP9) -> 0 | AR9: 2 | AS9: - | AT9: 0 | AU9: =ResultsCalc(Players!$E9,Players!$G9,Players!AR9,Players!AT9) -> 4 | AV9: 3 | AW9: - | AX9: 1 | AY9: =ResultsCalc(Players!$E9,Players!$G9,Players!AV9,Players!AX9) -> 6 | AZ9: 1 | BA9: - | BB9: 1 | BC9: =ResultsCalc(Players!$E9,Players!$G9,Players!AZ9,Players!BB9) -> 0 | BD9: 1 | BE9: - | BF9: 1 | BG9: =ResultsCalc(Players!$E9,Players!$G9,Players!BD9,Players!BF9) -> 0 | BH9: 2 | BI9: - | BJ9: 1 | BK9: =ResultsCalc(Players!$E9,Players!$G9,Players!BH9,Players!BJ9) -> 6 | BL9: 0 | BM9: - | BN9: 1 | BO9: =ResultsCalc(Players!$E9,Players!$G9,Players!BL9,Players!BN9) -> 0 | BP9: 2 | BQ9: - | BR9: 2 | BS9: =ResultsCalc(Players!$E9,Players!$G9,Players!BP9,Players!BR9) -> 2 | BT9: 1 | BU9: - | BV9: 2 | BW9: =ResultsCalc(Players!$E9,Players!$G9,Players!BT9,Players!BV9) -> 2 | BX9: 1 | BY9: - | BZ9: 0 | CA9: =ResultsCalc(Players!$E9,Players!$G9,Players!BX9,Players!BZ9) -> 6 | CB9: 2 | CC9: - | CD9: 1 | CE9: =ResultsCalc(Players!$E9,Players!$G9,Players!CB9,Players!CD9) -> 6 | CF9: 1 | CG9: - | CH9: 1 | CI9: =ResultsCalc(Players!$E9,Players!$G9,Players!CF9,Players!CH9) -> 0 | CJ9: 2 | CK9: - | CL9: 1 | CM9: =ResultsCalc(Players!$E9,Players!$G9,Players!CJ9,Players!CL9) -> 6 | CN9: 0 | CO9: - | CP9: 1 | CQ9: =ResultsCalc(Players!$E9,Players!$G9,Players!CN9,Players!CP9) -> 0 | CR9: 0 | CS9: - | CT9: 0 | CU9: =ResultsCalc(Players!$E9,Players!$G9,Players!CR9,Players!CT9) -> 0 | CV9: 2 | CW9: - | CX9: 0 | CY9: =ResultsCalc(Players!$E9,Players!$G9,Players!CV9,Players!CX9) -> 4 | CZ9: 2 | DA9: - | DB9: 0 | DC9: =ResultsCalc(Players!$E9,Players!$G9,Players!CZ9,Players!DB9) -> 4 | DD9: 2 | DE9: - | DF9: 1 | DG9: =ResultsCalc(Players!$E9,Players!$G9,Players!DD9,Players!DF9) -> 6 | DH9: 3 | DI9: - | DJ9: 1 | DK9: =ResultsCalc(Players!$E9,Players!$G9,Players!DH9,Players!DJ9) -> 6 | DL9: 2 | DM9: - | DN9: 1 | DO9: =ResultsCalc(Players!$E9,Players!$G9,Players!DL9,Players!DN9) -> 6 | DP9: 1 | DQ9: - | DR9: 1 | DS9: =ResultsCalc(Players!$E9,Players!$G9,Players!DP9,Players!DR9) -> 0 | DT9: 3 | DU9: - | DV9: 0 | DW9: =ResultsCalc(Players!$E9,Players!$G9,Players!DT9,Players!DV9) -> 6 | DX9: 3 | DY9: - | DZ9: 1 | EA9: =ResultsCalc(Players!$E9,Players!$G9,Players!DX9,Players!DZ9) -> 6 | EB9: 1 | EC9: - | ED9: 1 | EE9: =ResultsCalc(Players!$E9,Players!$G9,Players!EB9,Players!ED9) -> 0 | EF9: 2 | EG9: - | EH9: 1 | EI9: =ResultsCalc(Players!$E9,Players!$G9,Players!EF9,Players!EH9) -> 6 | EJ9: 1 | EK9: - | EL9: 0 | EM9: =ResultsCalc(Players!$E9,Players!$G9,Players!EJ9,Players!EL9) -> 6 | EN9: 2 | EO9: - | EP9: 2 | EQ9: =ResultsCalc(Players!$E9,Players!$G9,Players!EN9,Players!EP9) -> 2 | ER9: 2 | ES9: - | ET9: 0 | EU9: =ResultsCalc(Players!$E9,Players!$G9,Players!ER9,Players!ET9) -> 4 | EV9: 3 | EW9: - | EX9: 0 | EY9: =ResultsCalc(Players!$E9,Players!$G9,Players!EV9,Players!EX9) -> 6 | EZ9: 3 | FA9: - | FB9: 1 | FC9: =ResultsCalc(Players!$E9,Players!$G9,Players!EZ9,Players!FB9) -> 6 | FD9: 1 | FE9: - | FF9: 0 | FG9: =ResultsCalc(Players!$E9,Players!$G9,Players!FD9,Players!FF9) -> 6 | FH9: 1 | FI9: - | FJ9: 1 | FK9: =ResultsCalc(Players!$E9,Players!$G9,Players!FH9,Players!FJ9) -> 0 | FL9: 2 | FM9: - | FN9: 1 | FO9: =ResultsCalc(Players!$E9,Players!$G9,Players!FL9,Players!FN9) -> 6 | FP9: 1 | FQ9: - | FR9: 3 | FS9: =ResultsCalc(Players!$E9,Players!$G9,Players!FP9,Players!FR9) -> 0 | FT9: 2 | FU9: - | FV9: 0 | FW9: =ResultsCalc(Players!$E9,Players!$G9,Players!FT9,Players!FV9) -> 4 | FX9: 2 | FY9: - | FZ9: 0 | GA9: =ResultsCalc(Players!$E9,Players!$G9,Players!FX9,Players!FZ9) -> 4 | GB9: 2 | GC9: - | GD9: 1 | GE9: =ResultsCalc(Players!$E9,Players!$G9,Players!GB9,Players!GD9) -> 6 | GF9: 2 | GG9: - | GH9: 1 | GI9: =ResultsCalc(Players!$E9,Players!$G9,Players!GF9,Players!GH9) -> 6 | GJ9: 2 | GK9: - | GL9: 0 | GM9: =ResultsCalc(Players!$E9,Players!$G9,Players!GJ9,Players!GL9) -> 4 | GN9: 2 | GO9: - | GP9: 1 | GQ9: =ResultsCalc(Players!$E9,Players!$G9,Players!GN9,Players!GP9) -> 6 | GR9: 3 | GS9: - | GT9: 1 | GU9: =ResultsCalc(Players!$E9,Players!$G9,Players!GR9,Players!GT9) -> 6 | GV9: 2 | GW9: - | GX9: 2 | GY9: =ResultsCalc(Players!$E9,Players!$G9,Players!GV9,Players!GX9) -> 2 | GZ9: 2 | HA9: - | HB9: 0 | HC9: =ResultsCalc(Players!$E9,Players!$G9,Players!GZ9,Players!HB9) -> 4 | HD9: 1 | HE9: - | HF9: 1 | HG9: =ResultsCalc(Players!$E9,Players!$G9,Players!HD9,Players!HF9) -> 0 | HH9: 0 | HI9: - | HJ9: 1 | HK9: =ResultsCalc(Players!$E9,Players!$G9,Players!HH9,Players!HJ9) -> 0 | HL9: 3 | HM9: - | HN9: 1 | HO9: =ResultsCalc(Players!$E9,Players!$G9,Players!HL9,Players!HN9) -> 6 | HP9: 1 | HQ9: - | HR9: 2 | HS9: =ResultsCalc(Players!$E9,Players!$G9,Players!HP9,Players!HR9) -> 2 | HT9: 2 | HU9: - | HV9: 0 | HW9: =ResultsCalc(Players!$E9,Players!$G9,Players!HT9,Players!HV9) -> 4 | HX9: 2 | HY9: - | HZ9: 1 | IA9: =ResultsCalc(Players!$E9,Players!$G9,Players!HX9,Players!HZ9) -> 6 | IB9: 2 | IC9: - | ID9: 1 | IE9: =ResultsCalc(Players!$E9,Players!$G9,Players!IB9,Players!ID9) -> 6 | IF9: 2 | IG9: - | IH9: 0 | II9: =ResultsCalc(Players!$E9,Players!$G9,Players!IF9,Players!IH9) -> 4 | IJ9: 2 | IK9: - | IL9: 0 | IM9: =ResultsCalc(Players!$E9,Players!$G9,Players!IJ9,Players!IL9) -> 4 | IN9: 3 | IO9: - | IP9: 1 | IQ9: =ResultsCalc(Players!$E9,Players!$G9,Players!IN9,Players!IP9) -> 6 | IR9: 2 | IS9: - | IT9: 1 | IU9: =ResultsCalc(Players!$E9,Players!$G9,Players!IR9,Players!IT9) -> 6 | IV9: 3 | IW9: - | IX9: 1 | IY9: =ResultsCalc(Players!$E9,Players!$G9,Players!IV9,Players!IX9) -> 6 | IZ9: 2 | JA9: - | JB9: 1 | JC9: =ResultsCalc(Players!$E9,Players!$G9,Players!IZ9,Players!JB9) -> 6 | JD9: 1 | JE9: - | JF9: 0 | JG9: =ResultsCalc(Players!$E9,Players!$G9,Players!JD9,Players!JF9) -> 6 | JH9: 0 | JI9: - | JJ9: 0 | JK9: =ResultsCalc(Players!$E9,Players!$G9,Players!JH9,Players!JJ9) -> 0 | JL9: 2 | JM9: - | JN9: 0 | JO9: =ResultsCalc(Players!$E9,Players!$G9,Players!JL9,Players!JN9) -> 4 | JP9: 1 | JQ9: - | JR9: 1 | JS9: =ResultsCalc(Players!$E9,Players!$G9,Players!JP9,Players!JR9) -> 0 | JT9: 2 | JU9: - | JV9: 0 | JW9: =ResultsCalc(Players!$E9,Players!$G9,Players!JT9,Players!JV9) -> 4 | JX9: 2 | JY9: - | JZ9: 0 | KA9: =ResultsCalc(Players!$E9,Players!$G9,Players!JX9,Players!JZ9) -> 4 | KB9: 4 | KC9: - | KD9: 2 | KE9: =ResultsCalc(Players!$E9,Players!$G9,Players!KB9,Players!KD9) -> 6 | KF9: 4 | KG9: - | KH9: 1 | KI9: =ResultsCalc(Players!$E9,Players!$G9,Players!KF9,Players!KH9) -> 4 | KJ9: 3 | KK9: - | KL9: 0 | KM9: =ResultsCalc(Players!$E9,Players!$G9,Players!KJ9,Players!KL9) -> 6 | KN9: 3 | KO9: - | KP9: 0 | KQ9: =ResultsCalc(Players!$E9,Players!$G9,Players!KN9,Players!KP9) -> 6 | KR9: 3 | KS9: - | KT9: 0 | KU9: =ResultsCalc(Players!$E9,Players!$G9,Players!KR9,Players!KT9) -> 6 | KV9: 2 | KW9: - | KX9: 1 | KY9: =ResultsCalc(Players!$E9,Players!$G9,Players!KV9,Players!KX9) -> 6 | KZ9: 1 | LA9: - | LB9: 0 | LC9: =ResultsCalc(Players!$E9,Players!$G9,Players!KZ9,Players!LB9) -> 6 | LD9: 3 | LE9: - | LF9: 0 | LG9: =ResultsCalc(Players!$E9,Players!$G9,Players!LD9,Players!LF9) -> 6 | LH9: 1 | LI9: - | LJ9: 1 | LK9: =ResultsCalc(Players!$E9,Players!$G9,Players!LH9,Players!LJ9) -> 0 | LL9: 2 | LM9: - | LN9: 0 | LO9: =ResultsCalc(Players!$E9,Players!$G9,Players!LL9,Players!LN9) -> 4 | LP9: 2 | LQ9: - | LR9: 2 | LS9: =ResultsCalc(Players!$E9,Players!$G9,Players!LP9,Players!LR9) -> 2 | LT9: 2 | LU9: - | LV9: 1 | LW9: =ResultsCalc(Players!$E9,Players!$G9,Players!LT9,Players!LV9) -> 6 | LX9: 2 | LY9: - | LZ9: 3 | MA9: =ResultsCalc(Players!$E9,Players!$G9,Players!LX9,Players!LZ9) -> 0 | MB9: 3 | MC9: - | MD9: 1 | ME9: =ResultsCalc(Players!$E9,Players!$G9,Players!MB9,Players!MD9) -> 6 | MF9: 3 | MG9: - | MH9: 1 | MI9: =ResultsCalc(Players!$E9,Players!$G9,Players!MF9,Players!MH9) -> 6 | MJ9: 2 | MK9: - | ML9: 1 | MM9: =ResultsCalc(Players!$E9,Players!$G9,Players!MJ9,Players!ML9) -> 6 | MN9: 1 | MO9: - | MP9: 0 | MQ9: =ResultsCalc(Players!$E9,Players!$G9,Players!MN9,Players!MP9) -> 6 | MR9: 3 | MS9: - | MT9: 1 | MU9: =ResultsCalc(Players!$E9,Players!$G9,Players!MR9,Players!MT9) -> 6 | MV9: 3 | MW9: - | MX9: 1 | MY9: =ResultsCalc(Players!$E9,Players!$G9,Players!MV9,Players!MX9) -> 6 | MZ9: 0 | NA9: - | NB9: 0 | NC9: =ResultsCalc(Players!$E9,Players!$G9,Players!MZ9,Players!NB9) -> 0 | ND9: 2 | NE9: - | NF9: 0 | NG9: =ResultsCalc(Players!$E9,Players!$G9,Players!ND9,Players!NF9) -> 4 | NH9: 3 | NI9: - | NJ9: 1 | NK9: =ResultsCalc(Players!$E9,Players!$G9,Players!NH9,Players!NJ9) -> 6 | NL9: 1 | NM9: - | NN9: 1 | NO9: =ResultsCalc(Players!$E9,Players!$G9,Players!NL9,Players!NN9) -> 0 | NP9: 2 | NQ9: - | NR9: 2 | NS9: =ResultsCalc(Players!$E9,Players!$G9,Players!NP9,Players!NR9) -> 2 | NT9: 2 | NU9: - | NV9: 1 | NW9: =ResultsCalc(Players!$E9,Players!$G9,Players!NT9,Players!NV9) -> 6 | NX9: 1 | NY9: - | NZ9: 0 | OA9: =ResultsCalc(Players!$E9,Players!$G9,Players!NX9,Players!NZ9) -> 6 | OB9: 2 | OC9: - | OD9: 0 | OE9: =ResultsCalc(Players!$E9,Players!$G9,Players!OB9,Players!OD9) -> 4 | OF9: 2 | OG9: - | OH9: 0 | OI9: =ResultsCalc(Players!$E9,Players!$G9,Players!OF9,Players!OH9) -> 4 | OJ9: 2 | OK9: - | OL9: 0 | OM9: =ResultsCalc(Players!$E9,Players!$G9,Players!OJ9,Players!OL9) -> 4 | ON9: 1 | OO9: - | OP9: 0 | OQ9: =ResultsCalc(Players!$E9,Players!$G9,Players!ON9,Players!OP9) -> 6 | OR9: 2 | OS9: - | OT9: 0 | OU9: =ResultsCalc(Players!$E9,Players!$G9,Players!OR9,Players!OT9) -> 4 | OV9: 2 | OW9: - | OX9: 0 | OY9: =ResultsCalc(Players!$E9,Players!$G9,Players!OV9,Players!OX9) -> 4 | OZ9: 2 | PA9: - | PB9: 1 | PC9: =ResultsCalc(Players!$E9,Players!$G9,Players!OZ9,Players!PB9) -> 6 | PD9: 2 | PE9: - | PF9: 1 | PG9: =ResultsCalc(Players!$E9,Players!$G9,Players!PD9,Players!PF9) -> 6 | PH9: 2 | PI9: - | PJ9: 0 | PK9: =ResultsCalc(Players!$E9,Players!$G9,Players!PH9,Players!PJ9) -> 4 | PL9: 2 | PM9: - | PN9: 2 | PO9: =ResultsCalc(Players!$E9,Players!$G9,Players!PL9,Players!PN9) -> 2 | PP9: 2 | PQ9: - | PR9: 2 | PS9: =ResultsCalc(Players!$E9,Players!$G9,Players!PP9,Players!PR9) -> 2 | PT9: 2 | PU9: - | PV9: 3 | PW9: =ResultsCalc(Players!$E9,Players!$G9,Players!PT9,Players!PV9) -> 0 | PX9: 1 | PY9: - | PZ9: 3 | QA9: =ResultsCalc(Players!$E9,Players!$G9,Players!PX9,Players!PZ9) -> 0 | QB9: 3 | QC9: - | QD9: 0 | QE9: =ResultsCalc(Players!$E9,Players!$G9,Players!QB9,Players!QD9) -> 6 | QF9: 2 | QG9: - | QH9: 1 | QI9: =ResultsCalc(Players!$E9,Players!$G9,Players!QF9,Players!QH9) -> 6 | QJ9: 1 | QK9: - | QL9: 0 | QM9: =ResultsCalc(Players!$E9,Players!$G9,Players!QJ9,Players!QL9) -> 6 | QO9: 1 | QQ9: 15 | QR9: 1
A10: 2021-06-14 | B10: 8 | C10: Scotland | D10: Czech Republic | E10: 0 | F10: - | G10: 2 | H10: 2 | I10: - | J10: 0 | K10: =ResultsCalc(Players!$E10,Players!$G10,Players!H10,Players!J10) -> 0 | L10: 0 | M10: - | N10: 2 | O10: =ResultsCalc(Players!$E10,Players!$G10,Players!L10,Players!N10) -> 12 | P10: 0 | Q10: - | R10: 1 | S10: =ResultsCalc(Players!$E10,Players!$G10,Players!P10,Players!R10) -> 6 | T10: 1 | U10: - | V10: 1 | W10: =ResultsCalc(Players!$E10,Players!$G10,Players!T10,Players!V10) -> 0 | X10: 1 | Y10: - | Z10: 1 | AA10: =ResultsCalc(Players!$E10,Players!$G10,Players!X10,Players!Z10) -> 0 | AB10: 2 | AC10: - | AD10: 2 | AE10: =ResultsCalc(Players!$E10,Players!$G10,Players!AB10,Players!AD10) -> 2 | AF10: 0 | AG10: - | AH10: 1 | AI10: =ResultsCalc(Players!$E10,Players!$G10,Players!AF10,Players!AH10) -> 6 | AJ10: 1 | AK10: - | AL10: 3 | AM10: =ResultsCalc(Players!$E10,Players!$G10,Players!AJ10,Players!AL10) -> 6 | AN10: 0 | AO10: - | AP10: 2 | AQ10: =ResultsCalc(Players!$E10,Players!$G10,Players!AN10,Players!AP10) -> 12 | AR10: 0 | AS10: - | AT10: 0 | AU10: =ResultsCalc(Players!$E10,Players!$G10,Players!AR10,Players!AT10) -> 2 | AV10: 2 | AW10: - | AX10: 2 | AY10: =ResultsCalc(Players!$E10,Players!$G10,Players!AV10,Players!AX10) -> 2 | AZ10: 2 | BA10: - | BB10: 1 | BC10: =ResultsCalc(Players!$E10,Players!$G10,Players!AZ10,Players!BB10) -> 0 | BD10: 2 | BE10: - | BF10: 1 | BG10: =ResultsCalc(Players!$E10,Players!$G10,Players!BD10,Players!BF10) -> 0 | BH10: 2 | BI10: - | BJ10: 1 | BK10: =ResultsCalc(Players!$E10,Players!$G10,Players!BH10,Players!BJ10) -> 0 | BL10: 1 | BM10: - | BN10: 1 | BO10: =ResultsCalc(Players!$E10,Players!$G10,Players!BL10,Players!BN10) -> 0 | BP10: 1 | BQ10: - | BR10: 2 | BS10: =ResultsCalc(Players!$E10,Players!$G10,Players!BP10,Players!BR10) -> 6 | BT10: 1 | BU10: - | BV10: 3 | BW10: =ResultsCalc(Players!$E10,Players!$G10,Players!BT10,Players!BV10) -> 6 | BX10: 1 | BY10: - | BZ10: 1 | CA10: =ResultsCalc(Players!$E10,Players!$G10,Players!BX10,Players!BZ10) -> 0 | CB10: 0 | CC10: - | CD10: 2 | CE10: =ResultsCalc(Players!$E10,Players!$G10,Players!CB10,Players!CD10) -> 12 | CF10: 2 | CG10: - | CH10: 0 | CI10: =ResultsCalc(Players!$E10,Players!$G10,Players!CF10,Players!CH10) -> 0 | CJ10: 0 | CK10: - | CL10: 1 | CM10: =ResultsCalc(Players!$E10,Players!$G10,Players!CJ10,Players!CL10) -> 6 | CN10: 0 | CO10: - | CP10: 3 | CQ10: =ResultsCalc(Players!$E10,Players!$G10,Players!CN10,Players!CP10) -> 6 | CR10: 0 | CS10: - | CT10: 2 | CU10: =ResultsCalc(Players!$E10,Players!$G10,Players!CR10,Players!CT10) -> 12 | CV10: 1 | CW10: - | CX10: 1 | CY10: =ResultsCalc(Players!$E10,Players!$G10,Players!CV10,Players!CX10) -> 0 | CZ10: 0 | DA10: - | DB10: 0 | DC10: =ResultsCalc(Players!$E10,Players!$G10,Players!CZ10,Players!DB10) -> 2 | DD10: 1 | DE10: - | DF10: 1 | DG10: =ResultsCalc(Players!$E10,Players!$G10,Players!DD10,Players!DF10) -> 0 | DH10: 1 | DI10: - | DJ10: 1 | DK10: =ResultsCalc(Players!$E10,Players!$G10,Players!DH10,Players!DJ10) -> 0 | DL10: 1 | DM10: - | DN10: 0 | DO10: =ResultsCalc(Players!$E10,Players!$G10,Players!DL10,Players!DN10) -> 0 | DP10: 1 | DQ10: - | DR10: 0 | DS10: =ResultsCalc(Players!$E10,Players!$G10,Players!DP10,Players!DR10) -> 0 | DT10: 0 | DU10: - | DV10: 2 | DW10: =ResultsCalc(Players!$E10,Players!$G10,Players!DT10,Players!DV10) -> 12 | DX10: 3 | DY10: - | DZ10: 1 | EA10: =ResultsCalc(Players!$E10,Players!$G10,Players!DX10,Players!DZ10) -> 0 | EB10: 0 | EC10: - | ED10: 2 | EE10: =ResultsCalc(Players!$E10,Players!$G10,Players!EB10,Players!ED10) -> 12 | EF10: 1 | EG10: - | EH10: 2 | EI10: =ResultsCalc(Players!$E10,Players!$G10,Players!EF10,Players!EH10) -> 6 | EJ10: 1 | EK10: - | EL10: 2 | EM10: =ResultsCalc(Players!$E10,Players!$G10,Players!EJ10,Players!EL10) -> 6 | EN10: 1 | EO10: - | EP10: 2 | EQ10: =ResultsCalc(Players!$E10,Players!$G10,Players!EN10,Players!EP10) -> 6 | ER10: 2 | ES10: - | ET10: 1 | EU10: =ResultsCalc(Players!$E10,Players!$G10,Players!ER10,Players!ET10) -> 0 | EV10: 0 | EW10: - | EX10: 1 | EY10: =ResultsCalc(Players!$E10,Players!$G10,Players!EV10,Players!EX10) -> 6 | EZ10: 1 | FA10: - | FB10: 1 | FC10: =ResultsCalc(Players!$E10,Players!$G10,Players!EZ10,Players!FB10) -> 0 | FD10: 2 | FE10: - | FF10: 1 | FG10: =ResultsCalc(Players!$E10,Players!$G10,Players!FD10,Players!FF10) -> 0 | FH10: 1 | FI10: - | FJ10: 0 | FK10: =ResultsCalc(Players!$E10,Players!$G10,Players!FH10,Players!FJ10) -> 0 | FL10: 0 | FM10: - | FN10: 1 | FO10: =ResultsCalc(Players!$E10,Players!$G10,Players!FL10,Players!FN10) -> 6 | FP10: 2 | FQ10: - | FR10: 1 | FS10: =ResultsCalc(Players!$E10,Players!$G10,Players!FP10,Players!FR10) -> 0 | FT10: 2 | FU10: - | FV10: 2 | FW10: =ResultsCalc(Players!$E10,Players!$G10,Players!FT10,Players!FV10) -> 2 | FX10: 1 | FY10: - | FZ10: 1 | GA10: =ResultsCalc(Players!$E10,Players!$G10,Players!FX10,Players!FZ10) -> 0 | GB10: 2 | GC10: - | GD10: 3 | GE10: =ResultsCalc(Players!$E10,Players!$G10,Players!GB10,Players!GD10) -> 4 | GF10: 2 | GG10: - | GH10: 2 | GI10: =ResultsCalc(Players!$E10,Players!$G10,Players!GF10,Players!GH10) -> 2 | GJ10: 1 | GK10: - | GL10: 0 | GM10: =ResultsCalc(Players!$E10,Players!$G10,Players!GJ10,Players!GL10) -> 0 | GN10: 0 | GO10: - | GP10: 2 | GQ10: =ResultsCalc(Players!$E10,Players!$G10,Players!GN10,Players!GP10) -> 12 | GR10: 1 | GS10: - | GT10: 1 | GU10: =ResultsCalc(Players!$E10,Players!$G10,Players!GR10,Players!GT10) -> 0 | GV10: 2 | GW10: - | GX10: 1 | GY10: =ResultsCalc(Players!$E10,Players!$G10,Players!GV10,Players!GX10) -> 0 | GZ10: 0 | HA10: - | HB10: 0 | HC10: =ResultsCalc(Players!$E10,Players!$G10,Players!GZ10,Players!HB10) -> 2 | HD10: 1 | HE10: - | HF10: 2 | HG10: =ResultsCalc(Players!$E10,Players!$G10,Players!HD10,Players!HF10) -> 6 | HH10: 0 | HI10: - | HJ10: 1 | HK10: =ResultsCalc(Players!$E10,Players!$G10,Players!HH10,Players!HJ10) -> 6 | HL10: 0 | HM10: - | HN10: 1 | HO10: =ResultsCalc(Players!$E10,Players!$G10,Players!HL10,Players!HN10) -> 6 | HP10: 2 | HQ10: - | HR10: 1 | HS10: =ResultsCalc(Players!$E10,Players!$G10,Players!HP10,Players!HR10) -> 0 | HT10: 0 | HU10: - | HV10: 2 | HW10: =ResultsCalc(Players!$E10,Players!$G10,Players!HT10,Players!HV10) -> 12 | HX10: 1 | HY10: - | HZ10: 1 | IA10: =ResultsCalc(Players!$E10,Players!$G10,Players!HX10,Players!HZ10) -> 0 | IB10: 1 | IC10: - | ID10: 1 | IE10: =ResultsCalc(Players!$E10,Players!$G10,Players!IB10,Players!ID10) -> 0 | IF10: 0 | IG10: - | IH10: 2 | II10: =ResultsCalc(Players!$E10,Players!$G10,Players!IF10,Players!IH10) -> 12 | IJ10: 1 | IK10: - | IL10: 1 | IM10: =ResultsCalc(Players!$E10,Players!$G10,Players!IJ10,Players!IL10) -> 0 | IN10: 1 | IO10: - | IP10: 1 | IQ10: =ResultsCalc(Players!$E10,Players!$G10,Players!IN10,Players!IP10) -> 0 | IR10: 1 | IS10: - | IT10: 1 | IU10: =ResultsCalc(Players!$E10,Players!$G10,Players!IR10,Players!IT10) -> 0 | IV10: 1 | IW10: - | IX10: 1 | IY10: =ResultsCalc(Players!$E10,Players!$G10,Players!IV10,Players!IX10) -> 0 | IZ10: 0 | JA10: - | JB10: 0 | JC10: =ResultsCalc(Players!$E10,Players!$G10,Players!IZ10,Players!JB10) -> 2 | JD10: 0 | JE10: - | JF10: 3 | JG10: =ResultsCalc(Players!$E10,Players!$G10,Players!JD10,Players!JF10) -> 6 | JH10: 2 | JI10: - | JJ10: 1 | JK10: =ResultsCalc(Players!$E10,Players!$G10,Players!JH10,Players!JJ10) -> 0 | JL10: 1 | JM10: - | JN10: 2 | JO10: =ResultsCalc(Players!$E10,Players!$G10,Players!JL10,Players!JN10) -> 6 | JP10: 1 | JQ10: - | JR10: 2 | JS10: =ResultsCalc(Players!$E10,Players!$G10,Players!JP10,Players!JR10) -> 6 | JT10: 1 | JU10: - | JV10: 1 | JW10: =ResultsCalc(Players!$E10,Players!$G10,Players!JT10,Players!JV10) -> 0 | JX10: 1 | JY10: - | JZ10: 1 | KA10: =ResultsCalc(Players!$E10,Players!$G10,Players!JX10,Players!JZ10) -> 0 | KB10: 2 | KC10: - | KD10: 1 | KE10: =ResultsCalc(Players!$E10,Players!$G10,Players!KB10,Players!KD10) -> 0 | KF10: 1 | KG10: - | KH10: 1 | KI10: =ResultsCalc(Players!$E10,Players!$G10,Players!KF10,Players!KH10) -> 0 | KJ10: 1 | KK10: - | KL10: 2 | KM10: =ResultsCalc(Players!$E10,Players!$G10,Players!KJ10,Players!KL10) -> 6 | KN10: 1 | KO10: - | KP10: 2 | KQ10: =ResultsCalc(Players!$E10,Players!$G10,Players!KN10,Players!KP10) -> 6 | KR10: 1 | KS10: - | KT10: 1 | KU10: =ResultsCalc(Players!$E10,Players!$G10,Players!KR10,Players!KT10) -> 0 | KV10: 1 | KW10: - | KX10: 1 | KY10: =ResultsCalc(Players!$E10,Players!$G10,Players!KV10,Players!KX10) -> 0 | KZ10: 1 | LA10: - | LB10: 1 | LC10: =ResultsCalc(Players!$E10,Players!$G10,Players!KZ10,Players!LB10) -> 0 | LD10: 1 | LE10: - | LF10: 1 | LG10: =ResultsCalc(Players!$E10,Players!$G10,Players!LD10,Players!LF10) -> 0 | LH10: 0 | LI10: - | LJ10: 0 | LK10: =ResultsCalc(Players!$E10,Players!$G10,Players!LH10,Players!LJ10) -> 2 | LL10: 1 | LM10: - | LN10: 0 | LO10: =ResultsCalc(Players!$E10,Players!$G10,Players!LL10,Players!LN10) -> 0 | LP10: 0 | LQ10: - | LR10: 1 | LS10: =ResultsCalc(Players!$E10,Players!$G10,Players!LP10,Players!LR10) -> 6 | LT10: 1 | LU10: - | LV10: 1 | LW10: =ResultsCalc(Players!$E10,Players!$G10,Players!LT10,Players!LV10) -> 0 | LX10: 0 | LY10: - | LZ10: 3 | MA10: =ResultsCalc(Players!$E10,Players!$G10,Players!LX10,Players!LZ10) -> 6 | MB10: 1 | MC10: - | MD10: 2 | ME10: =ResultsCalc(Players!$E10,Players!$G10,Players!MB10,Players!MD10) -> 6 | MF10: 0 | MG10: - | MH10: 2 | MI10: =ResultsCalc(Players!$E10,Players!$G10,Players!MF10,Players!MH10) -> 12 | MJ10: 2 | MK10: - | ML10: 2 | MM10: =ResultsCalc(Players!$E10,Players!$G10,Players!MJ10,Players!ML10) -> 2 | MN10: 1 | MO10: - | MP10: 1 | MQ10: =ResultsCalc(Players!$E10,Players!$G10,Players!MN10,Players!MP10) -> 0 | MR10: 2 | MS10: - | MT10: 1 | MU10: =ResultsCalc(Players!$E10,Players!$G10,Players!MR10,Players!MT10) -> 0 | MV10: 0 | MW10: - | MX10: 1 | MY10: =ResultsCalc(Players!$E10,Players!$G10,Players!MV10,Players!MX10) -> 6 | MZ10: 2 | NA10: - | NB10: 1 | NC10: =ResultsCalc(Players!$E10,Players!$G10,Players!MZ10,Players!NB10) -> 0 | ND10: 0 | NE10: - | NF10: 3 | NG10: =ResultsCalc(Players!$E10,Players!$G10,Players!ND10,Players!NF10) -> 6 | NH10: 1 | NI10: - | NJ10: 2 | NK10: =ResultsCalc(Players!$E10,Players!$G10,Players!NH10,Players!NJ10) -> 6 | NL10: 1 | NM10: - | NN10: 1 | NO10: =ResultsCalc(Players!$E10,Players!$G10,Players!NL10,Players!NN10) -> 0 | NP10: 1 | NQ10: - | NR10: 1 | NS10: =ResultsCalc(Players!$E10,Players!$G10,Players!NP10,Players!NR10) -> 0 | NT10: 1 | NU10: - | NV10: 1 | NW10: =ResultsCalc(Players!$E10,Players!$G10,Players!NT10,Players!NV10) -> 0 | NX10: 0 | NY10: - | NZ10: 1 | OA10: =ResultsCalc(Players!$E10,Players!$G10,Players!NX10,Players!NZ10) -> 6 | OB10: 1 | OC10: - | OD10: 0 | OE10: =ResultsCalc(Players!$E10,Players!$G10,Players!OB10,Players!OD10) -> 0 | OF10: 1 | OG10: - | OH10: 1 | OI10: =ResultsCalc(Players!$E10,Players!$G10,Players!OF10,Players!OH10) -> 0 | OJ10: 0 | OK10: - | OL10: 2 | OM10: =ResultsCalc(Players!$E10,Players!$G10,Players!OJ10,Players!OL10) -> 12 | ON10: 0 | OO10: - | OP10: 1 | OQ10: =ResultsCalc(Players!$E10,Players!$G10,Players!ON10,Players!OP10) -> 6 | OR10: 1 | OS10: - | OT10: 2 | OU10: =ResultsCalc(Players!$E10,Players!$G10,Players!OR10,Players!OT10) -> 6 | OV10: 2 | OW10: - | OX10: 2 | OY10: =ResultsCalc(Players!$E10,Players!$G10,Players!OV10,Players!OX10) -> 2 | OZ10: 1 | PA10: - | PB10: 3 | PC10: =ResultsCalc(Players!$E10,Players!$G10,Players!OZ10,Players!PB10) -> 6 | PD10: 2 | PE10: - | PF10: 1 | PG10: =ResultsCalc(Players!$E10,Players!$G10,Players!PD10,Players!PF10) -> 0 | PH10: 1 | PI10: - | PJ10: 1 | PK10: =ResultsCalc(Players!$E10,Players!$G10,Players!PH10,Players!PJ10) -> 0 | PL10: 0 | PM10: - | PN10: 0 | PO10: =ResultsCalc(Players!$E10,Players!$G10,Players!PL10,Players!PN10) -> 2 | PP10: 0 | PQ10: - | PR10: 2 | PS10: =ResultsCalc(Players!$E10,Players!$G10,Players!PP10,Players!PR10) -> 12 | PT10: 1 | PU10: - | PV10: 2 | PW10: =ResultsCalc(Players!$E10,Players!$G10,Players!PT10,Players!PV10) -> 6 | PX10: 2 | PY10: - | PZ10: 0 | QA10: =ResultsCalc(Players!$E10,Players!$G10,Players!PX10,Players!PZ10) -> 0 | QB10: 0 | QC10: - | QD10: 1 | QE10: =ResultsCalc(Players!$E10,Players!$G10,Players!QB10,Players!QD10) -> 6 | QF10: 2 | QG10: - | QH10: 1 | QI10: =ResultsCalc(Players!$E10,Players!$G10,Players!QF10,Players!QH10) -> 0 | QJ10: 0 | QK10: - | QL10: 1 | QM10: =ResultsCalc(Players!$E10,Players!$G10,Players!QJ10,Players!QL10) -> 6 | QO10: 12 | QQ10: 12 | QR10: 12
A11: 2021-06-14 | B11: 9 | C11: Poland | D11: Slovakia | E11: 1 | F11: - | G11: 2 | H11: 2 | I11: - | J11: 0 | K11: =ResultsCalc(Players!$E11,Players!$G11,Players!H11,Players!J11) -> 0 | L11: 0 | M11: - | N11: 1 | O11: =ResultsCalc(Players!$E11,Players!$G11,Players!L11,Players!N11) -> 6 | P11: 1 | Q11: - | R11: 0 | S11: =ResultsCalc(Players!$E11,Players!$G11,Players!P11,Players!R11) -> 2 | T11: 2 | U11: - | V11: 0 | W11: =ResultsCalc(Players!$E11,Players!$G11,Players!T11,Players!V11) -> 0 | X11: 0 | Y11: - | Z11: 1 | AA11: =ResultsCalc(Players!$E11,Players!$G11,Players!X11,Players!Z11) -> 6 | AB11: 1 | AC11: - | AD11: 1 | AE11: =ResultsCalc(Players!$E11,Players!$G11,Players!AB11,Players!AD11) -> 2 | AF11: 2 | AG11: - | AH11: 1 | AI11: =ResultsCalc(Players!$E11,Players!$G11,Players!AF11,Players!AH11) -> 0 | AJ11: 2 | AK11: - | AL11: 2 | AM11: =ResultsCalc(Players!$E11,Players!$G11,Players!AJ11,Players!AL11) -> 2 | AN11: 1 | AO11: - | AP11: 1 | AQ11: =ResultsCalc(Players!$E11,Players!$G11,Players!AN11,Players!AP11) -> 2 | AR11: 1 | AS11: - | AT11: 1 | AU11: =ResultsCalc(Players!$E11,Players!$G11,Players!AR11,Players!AT11) -> 2 | AV11: 0 | AW11: - | AX11: 0 | AY11: =ResultsCalc(Players!$E11,Players!$G11,Players!AV11,Players!AX11) -> 0 | AZ11: 2 | BA11: - | BB11: 1 | BC11: =ResultsCalc(Players!$E11,Players!$G11,Players!AZ11,Players!BB11) -> 0 | BD11: 3 | BE11: - | BF11: 2 | BG11: =ResultsCalc(Players!$E11,Players!$G11,Players!BD11,Players!BF11) -> 2 | BH11: 1 | BI11: - | BJ11: 1 | BK11: =ResultsCalc(Players!$E11,Players!$G11,Players!BH11,Players!BJ11) -> 2 | BL11: 1 | BM11: - | BN11: 0 | BO11: =ResultsCalc(Players!$E11,Players!$G11,Players!BL11,Players!BN11) -> 2 | BP11: 3 | BQ11: - | BR11: 2 | BS11: =ResultsCalc(Players!$E11,Players!$G11,Players!BP11,Players!BR11) -> 2 | BT11: 3 | BU11: - | BV11: 1 | BW11: =ResultsCalc(Players!$E11,Players!$G11,Players!BT11,Players!BV11) -> 0 | BX11: 2 | BY11: - | BZ11: 0 | CA11: =ResultsCalc(Players!$E11,Players!$G11,Players!BX11,Players!BZ11) -> 0 | CB11: 2 | CC11: - | CD11: 0 | CE11: =ResultsCalc(Players!$E11,Players!$G11,Players!CB11,Players!CD11) -> 0 | CF11: 2 | CG11: - | CH11: 3 | CI11: =ResultsCalc(Players!$E11,Players!$G11,Players!CF11,Players!CH11) -> 6 | CJ11: 2 | CK11: - | CL11: 0 | CM11: =ResultsCalc(Players!$E11,Players!$G11,Players!CJ11,Players!CL11) -> 0 | CN11: 2 | CO11: - | CP11: 1 | CQ11: =ResultsCalc(Players!$E11,Players!$G11,Players!CN11,Players!CP11) -> 0 | CR11: 2 | CS11: - | CT11: 1 | CU11: =ResultsCalc(Players!$E11,Players!$G11,Players!CR11,Players!CT11) -> 0 | CV11: 3 | CW11: - | CX11: 0 | CY11: =ResultsCalc(Players!$E11,Players!$G11,Players!CV11,Players!CX11) -> 0 | CZ11: 2 | DA11: - | DB11: 1 | DC11: =ResultsCalc(Players!$E11,Players!$G11,Players!CZ11,Players!DB11) -> 0 | DD11: 1 | DE11: - | DF11: 0 | DG11: =ResultsCalc(Players!$E11,Players!$G11,Players!DD11,Players!DF11) -> 2 | DH11: 2 | DI11: - | DJ11: 2 | DK11: =ResultsCalc(Players!$E11,Players!$G11,Players!DH11,Players!DJ11) -> 2 | DL11: 1 | DM11: - | DN11: 0 | DO11: =ResultsCalc(Players!$E11,Players!$G11,Players!DL11,Players!DN11) -> 2 | DP11: 2 | DQ11: - | DR11: 1 | DS11: =ResultsCalc(Players!$E11,Players!$G11,Players!DP11,Players!DR11) -> 0 | DT11: 2 | DU11: - | DV11: 1 | DW11: =ResultsCalc(Players!$E11,Players!$G11,Players!DT11,Players!DV11) -> 0 | DX11: 4 | DY11: - | DZ11: 2 | EA11: =ResultsCalc(Players!$E11,Players!$G11,Players!DX11,Players!DZ11) -> 2 | EB11: 2 | EC11: - | ED11: 1 | EE11: =ResultsCalc(Players!$E11,Players!$G11,Players!EB11,Players!ED11) -> 0 | EF11: 1 | EG11: - | EH11: 2 | EI11: =ResultsCalc(Players!$E11,Players!$G11,Players!EF11,Players!EH11) -> 13 | EJ11: 2 | EK11: - | EL11: 0 | EM11: =ResultsCalc(Players!$E11,Players!$G11,Players!EJ11,Players!EL11) -> 0 | EN11: 1 | EO11: - | EP11: 1 | EQ11: =ResultsCalc(Players!$E11,Players!$G11,Players!EN11,Players!EP11) -> 2 | ER11: 2 | ES11: - | ET11: 0 | EU11: =ResultsCalc(Players!$E11,Players!$G11,Players!ER11,Players!ET11) -> 0 | EV11: 1 | EW11: - | EX11: 1 | EY11: =ResultsCalc(Players!$E11,Players!$G11,Players!EV11,Players!EX11) -> 2 | EZ11: 2 | FA11: - | FB11: 1 | FC11: =ResultsCalc(Players!$E11,Players!$G11,Players!EZ11,Players!FB11) -> 0 | FD11: 1 | FE11: - | FF11: 1 | FG11: =ResultsCalc(Players!$E11,Players!$G11,Players!FD11,Players!FF11) -> 2 | FH11: 0 | FI11: - | FJ11: 0 | FK11: =ResultsCalc(Players!$E11,Players!$G11,Players!FH11,Players!FJ11) -> 0 | FL11: 1 | FM11: - | FN11: 0 | FO11: =ResultsCalc(Players!$E11,Players!$G11,Players!FL11,Players!FN11) -> 2 | FP11: 4 | FQ11: - | FR11: 2 | FS11: =ResultsCalc(Players!$E11,Players!$G11,Players!FP11,Players!FR11) -> 2 | FT11: 2 | FU11: - | FV11: 1 | FW11: =ResultsCalc(Players!$E11,Players!$G11,Players!FT11,Players!FV11) -> 0 | FX11: 3 | FY11: - | FZ11: 1 | GA11: =ResultsCalc(Players!$E11,Players!$G11,Players!FX11,Players!FZ11) -> 0 | GB11: 3 | GC11: - | GD11: 2 | GE11: =ResultsCalc(Players!$E11,Players!$G11,Players!GB11,Players!GD11) -> 2 | GF11: 2 | GG11: - | GH11: 2 | GI11: =ResultsCalc(Players!$E11,Players!$G11,Players!GF11,Players!GH11) -> 2 | GJ11: 2 | GK11: - | GL11: 1 | GM11: =ResultsCalc(Players!$E11,Players!$G11,Players!GJ11,Players!GL11) -> 0 | GN11: 1 | GO11: - | GP11: 1 | GQ11: =ResultsCalc(Players!$E11,Players!$G11,Players!GN11,Players!GP11) -> 2 | GR11: 2 | GS11: - | GT11: 0 | GU11: =ResultsCalc(Players!$E11,Players!$G11,Players!GR11,Players!GT11) -> 0 | GV11: 3 | GW11: - | GX11: 1 | GY11: =ResultsCalc(Players!$E11,Players!$G11,Players!GV11,Players!GX11) -> 0 | GZ11: 1 | HA11: - | HB11: 0 | HC11: =ResultsCalc(Players!$E11,Players!$G11,Players!GZ11,Players!HB11) -> 2 | HD11: 2 | HE11: - | HF11: 1 | HG11: =ResultsCalc(Players!$E11,Players!$G11,Players!HD11,Players!HF11) -> 0 | HH11: 0 | HI11: - | HJ11: 0 | HK11: =ResultsCalc(Players!$E11,Players!$G11,Players!HH11,Players!HJ11) -> 0 | HL11: 1 | HM11: - | HN11: 1 | HO11: =ResultsCalc(Players!$E11,Players!$G11,Players!HL11,Players!HN11) -> 2 | HP11: 3 | HQ11: - | HR11: 2 | HS11: =ResultsCalc(Players!$E11,Players!$G11,Players!HP11,Players!HR11) -> 2 | HT11: 3 | HU11: - | HV11: 0 | HW11: =ResultsCalc(Players!$E11,Players!$G11,Players!HT11,Players!HV11) -> 0 | HX11: 1 | HY11: - | HZ11: 0 | IA11: =ResultsCalc(Players!$E11,Players!$G11,Players!HX11,Players!HZ11) -> 2 | IB11: 2 | IC11: - | ID11: 1 | IE11: =ResultsCalc(Players!$E11,Players!$G11,Players!IB11,Players!ID11) -> 0 | IF11: 1 | IG11: - | IH11: 1 | II11: =ResultsCalc(Players!$E11,Players!$G11,Players!IF11,Players!IH11) -> 2 | IJ11: 3 | IK11: - | IL11: 0 | IM11: =ResultsCalc(Players!$E11,Players!$G11,Players!IJ11,Players!IL11) -> 0 | IN11: 2 | IO11: - | IP11: 1 | IQ11: =ResultsCalc(Players!$E11,Players!$G11,Players!IN11,Players!IP11) -> 0 | IR11: 3 | IS11: - | IT11: 2 | IU11: =ResultsCalc(Players!$E11,Players!$G11,Players!IR11,Players!IT11) -> 2 | IV11: 2 | IW11: - | IX11: 1 | IY11: =ResultsCalc(Players!$E11,Players!$G11,Players!IV11,Players!IX11) -> 0 | IZ11: 1 | JA11: - | JB11: 0 | JC11: =ResultsCalc(Players!$E11,Players!$G11,Players!IZ11,Players!JB11) -> 2 | JD11: 1 | JE11: - | JF11: 0 | JG11: =ResultsCalc(Players!$E11,Players!$G11,Players!JD11,Players!JF11) -> 2 | JH11: 1 | JI11: - | JJ11: 2 | JK11: =ResultsCalc(Players!$E11,Players!$G11,Players!JH11,Players!JJ11) -> 13 | JL11: 1 | JM11: - | JN11: 0 | JO11: =ResultsCalc(Players!$E11,Players!$G11,Players!JL11,Players!JN11) -> 2 | JP11: 2 | JQ11: - | JR11: 2 | JS11: =ResultsCalc(Players!$E11,Players!$G11,Players!JP11,Players!JR11) -> 2 | JT11: 0 | JU11: - | JV11: 1 | JW11: =ResultsCalc(Players!$E11,Players!$G11,Players!JT11,Players!JV11) -> 6 | JX11: 2 | JY11: - | JZ11: 1 | KA11: =ResultsCalc(Players!$E11,Players!$G11,Players!JX11,Players!JZ11) -> 0 | KB11: 2 | KC11: - | KD11: 2 | KE11: =ResultsCalc(Players!$E11,Players!$G11,Players!KB11,Players!KD11) -> 2 | KF11: 2 | KG11: - | KH11: 1 | KI11: =ResultsCalc(Players!$E11,Players!$G11,Players!KF11,Players!KH11) -> 0 | KJ11: 2 | KK11: - | KL11: 0 | KM11: =ResultsCalc(Players!$E11,Players!$G11,Players!KJ11,Players!KL11) -> 0 | KN11: 2 | KO11: - | KP11: 1 | KQ11: =ResultsCalc(Players!$E11,Players!$G11,Players!KN11,Players!KP11) -> 0 | KR11: 1 | KS11: - | KT11: 0 | KU11: =ResultsCalc(Players!$E11,Players!$G11,Players!KR11,Players!KT11) -> 2 | KV11: 3 | KW11: - | KX11: 0 | KY11: =ResultsCalc(Players!$E11,Players!$G11,Players!KV11,Players!KX11) -> 0 | KZ11: 1 | LA11: - | LB11: 0 | LC11: =ResultsCalc(Players!$E11,Players!$G11,Players!KZ11,Players!LB11) -> 2 | LD11: 1 | LE11: - | LF11: 0 | LG11: =ResultsCalc(Players!$E11,Players!$G11,Players!LD11,Players!LF11) -> 2 | LH11: 2 | LI11: - | LJ11: 0 | LK11: =ResultsCalc(Players!$E11,Players!$G11,Players!LH11,Players!LJ11) -> 0 | LL11: 2 | LM11: - | LN11: 0 | LO11: =ResultsCalc(Players!$E11,Players!$G11,Players!LL11,Players!LN11) -> 0 | LP11: 1 | LQ11: - | LR11: 1 | LS11: =ResultsCalc(Players!$E11,Players!$G11,Players!LP11,Players!LR11) -> 2 | LT11: 2 | LU11: - | LV11: 1 | LW11: =ResultsCalc(Players!$E11,Players!$G11,Players!LT11,Players!LV11) -> 0 | LX11: 3 | LY11: - | LZ11: 1 | MA11: =ResultsCalc(Players!$E11,Players!$G11,Players!LX11,Players!LZ11) -> 0 | MB11: 0 | MC11: - | MD11: 2 | ME11: =ResultsCalc(Players!$E11,Players!$G11,Players!MB11,Players!MD11) -> 6 | MF11: 2 | MG11: - | MH11: 1 | MI11: =ResultsCalc(Players!$E11,Players!$G11,Players!MF11,Players!MH11) -> 0 | MJ11: 3 | MK11: - | ML11: 2 | MM11: =ResultsCalc(Players!$E11,Players!$G11,Players!MJ11,Players!ML11) -> 2 | MN11: 2 | MO11: - | MP11: 1 | MQ11: =ResultsCalc(Players!$E11,Players!$G11,Players!MN11,Players!MP11) -> 0 | MR11: 1 | MS11: - | MT11: 1 | MU11: =ResultsCalc(Players!$E11,Players!$G11,Players!MR11,Players!MT11) -> 2 | MV11: 2 | MW11: - | MX11: 2 | MY11: =ResultsCalc(Players!$E11,Players!$G11,Players!MV11,Players!MX11) -> 2 | MZ11: 1 | NA11: - | NB11: 0 | NC11: =ResultsCalc(Players!$E11,Players!$G11,Players!MZ11,Players!NB11) -> 2 | ND11: 2 | NE11: - | NF11: 0 | NG11: =ResultsCalc(Players!$E11,Players!$G11,Players!ND11,Players!NF11) -> 0 | NH11: 2 | NI11: - | NJ11: 2 | NK11: =ResultsCalc(Players!$E11,Players!$G11,Players!NH11,Players!NJ11) -> 2 | NL11: 2 | NM11: - | NN11: 0 | NO11: =ResultsCalc(Players!$E11,Players!$G11,Players!NL11,Players!NN11) -> 0 | NP11: 2 | NQ11: - | NR11: 1 | NS11: =ResultsCalc(Players!$E11,Players!$G11,Players!NP11,Players!NR11) -> 0 | NT11: 1 | NU11: - | NV11: 0 | NW11: =ResultsCalc(Players!$E11,Players!$G11,Players!NT11,Players!NV11) -> 2 | NX11: 0 | NY11: - | NZ11: 0 | OA11: =ResultsCalc(Players!$E11,Players!$G11,Players!NX11,Players!NZ11) -> 0 | OB11: 1 | OC11: - | OD11: 0 | OE11: =ResultsCalc(Players!$E11,Players!$G11,Players!OB11,Players!OD11) -> 2 | OF11: 3 | OG11: - | OH11: 0 | OI11: =ResultsCalc(Players!$E11,Players!$G11,Players!OF11,Players!OH11) -> 0 | OJ11: 4 | OK11: - | OL11: 0 | OM11: =ResultsCalc(Players!$E11,Players!$G11,Players!OJ11,Players!OL11) -> 0 | ON11: 1 | OO11: - | OP11: 0 | OQ11: =ResultsCalc(Players!$E11,Players!$G11,Players!ON11,Players!OP11) -> 2 | OR11: 2 | OS11: - | OT11: 2 | OU11: =ResultsCalc(Players!$E11,Players!$G11,Players!OR11,Players!OT11) -> 2 | OV11: 2 | OW11: - | OX11: 0 | OY11: =ResultsCalc(Players!$E11,Players!$G11,Players!OV11,Players!OX11) -> 0 | OZ11: 2 | PA11: - | PB11: 2 | PC11: =ResultsCalc(Players!$E11,Players!$G11,Players!OZ11,Players!PB11) -> 2 | PD11: 2 | PE11: - | PF11: 1 | PG11: =ResultsCalc(Players!$E11,Players!$G11,Players!PD11,Players!PF11) -> 0 | PH11: 1 | PI11: - | PJ11: 1 | PK11: =ResultsCalc(Players!$E11,Players!$G11,Players!PH11,Players!PJ11) -> 2 | PL11: 4 | PM11: - | PN11: 0 | PO11: =ResultsCalc(Players!$E11,Players!$G11,Players!PL11,Players!PN11) -> 0 | PP11: 2 | PQ11: - | PR11: 1 | PS11: =ResultsCalc(Players!$E11,Players!$G11,Players!PP11,Players!PR11) -> 0 | PT11: 1 | PU11: - | PV11: 1 | PW11: =ResultsCalc(Players!$E11,Players!$G11,Players!PT11,Players!PV11) -> 2 | PX11: 1 | PY11: - | PZ11: 2 | QA11: =ResultsCalc(Players!$E11,Players!$G11,Players!PX11,Players!PZ11) -> 13 | QB11: 1 | QC11: - | QD11: 0 | QE11: =ResultsCalc(Players!$E11,Players!$G11,Players!QB11,Players!QD11) -> 2 | QF11: 1 | QG11: - | QH11: 1 | QI11: =ResultsCalc(Players!$E11,Players!$G11,Players!QF11,Players!QH11) -> 2 | QJ11: 1 | QK11: - | QL11: 0 | QM11: =ResultsCalc(Players!$E11,Players!$G11,Players!QJ11,Players!QL11) -> 2 | QO11: 3 | QQ11: 13 | QR11: 3
A12: 2021-06-14 | B12: 10 | C12: Spain | D12: Sweden | E12: 0 | F12: - | G12: 0 | H12: 3 | I12: - | J12: 1 | K12: =ResultsCalc(Players!$E12,Players!$G12,Players!H12,Players!J12) -> 0 | L12: 1 | M12: - | N12: 0 | O12: =ResultsCalc(Players!$E12,Players!$G12,Players!L12,Players!N12) -> 2 | P12: 2 | Q12: - | R12: 1 | S12: =ResultsCalc(Players!$E12,Players!$G12,Players!P12,Players!R12) -> 0 | T12: 1 | U12: - | V12: 1 | W12: =ResultsCalc(Players!$E12,Players!$G12,Players!T12,Players!V12) -> 6 | X12: 1 | Y12: - | Z12: 1 | AA12: =ResultsCalc(Players!$E12,Players!$G12,Players!X12,Players!Z12) -> 6 | AB12: 2 | AC12: - | AD12: 0 | AE12: =ResultsCalc(Players!$E12,Players!$G12,Players!AB12,Players!AD12) -> 2 | AF12: 2 | AG12: - | AH12: 1 | AI12: =ResultsCalc(Players!$E12,Players!$G12,Players!AF12,Players!AH12) -> 0 | AJ12: 1 | AK12: - | AL12: 0 | AM12: =ResultsCalc(Players!$E12,Players!$G12,Players!AJ12,Players!AL12) -> 2 | AN12: 2 | AO12: - | AP12: 0 | AQ12: =ResultsCalc(Players!$E12,Players!$G12,Players!AN12,Players!AP12) -> 2 | AR12: 1 | AS12: - | AT12: 0 | AU12: =ResultsCalc(Players!$E12,Players!$G12,Players!AR12,Players!AT12) -> 2 | AV12: 0 | AW12: - | AX12: 0 | AY12: =ResultsCalc(Players!$E12,Players!$G12,Players!AV12,Players!AX12) -> 10 | AZ12: 3 | BA12: - | BB12: 1 | BC12: =ResultsCalc(Players!$E12,Players!$G12,Players!AZ12,Players!BB12) -> 0 | BD12: 2 | BE12: - | BF12: 1 | BG12: =ResultsCalc(Players!$E12,Players!$G12,Players!BD12,Players!BF12) -> 0 | BH12: 2 | BI12: - | BJ12: 2 | BK12: =ResultsCalc(Players!$E12,Players!$G12,Players!BH12,Players!BJ12) -> 6 | BL12: 2 | BM12: - | BN12: 1 | BO12: =ResultsCalc(Players!$E12,Players!$G12,Players!BL12,Players!BN12) -> 0 | BP12: 3 | BQ12: - | BR12: 1 | BS12: =ResultsCalc(Players!$E12,Players!$G12,Players!BP12,Players!BR12) -> 0 | BT12: 2 | BU12: - | BV12: 1 | BW12: =ResultsCalc(Players!$E12,Players!$G12,Players!BT12,Players!BV12) -> 0 | BX12: 1 | BY12: - | BZ12: 2 | CA12: =ResultsCalc(Players!$E12,Players!$G12,Players!BX12,Players!BZ12) -> 0 | CB12: 2 | CC12: - | CD12: 3 | CE12: =ResultsCalc(Players!$E12,Players!$G12,Players!CB12,Players!CD12) -> 0 | CF12: 1 | CG12: - | CH12: 1 | CI12: =ResultsCalc(Players!$E12,Players!$G12,Players!CF12,Players!CH12) -> 6 | CJ12: 2 | CK12: - | CL12: 1 | CM12: =ResultsCalc(Players!$E12,Players!$G12,Players!CJ12,Players!CL12) -> 0 | CN12: 2 | CO12: - | CP12: 1 | CQ12: =ResultsCalc(Players!$E12,Players!$G12,Players!CN12,Players!CP12) -> 0 | CR12: 1 | CS12: - | CT12: 1 | CU12: =ResultsCalc(Players!$E12,Players!$G12,Players!CR12,Players!CT12) -> 6 | CV12: 2 | CW12: - | CX12: 1 | CY12: =ResultsCalc(Players!$E12,Players!$G12,Players!CV12,Players!CX12) -> 0 | CZ12: 3 | DA12: - | DB12: 1 | DC12: =ResultsCalc(Players!$E12,Players!$G12,Players!CZ12,Players!DB12) -> 0 | DD12: 2 | DE12: - | DF12: 0 | DG12: =ResultsCalc(Players!$E12,Players!$G12,Players!DD12,Players!DF12) -> 2 | DH12: 2 | DI12: - | DJ12: 0 | DK12: =ResultsCalc(Players!$E12,Players!$G12,Players!DH12,Players!DJ12) -> 2 | DL12: 2 | DM12: - | DN12: 1 | DO12: =ResultsCalc(Players!$E12,Players!$G12,Players!DL12,Players!DN12) -> 0 | DP12: 2 | DQ12: - | DR12: 0 | DS12: =ResultsCalc(Players!$E12,Players!$G12,Players!DP12,Players!DR12) -> 2 | DT12: 2 | DU12: - | DV12: 1 | DW12: =ResultsCalc(Players!$E12,Players!$G12,Players!DT12,Players!DV12) -> 0 | DX12: 3 | DY12: - | DZ12: 1 | EA12: =ResultsCalc(Players!$E12,Players!$G12,Players!DX12,Players!DZ12) -> 0 | EB12: 2 | EC12: - | ED12: 0 | EE12: =ResultsCalc(Players!$E12,Players!$G12,Players!EB12,Players!ED12) -> 2 | EF12: 2 | EG12: - | EH12: 0 | EI12: =ResultsCalc(Players!$E12,Players!$G12,Players!EF12,Players!EH12) -> 2 | EJ12: 1 | EK12: - | EL12: 0 | EM12: =ResultsCalc(Players!$E12,Players!$G12,Players!EJ12,Players!EL12) -> 2 | EN12: 2 | EO12: - | EP12: 1 | EQ12: =ResultsCalc(Players!$E12,Players!$G12,Players!EN12,Players!EP12) -> 0 | ER12: 3 | ES12: - | ET12: 0 | EU12: =ResultsCalc(Players!$E12,Players!$G12,Players!ER12,Players!ET12) -> 2 | EV12: 2 | EW12: - | EX12: 1 | EY12: =ResultsCalc(Players!$E12,Players!$G12,Players!EV12,Players!EX12) -> 0 | EZ12: 3 | FA12: - | FB12: 0 | FC12: =ResultsCalc(Players!$E12,Players!$G12,Players!EZ12,Players!FB12) -> 2 | FD12: 2 | FE12: - | FF12: 1 | FG12: =ResultsCalc(Players!$E12,Players!$G12,Players!FD12,Players!FF12) -> 0 | FH12: 3 | FI12: - | FJ12: 1 | FK12: =ResultsCalc(Players!$E12,Players!$G12,Players!FH12,Players!FJ12) -> 0 | FL12: 2 | FM12: - | FN12: 0 | FO12: =ResultsCalc(Players!$E12,Players!$G12,Players!FL12,Players!FN12) -> 2 | FP12: 1 | FQ12: - | FR12: 4 | FS12: =ResultsCalc(Players!$E12,Players!$G12,Players!FP12,Players!FR12) -> 0 | FT12: 3 | FU12: - | FV12: 0 | FW12: =ResultsCalc(Players!$E12,Players!$G12,Players!FT12,Players!FV12) -> 2 | FX12: 2 | FY12: - | FZ12: 1 | GA12: =ResultsCalc(Players!$E12,Players!$G12,Players!FX12,Players!FZ12) -> 0 | GB12: 3 | GC12: - | GD12: 2 | GE12: =ResultsCalc(Players!$E12,Players!$G12,Players!GB12,Players!GD12) -> 0 | GF12: 1 | GG12: - | GH12: 0 | GI12: =ResultsCalc(Players!$E12,Players!$G12,Players!GF12,Players!GH12) -> 2 | GJ12: 2 | GK12: - | GL12: 0 | GM12: =ResultsCalc(Players!$E12,Players!$G12,Players!GJ12,Players!GL12) -> 2 | GN12: 3 | GO12: - | GP12: 0 | GQ12: =ResultsCalc(Players!$E12,Players!$G12,Players!GN12,Players!GP12) -> 2 | GR12: 2 | GS12: - | GT12: 0 | GU12: =ResultsCalc(Players!$E12,Players!$G12,Players!GR12,Players!GT12) -> 2 | GV12: 4 | GW12: - | GX12: 2 | GY12: =ResultsCalc(Players!$E12,Players!$G12,Players!GV12,Players!GX12) -> 0 | GZ12: 3 | HA12: - | HB12: 1 | HC12: =ResultsCalc(Players!$E12,Players!$G12,Players!GZ12,Players!HB12) -> 0 | HD12: 3 | HE12: - | HF12: 1 | HG12: =ResultsCalc(Players!$E12,Players!$G12,Players!HD12,Players!HF12) -> 0 | HH12: 2 | HI12: - | HJ12: 0 | HK12: =ResultsCalc(Players!$E12,Players!$G12,Players!HH12,Players!HJ12) -> 2 | HL12: 2 | HM12: - | HN12: 2 | HO12: =ResultsCalc(Players!$E12,Players!$G12,Players!HL12,Players!HN12) -> 6 | HP12: 2 | HQ12: - | HR12: 3 | HS12: =ResultsCalc(Players!$E12,Players!$G12,Players!HP12,Players!HR12) -> 0 | HT12: 2 | HU12: - | HV12: 0 | HW12: =ResultsCalc(Players!$E12,Players!$G12,Players!HT12,Players!HV12) -> 2 | HX12: 1 | HY12: - | HZ12: 0 | IA12: =ResultsCalc(Players!$E12,Players!$G12,Players!HX12,Players!HZ12) -> 2 | IB12: 3 | IC12: - | ID12: 0 | IE12: =ResultsCalc(Players!$E12,Players!$G12,Players!IB12,Players!ID12) -> 2 | IF12: 2 | IG12: - | IH12: 0 | II12: =ResultsCalc(Players!$E12,Players!$G12,Players!IF12,Players!IH12) -> 2 | IJ12: 2 | IK12: - | IL12: 1 | IM12: =ResultsCalc(Players!$E12,Players!$G12,Players!IJ12,Players!IL12) -> 0 | IN12: 2 | IO12: - | IP12: 0 | IQ12: =ResultsCalc(Players!$E12,Players!$G12,Players!IN12,Players!IP12) -> 2 | IR12: 0 | IS12: - | IT12: 0 | IU12: =ResultsCalc(Players!$E12,Players!$G12,Players!IR12,Players!IT12) -> 10 | IV12: 2 | IW12: - | IX12: 0 | IY12: =ResultsCalc(Players!$E12,Players!$G12,Players!IV12,Players!IX12) -> 2 | IZ12: 2 | JA12: - | JB12: 0 | JC12: =ResultsCalc(Players!$E12,Players!$G12,Players!IZ12,Players!JB12) -> 2 | JD12: 2 | JE12: - | JF12: 1 | JG12: =ResultsCalc(Players!$E12,Players!$G12,Players!JD12,Players!JF12) -> 0 | JH12: 1 | JI12: - | JJ12: 2 | JK12: =ResultsCalc(Players!$E12,Players!$G12,Players!JH12,Players!JJ12) -> 0 | JL12: 3 | JM12: - | JN12: 1 | JO12: =ResultsCalc(Players!$E12,Players!$G12,Players!JL12,Players!JN12) -> 0 | JP12: 2 | JQ12: - | JR12: 0 | JS12: =ResultsCalc(Players!$E12,Players!$G12,Players!JP12,Players!JR12) -> 2 | JT12: 3 | JU12: - | JV12: 2 | JW12: =ResultsCalc(Players!$E12,Players!$G12,Players!JT12,Players!JV12) -> 0 | JX12: 2 | JY12: - | JZ12: 0 | KA12: =ResultsCalc(Players!$E12,Players!$G12,Players!JX12,Players!JZ12) -> 2 | KB12: 4 | KC12: - | KD12: 0 | KE12: =ResultsCalc(Players!$E12,Players!$G12,Players!KB12,Players!KD12) -> 2 | KF12: 2 | KG12: - | KH12: 2 | KI12: =ResultsCalc(Players!$E12,Players!$G12,Players!KF12,Players!KH12) -> 6 | KJ12: 2 | KK12: - | KL12: 0 | KM12: =ResultsCalc(Players!$E12,Players!$G12,Players!KJ12,Players!KL12) -> 2 | KN12: 2 | KO12: - | KP12: 1 | KQ12: =ResultsCalc(Players!$E12,Players!$G12,Players!KN12,Players!KP12) -> 0 | KR12: 2 | KS12: - | KT12: 1 | KU12: =ResultsCalc(Players!$E12,Players!$G12,Players!KR12,Players!KT12) -> 0 | KV12: 2 | KW12: - | KX12: 1 | KY12: =ResultsCalc(Players!$E12,Players!$G12,Players!KV12,Players!KX12) -> 0 | KZ12: 2 | LA12: - | LB12: 1 | LC12: =ResultsCalc(Players!$E12,Players!$G12,Players!KZ12,Players!LB12) -> 0 | LD12: 4 | LE12: - | LF12: 2 | LG12: =ResultsCalc(Players!$E12,Players!$G12,Players!LD12,Players!LF12) -> 0 | LH12: 3 | LI12: - | LJ12: 0 | LK12: =ResultsCalc(Players!$E12,Players!$G12,Players!LH12,Players!LJ12) -> 2 | LL12: 3 | LM12: - | LN12: 1 | LO12: =ResultsCalc(Players!$E12,Players!$G12,Players!LL12,Players!LN12) -> 0 | LP12: 2 | LQ12: - | LR12: 0 | LS12: =ResultsCalc(Players!$E12,Players!$G12,Players!LP12,Players!LR12) -> 2 | LT12: 1 | LU12: - | LV12: 0 | LW12: =ResultsCalc(Players!$E12,Players!$G12,Players!LT12,Players!LV12) -> 2 | LX12: 2 | LY12: - | LZ12: 0 | MA12: =ResultsCalc(Players!$E12,Players!$G12,Players!LX12,Players!LZ12) -> 2 | MB12: 1 | MC12: - | MD12: 0 | ME12: =ResultsCalc(Players!$E12,Players!$G12,Players!MB12,Players!MD12) -> 2 | MF12: 2 | MG12: - | MH12: 0 | MI12: =ResultsCalc(Players!$E12,Players!$G12,Players!MF12,Players!MH12) -> 2 | MJ12: 3 | MK12: - | ML12: 2 | MM12: =ResultsCalc(Players!$E12,Players!$G12,Players!MJ12,Players!ML12) -> 0 | MN12: 2 | MO12: - | MP12: 0 | MQ12: =ResultsCalc(Players!$E12,Players!$G12,Players!MN12,Players!MP12) -> 2 | MR12: 3 | MS12: - | MT12: 1 | MU12: =ResultsCalc(Players!$E12,Players!$G12,Players!MR12,Players!MT12) -> 0 | MV12: 2 | MW12: - | MX12: 1 | MY12: =ResultsCalc(Players!$E12,Players!$G12,Players!MV12,Players!MX12) -> 0 | MZ12: 2 | NA12: - | NB12: 0 | NC12: =ResultsCalc(Players!$E12,Players!$G12,Players!MZ12,Players!NB12) -> 2 | ND12: 2 | NE12: - | NF12: 1 | NG12: =ResultsCalc(Players!$E12,Players!$G12,Players!ND12,Players!NF12) -> 0 | NH12: 1 | NI12: - | NJ12: 1 | NK12: =ResultsCalc(Players!$E12,Players!$G12,Players!NH12,Players!NJ12) -> 6 | NL12: 2 | NM12: - | NN12: 1 | NO12: =ResultsCalc(Players!$E12,Players!$G12,Players!NL12,Players!NN12) -> 0 | NP12: 3 | NQ12: - | NR12: 1 | NS12: =ResultsCalc(Players!$E12,Players!$G12,Players!NP12,Players!NR12) -> 0 | NT12: 2 | NU12: - | NV12: 0 | NW12: =ResultsCalc(Players!$E12,Players!$G12,Players!NT12,Players!NV12) -> 2 | NX12: 2 | NY12: - | NZ12: 1 | OA12: =ResultsCalc(Players!$E12,Players!$G12,Players!NX12,Players!NZ12) -> 0 | OB12: 2 | OC12: - | OD12: 1 | OE12: =ResultsCalc(Players!$E12,Players!$G12,Players!OB12,Players!OD12) -> 0 | OF12: 2 | OG12: - | OH12: 0 | OI12: =ResultsCalc(Players!$E12,Players!$G12,Players!OF12,Players!OH12) -> 2 | OJ12: 2 | OK12: - | OL12: 2 | OM12: =ResultsCalc(Players!$E12,Players!$G12,Players!OJ12,Players!OL12) -> 6 | ON12: 1 | OO12: - | OP12: 1 | OQ12: =ResultsCalc(Players!$E12,Players!$G12,Players!ON12,Players!OP12) -> 6 | OR12: 3 | OS12: - | OT12: 1 | OU12: =ResultsCalc(Players!$E12,Players!$G12,Players!OR12,Players!OT12) -> 0 | OV12: 4 | OW12: - | OX12: 2 | OY12: =ResultsCalc(Players!$E12,Players!$G12,Players!OV12,Players!OX12) -> 0 | OZ12: 4 | PA12: - | PB12: 0 | PC12: =ResultsCalc(Players!$E12,Players!$G12,Players!OZ12,Players!PB12) -> 2 | PD12: 2 | PE12: - | PF12: 0 | PG12: =ResultsCalc(Players!$E12,Players!$G12,Players!PD12,Players!PF12) -> 2 | PH12: 3 | PI12: - | PJ12: 1 | PK12: =ResultsCalc(Players!$E12,Players!$G12,Players!PH12,Players!PJ12) -> 0 | PL12: 5 | PM12: - | PN12: 4 | PO12: =ResultsCalc(Players!$E12,Players!$G12,Players!PL12,Players!PN12) -> 0 | PP12: 3 | PQ12: - | PR12: 0 | PS12: =ResultsCalc(Players!$E12,Players!$G12,Players!PP12,Players!PR12) -> 2 | PT12: 4 | PU12: - | PV12: 2 | PW12: =ResultsCalc(Players!$E12,Players!$G12,Players!PT12,Players!PV12) -> 0 | PX12: 0 | PY12: - | PZ12: 2 | QA12: =ResultsCalc(Players!$E12,Players!$G12,Players!PX12,Players!PZ12) -> 2 | QB12: 3 | QC12: - | QD12: 1 | QE12: =ResultsCalc(Players!$E12,Players!$G12,Players!QB12,Players!QD12) -> 0 | QF12: 3 | QG12: - | QH12: 0 | QI12: =ResultsCalc(Players!$E12,Players!$G12,Players!QF12,Players!QH12) -> 2 | QJ12: 1 | QK12: - | QL12: 1 | QM12: =ResultsCalc(Players!$E12,Players!$G12,Players!QJ12,Players!QL12) -> 6 | QO12: 2 | QQ12: 10 | QR12: 2
A13: 2021-06-15 | B13: 11 | C13: Hungary | D13: Portugal | E13: 0 | F13: - | G13: 3 | H13: 1 | I13: - | J13: 2 | K13: =ResultsCalc(Players!$E13,Players!$G13,Players!H13,Players!J13) -> 4 | L13: 1 | M13: - | N13: 2 | O13: =ResultsCalc(Players!$E13,Players!$G13,Players!L13,Players!N13) -> 4 | P13: 0 | Q13: - | R13: 2 | S13: =ResultsCalc(Players!$E13,Players!$G13,Players!P13,Players!R13) -> 6 | T13: 1 | U13: - | V13: 4 | W13: =ResultsCalc(Players!$E13,Players!$G13,Players!T13,Players!V13) -> 6 | X13: 0 | Y13: - | Z13: 2 | AA13: =ResultsCalc(Players!$E13,Players!$G13,Players!X13,Players!Z13) -> 6 | AB13: 0 | AC13: - | AD13: 1 | AE13: =ResultsCalc(Players!$E13,Players!$G13,Players!AB13,Players!AD13) -> 6 | AF13: 1 | AG13: - | AH13: 3 | AI13: =ResultsCalc(Players!$E13,Players!$G13,Players!AF13,Players!AH13) -> 6 | AJ13: 0 | AK13: - | AL13: 2 | AM13: =ResultsCalc(Players!$E13,Players!$G13,Players!AJ13,Players!AL13) -> 6 | AN13: 1 | AO13: - | AP13: 1 | AQ13: =ResultsCalc(Players!$E13,Players!$G13,Players!AN13,Players!AP13) -> 0 | AR13: 1 | AS13: - | AT13: 1 | AU13: =ResultsCalc(Players!$E13,Players!$G13,Players!AR13,Players!AT13) -> 0 | AV13: 1 | AW13: - | AX13: 2 | AY13: =ResultsCalc(Players!$E13,Players!$G13,Players!AV13,Players!AX13) -> 4 | AZ13: 1 | BA13: - | BB13: 2 | BC13: =ResultsCalc(Players!$E13,Players!$G13,Players!AZ13,Players!BB13) -> 4 | BD13: 1 | BE13: - | BF13: 2 | BG13: =ResultsCalc(Players!$E13,Players!$G13,Players!BD13,Players!BF13) -> 4 | BH13: 2 | BI13: - | BJ13: 1 | BK13: =ResultsCalc(Players!$E13,Players!$G13,Players!BH13,Players!BJ13) -> 0 | BL13: 1 | BM13: - | BN13: 1 | BO13: =ResultsCalc(Players!$E13,Players!$G13,Players!BL13,Players!BN13) -> 0 | BP13: 1 | BQ13: - | BR13: 3 | BS13: =ResultsCalc(Players!$E13,Players!$G13,Players!BP13,Players!BR13) -> 6 | BT13: 0 | BU13: - | BV13: 3 | BW13: =ResultsCalc(Players!$E13,Players!$G13,Players!BT13,Players!BV13) -> 13 | BX13: 0 | BY13: - | BZ13: 1 | CA13: =ResultsCalc(Players!$E13,Players!$G13,Players!BX13,Players!BZ13) -> 6 | CB13: 1 | CC13: - | CD13: 2 | CE13: =ResultsCalc(Players!$E13,Players!$G13,Players!CB13,Players!CD13) -> 4 | CF13: 0 | CG13: - | CH13: 3 | CI13: =ResultsCalc(Players!$E13,Players!$G13,Players!CF13,Players!CH13) -> 13 | CJ13: 0 | CK13: - | CL13: 2 | CM13: =ResultsCalc(Players!$E13,Players!$G13,Players!CJ13,Players!CL13) -> 6 | CN13: 1 | CO13: - | CP13: 2 | CQ13: =ResultsCalc(Players!$E13,Players!$G13,Players!CN13,Players!CP13) -> 4 | CR13: 0 | CS13: - | CT13: 0 | CU13: =ResultsCalc(Players!$E13,Players!$G13,Players!CR13,Players!CT13) -> 2 | CV13: 0 | CW13: - | CX13: 4 | CY13: =ResultsCalc(Players!$E13,Players!$G13,Players!CV13,Players!CX13) -> 6 | CZ13: 0 | DA13: - | DB13: 2 | DC13: =ResultsCalc(Players!$E13,Players!$G13,Players!CZ13,Players!DB13) -> 6 | DD13: 0 | DE13: - | DF13: 2 | DG13: =ResultsCalc(Players!$E13,Players!$G13,Players!DD13,Players!DF13) -> 6 | DH13: 0 | DI13: - | DJ13: 3 | DK13: =ResultsCalc(Players!$E13,Players!$G13,Players!DH13,Players!DJ13) -> 13 | DL13: 0 | DM13: - | DN13: 2 | DO13: =ResultsCalc(Players!$E13,Players!$G13,Players!DL13,Players!DN13) -> 6 | DP13: 0 | DQ13: - | DR13: 1 | DS13: =ResultsCalc(Players!$E13,Players!$G13,Players!DP13,Players!DR13) -> 6 | DT13: 1 | DU13: - | DV13: 2 | DW13: =ResultsCalc(Players!$E13,Players!$G13,Players!DT13,Players!DV13) -> 4 | DX13: 1 | DY13: - | DZ13: 4 | EA13: =ResultsCalc(Players!$E13,Players!$G13,Players!DX13,Players!DZ13) -> 6 | EB13: 1 | EC13: - | ED13: 2 | EE13: =ResultsCalc(Players!$E13,Players!$G13,Players!EB13,Players!ED13) -> 4 | EF13: 0 | EG13: - | EH13: 2 | EI13: =ResultsCalc(Players!$E13,Players!$G13,Players!EF13,Players!EH13) -> 6 | EJ13: 1 | EK13: - | EL13: 2 | EM13: =ResultsCalc(Players!$E13,Players!$G13,Players!EJ13,Players!EL13) -> 4 | EN13: 0 | EO13: - | EP13: 1 | EQ13: =ResultsCalc(Players!$E13,Players!$G13,Players!EN13,Players!EP13) -> 6 | ER13: 1 | ES13: - | ET13: 2 | EU13: =ResultsCalc(Players!$E13,Players!$G13,Players!ER13,Players!ET13) -> 4 | EV13: 0 | EW13: - | EX13: 2 | EY13: =ResultsCalc(Players!$E13,Players!$G13,Players!EV13,Players!EX13) -> 6 | EZ13: 0 | FA13: - | FB13: 1 | FC13: =ResultsCalc(Players!$E13,Players!$G13,Players!EZ13,Players!FB13) -> 6 | FD13: 1 | FE13: - | FF13: 1 | FG13: =ResultsCalc(Players!$E13,Players!$G13,Players!FD13,Players!FF13) -> 0 | FH13: 1 | FI13: - | FJ13: 3 | FK13: =ResultsCalc(Players!$E13,Players!$G13,Players!FH13,Players!FJ13) -> 6 | FL13: 0 | FM13: - | FN13: 2 | FO13: =ResultsCalc(Players!$E13,Players!$G13,Players!FL13,Players!FN13) -> 6 | FP13: 2 | FQ13: - | FR13: 1 | FS13: =ResultsCalc(Players!$E13,Players!$G13,Players!FP13,Players!FR13) -> 0 | FT13: 1 | FU13: - | FV13: 4 | FW13: =ResultsCalc(Players!$E13,Players!$G13,Players!FT13,Players!FV13) -> 6 | FX13: 1 | FY13: - | FZ13: 3 | GA13: =ResultsCalc(Players!$E13,Players!$G13,Players!FX13,Players!FZ13) -> 6 | GB13: 2 | GC13: - | GD13: 4 | GE13: =ResultsCalc(Players!$E13,Players!$G13,Players!GB13,Players!GD13) -> 4 | GF13: 0 | GG13: - | GH13: 2 | GI13: =ResultsCalc(Players!$E13,Players!$G13,Players!GF13,Players!GH13) -> 6 | GJ13: 0 | GK13: - | GL13: 2 | GM13: =ResultsCalc(Players!$E13,Players!$G13,Players!GJ13,Players!GL13) -> 6 | GN13: 0 | GO13: - | GP13: 2 | GQ13: =ResultsCalc(Players!$E13,Players!$G13,Players!GN13,Players!GP13) -> 6 | GR13: 0 | GS13: - | GT13: 3 | GU13: =ResultsCalc(Players!$E13,Players!$G13,Players!GR13,Players!GT13) -> 13 | GV13: 0 | GW13: - | GX13: 3 | GY13: =ResultsCalc(Players!$E13,Players!$G13,Players!GV13,Players!GX13) -> 13 | GZ13: 0 | HA13: - | HB13: 1 | HC13: =ResultsCalc(Players!$E13,Players!$G13,Players!GZ13,Players!HB13) -> 6 | HD13: 1 | HE13: - | HF13: 3 | HG13: =ResultsCalc(Players!$E13,Players!$G13,Players!HD13,Players!HF13) -> 6 | HH13: 1 | HI13: - | HJ13: 3 | HK13: =ResultsCalc(Players!$E13,Players!$G13,Players!HH13,Players!HJ13) -> 6 | HL13: 1 | HM13: - | HN13: 3 | HO13: =ResultsCalc(Players!$E13,Players!$G13,Players!HL13,Players!HN13) -> 6 | HP13: 2 | HQ13: - | HR13: 2 | HS13: =ResultsCalc(Players!$E13,Players!$G13,Players!HP13,Players!HR13) -> 0 | HT13: 0 | HU13: - | HV13: 3 | HW13: =ResultsCalc(Players!$E13,Players!$G13,Players!HT13,Players!HV13) -> 13 | HX13: 0 | HY13: - | HZ13: 1 | IA13: =ResultsCalc(Players!$E13,Players!$G13,Players!HX13,Players!HZ13) -> 6 | IB13: 1 | IC13: - | ID13: 3 | IE13: =ResultsCalc(Players!$E13,Players!$G13,Players!IB13,Players!ID13) -> 6 | IF13: 0 | IG13: - | IH13: 3 | II13: =ResultsCalc(Players!$E13,Players!$G13,Players!IF13,Players!IH13) -> 13 | IJ13: 0 | IK13: - | IL13: 1 | IM13: =ResultsCalc(Players!$E13,Players!$G13,Players!IJ13,Players!IL13) -> 6 | IN13: 1 | IO13: - | IP13: 2 | IQ13: =ResultsCalc(Players!$E13,Players!$G13,Players!IN13,Players!IP13) -> 4 | IR13: 1 | IS13: - | IT13: 3 | IU13: =ResultsCalc(Players!$E13,Players!$G13,Players!IR13,Players!IT13) -> 6 | IV13: 0 | IW13: - | IX13: 2 | IY13: =ResultsCalc(Players!$E13,Players!$G13,Players!IV13,Players!IX13) -> 6 | IZ13: 0 | JA13: - | JB13: 2 | JC13: =ResultsCalc(Players!$E13,Players!$G13,Players!IZ13,Players!JB13) -> 6 | JD13: 0 | JE13: - | JF13: 5 | JG13: =ResultsCalc(Players!$E13,Players!$G13,Players!JD13,Players!JF13) -> 6 | JH13: 2 | JI13: - | JJ13: 3 | JK13: =ResultsCalc(Players!$E13,Players!$G13,Players!JH13,Players!JJ13) -> 6 | JL13: 1 | JM13: - | JN13: 2 | JO13: =ResultsCalc(Players!$E13,Players!$G13,Players!JL13,Players!JN13) -> 4 | JP13: 1 | JQ13: - | JR13: 3 | JS13: =ResultsCalc(Players!$E13,Players!$G13,Players!JP13,Players!JR13) -> 6 | JT13: 2 | JU13: - | JV13: 2 | JW13: =ResultsCalc(Players!$E13,Players!$G13,Players!JT13,Players!JV13) -> 0 | JX13: 1 | JY13: - | JZ13: 3 | KA13: =ResultsCalc(Players!$E13,Players!$G13,Players!JX13,Players!JZ13) -> 6 | KB13: 1 | KC13: - | KD13: 3 | KE13: =ResultsCalc(Players!$E13,Players!$G13,Players!KB13,Players!KD13) -> 6 | KF13: 1 | KG13: - | KH13: 3 | KI13: =ResultsCalc(Players!$E13,Players!$G13,Players!KF13,Players!KH13) -> 6 | KJ13: 1 | KK13: - | KL13: 3 | KM13: =ResultsCalc(Players!$E13,Players!$G13,Players!KJ13,Players!KL13) -> 6 | KN13: 0 | KO13: - | KP13: 3 | KQ13: =ResultsCalc(Players!$E13,Players!$G13,Players!KN13,Players!KP13) -> 13 | KR13: 0 | KS13: - | KT13: 2 | KU13: =ResultsCalc(Players!$E13,Players!$G13,Players!KR13,Players!KT13) -> 6 | KV13: 1 | KW13: - | KX13: 6 | KY13: =ResultsCalc(Players!$E13,Players!$G13,Players!KV13,Players!KX13) -> 4 | KZ13: 0 | LA13: - | LB13: 1 | LC13: =ResultsCalc(Players!$E13,Players!$G13,Players!KZ13,Players!LB13) -> 6 | LD13: 1 | LE13: - | LF13: 3 | LG13: =ResultsCalc(Players!$E13,Players!$G13,Players!LD13,Players!LF13) -> 6 | LH13: 1 | LI13: - | LJ13: 3 | LK13: =ResultsCalc(Players!$E13,Players!$G13,Players!LH13,Players!LJ13) -> 6 | LL13: 1 | LM13: - | LN13: 2 | LO13: =ResultsCalc(Players!$E13,Players!$G13,Players!LL13,Players!LN13) -> 4 | LP13: 0 | LQ13: - | LR13: 2 | LS13: =ResultsCalc(Players!$E13,Players!$G13,Players!LP13,Players!LR13) -> 6 | LT13: 1 | LU13: - | LV13: 2 | LW13: =ResultsCalc(Players!$E13,Players!$G13,Players!LT13,Players!LV13) -> 4 | LX13: 0 | LY13: - | LZ13: 4 | MA13: =ResultsCalc(Players!$E13,Players!$G13,Players!LX13,Players!LZ13) -> 6 | MB13: 0 | MC13: - | MD13: 0 | ME13: =ResultsCalc(Players!$E13,Players!$G13,Players!MB13,Players!MD13) -> 2 | MF13: 0 | MG13: - | MH13: 2 | MI13: =ResultsCalc(Players!$E13,Players!$G13,Players!MF13,Players!MH13) -> 6 | MJ13: 1 | MK13: - | ML13: 3 | MM13: =ResultsCalc(Players!$E13,Players!$G13,Players!MJ13,Players!ML13) -> 6 | MN13: 0 | MO13: - | MP13: 2 | MQ13: =ResultsCalc(Players!$E13,Players!$G13,Players!MN13,Players!MP13) -> 6 | MR13: 0 | MS13: - | MT13: 4 | MU13: =ResultsCalc(Players!$E13,Players!$G13,Players!MR13,Players!MT13) -> 6 | MV13: 1 | MW13: - | MX13: 3 | MY13: =ResultsCalc(Players!$E13,Players!$G13,Players!MV13,Players!MX13) -> 6 | MZ13: 0 | NA13: - | NB13: 4 | NC13: =ResultsCalc(Players!$E13,Players!$G13,Players!MZ13,Players!NB13) -> 6 | ND13: 0 | NE13: - | NF13: 2 | NG13: =ResultsCalc(Players!$E13,Players!$G13,Players!ND13,Players!NF13) -> 6 | NH13: 0 | NI13: - | NJ13: 4 | NK13: =ResultsCalc(Players!$E13,Players!$G13,Players!NH13,Players!NJ13) -> 6 | NL13: 0 | NM13: - | NN13: 1 | NO13: =ResultsCalc(Players!$E13,Players!$G13,Players!NL13,Players!NN13) -> 6 | NP13: 1 | NQ13: - | NR13: 3 | NS13: =ResultsCalc(Players!$E13,Players!$G13,Players!NP13,Players!NR13) -> 6 | NT13: 1 | NU13: - | NV13: 3 | NW13: =ResultsCalc(Players!$E13,Players!$G13,Players!NT13,Players!NV13) -> 6 | NX13: 0 | NY13: - | NZ13: 2 | OA13: =ResultsCalc(Players!$E13,Players!$G13,Players!NX13,Players!NZ13) -> 6 | OB13: 0 | OC13: - | OD13: 3 | OE13: =ResultsCalc(Players!$E13,Players!$G13,Players!OB13,Players!OD13) -> 13 | OF13: 1 | OG13: - | OH13: 5 | OI13: =ResultsCalc(Players!$E13,Players!$G13,Players!OF13,Players!OH13) -> 4 | OJ13: 0 | OK13: - | OL13: 3 | OM13: =ResultsCalc(Players!$E13,Players!$G13,Players!OJ13,Players!OL13) -> 13 | ON13: 0 | OO13: - | OP13: 0 | OQ13: =ResultsCalc(Players!$E13,Players!$G13,Players!ON13,Players!OP13) -> 2 | OR13: 0 | OS13: - | OT13: 3 | OU13: =ResultsCalc(Players!$E13,Players!$G13,Players!OR13,Players!OT13) -> 13 | OV13: 1 | OW13: - | OX13: 3 | OY13: =ResultsCalc(Players!$E13,Players!$G13,Players!OV13,Players!OX13) -> 6 | OZ13: 1 | PA13: - | PB13: 2 | PC13: =ResultsCalc(Players!$E13,Players!$G13,Players!OZ13,Players!PB13) -> 4 | PD13: 1 | PE13: - | PF13: 2 | PG13: =ResultsCalc(Players!$E13,Players!$G13,Players!PD13,Players!PF13) -> 4 | PH13: 1 | PI13: - | PJ13: 2 | PK13: =ResultsCalc(Players!$E13,Players!$G13,Players!PH13,Players!PJ13) -> 4 | PL13: 2 | PM13: - | PN13: 4 | PO13: =ResultsCalc(Players!$E13,Players!$G13,Players!PL13,Players!PN13) -> 4 | PP13: 1 | PQ13: - | PR13: 2 | PS13: =ResultsCalc(Players!$E13,Players!$G13,Players!PP13,Players!PR13) -> 4 | PT13: 1 | PU13: - | PV13: 2 | PW13: =ResultsCalc(Players!$E13,Players!$G13,Players!PT13,Players!PV13) -> 4 | PX13: 2 | PY13: - | PZ13: 0 | QA13: =ResultsCalc(Players!$E13,Players!$G13,Players!PX13,Players!PZ13) -> 0 | QB13: 1 | QC13: - | QD13: 2 | QE13: =ResultsCalc(Players!$E13,Players!$G13,Players!QB13,Players!QD13) -> 4 | QF13: 0 | QG13: - | QH13: 3 | QI13: =ResultsCalc(Players!$E13,Players!$G13,Players!QF13,Players!QH13) -> 13 | QJ13: 0 | QK13: - | QL13: 2 | QM13: =ResultsCalc(Players!$E13,Players!$G13,Players!QJ13,Players!QL13) -> 6 | QO13: 12 | QQ13: 13 | QR13: 12
A14: 2021-06-15 | B14: 12 | C14: France | D14: Germany | E14: 1 | F14: - | G14: 0 | H14: 1 | I14: - | J14: 1 | K14: =ResultsCalc(Players!$E14,Players!$G14,Players!H14,Players!J14) -> 2 | L14: 2 | M14: - | N14: 1 | O14: =ResultsCalc(Players!$E14,Players!$G14,Players!L14,Players!N14) -> 6 | P14: 2 | Q14: - | R14: 1 | S14: =ResultsCalc(Players!$E14,Players!$G14,Players!P14,Players!R14) -> 6 | T14: 2 | U14: - | V14: 0 | W14: =ResultsCalc(Players!$E14,Players!$G14,Players!T14,Players!V14) -> 6 | X14: 2 | Y14: - | Z14: 2 | AA14: =ResultsCalc(Players!$E14,Players!$G14,Players!X14,Players!Z14) -> 0 | AB14: 2 | AC14: - | AD14: 0 | AE14: =ResultsCalc(Players!$E14,Players!$G14,Players!AB14,Players!AD14) -> 6 | AF14: 1 | AG14: - | AH14: 2 | AI14: =ResultsCalc(Players!$E14,Players!$G14,Players!AF14,Players!AH14) -> 2 | AJ14: 2 | AK14: - | AL14: 1 | AM14: =ResultsCalc(Players!$E14,Players!$G14,Players!AJ14,Players!AL14) -> 6 | AN14: 1 | AO14: - | AP14: 1 | AQ14: =ResultsCalc(Players!$E14,Players!$G14,Players!AN14,Players!AP14) -> 2 | AR14: 1 | AS14: - | AT14: 1 | AU14: =ResultsCalc(Players!$E14,Players!$G14,Players!AR14,Players!AT14) -> 2 | AV14: 1 | AW14: - | AX14: 1 | AY14: =ResultsCalc(Players!$E14,Players!$G14,Players!AV14,Players!AX14) -> 2 | AZ14: 3 | BA14: - | BB14: 2 | BC14: =ResultsCalc(Players!$E14,Players!$G14,Players!AZ14,Players!BB14) -> 6 | BD14: 2 | BE14: - | BF14: 1 | BG14: =ResultsCalc(Players!$E14,Players!$G14,Players!BD14,Players!BF14) -> 6 | BH14: 3 | BI14: - | BJ14: 2 | BK14: =ResultsCalc(Players!$E14,Players!$G14,Players!BH14,Players!BJ14) -> 6 | BL14: 2 | BM14: - | BN14: 2 | BO14: =ResultsCalc(Players!$E14,Players!$G14,Players!BL14,Players!BN14) -> 0 | BP14: 2 | BQ14: - | BR14: 1 | BS14: =ResultsCalc(Players!$E14,Players!$G14,Players!BP14,Players!BR14) -> 6 | BT14: 3 | BU14: - | BV14: 2 | BW14: =ResultsCalc(Players!$E14,Players!$G14,Players!BT14,Players!BV14) -> 6 | BX14: 2 | BY14: - | BZ14: 0 | CA14: =ResultsCalc(Players!$E14,Players!$G14,Players!BX14,Players!BZ14) -> 6 | CB14: 1 | CC14: - | CD14: 3 | CE14: =ResultsCalc(Players!$E14,Players!$G14,Players!CB14,Players!CD14) -> 2 | CF14: 1 | CG14: - | CH14: 2 | CI14: =ResultsCalc(Players!$E14,Players!$G14,Players!CF14,Players!CH14) -> 2 | CJ14: 2 | CK14: - | CL14: 1 | CM14: =ResultsCalc(Players!$E14,Players!$G14,Players!CJ14,Players!CL14) -> 6 | CN14: 2 | CO14: - | CP14: 0 | CQ14: =ResultsCalc(Players!$E14,Players!$G14,Players!CN14,Players!CP14) -> 6 | CR14: 2 | CS14: - | CT14: 1 | CU14: =ResultsCalc(Players!$E14,Players!$G14,Players!CR14,Players!CT14) -> 6 | CV14: 0 | CW14: - | CX14: 0 | CY14: =ResultsCalc(Players!$E14,Players!$G14,Players!CV14,Players!CX14) -> 2 | CZ14: 1 | DA14: - | DB14: 1 | DC14: =ResultsCalc(Players!$E14,Players!$G14,Players!CZ14,Players!DB14) -> 2 | DD14: 1 | DE14: - | DF14: 1 | DG14: =ResultsCalc(Players!$E14,Players!$G14,Players!DD14,Players!DF14) -> 2 | DH14: 2 | DI14: - | DJ14: 2 | DK14: =ResultsCalc(Players!$E14,Players!$G14,Players!DH14,Players!DJ14) -> 0 | DL14: 1 | DM14: - | DN14: 1 | DO14: =ResultsCalc(Players!$E14,Players!$G14,Players!DL14,Players!DN14) -> 2 | DP14: 2 | DQ14: - | DR14: 1 | DS14: =ResultsCalc(Players!$E14,Players!$G14,Players!DP14,Players!DR14) -> 6 | DT14: 2 | DU14: - | DV14: 1 | DW14: =ResultsCalc(Players!$E14,Players!$G14,Players!DT14,Players!DV14) -> 6 | DX14: 2 | DY14: - | DZ14: 2 | EA14: =ResultsCalc(Players!$E14,Players!$G14,Players!DX14,Players!DZ14) -> 0 | EB14: 2 | EC14: - | ED14: 1 | EE14: =ResultsCalc(Players!$E14,Players!$G14,Players!EB14,Players!ED14) -> 6 | EF14: 1 | EG14: - | EH14: 2 | EI14: =ResultsCalc(Players!$E14,Players!$G14,Players!EF14,Players!EH14) -> 2 | EJ14: 2 | EK14: - | EL14: 1 | EM14: =ResultsCalc(Players!$E14,Players!$G14,Players!EJ14,Players!EL14) -> 6 | EN14: 1 | EO14: - | EP14: 1 | EQ14: =ResultsCalc(Players!$E14,Players!$G14,Players!EN14,Players!EP14) -> 2 | ER14: 2 | ES14: - | ET14: 2 | EU14: =ResultsCalc(Players!$E14,Players!$G14,Players!ER14,Players!ET14) -> 0 | EV14: 2 | EW14: - | EX14: 1 | EY14: =ResultsCalc(Players!$E14,Players!$G14,Players!EV14,Players!EX14) -> 6 | EZ14: 1 | FA14: - | FB14: 1 | FC14: =ResultsCalc(Players!$E14,Players!$G14,Players!EZ14,Players!FB14) -> 2 | FD14: 2 | FE14: - | FF14: 1 | FG14: =ResultsCalc(Players!$E14,Players!$G14,Players!FD14,Players!FF14) -> 6 | FH14: 2 | FI14: - | FJ14: 2 | FK14: =ResultsCalc(Players!$E14,Players!$G14,Players!FH14,Players!FJ14) -> 0 | FL14: 2 | FM14: - | FN14: 1 | FO14: =ResultsCalc(Players!$E14,Players!$G14,Players!FL14,Players!FN14) -> 6 | FP14: 3 | FQ14: - | FR14: 2 | FS14: =ResultsCalc(Players!$E14,Players!$G14,Players!FP14,Players!FR14) -> 6 | FT14: 2 | FU14: - | FV14: 1 | FW14: =ResultsCalc(Players!$E14,Players!$G14,Players!FT14,Players!FV14) -> 6 | FX14: 2 | FY14: - | FZ14: 2 | GA14: =ResultsCalc(Players!$E14,Players!$G14,Players!FX14,Players!FZ14) -> 0 | GB14: 0 | GC14: - | GD14: 1 | GE14: =ResultsCalc(Players!$E14,Players!$G14,Players!GB14,Players!GD14) -> 0 | GF14: 2 | GG14: - | GH14: 2 | GI14: =ResultsCalc(Players!$E14,Players!$G14,Players!GF14,Players!GH14) -> 0 | GJ14: 2 | GK14: - | GL14: 1 | GM14: =ResultsCalc(Players!$E14,Players!$G14,Players!GJ14,Players!GL14) -> 6 | GN14: 3 | GO14: - | GP14: 2 | GQ14: =ResultsCalc(Players!$E14,Players!$G14,Players!GN14,Players!GP14) -> 6 | GR14: 2 | GS14: - | GT14: 1 | GU14: =ResultsCalc(Players!$E14,Players!$G14,Players!GR14,Players!GT14) -> 6 | GV14: 1 | GW14: - | GX14: 1 | GY14: =ResultsCalc(Players!$E14,Players!$G14,Players!GV14,Players!GX14) -> 2 | GZ14: 2 | HA14: - | HB14: 0 | HC14: =ResultsCalc(Players!$E14,Players!$G14,Players!GZ14,Players!HB14) -> 6 | HD14: 1 | HE14: - | HF14: 1 | HG14: =ResultsCalc(Players!$E14,Players!$G14,Players!HD14,Players!HF14) -> 2 | HH14: 2 | HI14: - | HJ14: 2 | HK14: =ResultsCalc(Players!$E14,Players!$G14,Players!HH14,Players!HJ14) -> 0 | HL14: 1 | HM14: - | HN14: 1 | HO14: =ResultsCalc(Players!$E14,Players!$G14,Players!HL14,Players!HN14) -> 2 | HP14: 2 | HQ14: - | HR14: 3 | HS14: =ResultsCalc(Players!$E14,Players!$G14,Players!HP14,Players!HR14) -> 0 | HT14: 2 | HU14: - | HV14: 1 | HW14: =ResultsCalc(Players!$E14,Players!$G14,Players!HT14,Players!HV14) -> 6 | HX14: 1 | HY14: - | HZ14: 0 | IA14: =ResultsCalc(Players!$E14,Players!$G14,Players!HX14,Players!HZ14) -> 11 | IB14: 2 | IC14: - | ID14: 3 | IE14: =ResultsCalc(Players!$E14,Players!$G14,Players!IB14,Players!ID14) -> 0 | IF14: 1 | IG14: - | IH14: 2 | II14: =ResultsCalc(Players!$E14,Players!$G14,Players!IF14,Players!IH14) -> 2 | IJ14: 2 | IK14: - | IL14: 2 | IM14: =ResultsCalc(Players!$E14,Players!$G14,Players!IJ14,Players!IL14) -> 0 | IN14: 1 | IO14: - | IP14: 0 | IQ14: =ResultsCalc(Players!$E14,Players!$G14,Players!IN14,Players!IP14) -> 11 | IR14: 3 | IS14: - | IT14: 1 | IU14: =ResultsCalc(Players!$E14,Players!$G14,Players!IR14,Players!IT14) -> 4 | IV14: 2 | IW14: - | IX14: 1 | IY14: =ResultsCalc(Players!$E14,Players!$G14,Players!IV14,Players!IX14) -> 6 | IZ14: 2 | JA14: - | JB14: 1 | JC14: =ResultsCalc(Players!$E14,Players!$G14,Players!IZ14,Players!JB14) -> 6 | JD14: 1 | JE14: - | JF14: 2 | JG14: =ResultsCalc(Players!$E14,Players!$G14,Players!JD14,Players!JF14) -> 2 | JH14: 2 | JI14: - | JJ14: 2 | JK14: =ResultsCalc(Players!$E14,Players!$G14,Players!JH14,Players!JJ14) -> 0 | JL14: 1 | JM14: - | JN14: 0 | JO14: =ResultsCalc(Players!$E14,Players!$G14,Players!JL14,Players!JN14) -> 11 | JP14: 3 | JQ14: - | JR14: 3 | JS14: =ResultsCalc(Players!$E14,Players!$G14,Players!JP14,Players!JR14) -> 0 | JT14: 1 | JU14: - | JV14: 2 | JW14: =ResultsCalc(Players!$E14,Players!$G14,Players!JT14,Players!JV14) -> 2 | JX14: 2 | JY14: - | JZ14: 1 | KA14: =ResultsCalc(Players!$E14,Players!$G14,Players!JX14,Players!JZ14) -> 6 | KB14: 4 | KC14: - | KD14: 3 | KE14: =ResultsCalc(Players!$E14,Players!$G14,Players!KB14,Players!KD14) -> 6 | KF14: 0 | KG14: - | KH14: 0 | KI14: =ResultsCalc(Players!$E14,Players!$G14,Players!KF14,Players!KH14) -> 2 | KJ14: 2 | KK14: - | KL14: 2 | KM14: =ResultsCalc(Players!$E14,Players!$G14,Players!KJ14,Players!KL14) -> 0 | KN14: 2 | KO14: - | KP14: 1 | KQ14: =ResultsCalc(Players!$E14,Players!$G14,Players!KN14,Players!KP14) -> 6 | KR14: 2 | KS14: - | KT14: 2 | KU14: =ResultsCalc(Players!$E14,Players!$G14,Players!KR14,Players!KT14) -> 0 | KV14: 3 | KW14: - | KX14: 2 | KY14: =ResultsCalc(Players!$E14,Players!$G14,Players!KV14,Players!KX14) -> 6 | KZ14: 2 | LA14: - | LB14: 0 | LC14: =ResultsCalc(Players!$E14,Players!$G14,Players!KZ14,Players!LB14) -> 6 | LD14: 1 | LE14: - | LF14: 1 | LG14: =ResultsCalc(Players!$E14,Players!$G14,Players!LD14,Players!LF14) -> 2 | LH14: 3 | LI14: - | LJ14: 2 | LK14: =ResultsCalc(Players!$E14,Players!$G14,Players!LH14,Players!LJ14) -> 6 | LL14: 2 | LM14: - | LN14: 1 | LO14: =ResultsCalc(Players!$E14,Players!$G14,Players!LL14,Players!LN14) -> 6 | LP14: 2 | LQ14: - | LR14: 2 | LS14: =ResultsCalc(Players!$E14,Players!$G14,Players!LP14,Players!LR14) -> 0 | LT14: 2 | LU14: - | LV14: 1 | LW14: =ResultsCalc(Players!$E14,Players!$G14,Players!LT14,Players!LV14) -> 6 | LX14: 1 | LY14: - | LZ14: 1 | MA14: =ResultsCalc(Players!$E14,Players!$G14,Players!LX14,Players!LZ14) -> 2 | MB14: 1 | MC14: - | MD14: 1 | ME14: =ResultsCalc(Players!$E14,Players!$G14,Players!MB14,Players!MD14) -> 2 | MF14: 1 | MG14: - | MH14: 1 | MI14: =ResultsCalc(Players!$E14,Players!$G14,Players!MF14,Players!MH14) -> 2 | MJ14: 4 | MK14: - | ML14: 2 | MM14: =ResultsCalc(Players!$E14,Players!$G14,Players!MJ14,Players!ML14) -> 4 | MN14: 2 | MO14: - | MP14: 2 | MQ14: =ResultsCalc(Players!$E14,Players!$G14,Players!MN14,Players!MP14) -> 0 | MR14: 2 | MS14: - | MT14: 1 | MU14: =ResultsCalc(Players!$E14,Players!$G14,Players!MR14,Players!MT14) -> 6 | MV14: 1 | MW14: - | MX14: 1 | MY14: =ResultsCalc(Players!$E14,Players!$G14,Players!MV14,Players!MX14) -> 2 | MZ14: 2 | NA14: - | NB14: 2 | NC14: =ResultsCalc(Players!$E14,Players!$G14,Players!MZ14,Players!NB14) -> 0 | ND14: 2 | NE14: - | NF14: 0 | NG14: =ResultsCalc(Players!$E14,Players!$G14,Players!ND14,Players!NF14) -> 6 | NH14: 2 | NI14: - | NJ14: 2 | NK14: =ResultsCalc(Players!$E14,Players!$G14,Players!NH14,Players!NJ14) -> 0 | NL14: 2 | NM14: - | NN14: 2 | NO14: =ResultsCalc(Players!$E14,Players!$G14,Players!NL14,Players!NN14) -> 0 | NP14: 2 | NQ14: - | NR14: 2 | NS14: =ResultsCalc(Players!$E14,Players!$G14,Players!NP14,Players!NR14) -> 0 | NT14: 1 | NU14: - | NV14: 1 | NW14: =ResultsCalc(Players!$E14,Players!$G14,Players!NT14,Players!NV14) -> 2 | NX14: 2 | NY14: - | NZ14: 2 | OA14: =ResultsCalc(Players!$E14,Players!$G14,Players!NX14,Players!NZ14) -> 0 | OB14: 2 | OC14: - | OD14: 1 | OE14: =ResultsCalc(Players!$E14,Players!$G14,Players!OB14,Players!OD14) -> 6 | OF14: 3 | OG14: - | OH14: 1 | OI14: =ResultsCalc(Players!$E14,Players!$G14,Players!OF14,Players!OH14) -> 4 | OJ14: 2 | OK14: - | OL14: 1 | OM14: =ResultsCalc(Players!$E14,Players!$G14,Players!OJ14,Players!OL14) -> 6 | ON14: 1 | OO14: - | OP14: 1 | OQ14: =ResultsCalc(Players!$E14,Players!$G14,Players!ON14,Players!OP14) -> 2 | OR14: 2 | OS14: - | OT14: 1 | OU14: =ResultsCalc(Players!$E14,Players!$G14,Players!OR14,Players!OT14) -> 6 | OV14: 1 | OW14: - | OX14: 1 | OY14: =ResultsCalc(Players!$E14,Players!$G14,Players!OV14,Players!OX14) -> 2 | OZ14: 2 | PA14: - | PB14: 2 | PC14: =ResultsCalc(Players!$E14,Players!$G14,Players!OZ14,Players!PB14) -> 0 | PD14: 3 | PE14: - | PF14: 2 | PG14: =ResultsCalc(Players!$E14,Players!$G14,Players!PD14,Players!PF14) -> 6 | PH14: 1 | PI14: - | PJ14: 2 | PK14: =ResultsCalc(Players!$E14,Players!$G14,Players!PH14,Players!PJ14) -> 2 | PL14: 4 | PM14: - | PN14: 6 | PO14: =ResultsCalc(Players!$E14,Players!$G14,Players!PL14,Players!PN14) -> 0 | PP14: 1 | PQ14: - | PR14: 3 | PS14: =ResultsCalc(Players!$E14,Players!$G14,Players!PP14,Players!PR14) -> 2 | PT14: 3 | PU14: - | PV14: 3 | PW14: =ResultsCalc(Players!$E14,Players!$G14,Players!PT14,Players!PV14) -> 0 | PX14: 1 | PY14: - | PZ14: 1 | QA14: =ResultsCalc(Players!$E14,Players!$G14,Players!PX14,Players!PZ14) -> 2 | QB14: 1 | QC14: - | QD14: 1 | QE14: =ResultsCalc(Players!$E14,Players!$G14,Players!QB14,Players!QD14) -> 2 | QF14: 2 | QG14: - | QH14: 1 | QI14: =ResultsCalc(Players!$E14,Players!$G14,Players!QF14,Players!QH14) -> 6 | QJ14: 2 | QK14: - | QL14: 1 | QM14: =ResultsCalc(Players!$E14,Players!$G14,Players!QJ14,Players!QL14) -> 6 | QO14: 3 | QQ14: 11 | QR14: 3
A15: 2021-06-16 | B15: 13 | C15: Finland | D15: Russia | E15: 0 | F15: - | G15: 1 | H15: 1 | I15: - | J15: 1 | K15: =ResultsCalc(Players!$E15,Players!$G15,Players!H15,Players!J15) -> 2 | L15: 0 | M15: - | N15: 1 | O15: =ResultsCalc(Players!$E15,Players!$G15,Players!L15,Players!N15) -> 11 | P15: 0 | Q15: - | R15: 1 | S15: =ResultsCalc(Players!$E15,Players!$G15,Players!P15,Players!R15) -> 11 | T15: 0 | U15: - | V15: 1 | W15: =ResultsCalc(Players!$E15,Players!$G15,Players!T15,Players!V15) -> 11 | X15: 0 | Y15: - | Z15: 2 | AA15: =ResultsCalc(Players!$E15,Players!$G15,Players!X15,Players!Z15) -> 6 | AB15: 0 | AC15: - | AD15: 0 | AE15: =ResultsCalc(Players!$E15,Players!$G15,Players!AB15,Players!AD15) -> 2 | AF15: 1 | AG15: - | AH15: 0 | AI15: =ResultsCalc(Players!$E15,Players!$G15,Players!AF15,Players!AH15) -> 0 | AJ15: 1 | AK15: - | AL15: 2 | AM15: =ResultsCalc(Players!$E15,Players!$G15,Players!AJ15,Players!AL15) -> 6 | AN15: 1 | AO15: - | AP15: 2 | AQ15: =ResultsCalc(Players!$E15,Players!$G15,Players!AN15,Players!AP15) -> 6 | AR15: 0 | AS15: - | AT15: 1 | AU15: =ResultsCalc(Players!$E15,Players!$G15,Players!AR15,Players!AT15) -> 11 | AV15: 2 | AW15: - | AX15: 2 | AY15: =ResultsCalc(Players!$E15,Players!$G15,Players!AV15,Players!AX15) -> 0 | AZ15: 1 | BA15: - | BB15: 2 | BC15: =ResultsCalc(Players!$E15,Players!$G15,Players!AZ15,Players!BB15) -> 6 | BD15: 2 | BE15: - | BF15: 2 | BG15: =ResultsCalc(Players!$E15,Players!$G15,Players!BD15,Players!BF15) -> 0 | BH15: 2 | BI15: - | BJ15: 1 | BK15: =ResultsCalc(Players!$E15,Players!$G15,Players!BH15,Players!BJ15) -> 2 | BL15: 0 | BM15: - | BN15: 0 | BO15: =ResultsCalc(Players!$E15,Players!$G15,Players!BL15,Players!BN15) -> 2 | BP15: 1 | BQ15: - | BR15: 1 | BS15: =ResultsCalc(Players!$E15,Players!$G15,Players!BP15,Players!BR15) -> 2 | BT15: 2 | BU15: - | BV15: 2 | BW15: =ResultsCalc(Players!$E15,Players!$G15,Players!BT15,Players!BV15) -> 0 | BX15: 2 | BY15: - | BZ15: 0 | CA15: =ResultsCalc(Players!$E15,Players!$G15,Players!BX15,Players!BZ15) -> 0 | CB15: 0 | CC15: - | CD15: 2 | CE15: =ResultsCalc(Players!$E15,Players!$G15,Players!CB15,Players!CD15) -> 6 | CF15: 0 | CG15: - | CH15: 2 | CI15: =ResultsCalc(Players!$E15,Players!$G15,Players!CF15,Players!CH15) -> 6 | CJ15: 1 | CK15: - | CL15: 1 | CM15: =ResultsCalc(Players!$E15,Players!$G15,Players!CJ15,Players!CL15) -> 2 | CN15: 1 | CO15: - | CP15: 1 | CQ15: =ResultsCalc(Players!$E15,Players!$G15,Players!CN15,Players!CP15) -> 2 | CR15: 1 | CS15: - | CT15: 2 | CU15: =ResultsCalc(Players!$E15,Players!$G15,Players!CR15,Players!CT15) -> 6 | CV15: 0 | CW15: - | CX15: 2 | CY15: =ResultsCalc(Players!$E15,Players!$G15,Players!CV15,Players!CX15) -> 6 | CZ15: 0 | DA15: - | DB15: 1 | DC15: =ResultsCalc(Players!$E15,Players!$G15,Players!CZ15,Players!DB15) -> 11 | DD15: 0 | DE15: - | DF15: 1 | DG15: =ResultsCalc(Players!$E15,Players!$G15,Players!DD15,Players!DF15) -> 11 | DH15: 2 | DI15: - | DJ15: 1 | DK15: =ResultsCalc(Players!$E15,Players!$G15,Players!DH15,Players!DJ15) -> 2 | DL15: 0 | DM15: - | DN15: 2 | DO15: =ResultsCalc(Players!$E15,Players!$G15,Players!DL15,Players!DN15) -> 6 | DP15: 1 | DQ15: - | DR15: 1 | DS15: =ResultsCalc(Players!$E15,Players!$G15,Players!DP15,Players!DR15) -> 2 | DT15: 1 | DU15: - | DV15: 2 | DW15: =ResultsCalc(Players!$E15,Players!$G15,Players!DT15,Players!DV15) -> 6 | DX15: 1 | DY15: - | DZ15: 2 | EA15: =ResultsCalc(Players!$E15,Players!$G15,Players!DX15,Players!DZ15) -> 6 | EB15: 0 | EC15: - | ED15: 1 | EE15: =ResultsCalc(Players!$E15,Players!$G15,Players!EB15,Players!ED15) -> 11 | EF15: 0 | EG15: - | EH15: 2 | EI15: =ResultsCalc(Players!$E15,Players!$G15,Players!EF15,Players!EH15) -> 6 | EJ15: 1 | EK15: - | EL15: 2 | EM15: =ResultsCalc(Players!$E15,Players!$G15,Players!EJ15,Players!EL15) -> 6 | EN15: 0 | EO15: - | EP15: 2 | EQ15: =ResultsCalc(Players!$E15,Players!$G15,Players!EN15,Players!EP15) -> 6 | ER15: 1 | ES15: - | ET15: 1 | EU15: =ResultsCalc(Players!$E15,Players!$G15,Players!ER15,Players!ET15) -> 2 | EV15: 0 | EW15: - | EX15: 1 | EY15: =ResultsCalc(Players!$E15,Players!$G15,Players!EV15,Players!EX15) -> 11 | EZ15: 1 | FA15: - | FB15: 1 | FC15: =ResultsCalc(Players!$E15,Players!$G15,Players!EZ15,Players!FB15) -> 2 | FD15: 1 | FE15: - | FF15: 1 | FG15: =ResultsCalc(Players!$E15,Players!$G15,Players!FD15,Players!FF15) -> 2 | FH15: 1 | FI15: - | FJ15: 2 | FK15: =ResultsCalc(Players!$E15,Players!$G15,Players!FH15,Players!FJ15) -> 6 | FL15: 0 | FM15: - | FN15: 2 | FO15: =ResultsCalc(Players!$E15,Players!$G15,Players!FL15,Players!FN15) -> 6 | FP15: 4 | FQ15: - | FR15: 3 | FS15: =ResultsCalc(Players!$E15,Players!$G15,Players!FP15,Players!FR15) -> 0 | FT15: 0 | FU15: - | FV15: 1 | FW15: =ResultsCalc(Players!$E15,Players!$G15,Players!FT15,Players!FV15) -> 11 | FX15: 1 | FY15: - | FZ15: 0 | GA15: =ResultsCalc(Players!$E15,Players!$G15,Players!FX15,Players!FZ15) -> 0 | GB15: 0 | GC15: - | GD15: 2 | GE15: =ResultsCalc(Players!$E15,Players!$G15,Players!GB15,Players!GD15) -> 6 | GF15: 1 | GG15: - | GH15: 1 | GI15: =ResultsCalc(Players!$E15,Players!$G15,Players!GF15,Players!GH15) -> 2 | GJ15: 0 | GK15: - | GL15: 0 | GM15: =ResultsCalc(Players!$E15,Players!$G15,Players!GJ15,Players!GL15) -> 2 | GN15: 2 | GO15: - | GP15: 2 | GQ15: =ResultsCalc(Players!$E15,Players!$G15,Players!GN15,Players!GP15) -> 0 | GR15: 0 | GS15: - | GT15: 1 | GU15: =ResultsCalc(Players!$E15,Players!$G15,Players!GR15,Players!GT15) -> 11 | GV15: 1 | GW15: - | GX15: 2 | GY15: =ResultsCalc(Players!$E15,Players!$G15,Players!GV15,Players!GX15) -> 6 | GZ15: 0 | HA15: - | HB15: 1 | HC15: =ResultsCalc(Players!$E15,Players!$G15,Players!GZ15,Players!HB15) -> 11 | HD15: 0 | HE15: - | HF15: 0 | HG15: =ResultsCalc(Players!$E15,Players!$G15,Players!HD15,Players!HF15) -> 2 | HH15: 0 | HI15: - | HJ15: 1 | HK15: =ResultsCalc(Players!$E15,Players!$G15,Players!HH15,Players!HJ15) -> 11 | HL15: 0 | HM15: - | HN15: 0 | HO15: =ResultsCalc(Players!$E15,Players!$G15,Players!HL15,Players!HN15) -> 2 | HP15: 3 | HQ15: - | HR15: 2 | HS15: =ResultsCalc(Players!$E15,Players!$G15,Players!HP15,Players!HR15) -> 0 | HT15: 0 | HU15: - | HV15: 2 | HW15: =ResultsCalc(Players!$E15,Players!$G15,Players!HT15,Players!HV15) -> 6 | HX15: 0 | HY15: - | HZ15: 2 | IA15: =ResultsCalc(Players!$E15,Players!$G15,Players!HX15,Players!HZ15) -> 6 | IB15: 0 | IC15: - | ID15: 2 | IE15: =ResultsCalc(Players!$E15,Players!$G15,Players!IB15,Players!ID15) -> 6 | IF15: 1 | IG15: - | IH15: 1 | II15: =ResultsCalc(Players!$E15,Players!$G15,Players!IF15,Players!IH15) -> 2 | IJ15: 1 | IK15: - | IL15: 3 | IM15: =ResultsCalc(Players!$E15,Players!$G15,Players!IJ15,Players!IL15) -> 4 | IN15: 1 | IO15: - | IP15: 2 | IQ15: =ResultsCalc(Players!$E15,Players!$G15,Players!IN15,Players!IP15) -> 6 | IR15: 2 | IS15: - | IT15: 2 | IU15: =ResultsCalc(Players!$E15,Players!$G15,Players!IR15,Players!IT15) -> 0 | IV15: 0 | IW15: - | IX15: 1 | IY15: =ResultsCalc(Players!$E15,Players!$G15,Players!IV15,Players!IX15) -> 11 | IZ15: 0 | JA15: - | JB15: 0 | JC15: =ResultsCalc(Players!$E15,Players!$G15,Players!IZ15,Players!JB15) -> 2 | JD15: 1 | JE15: - | JF15: 3 | JG15: =ResultsCalc(Players!$E15,Players!$G15,Players!JD15,Players!JF15) -> 4 | JH15: 3 | JI15: - | JJ15: 1 | JK15: =ResultsCalc(Players!$E15,Players!$G15,Players!JH15,Players!JJ15) -> 2 | JL15: 0 | JM15: - | JN15: 1 | JO15: =ResultsCalc(Players!$E15,Players!$G15,Players!JL15,Players!JN15) -> 11 | JP15: 1 | JQ15: - | JR15: 2 | JS15: =ResultsCalc(Players!$E15,Players!$G15,Players!JP15,Players!JR15) -> 6 | JT15: 2 | JU15: - | JV15: 2 | JW15: =ResultsCalc(Players!$E15,Players!$G15,Players!JT15,Players!JV15) -> 0 | JX15: 1 | JY15: - | JZ15: 1 | KA15: =ResultsCalc(Players!$E15,Players!$G15,Players!JX15,Players!JZ15) -> 2 | KB15: 0 | KC15: - | KD15: 2 | KE15: =ResultsCalc(Players!$E15,Players!$G15,Players!KB15,Players!KD15) -> 6 | KF15: 0 | KG15: - | KH15: 1 | KI15: =ResultsCalc(Players!$E15,Players!$G15,Players!KF15,Players!KH15) -> 11 | KJ15: 1 | KK15: - | KL15: 2 | KM15: =ResultsCalc(Players!$E15,Players!$G15,Players!KJ15,Players!KL15) -> 6 | KN15: 2 | KO15: - | KP15: 2 | KQ15: =ResultsCalc(Players!$E15,Players!$G15,Players!KN15,Players!KP15) -> 0 | KR15: 0 | KS15: - | KT15: 1 | KU15: =ResultsCalc(Players!$E15,Players!$G15,Players!KR15,Players!KT15) -> 11 | KV15: 0 | KW15: - | KX15: 1 | KY15: =ResultsCalc(Players!$E15,Players!$G15,Players!KV15,Players!KX15) -> 11 | KZ15: 0 | LA15: - | LB15: 1 | LC15: =ResultsCalc(Players!$E15,Players!$G15,Players!KZ15,Players!LB15) -> 11 | LD15: 1 | LE15: - | LF15: 0 | LG15: =ResultsCalc(Players!$E15,Players!$G15,Players!LD15,Players!LF15) -> 0 | LH15: 1 | LI15: - | LJ15: 2 | LK15: =ResultsCalc(Players!$E15,Players!$G15,Players!LH15,Players!LJ15) -> 6 | LL15: 1 | LM15: - | LN15: 1 | LO15: =ResultsCalc(Players!$E15,Players!$G15,Players!LL15,Players!LN15) -> 2 | LP15: 1 | LQ15: - | LR15: 2 | LS15: =ResultsCalc(Players!$E15,Players!$G15,Players!LP15,Players!LR15) -> 6 | LT15: 0 | LU15: - | LV15: 2 | LW15: =ResultsCalc(Players!$E15,Players!$G15,Players!LT15,Players!LV15) -> 6 | LX15: 0 | LY15: - | LZ15: 2 | MA15: =ResultsCalc(Players!$E15,Players!$G15,Players!LX15,Players!LZ15) -> 6 | MB15: 0 | MC15: - | MD15: 0 | ME15: =ResultsCalc(Players!$E15,Players!$G15,Players!MB15,Players!MD15) -> 2 | MF15: 0 | MG15: - | MH15: 0 | MI15: =ResultsCalc(Players!$E15,Players!$G15,Players!MF15,Players!MH15) -> 2 | MJ15: 1 | MK15: - | ML15: 3 | MM15: =ResultsCalc(Players!$E15,Players!$G15,Players!MJ15,Players!ML15) -> 4 | MN15: 0 | MO15: - | MP15: 1 | MQ15: =ResultsCalc(Players!$E15,Players!$G15,Players!MN15,Players!MP15) -> 11 | MR15: 0 | MS15: - | MT15: 1 | MU15: =ResultsCalc(Players!$E15,Players!$G15,Players!MR15,Players!MT15) -> 11 | MV15: 2 | MW15: - | MX15: 2 | MY15: =ResultsCalc(Players!$E15,Players!$G15,Players!MV15,Players!MX15) -> 0 | MZ15: 1 | NA15: - | NB15: 3 | NC15: =ResultsCalc(Players!$E15,Players!$G15,Players!MZ15,Players!NB15) -> 4 | ND15: 0 | NE15: - | NF15: 1 | NG15: =ResultsCalc(Players!$E15,Players!$G15,Players!ND15,Players!NF15) -> 11 | NH15: 1 | NI15: - | NJ15: 2 | NK15: =ResultsCalc(Players!$E15,Players!$G15,Players!NH15,Players!NJ15) -> 6 | NL15: 2 | NM15: - | NN15: 0 | NO15: =ResultsCalc(Players!$E15,Players!$G15,Players!NL15,Players!NN15) -> 0 | NP15: 0 | NQ15: - | NR15: 0 | NS15: =ResultsCalc(Players!$E15,Players!$G15,Players!NP15,Players!NR15) -> 2 | NT15: 1 | NU15: - | NV15: 2 | NW15: =ResultsCalc(Players!$E15,Players!$G15,Players!NT15,Players!NV15) -> 6 | NX15: 0 | NY15: - | NZ15: 1 | OA15: =ResultsCalc(Players!$E15,Players!$G15,Players!NX15,Players!NZ15) -> 11 | OB15: 1 | OC15: - | OD15: 2 | OE15: =ResultsCalc(Players!$E15,Players!$G15,Players!OB15,Players!OD15) -> 6 | OF15: 1 | OG15: - | OH15: 2 | OI15: =ResultsCalc(Players!$E15,Players!$G15,Players!OF15,Players!OH15) -> 6 | OJ15: 0 | OK15: - | OL15: 1 | OM15: =ResultsCalc(Players!$E15,Players!$G15,Players!OJ15,Players!OL15) -> 11 | ON15: 0 | OO15: - | OP15: 0 | OQ15: =ResultsCalc(Players!$E15,Players!$G15,Players!ON15,Players!OP15) -> 2 | OR15: 0 | OS15: - | OT15: 1 | OU15: =ResultsCalc(Players!$E15,Players!$G15,Players!OR15,Players!OT15) -> 11 | OV15: 0 | OW15: - | OX15: 3 | OY15: =ResultsCalc(Players!$E15,Players!$G15,Players!OV15,Players!OX15) -> 6 | OZ15: 1 | PA15: - | PB15: 1 | PC15: =ResultsCalc(Players!$E15,Players!$G15,Players!OZ15,Players!PB15) -> 2 | PD15: 1 | PE15: - | PF15: 1 | PG15: =ResultsCalc(Players!$E15,Players!$G15,Players!PD15,Players!PF15) -> 2 | PH15: 2 | PI15: - | PJ15: 2 | PK15: =ResultsCalc(Players!$E15,Players!$G15,Players!PH15,Players!PJ15) -> 0 | PL15: 2 | PM15: - | PN15: 2 | PO15: =ResultsCalc(Players!$E15,Players!$G15,Players!PL15,Players!PN15) -> 0 | PP15: 1 | PQ15: - | PR15: 3 | PS15: =ResultsCalc(Players!$E15,Players!$G15,Players!PP15,Players!PR15) -> 4 | PT15: 1 | PU15: - | PV15: 2 | PW15: =ResultsCalc(Players!$E15,Players!$G15,Players!PT15,Players!PV15) -> 6 | PX15: 0 | PY15: - | PZ15: 0 | QA15: =ResultsCalc(Players!$E15,Players!$G15,Players!PX15,Players!PZ15) -> 2 | QB15: 0 | QC15: - | QD15: 2 | QE15: =ResultsCalc(Players!$E15,Players!$G15,Players!QB15,Players!QD15) -> 6 | QF15: 1 | QG15: - | QH15: 2 | QI15: =ResultsCalc(Players!$E15,Players!$G15,Players!QF15,Players!QH15) -> 6 | QJ15: 1 | QK15: - | QL15: 1 | QM15: =ResultsCalc(Players!$E15,Players!$G15,Players!QJ15,Players!QL15) -> 2 | QO15: 24 | QQ15: 11 | QR15: 24
A16: 2021-06-16 | B16: 14 | C16: Turkey | D16: Wales | E16: 0 | F16: - | G16: 2 | H16: 2 | I16: - | J16: 1 | K16: =ResultsCalc(Players!$E16,Players!$G16,Players!H16,Players!J16) -> 0 | L16: 1 | M16: - | N16: 1 | O16: =ResultsCalc(Players!$E16,Players!$G16,Players!L16,Players!N16) -> 0 | P16: 2 | Q16: - | R16: 0 | S16: =ResultsCalc(Players!$E16,Players!$G16,Players!P16,Players!R16) -> 0 | T16: 0 | U16: - | V16: 0 | W16: =ResultsCalc(Players!$E16,Players!$G16,Players!T16,Players!V16) -> 2 | X16: 1 | Y16: - | Z16: 2 | AA16: =ResultsCalc(Players!$E16,Players!$G16,Players!X16,Players!Z16) -> 6 | AB16: 3 | AC16: - | AD16: 1 | AE16: =ResultsCalc(Players!$E16,Players!$G16,Players!AB16,Players!AD16) -> 0 | AF16: 1 | AG16: - | AH16: 1 | AI16: =ResultsCalc(Players!$E16,Players!$G16,Players!AF16,Players!AH16) -> 0 | AJ16: 1 | AK16: - | AL16: 1 | AM16: =ResultsCalc(Players!$E16,Players!$G16,Players!AJ16,Players!AL16) -> 0 | AN16: 0 | AO16: - | AP16: 0 | AQ16: =ResultsCalc(Players!$E16,Players!$G16,Players!AN16,Players!AP16) -> 2 | AR16: 2 | AS16: - | AT16: 1 | AU16: =ResultsCalc(Players!$E16,Players!$G16,Players!AR16,Players!AT16) -> 0 | AV16: 1 | AW16: - | AX16: 1 | AY16: =ResultsCalc(Players!$E16,Players!$G16,Players!AV16,Players!AX16) -> 0 | AZ16: 1 | BA16: - | BB16: 1 | BC16: =ResultsCalc(Players!$E16,Players!$G16,Players!AZ16,Players!BB16) -> 0 | BD16: 1 | BE16: - | BF16: 0 | BG16: =ResultsCalc(Players!$E16,Players!$G16,Players!BD16,Players!BF16) -> 0 | BH16: 2 | BI16: - | BJ16: 2 | BK16: =ResultsCalc(Players!$E16,Players!$G16,Players!BH16,Players!BJ16) -> 2 | BL16: 1 | BM16: - | BN16: 1 | BO16: =ResultsCalc(Players!$E16,Players!$G16,Players!BL16,Players!BN16) -> 0 | BP16: 2 | BQ16: - | BR16: 2 | BS16: =ResultsCalc(Players!$E16,Players!$G16,Players!BP16,Players!BR16) -> 2 | BT16: 1 | BU16: - | BV16: 1 | BW16: =ResultsCalc(Players!$E16,Players!$G16,Players!BT16,Players!BV16) -> 0 | BX16: 1 | BY16: - | BZ16: 0 | CA16: =ResultsCalc(Players!$E16,Players!$G16,Players!BX16,Players!BZ16) -> 0 | CB16: 2 | CC16: - | CD16: 1 | CE16: =ResultsCalc(Players!$E16,Players!$G16,Players!CB16,Players!CD16) -> 0 | CF16: 3 | CG16: - | CH16: 1 | CI16: =ResultsCalc(Players!$E16,Players!$G16,Players!CF16,Players!CH16) -> 0 | CJ16: 2 | CK16: - | CL16: 2 | CM16: =ResultsCalc(Players!$E16,Players!$G16,Players!CJ16,Players!CL16) -> 2 | CN16: 2 | CO16: - | CP16: 1 | CQ16: =ResultsCalc(Players!$E16,Players!$G16,Players!CN16,Players!CP16) -> 0 | CR16: 3 | CS16: - | CT16: 1 | CU16: =ResultsCalc(Players!$E16,Players!$G16,Players!CR16,Players!CT16) -> 0 | CV16: 1 | CW16: - | CX16: 0 | CY16: =ResultsCalc(Players!$E16,Players!$G16,Players!CV16,Players!CX16) -> 0 | CZ16: 1 | DA16: - | DB16: 1 | DC16: =ResultsCalc(Players!$E16,Players!$G16,Players!CZ16,Players!DB16) -> 0 | DD16: 2 | DE16: - | DF16: 2 | DG16: =ResultsCalc(Players!$E16,Players!$G16,Players!DD16,Players!DF16) -> 2 | DH16: 1 | DI16: - | DJ16: 2 | DK16: =ResultsCalc(Players!$E16,Players!$G16,Players!DH16,Players!DJ16) -> 6 | DL16: 0 | DM16: - | DN16: 2 | DO16: =ResultsCalc(Players!$E16,Players!$G16,Players!DL16,Players!DN16) -> 12 | DP16: 2 | DQ16: - | DR16: 0 | DS16: =ResultsCalc(Players!$E16,Players!$G16,Players!DP16,Players!DR16) -> 0 | DT16: 1 | DU16: - | DV16: 2 | DW16: =ResultsCalc(Players!$E16,Players!$G16,Players!DT16,Players!DV16) -> 6 | DX16: 0 | DY16: - | DZ16: 2 | EA16: =ResultsCalc(Players!$E16,Players!$G16,Players!DX16,Players!DZ16) -> 12 | EB16: 0 | EC16: - | ED16: 1 | EE16: =ResultsCalc(Players!$E16,Players!$G16,Players!EB16,Players!ED16) -> 6 | EF16: 2 | EG16: - | EH16: 0 | EI16: =ResultsCalc(Players!$E16,Players!$G16,Players!EF16,Players!EH16) -> 0 | EJ16: 0 | EK16: - | EL16: 1 | EM16: =ResultsCalc(Players!$E16,Players!$G16,Players!EJ16,Players!EL16) -> 6 | EN16: 1 | EO16: - | EP16: 1 | EQ16: =ResultsCalc(Players!$E16,Players!$G16,Players!EN16,Players!EP16) -> 0 | ER16: 1 | ES16: - | ET16: 1 | EU16: =ResultsCalc(Players!$E16,Players!$G16,Players!ER16,Players!ET16) -> 0 | EV16: 1 | EW16: - | EX16: 1 | EY16: =ResultsCalc(Players!$E16,Players!$G16,Players!EV16,Players!EX16) -> 0 | EZ16: 2 | FA16: - | FB16: 1 | FC16: =ResultsCalc(Players!$E16,Players!$G16,Players!EZ16,Players!FB16) -> 0 | FD16: 1 | FE16: - | FF16: 2 | FG16: =ResultsCalc(Players!$E16,Players!$G16,Players!FD16,Players!FF16) -> 6 | FH16: 1 | FI16: - | FJ16: 1 | FK16: =ResultsCalc(Players!$E16,Players!$G16,Players!FH16,Players!FJ16) -> 0 | FL16: 1 | FM16: - | FN16: 1 | FO16: =ResultsCalc(Players!$E16,Players!$G16,Players!FL16,Players!FN16) -> 0 | FP16: 3 | FQ16: - | FR16: 4 | FS16: =ResultsCalc(Players!$E16,Players!$G16,Players!FP16,Players!FR16) -> 4 | FT16: 1 | FU16: - | FV16: 1 | FW16: =ResultsCalc(Players!$E16,Players!$G16,Players!FT16,Players!FV16) -> 0 | FX16: 1 | FY16: - | FZ16: 0 | GA16: =ResultsCalc(Players!$E16,Players!$G16,Players!FX16,Players!FZ16) -> 0 | GB16: 1 | GC16: - | GD16: 2 | GE16: =ResultsCalc(Players!$E16,Players!$G16,Players!GB16,Players!GD16) -> 6 | GF16: 0 | GG16: - | GH16: 1 | GI16: =ResultsCalc(Players!$E16,Players!$G16,Players!GF16,Players!GH16) -> 6 | GJ16: 1 | GK16: - | GL16: 0 | GM16: =ResultsCalc(Players!$E16,Players!$G16,Players!GJ16,Players!GL16) -> 0 | GN16: 2 | GO16: - | GP16: 1 | GQ16: =ResultsCalc(Players!$E16,Players!$G16,Players!GN16,Players!GP16) -> 0 | GR16: 0 | GS16: - | GT16: 0 | GU16: =ResultsCalc(Players!$E16,Players!$G16,Players!GR16,Players!GT16) -> 2 | GV16: 0 | GW16: - | GX16: 0 | GY16: =ResultsCalc(Players!$E16,Players!$G16,Players!GV16,Players!GX16) -> 2 | GZ16: 2 | HA16: - | HB16: 1 | HC16: =ResultsCalc(Players!$E16,Players!$G16,Players!GZ16,Players!HB16) -> 0 | HD16: 0 | HE16: - | HF16: 0 | HG16: =ResultsCalc(Players!$E16,Players!$G16,Players!HD16,Players!HF16) -> 2 | HH16: 0 | HI16: - | HJ16: 0 | HK16: =ResultsCalc(Players!$E16,Players!$G16,Players!HH16,Players!HJ16) -> 2 | HL16: 1 | HM16: - | HN16: 1 | HO16: =ResultsCalc(Players!$E16,Players!$G16,Players!HL16,Players!HN16) -> 0 | HP16: 2 | HQ16: - | HR16: 3 | HS16: =ResultsCalc(Players!$E16,Players!$G16,Players!HP16,Players!HR16) -> 4 | HT16: 1 | HU16: - | HV16: 1 | HW16: =ResultsCalc(Players!$E16,Players!$G16,Players!HT16,Players!HV16) -> 0 | HX16: 1 | HY16: - | HZ16: 0 | IA16: =ResultsCalc(Players!$E16,Players!$G16,Players!HX16,Players!HZ16) -> 0 | IB16: 1 | IC16: - | ID16: 2 | IE16: =ResultsCalc(Players!$E16,Players!$G16,Players!IB16,Players!ID16) -> 6 | IF16: 1 | IG16: - | IH16: 1 | II16: =ResultsCalc(Players!$E16,Players!$G16,Players!IF16,Players!IH16) -> 0 | IJ16: 1 | IK16: - | IL16: 1 | IM16: =ResultsCalc(Players!$E16,Players!$G16,Players!IJ16,Players!IL16) -> 0 | IN16: 2 | IO16: - | IP16: 1 | IQ16: =ResultsCalc(Players!$E16,Players!$G16,Players!IN16,Players!IP16) -> 0 | IR16: 0 | IS16: - | IT16: 2 | IU16: =ResultsCalc(Players!$E16,Players!$G16,Players!IR16,Players!IT16) -> 12 | IV16: 0 | IW16: - | IX16: 1 | IY16: =ResultsCalc(Players!$E16,Players!$G16,Players!IV16,Players!IX16) -> 6 | IZ16: 0 | JA16: - | JB16: 1 | JC16: =ResultsCalc(Players!$E16,Players!$G16,Players!IZ16,Players!JB16) -> 6 | JD16: 1 | JE16: - | JF16: 1 | JG16: =ResultsCalc(Players!$E16,Players!$G16,Players!JD16,Players!JF16) -> 0 | JH16: 2 | JI16: - | JJ16: 0 | JK16: =ResultsCalc(Players!$E16,Players!$G16,Players!JH16,Players!JJ16) -> 0 | JL16: 1 | JM16: - | JN16: 2 | JO16: =ResultsCalc(Players!$E16,Players!$G16,Players!JL16,Players!JN16) -> 6 | JP16: 1 | JQ16: - | JR16: 1 | JS16: =ResultsCalc(Players!$E16,Players!$G16,Players!JP16,Players!JR16) -> 0 | JT16: 1 | JU16: - | JV16: 2 | JW16: =ResultsCalc(Players!$E16,Players!$G16,Players!JT16,Players!JV16) -> 6 | JX16: 1 | JY16: - | JZ16: 2 | KA16: =ResultsCalc(Players!$E16,Players!$G16,Players!JX16,Players!JZ16) -> 6 | KB16: 1 | KC16: - | KD16: 2 | KE16: =ResultsCalc(Players!$E16,Players!$G16,Players!KB16,Players!KD16) -> 6 | KF16: 0 | KG16: - | KH16: 1 | KI16: =ResultsCalc(Players!$E16,Players!$G16,Players!KF16,Players!KH16) -> 6 | KJ16: 2 | KK16: - | KL16: 0 | KM16: =ResultsCalc(Players!$E16,Players!$G16,Players!KJ16,Players!KL16) -> 0 | KN16: 2 | KO16: - | KP16: 1 | KQ16: =ResultsCalc(Players!$E16,Players!$G16,Players!KN16,Players!KP16) -> 0 | KR16: 0 | KS16: - | KT16: 1 | KU16: =ResultsCalc(Players!$E16,Players!$G16,Players!KR16,Players!KT16) -> 6 | KV16: 3 | KW16: - | KX16: 2 | KY16: =ResultsCalc(Players!$E16,Players!$G16,Players!KV16,Players!KX16) -> 2 | KZ16: 1 | LA16: - | LB16: 0 | LC16: =ResultsCalc(Players!$E16,Players!$G16,Players!KZ16,Players!LB16) -> 0 | LD16: 2 | LE16: - | LF16: 2 | LG16: =ResultsCalc(Players!$E16,Players!$G16,Players!LD16,Players!LF16) -> 2 | LH16: 0 | LI16: - | LJ16: 0 | LK16: =ResultsCalc(Players!$E16,Players!$G16,Players!LH16,Players!LJ16) -> 2 | LL16: 2 | LM16: - | LN16: 2 | LO16: =ResultsCalc(Players!$E16,Players!$G16,Players!LL16,Players!LN16) -> 2 | LP16: 1 | LQ16: - | LR16: 0 | LS16: =ResultsCalc(Players!$E16,Players!$G16,Players!LP16,Players!LR16) -> 0 | LT16: 2 | LU16: - | LV16: 0 | LW16: =ResultsCalc(Players!$E16,Players!$G16,Players!LT16,Players!LV16) -> 0 | LX16: 2 | LY16: - | LZ16: 1 | MA16: =ResultsCalc(Players!$E16,Players!$G16,Players!LX16,Players!LZ16) -> 0 | MB16: 0 | MC16: - | MD16: 1 | ME16: =ResultsCalc(Players!$E16,Players!$G16,Players!MB16,Players!MD16) -> 6 | MF16: 0 | MG16: - | MH16: 1 | MI16: =ResultsCalc(Players!$E16,Players!$G16,Players!MF16,Players!MH16) -> 6 | MJ16: 2 | MK16: - | ML16: 2 | MM16: =ResultsCalc(Players!$E16,Players!$G16,Players!MJ16,Players!ML16) -> 2 | MN16: 1 | MO16: - | MP16: 1 | MQ16: =ResultsCalc(Players!$E16,Players!$G16,Players!MN16,Players!MP16) -> 0 | MR16: 1 | MS16: - | MT16: 1 | MU16: =ResultsCalc(Players!$E16,Players!$G16,Players!MR16,Players!MT16) -> 0 | MV16: 1 | MW16: - | MX16: 2 | MY16: =ResultsCalc(Players!$E16,Players!$G16,Players!MV16,Players!MX16) -> 6 | MZ16: 1 | NA16: - | NB16: 2 | NC16: =ResultsCalc(Players!$E16,Players!$G16,Players!MZ16,Players!NB16) -> 6 | ND16: 1 | NE16: - | NF16: 2 | NG16: =ResultsCalc(Players!$E16,Players!$G16,Players!ND16,Players!NF16) -> 6 | NH16: 0 | NI16: - | NJ16: 1 | NK16: =ResultsCalc(Players!$E16,Players!$G16,Players!NH16,Players!NJ16) -> 6 | NL16: 1 | NM16: - | NN16: 3 | NO16: =ResultsCalc(Players!$E16,Players!$G16,Players!NL16,Players!NN16) -> 6 | NP16: 2 | NQ16: - | NR16: 1 | NS16: =ResultsCalc(Players!$E16,Players!$G16,Players!NP16,Players!NR16) -> 0 | NT16: 0 | NU16: - | NV16: 1 | NW16: =ResultsCalc(Players!$E16,Players!$G16,Players!NT16,Players!NV16) -> 6 | NX16: 0 | NY16: - | NZ16: 2 | OA16: =ResultsCalc(Players!$E16,Players!$G16,Players!NX16,Players!NZ16) -> 12 | OB16: 1 | OC16: - | OD16: 1 | OE16: =ResultsCalc(Players!$E16,Players!$G16,Players!OB16,Players!OD16) -> 0 | OF16: 2 | OG16: - | OH16: 2 | OI16: =ResultsCalc(Players!$E16,Players!$G16,Players!OF16,Players!OH16) -> 2 | OJ16: 1 | OK16: - | OL16: 2 | OM16: =ResultsCalc(Players!$E16,Players!$G16,Players!OJ16,Players!OL16) -> 6 | ON16: 0 | OO16: - | OP16: 1 | OQ16: =ResultsCalc(Players!$E16,Players!$G16,Players!ON16,Players!OP16) -> 6 | OR16: 1 | OS16: - | OT16: 1 | OU16: =ResultsCalc(Players!$E16,Players!$G16,Players!OR16,Players!OT16) -> 0 | OV16: 3 | OW16: - | OX16: 2 | OY16: =ResultsCalc(Players!$E16,Players!$G16,Players!OV16,Players!OX16) -> 2 | OZ16: 0 | PA16: - | PB16: 0 | PC16: =ResultsCalc(Players!$E16,Players!$G16,Players!OZ16,Players!PB16) -> 2 | PD16: 1 | PE16: - | PF16: 2 | PG16: =ResultsCalc(Players!$E16,Players!$G16,Players!PD16,Players!PF16) -> 6 | PH16: 1 | PI16: - | PJ16: 0 | PK16: =ResultsCalc(Players!$E16,Players!$G16,Players!PH16,Players!PJ16) -> 0 | PL16: 1 | PM16: - | PN16: 0 | PO16: =ResultsCalc(Players!$E16,Players!$G16,Players!PL16,Players!PN16) -> 0 | PP16: 2 | PQ16: - | PR16: 1 | PS16: =ResultsCalc(Players!$E16,Players!$G16,Players!PP16,Players!PR16) -> 0 | PT16: 1 | PU16: - | PV16: 1 | PW16: =ResultsCalc(Players!$E16,Players!$G16,Players!PT16,Players!PV16) -> 0 | PX16: 1 | PY16: - | PZ16: 0 | QA16: =ResultsCalc(Players!$E16,Players!$G16,Players!PX16,Players!PZ16) -> 0 | QB16: 1 | QC16: - | QD16: 0 | QE16: =ResultsCalc(Players!$E16,Players!$G16,Players!QB16,Players!QD16) -> 0 | QF16: 1 | QG16: - | QH16: 2 | QI16: =ResultsCalc(Players!$E16,Players!$G16,Players!QF16,Players!QH16) -> 6 | QJ16: 1 | QK16: - | QL16: 1 | QM16: =ResultsCalc(Players!$E16,Players!$G16,Players!QJ16,Players!QL16) -> 0 | QO16: 4 | QQ16: 12 | QR16: 4
A17: 2021-06-16 | B17: 15 | C17: Italy | D17: Switzerland | E17: 3 | F17: - | G17: 0 | H17: 3 | I17: - | J17: 0 | K17: =ResultsCalc(Players!$E17,Players!$G17,Players!H17,Players!J17) -> 13 | L17: 2 | M17: - | N17: 1 | O17: =ResultsCalc(Players!$E17,Players!$G17,Players!L17,Players!N17) -> 4 | P17: 1 | Q17: - | R17: 1 | S17: =ResultsCalc(Players!$E17,Players!$G17,Players!P17,Players!R17) -> 0 | T17: 3 | U17: - | V17: 1 | W17: =ResultsCalc(Players!$E17,Players!$G17,Players!T17,Players!V17) -> 6 | X17: 1 | Y17: - | Z17: 1 | AA17: =ResultsCalc(Players!$E17,Players!$G17,Players!X17,Players!Z17) -> 0 | AB17: 1 | AC17: - | AD17: 0 | AE17: =ResultsCalc(Players!$E17,Players!$G17,Players!AB17,Players!AD17) -> 6 | AF17: 2 | AG17: - | AH17: 1 | AI17: =ResultsCalc(Players!$E17,Players!$G17,Players!AF17,Players!AH17) -> 4 | AJ17: 2 | AK17: - | AL17: 1 | AM17: =ResultsCalc(Players!$E17,Players!$G17,Players!AJ17,Players!AL17) -> 4 | AN17: 3 | AO17: - | AP17: 1 | AQ17: =ResultsCalc(Players!$E17,Players!$G17,Players!AN17,Players!AP17) -> 6 | AR17: 1 | AS17: - | AT17: 0 | AU17: =ResultsCalc(Players!$E17,Players!$G17,Players!AR17,Players!AT17) -> 6 | AV17: 1 | AW17: - | AX17: 0 | AY17: =ResultsCalc(Players!$E17,Players!$G17,Players!AV17,Players!AX17) -> 6 | AZ17: 2 | BA17: - | BB17: 1 | BC17: =ResultsCalc(Players!$E17,Players!$G17,Players!AZ17,Players!BB17) -> 4 | BD17: 2 | BE17: - | BF17: 1 | BG17: =ResultsCalc(Players!$E17,Players!$G17,Players!BD17,Players!BF17) -> 4 | BH17: 2 | BI17: - | BJ17: 1 | BK17: =ResultsCalc(Players!$E17,Players!$G17,Players!BH17,Players!BJ17) -> 4 | BL17: 2 | BM17: - | BN17: 1 | BO17: =ResultsCalc(Players!$E17,Players!$G17,Players!BL17,Players!BN17) -> 4 | BP17: 2 | BQ17: - | BR17: 0 | BS17: =ResultsCalc(Players!$E17,Players!$G17,Players!BP17,Players!BR17) -> 6 | BT17: 2 | BU17: - | BV17: 1 | BW17: =ResultsCalc(Players!$E17,Players!$G17,Players!BT17,Players!BV17) -> 4 | BX17: 1 | BY17: - | BZ17: 1 | CA17: =ResultsCalc(Players!$E17,Players!$G17,Players!BX17,Players!BZ17) -> 0 | CB17: 1 | CC17: - | CD17: 0 | CE17: =ResultsCalc(Players!$E17,Players!$G17,Players!CB17,Players!CD17) -> 6 | CF17: 2 | CG17: - | CH17: 0 | CI17: =ResultsCalc(Players!$E17,Players!$G17,Players!CF17,Players!CH17) -> 6 | CJ17: 1 | CK17: - | CL17: 0 | CM17: =ResultsCalc(Players!$E17,Players!$G17,Players!CJ17,Players!CL17) -> 6 | CN17: 2 | CO17: - | CP17: 2 | CQ17: =ResultsCalc(Players!$E17,Players!$G17,Players!CN17,Players!CP17) -> 0 | CR17: 2 | CS17: - | CT17: 2 | CU17: =ResultsCalc(Players!$E17,Players!$G17,Players!CR17,Players!CT17) -> 0 | CV17: 1 | CW17: - | CX17: 0 | CY17: =ResultsCalc(Players!$E17,Players!$G17,Players!CV17,Players!CX17) -> 6 | CZ17: 2 | DA17: - | DB17: 1 | DC17: =ResultsCalc(Players!$E17,Players!$G17,Players!CZ17,Players!DB17) -> 4 | DD17: 2 | DE17: - | DF17: 1 | DG17: =ResultsCalc(Players!$E17,Players!$G17,Players!DD17,Players!DF17) -> 4 | DH17: 2 | DI17: - | DJ17: 0 | DK17: =ResultsCalc(Players!$E17,Players!$G17,Players!DH17,Players!DJ17) -> 6 | DL17: 1 | DM17: - | DN17: 0 | DO17: =ResultsCalc(Players!$E17,Players!$G17,Players!DL17,Players!DN17) -> 6 | DP17: 2 | DQ17: - | DR17: 0 | DS17: =ResultsCalc(Players!$E17,Players!$G17,Players!DP17,Players!DR17) -> 6 | DT17: 2 | DU17: - | DV17: 0 | DW17: =ResultsCalc(Players!$E17,Players!$G17,Players!DT17,Players!DV17) -> 6 | DX17: 3 | DY17: - | DZ17: 0 | EA17: =ResultsCalc(Players!$E17,Players!$G17,Players!DX17,Players!DZ17) -> 13 | EB17: 0 | EC17: - | ED17: 1 | EE17: =ResultsCalc(Players!$E17,Players!$G17,Players!EB17,Players!ED17) -> 0 | EF17: 0 | EG17: - | EH17: 1 | EI17: =ResultsCalc(Players!$E17,Players!$G17,Players!EF17,Players!EH17) -> 0 | EJ17: 1 | EK17: - | EL17: 0 | EM17: =ResultsCalc(Players!$E17,Players!$G17,Players!EJ17,Players!EL17) -> 6 | EN17: 2 | EO17: - | EP17: 7 | EQ17: =ResultsCalc(Players!$E17,Players!$G17,Players!EN17,Players!EP17) -> 0 | ER17: 2 | ES17: - | ET17: 1 | EU17: =ResultsCalc(Players!$E17,Players!$G17,Players!ER17,Players!ET17) -> 4 | EV17: 1 | EW17: - | EX17: 0 | EY17: =ResultsCalc(Players!$E17,Players!$G17,Players!EV17,Players!EX17) -> 6 | EZ17: 0 | FA17: - | FB17: 0 | FC17: =ResultsCalc(Players!$E17,Players!$G17,Players!EZ17,Players!FB17) -> 2 | FD17: 2 | FE17: - | FF17: 2 | FG17: =ResultsCalc(Players!$E17,Players!$G17,Players!FD17,Players!FF17) -> 0 | FH17: 2 | FI17: - | FJ17: 1 | FK17: =ResultsCalc(Players!$E17,Players!$G17,Players!FH17,Players!FJ17) -> 4 | FL17: 1 | FM17: - | FN17: 0 | FO17: =ResultsCalc(Players!$E17,Players!$G17,Players!FL17,Players!FN17) -> 6 | FP17: 2 | FQ17: - | FR17: 3 | FS17: =ResultsCalc(Players!$E17,Players!$G17,Players!FP17,Players!FR17) -> 0 | FT17: 3 | FU17: - | FV17: 2 | FW17: =ResultsCalc(Players!$E17,Players!$G17,Players!FT17,Players!FV17) -> 6 | FX17: 2 | FY17: - | FZ17: 1 | GA17: =ResultsCalc(Players!$E17,Players!$G17,Players!FX17,Players!FZ17) -> 4 | GB17: 2 | GC17: - | GD17: 1 | GE17: =ResultsCalc(Players!$E17,Players!$G17,Players!GB17,Players!GD17) -> 4 | GF17: 1 | GG17: - | GH17: 0 | GI17: =ResultsCalc(Players!$E17,Players!$G17,Players!GF17,Players!GH17) -> 6 | GJ17: 3 | GK17: - | GL17: 1 | GM17: =ResultsCalc(Players!$E17,Players!$G17,Players!GJ17,Players!GL17) -> 6 | GN17: 3 | GO17: - | GP17: 1 | GQ17: =ResultsCalc(Players!$E17,Players!$G17,Players!GN17,Players!GP17) -> 6 | GR17: 1 | GS17: - | GT17: 1 | GU17: =ResultsCalc(Players!$E17,Players!$G17,Players!GR17,Players!GT17) -> 0 | GV17: 0 | GW17: - | GX17: 1 | GY17: =ResultsCalc(Players!$E17,Players!$G17,Players!GV17,Players!GX17) -> 0 | GZ17: 1 | HA17: - | HB17: 0 | HC17: =ResultsCalc(Players!$E17,Players!$G17,Players!GZ17,Players!HB17) -> 6 | HD17: 2 | HE17: - | HF17: 1 | HG17: =ResultsCalc(Players!$E17,Players!$G17,Players!HD17,Players!HF17) -> 4 | HH17: 1 | HI17: - | HJ17: 0 | HK17: =ResultsCalc(Players!$E17,Players!$G17,Players!HH17,Players!HJ17) -> 6 | HL17: 2 | HM17: - | HN17: 0 | HO17: =ResultsCalc(Players!$E17,Players!$G17,Players!HL17,Players!HN17) -> 6 | HP17: 2 | HQ17: - | HR17: 1 | HS17: =ResultsCalc(Players!$E17,Players!$G17,Players!HP17,Players!HR17) -> 4 | HT17: 2 | HU17: - | HV17: 0 | HW17: =ResultsCalc(Players!$E17,Players!$G17,Players!HT17,Players!HV17) -> 6 | HX17: 1 | HY17: - | HZ17: 0 | IA17: =ResultsCalc(Players!$E17,Players!$G17,Players!HX17,Players!HZ17) -> 6 | IB17: 1 | IC17: - | ID17: 1 | IE17: =ResultsCalc(Players!$E17,Players!$G17,Players!IB17,Players!ID17) -> 0 | IF17: 2 | IG17: - | IH17: 0 | II17: =ResultsCalc(Players!$E17,Players!$G17,Players!IF17,Players!IH17) -> 6 | IJ17: 2 | IK17: - | IL17: 0 | IM17: =ResultsCalc(Players!$E17,Players!$G17,Players!IJ17,Players!IL17) -> 6 | IN17: 2 | IO17: - | IP17: 0 | IQ17: =ResultsCalc(Players!$E17,Players!$G17,Players!IN17,Players!IP17) -> 6 | IR17: 2 | IS17: - | IT17: 0 | IU17: =ResultsCalc(Players!$E17,Players!$G17,Players!IR17,Players!IT17) -> 6 | IV17: 2 | IW17: - | IX17: 0 | IY17: =ResultsCalc(Players!$E17,Players!$G17,Players!IV17,Players!IX17) -> 6 | IZ17: 1 | JA17: - | JB17: 1 | JC17: =ResultsCalc(Players!$E17,Players!$G17,Players!IZ17,Players!JB17) -> 0 | JD17: 2 | JE17: - | JF17: 0 | JG17: =ResultsCalc(Players!$E17,Players!$G17,Players!JD17,Players!JF17) -> 6 | JH17: 2 | JI17: - | JJ17: 2 | JK17: =ResultsCalc(Players!$E17,Players!$G17,Players!JH17,Players!JJ17) -> 0 | JL17: 2 | JM17: - | JN17: 1 | JO17: =ResultsCalc(Players!$E17,Players!$G17,Players!JL17,Players!JN17) -> 4 | JP17: 2 | JQ17: - | JR17: 1 | JS17: =ResultsCalc(Players!$E17,Players!$G17,Players!JP17,Players!JR17) -> 4 | JT17: 2 | JU17: - | JV17: 3 | JW17: =ResultsCalc(Players!$E17,Players!$G17,Players!JT17,Players!JV17) -> 0 | JX17: 2 | JY17: - | JZ17: 0 | KA17: =ResultsCalc(Players!$E17,Players!$G17,Players!JX17,Players!JZ17) -> 6 | KB17: 3 | KC17: - | KD17: 0 | KE17: =ResultsCalc(Players!$E17,Players!$G17,Players!KB17,Players!KD17) -> 13 | KF17: 2 | KG17: - | KH17: 0 | KI17: =ResultsCalc(Players!$E17,Players!$G17,Players!KF17,Players!KH17) -> 6 | KJ17: 3 | KK17: - | KL17: 1 | KM17: =ResultsCalc(Players!$E17,Players!$G17,Players!KJ17,Players!KL17) -> 6 | KN17: 2 | KO17: - | KP17: 1 | KQ17: =ResultsCalc(Players!$E17,Players!$G17,Players!KN17,Players!KP17) -> 4 | KR17: 1 | KS17: - | KT17: 0 | KU17: =ResultsCalc(Players!$E17,Players!$G17,Players!KR17,Players!KT17) -> 6 | KV17: 3 | KW17: - | KX17: 1 | KY17: =ResultsCalc(Players!$E17,Players!$G17,Players!KV17,Players!KX17) -> 6 | KZ17: 2 | LA17: - | LB17: 0 | LC17: =ResultsCalc(Players!$E17,Players!$G17,Players!KZ17,Players!LB17) -> 6 | LD17: 2 | LE17: - | LF17: 1 | LG17: =ResultsCalc(Players!$E17,Players!$G17,Players!LD17,Players!LF17) -> 4 | LH17: 3 | LI17: - | LJ17: 1 | LK17: =ResultsCalc(Players!$E17,Players!$G17,Players!LH17,Players!LJ17) -> 6 | LL17: 2 | LM17: - | LN17: 1 | LO17: =ResultsCalc(Players!$E17,Players!$G17,Players!LL17,Players!LN17) -> 4 | LP17: 2 | LQ17: - | LR17: 1 | LS17: =ResultsCalc(Players!$E17,Players!$G17,Players!LP17,Players!LR17) -> 4 | LT17: 2 | LU17: - | LV17: 0 | LW17: =ResultsCalc(Players!$E17,Players!$G17,Players!LT17,Players!LV17) -> 6 | LX17: 5 | LY17: - | LZ17: 1 | MA17: =ResultsCalc(Players!$E17,Players!$G17,Players!LX17,Players!LZ17) -> 4 | MB17: 1 | MC17: - | MD17: 1 | ME17: =ResultsCalc(Players!$E17,Players!$G17,Players!MB17,Players!MD17) -> 0 | MF17: 2 | MG17: - | MH17: 0 | MI17: =ResultsCalc(Players!$E17,Players!$G17,Players!MF17,Players!MH17) -> 6 | MJ17: 2 | MK17: - | ML17: 2 | MM17: =ResultsCalc(Players!$E17,Players!$G17,Players!MJ17,Players!ML17) -> 0 | MN17: 2 | MO17: - | MP17: 1 | MQ17: =ResultsCalc(Players!$E17,Players!$G17,Players!MN17,Players!MP17) -> 4 | MR17: 2 | MS17: - | MT17: 0 | MU17: =ResultsCalc(Players!$E17,Players!$G17,Players!MR17,Players!MT17) -> 6 | MV17: 3 | MW17: - | MX17: 1 | MY17: =ResultsCalc(Players!$E17,Players!$G17,Players!MV17,Players!MX17) -> 6 | MZ17: 2 | NA17: - | NB17: 0 | NC17: =ResultsCalc(Players!$E17,Players!$G17,Players!MZ17,Players!NB17) -> 6 | ND17: 2 | NE17: - | NF17: 0 | NG17: =ResultsCalc(Players!$E17,Players!$G17,Players!ND17,Players!NF17) -> 6 | NH17: 2 | NI17: - | NJ17: 1 | NK17: =ResultsCalc(Players!$E17,Players!$G17,Players!NH17,Players!NJ17) -> 4 | NL17: 2 | NM17: - | NN17: 0 | NO17: =ResultsCalc(Players!$E17,Players!$G17,Players!NL17,Players!NN17) -> 6 | NP17: 2 | NQ17: - | NR17: 1 | NS17: =ResultsCalc(Players!$E17,Players!$G17,Players!NP17,Players!NR17) -> 4 | NT17: 2 | NU17: - | NV17: 2 | NW17: =ResultsCalc(Players!$E17,Players!$G17,Players!NT17,Players!NV17) -> 0 | NX17: 1 | NY17: - | NZ17: 0 | OA17: =ResultsCalc(Players!$E17,Players!$G17,Players!NX17,Players!NZ17) -> 6 | OB17: 1 | OC17: - | OD17: 0 | OE17: =ResultsCalc(Players!$E17,Players!$G17,Players!OB17,Players!OD17) -> 6 | OF17: 2 | OG17: - | OH17: 1 | OI17: =ResultsCalc(Players!$E17,Players!$G17,Players!OF17,Players!OH17) -> 4 | OJ17: 2 | OK17: - | OL17: 0 | OM17: =ResultsCalc(Players!$E17,Players!$G17,Players!OJ17,Players!OL17) -> 6 | ON17: 0 | OO17: - | OP17: 1 | OQ17: =ResultsCalc(Players!$E17,Players!$G17,Players!ON17,Players!OP17) -> 0 | OR17: 2 | OS17: - | OT17: 1 | OU17: =ResultsCalc(Players!$E17,Players!$G17,Players!OR17,Players!OT17) -> 4 | OV17: 3 | OW17: - | OX17: 1 | OY17: =ResultsCalc(Players!$E17,Players!$G17,Players!OV17,Players!OX17) -> 6 | OZ17: 2 | PA17: - | PB17: 1 | PC17: =ResultsCalc(Players!$E17,Players!$G17,Players!OZ17,Players!PB17) -> 4 | PD17: 3 | PE17: - | PF17: 1 | PG17: =ResultsCalc(Players!$E17,Players!$G17,Players!PD17,Players!PF17) -> 6 | PH17: 3 | PI17: - | PJ17: 1 | PK17: =ResultsCalc(Players!$E17,Players!$G17,Players!PH17,Players!PJ17) -> 6 | PL17: 3 | PM17: - | PN17: 2 | PO17: =ResultsCalc(Players!$E17,Players!$G17,Players!PL17,Players!PN17) -> 6 | PP17: 2 | PQ17: - | PR17: 1 | PS17: =ResultsCalc(Players!$E17,Players!$G17,Players!PP17,Players!PR17) -> 4 | PT17: 3 | PU17: - | PV17: 2 | PW17: =ResultsCalc(Players!$E17,Players!$G17,Players!PT17,Players!PV17) -> 6 | PX17: 0 | PY17: - | PZ17: 2 | QA17: =ResultsCalc(Players!$E17,Players!$G17,Players!PX17,Players!PZ17) -> 0 | QB17: 2 | QC17: - | QD17: 0 | QE17: =ResultsCalc(Players!$E17,Players!$G17,Players!QB17,Players!QD17) -> 6 | QF17: 2 | QG17: - | QH17: 1 | QI17: =ResultsCalc(Players!$E17,Players!$G17,Players!QF17,Players!QH17) -> 4 | QJ17: 2 | QK17: - | QL17: 0 | QM17: =ResultsCalc(Players!$E17,Players!$G17,Players!QJ17,Players!QL17) -> 6 | QO17: 3 | QQ17: 13 | QR17: 3
A18: 2021-06-17 | B18: 16 | C18: Ukraine | D18: North Macedonia | E18: 2 | F18: - | G18: 1 | H18: 0 | I18: - | J18: 0 | K18: =ResultsCalc(Players!$E18,Players!$G18,Players!H18,Players!J18) -> 0 | L18: 1 | M18: - | N18: 0 | O18: =ResultsCalc(Players!$E18,Players!$G18,Players!L18,Players!N18) -> 6 | P18: 1 | Q18: - | R18: 0 | S18: =ResultsCalc(Players!$E18,Players!$G18,Players!P18,Players!R18) -> 6 | T18: 0 | U18: - | V18: 0 | W18: =ResultsCalc(Players!$E18,Players!$G18,Players!T18,Players!V18) -> 0 | X18: 0 | Y18: - | Z18: 1 | AA18: =ResultsCalc(Players!$E18,Players!$G18,Players!X18,Players!Z18) -> 2 | AB18: 2 | AC18: - | AD18: 0 | AE18: =ResultsCalc(Players!$E18,Players!$G18,Players!AB18,Players!AD18) -> 6 | AF18: 0 | AG18: - | AH18: 0 | AI18: =ResultsCalc(Players!$E18,Players!$G18,Players!AF18,Players!AH18) -> 0 | AJ18: 0 | AK18: - | AL18: 0 | AM18: =ResultsCalc(Players!$E18,Players!$G18,Players!AJ18,Players!AL18) -> 0 | AN18: 2 | AO18: - | AP18: 0 | AQ18: =ResultsCalc(Players!$E18,Players!$G18,Players!AN18,Players!AP18) -> 6 | AR18: 1 | AS18: - | AT18: 1 | AU18: =ResultsCalc(Players!$E18,Players!$G18,Players!AR18,Players!AT18) -> 2 | AV18: 2 | AW18: - | AX18: 3 | AY18: =ResultsCalc(Players!$E18,Players!$G18,Players!AV18,Players!AX18) -> 2 | AZ18: 2 | BA18: - | BB18: 1 | BC18: =ResultsCalc(Players!$E18,Players!$G18,Players!AZ18,Players!BB18) -> 13 | BD18: 2 | BE18: - | BF18: 2 | BG18: =ResultsCalc(Players!$E18,Players!$G18,Players!BD18,Players!BF18) -> 2 | BH18: 1 | BI18: - | BJ18: 1 | BK18: =ResultsCalc(Players!$E18,Players!$G18,Players!BH18,Players!BJ18) -> 2 | BL18: 3 | BM18: - | BN18: 0 | BO18: =ResultsCalc(Players!$E18,Players!$G18,Players!BL18,Players!BN18) -> 4 | BP18: 3 | BQ18: - | BR18: 0 | BS18: =ResultsCalc(Players!$E18,Players!$G18,Players!BP18,Players!BR18) -> 4 | BT18: 2 | BU18: - | BV18: 2 | BW18: =ResultsCalc(Players!$E18,Players!$G18,Players!BT18,Players!BV18) -> 2 | BX18: 2 | BY18: - | BZ18: 0 | CA18: =ResultsCalc(Players!$E18,Players!$G18,Players!BX18,Players!BZ18) -> 6 | CB18: 2 | CC18: - | CD18: 2 | CE18: =ResultsCalc(Players!$E18,Players!$G18,Players!CB18,Players!CD18) -> 2 | CF18: 1 | CG18: - | CH18: 2 | CI18: =ResultsCalc(Players!$E18,Players!$G18,Players!CF18,Players!CH18) -> 0 | CJ18: 2 | CK18: - | CL18: 0 | CM18: =ResultsCalc(Players!$E18,Players!$G18,Players!CJ18,Players!CL18) -> 6 | CN18: 3 | CO18: - | CP18: 2 | CQ18: =ResultsCalc(Players!$E18,Players!$G18,Players!CN18,Players!CP18) -> 6 | CR18: 2 | CS18: - | CT18: 0 | CU18: =ResultsCalc(Players!$E18,Players!$G18,Players!CR18,Players!CT18) -> 6 | CV18: 2 | CW18: - | CX18: 0 | CY18: =ResultsCalc(Players!$E18,Players!$G18,Players!CV18,Players!CX18) -> 6 | CZ18: 1 | DA18: - | DB18: 0 | DC18: =ResultsCalc(Players!$E18,Players!$G18,Players!CZ18,Players!DB18) -> 6 | DD18: 2 | DE18: - | DF18: 0 | DG18: =ResultsCalc(Players!$E18,Players!$G18,Players!DD18,Players!DF18) -> 6 | DH18: 1 | DI18: - | DJ18: 1 | DK18: =ResultsCalc(Players!$E18,Players!$G18,Players!DH18,Players!DJ18) -> 2 | DL18: 1 | DM18: - | DN18: 0 | DO18: =ResultsCalc(Players!$E18,Players!$G18,Players!DL18,Players!DN18) -> 6 | DP18: 1 | DQ18: - | DR18: 0 | DS18: =ResultsCalc(Players!$E18,Players!$G18,Players!DP18,Players!DR18) -> 6 | DT18: 0 | DU18: - | DV18: 1 | DW18: =ResultsCalc(Players!$E18,Players!$G18,Players!DT18,Players!DV18) -> 2 | DX18: 3 | DY18: - | DZ18: 0 | EA18: =ResultsCalc(Players!$E18,Players!$G18,Players!DX18,Players!DZ18) -> 4 | EB18: 2 | EC18: - | ED18: 1 | EE18: =ResultsCalc(Players!$E18,Players!$G18,Players!EB18,Players!ED18) -> 13 | EF18: 2 | EG18: - | EH18: 0 | EI18: =ResultsCalc(Players!$E18,Players!$G18,Players!EF18,Players!EH18) -> 6 | EJ18: 2 | EK18: - | EL18: 1 | EM18: =ResultsCalc(Players!$E18,Players!$G18,Players!EJ18,Players!EL18) -> 13 | EN18: 0 | EO18: - | EP18: 0 | EQ18: =ResultsCalc(Players!$E18,Players!$G18,Players!EN18,Players!EP18) -> 0 | ER18: 2 | ES18: - | ET18: 0 | EU18: =ResultsCalc(Players!$E18,Players!$G18,Players!ER18,Players!ET18) -> 6 | EV18: 0 | EW18: - | EX18: 0 | EY18: =ResultsCalc(Players!$E18,Players!$G18,Players!EV18,Players!EX18) -> 0 | EZ18: 2 | FA18: - | FB18: 0 | FC18: =ResultsCalc(Players!$E18,Players!$G18,Players!EZ18,Players!FB18) -> 6 | FD18: 1 | FE18: - | FF18: 1 | FG18: =ResultsCalc(Players!$E18,Players!$G18,Players!FD18,Players!FF18) -> 2 | FH18: 1 | FI18: - | FJ18: 1 | FK18: =ResultsCalc(Players!$E18,Players!$G18,Players!FH18,Players!FJ18) -> 2 | FL18: 2 | FM18: - | FN18: 0 | FO18: =ResultsCalc(Players!$E18,Players!$G18,Players!FL18,Players!FN18) -> 6 | FP18: 2 | FQ18: - | FR18: 2 | FS18: =ResultsCalc(Players!$E18,Players!$G18,Players!FP18,Players!FR18) -> 2 | FT18: 0 | FU18: - | FV18: 0 | FW18: =ResultsCalc(Players!$E18,Players!$G18,Players!FT18,Players!FV18) -> 0 | FX18: 0 | FY18: - | FZ18: 0 | GA18: =ResultsCalc(Players!$E18,Players!$G18,Players!FX18,Players!FZ18) -> 0 | GB18: 3 | GC18: - | GD18: 2 | GE18: =ResultsCalc(Players!$E18,Players!$G18,Players!GB18,Players!GD18) -> 6 | GF18: 2 | GG18: - | GH18: 0 | GI18: =ResultsCalc(Players!$E18,Players!$G18,Players!GF18,Players!GH18) -> 6 | GJ18: 1 | GK18: - | GL18: 0 | GM18: =ResultsCalc(Players!$E18,Players!$G18,Players!GJ18,Players!GL18) -> 6 | GN18: 2 | GO18: - | GP18: 0 | GQ18: =ResultsCalc(Players!$E18,Players!$G18,Players!GN18,Players!GP18) -> 6 | GR18: 2 | GS18: - | GT18: 0 | GU18: =ResultsCalc(Players!$E18,Players!$G18,Players!GR18,Players!GT18) -> 6 | GV18: 2 | GW18: - | GX18: 0 | GY18: =ResultsCalc(Players!$E18,Players!$G18,Players!GV18,Players!GX18) -> 6 | GZ18: 0 | HA18: - | HB18: 0 | HC18: =ResultsCalc(Players!$E18,Players!$G18,Players!GZ18,Players!HB18) -> 0 | HD18: 2 | HE18: - | HF18: 0 | HG18: =ResultsCalc(Players!$E18,Players!$G18,Players!HD18,Players!HF18) -> 6 | HH18: 0 | HI18: - | HJ18: 2 | HK18: =ResultsCalc(Players!$E18,Players!$G18,Players!HH18,Players!HJ18) -> 0 | HL18: 2 | HM18: - | HN18: 0 | HO18: =ResultsCalc(Players!$E18,Players!$G18,Players!HL18,Players!HN18) -> 6 | HP18: 2 | HQ18: - | HR18: 2 | HS18: =ResultsCalc(Players!$E18,Players!$G18,Players!HP18,Players!HR18) -> 2 | HT18: 3 | HU18: - | HV18: 0 | HW18: =ResultsCalc(Players!$E18,Players!$G18,Players!HT18,Players!HV18) -> 4 | HX18: 2 | HY18: - | HZ18: 1 | IA18: =ResultsCalc(Players!$E18,Players!$G18,Players!HX18,Players!HZ18) -> 13 | IB18: 3 | IC18: - | ID18: 1 | IE18: =ResultsCalc(Players!$E18,Players!$G18,Players!IB18,Players!ID18) -> 6 | IF18: 1 | IG18: - | IH18: 0 | II18: =ResultsCalc(Players!$E18,Players!$G18,Players!IF18,Players!IH18) -> 6 | IJ18: 3 | IK18: - | IL18: 0 | IM18: =ResultsCalc(Players!$E18,Players!$G18,Players!IJ18,Players!IL18) -> 4 | IN18: 2 | IO18: - | IP18: 2 | IQ18: =ResultsCalc(Players!$E18,Players!$G18,Players!IN18,Players!IP18) -> 2 | IR18: 1 | IS18: - | IT18: 0 | IU18: =ResultsCalc(Players!$E18,Players!$G18,Players!IR18,Players!IT18) -> 6 | IV18: 1 | IW18: - | IX18: 0 | IY18: =ResultsCalc(Players!$E18,Players!$G18,Players!IV18,Players!IX18) -> 6 | IZ18: 1 | JA18: - | JB18: 1 | JC18: =ResultsCalc(Players!$E18,Players!$G18,Players!IZ18,Players!JB18) -> 2 | JD18: 2 | JE18: - | JF18: 2 | JG18: =ResultsCalc(Players!$E18,Players!$G18,Players!JD18,Players!JF18) -> 2 | JH18: 0 | JI18: - | JJ18: 1 | JK18: =ResultsCalc(Players!$E18,Players!$G18,Players!JH18,Players!JJ18) -> 2 | JL18: 2 | JM18: - | JN18: 1 | JO18: =ResultsCalc(Players!$E18,Players!$G18,Players!JL18,Players!JN18) -> 13 | JP18: 1 | JQ18: - | JR18: 0 | JS18: =ResultsCalc(Players!$E18,Players!$G18,Players!JP18,Players!JR18) -> 6 | JT18: 0 | JU18: - | JV18: 0 | JW18: =ResultsCalc(Players!$E18,Players!$G18,Players!JT18,Players!JV18) -> 0 | JX18: 1 | JY18: - | JZ18: 0 | KA18: =ResultsCalc(Players!$E18,Players!$G18,Players!JX18,Players!JZ18) -> 6 | KB18: 1 | KC18: - | KD18: 0 | KE18: =ResultsCalc(Players!$E18,Players!$G18,Players!KB18,Players!KD18) -> 6 | KF18: 1 | KG18: - | KH18: 0 | KI18: =ResultsCalc(Players!$E18,Players!$G18,Players!KF18,Players!KH18) -> 6 | KJ18: 2 | KK18: - | KL18: 0 | KM18: =ResultsCalc(Players!$E18,Players!$G18,Players!KJ18,Players!KL18) -> 6 | KN18: 1 | KO18: - | KP18: 1 | KQ18: =ResultsCalc(Players!$E18,Players!$G18,Players!KN18,Players!KP18) -> 2 | KR18: 1 | KS18: - | KT18: 0 | KU18: =ResultsCalc(Players!$E18,Players!$G18,Players!KR18,Players!KT18) -> 6 | KV18: 3 | KW18: - | KX18: 0 | KY18: =ResultsCalc(Players!$E18,Players!$G18,Players!KV18,Players!KX18) -> 4 | KZ18: 1 | LA18: - | LB18: 0 | LC18: =ResultsCalc(Players!$E18,Players!$G18,Players!KZ18,Players!LB18) -> 6 | LD18: 1 | LE18: - | LF18: 1 | LG18: =ResultsCalc(Players!$E18,Players!$G18,Players!LD18,Players!LF18) -> 2 | LH18: 2 | LI18: - | LJ18: 1 | LK18: =ResultsCalc(Players!$E18,Players!$G18,Players!LH18,Players!LJ18) -> 13 | LL18: 3 | LM18: - | LN18: 0 | LO18: =ResultsCalc(Players!$E18,Players!$G18,Players!LL18,Players!LN18) -> 4 | LP18: 2 | LQ18: - | LR18: 0 | LS18: =ResultsCalc(Players!$E18,Players!$G18,Players!LP18,Players!LR18) -> 6 | LT18: 1 | LU18: - | LV18: 0 | LW18: =ResultsCalc(Players!$E18,Players!$G18,Players!LT18,Players!LV18) -> 6 | LX18: 2 | LY18: - | LZ18: 1 | MA18: =ResultsCalc(Players!$E18,Players!$G18,Players!LX18,Players!LZ18) -> 13 | MB18: 0 | MC18: - | MD18: 1 | ME18: =ResultsCalc(Players!$E18,Players!$G18,Players!MB18,Players!MD18) -> 2 | MF18: 1 | MG18: - | MH18: 0 | MI18: =ResultsCalc(Players!$E18,Players!$G18,Players!MF18,Players!MH18) -> 6 | MJ18: 2 | MK18: - | ML18: 0 | MM18: =ResultsCalc(Players!$E18,Players!$G18,Players!MJ18,Players!ML18) -> 6 | MN18: 1 | MO18: - | MP18: 0 | MQ18: =ResultsCalc(Players!$E18,Players!$G18,Players!MN18,Players!MP18) -> 6 | MR18: 3 | MS18: - | MT18: 1 | MU18: =ResultsCalc(Players!$E18,Players!$G18,Players!MR18,Players!MT18) -> 6 | MV18: 0 | MW18: - | MX18: 0 | MY18: =ResultsCalc(Players!$E18,Players!$G18,Players!MV18,Players!MX18) -> 0 | MZ18: 4 | NA18: - | NB18: 0 | NC18: =ResultsCalc(Players!$E18,Players!$G18,Players!MZ18,Players!NB18) -> 4 | ND18: 0 | NE18: - | NF18: 1 | NG18: =ResultsCalc(Players!$E18,Players!$G18,Players!ND18,Players!NF18) -> 2 | NH18: 2 | NI18: - | NJ18: 0 | NK18: =ResultsCalc(Players!$E18,Players!$G18,Players!NH18,Players!NJ18) -> 6 | NL18: 2 | NM18: - | NN18: 0 | NO18: =ResultsCalc(Players!$E18,Players!$G18,Players!NL18,Players!NN18) -> 6 | NP18: 2 | NQ18: - | NR18: 0 | NS18: =ResultsCalc(Players!$E18,Players!$G18,Players!NP18,Players!NR18) -> 6 | NT18: 1 | NU18: - | NV18: 0 | NW18: =ResultsCalc(Players!$E18,Players!$G18,Players!NT18,Players!NV18) -> 6 | NX18: 1 | NY18: - | NZ18: 1 | OA18: =ResultsCalc(Players!$E18,Players!$G18,Players!NX18,Players!NZ18) -> 2 | OB18: 0 | OC18: - | OD18: 1 | OE18: =ResultsCalc(Players!$E18,Players!$G18,Players!OB18,Players!OD18) -> 2 | OF18: 0 | OG18: - | OH18: 1 | OI18: =ResultsCalc(Players!$E18,Players!$G18,Players!OF18,Players!OH18) -> 2 | OJ18: 0 | OK18: - | OL18: 0 | OM18: =ResultsCalc(Players!$E18,Players!$G18,Players!OJ18,Players!OL18) -> 0 | ON18: 2 | OO18: - | OP18: 0 | OQ18: =ResultsCalc(Players!$E18,Players!$G18,Players!ON18,Players!OP18) -> 6 | OR18: 2 | OS18: - | OT18: 0 | OU18: =ResultsCalc(Players!$E18,Players!$G18,Players!OR18,Players!OT18) -> 6 | OV18: 2 | OW18: - | OX18: 2 | OY18: =ResultsCalc(Players!$E18,Players!$G18,Players!OV18,Players!OX18) -> 2 | OZ18: 0 | PA18: - | PB18: 0 | PC18: =ResultsCalc(Players!$E18,Players!$G18,Players!OZ18,Players!PB18) -> 0 | PD18: 2 | PE18: - | PF18: 1 | PG18: =ResultsCalc(Players!$E18,Players!$G18,Players!PD18,Players!PF18) -> 13 | PH18: 2 | PI18: - | PJ18: 2 | PK18: =ResultsCalc(Players!$E18,Players!$G18,Players!PH18,Players!PJ18) -> 2 | PL18: 0 | PM18: - | PN18: 0 | PO18: =ResultsCalc(Players!$E18,Players!$G18,Players!PL18,Players!PN18) -> 0 | PP18: 3 | PQ18: - | PR18: 1 | PS18: =ResultsCalc(Players!$E18,Players!$G18,Players!PP18,Players!PR18) -> 6 | PT18: 1 | PU18: - | PV18: 0 | PW18: =ResultsCalc(Players!$E18,Players!$G18,Players!PT18,Players!PV18) -> 6 | PX18: 0 | PY18: - | PZ18: 1 | QA18: =ResultsCalc(Players!$E18,Players!$G18,Players!PX18,Players!PZ18) -> 2 | QB18: 2 | QC18: - | QD18: 0 | QE18: =ResultsCalc(Players!$E18,Players!$G18,Players!QB18,Players!QD18) -> 6 | QF18: 2 | QG18: - | QH18: 0 | QI18: =ResultsCalc(Players!$E18,Players!$G18,Players!QF18,Players!QH18) -> 6 | QJ18: 1 | QK18: - | QL18: 0 | QM18: =ResultsCalc(Players!$E18,Players!$G18,Players!QJ18,Players!QL18) -> 6 | QO18: 8 | QQ18: 13 | QR18: 8
A19: 2021-06-17 | B19: 17 | C19: Denmark | D19: Belgium | E19: 1 | F19: - | G19: 2 | H19: 2 | I19: - | J19: 2 | K19: =ResultsCalc(Players!$E19,Players!$G19,Players!H19,Players!J19) -> 2 | L19: 1 | M19: - | N19: 3 | O19: =ResultsCalc(Players!$E19,Players!$G19,Players!L19,Players!N19) -> 6 | P19: 1 | Q19: - | R19: 2 | S19: =ResultsCalc(Players!$E19,Players!$G19,Players!P19,Players!R19) -> 13 | T19: 2 | U19: - | V19: 2 | W19: =ResultsCalc(Players!$E19,Players!$G19,Players!T19,Players!V19) -> 2 | X19: 0 | Y19: - | Z19: 2 | AA19: =ResultsCalc(Players!$E19,Players!$G19,Players!X19,Players!Z19) -> 6 | AB19: 0 | AC19: - | AD19: 2 | AE19: =ResultsCalc(Players!$E19,Players!$G19,Players!AB19,Players!AD19) -> 6 | AF19: 2 | AG19: - | AH19: 3 | AI19: =ResultsCalc(Players!$E19,Players!$G19,Players!AF19,Players!AH19) -> 6 | AJ19: 1 | AK19: - | AL19: 3 | AM19: =ResultsCalc(Players!$E19,Players!$G19,Players!AJ19,Players!AL19) -> 6 | AN19: 1 | AO19: - | AP19: 1 | AQ19: =ResultsCalc(Players!$E19,Players!$G19,Players!AN19,Players!AP19) -> 2 | AR19: 1 | AS19: - | AT19: 1 | AU19: =ResultsCalc(Players!$E19,Players!$G19,Players!AR19,Players!AT19) -> 2 | AV19: 0 | AW19: - | AX19: 0 | AY19: =ResultsCalc(Players!$E19,Players!$G19,Players!AV19,Players!AX19) -> 0 | AZ19: 1 | BA19: - | BB19: 2 | BC19: =ResultsCalc(Players!$E19,Players!$G19,Players!AZ19,Players!BB19) -> 13 | BD19: 1 | BE19: - | BF19: 2 | BG19: =ResultsCalc(Players!$E19,Players!$G19,Players!BD19,Players!BF19) -> 13 | BH19: 3 | BI19: - | BJ19: 2 | BK19: =ResultsCalc(Players!$E19,Players!$G19,Players!BH19,Players!BJ19) -> 2 | BL19: 0 | BM19: - | BN19: 2 | BO19: =ResultsCalc(Players!$E19,Players!$G19,Players!BL19,Players!BN19) -> 6 | BP19: 1 | BQ19: - | BR19: 2 | BS19: =ResultsCalc(Players!$E19,Players!$G19,Players!BP19,Players!BR19) -> 13 | BT19: 1 | BU19: - | BV19: 3 | BW19: =ResultsCalc(Players!$E19,Players!$G19,Players!BT19,Players!BV19) -> 6 | BX19: 1 | BY19: - | BZ19: 3 | CA19: =ResultsCalc(Players!$E19,Players!$G19,Players!BX19,Players!BZ19) -> 6 | CB19: 1 | CC19: - | CD19: 2 | CE19: =ResultsCalc(Players!$E19,Players!$G19,Players!CB19,Players!CD19) -> 13 | CF19: 1 | CG19: - | CH19: 3 | CI19: =ResultsCalc(Players!$E19,Players!$G19,Players!CF19,Players!CH19) -> 6 | CJ19: 0 | CK19: - | CL19: 2 | CM19: =ResultsCalc(Players!$E19,Players!$G19,Players!CJ19,Players!CL19) -> 6 | CN19: 1 | CO19: - | CP19: 3 | CQ19: =ResultsCalc(Players!$E19,Players!$G19,Players!CN19,Players!CP19) -> 6 | CR19: 1 | CS19: - | CT19: 1 | CU19: =ResultsCalc(Players!$E19,Players!$G19,Players!CR19,Players!CT19) -> 2 | CV19: 0 | CW19: - | CX19: 1 | CY19: =ResultsCalc(Players!$E19,Players!$G19,Players!CV19,Players!CX19) -> 6 | CZ19: 0 | DA19: - | DB19: 2 | DC19: =ResultsCalc(Players!$E19,Players!$G19,Players!CZ19,Players!DB19) -> 6 | DD19: 1 | DE19: - | DF19: 2 | DG19: =ResultsCalc(Players!$E19,Players!$G19,Players!DD19,Players!DF19) -> 13 | DH19: 1 | DI19: - | DJ19: 3 | DK19: =ResultsCalc(Players!$E19,Players!$G19,Players!DH19,Players!DJ19) -> 6 | DL19: 1 | DM19: - | DN19: 2 | DO19: =ResultsCalc(Players!$E19,Players!$G19,Players!DL19,Players!DN19) -> 13 | DP19: 0 | DQ19: - | DR19: 2 | DS19: =ResultsCalc(Players!$E19,Players!$G19,Players!DP19,Players!DR19) -> 6 | DT19: 1 | DU19: - | DV19: 2 | DW19: =ResultsCalc(Players!$E19,Players!$G19,Players!DT19,Players!DV19) -> 13 | DX19: 0 | DY19: - | DZ19: 3 | EA19: =ResultsCalc(Players!$E19,Players!$G19,Players!DX19,Players!DZ19) -> 4 | EB19: 0 | EC19: - | ED19: 2 | EE19: =ResultsCalc(Players!$E19,Players!$G19,Players!EB19,Players!ED19) -> 6 | EF19: 1 | EG19: - | EH19: 2 | EI19: =ResultsCalc(Players!$E19,Players!$G19,Players!EF19,Players!EH19) -> 13 | EJ19: 1 | EK19: - | EL19: 2 | EM19: =ResultsCalc(Players!$E19,Players!$G19,Players!EJ19,Players!EL19) -> 13 | EN19: 0 | EO19: - | EP19: 3 | EQ19: =ResultsCalc(Players!$E19,Players!$G19,Players!EN19,Players!EP19) -> 4 | ER19: 1 | ES19: - | ET19: 3 | EU19: =ResultsCalc(Players!$E19,Players!$G19,Players!ER19,Players!ET19) -> 6 | EV19: 3 | EW19: - | EX19: 2 | EY19: =ResultsCalc(Players!$E19,Players!$G19,Players!EV19,Players!EX19) -> 2 | EZ19: 0 | FA19: - | FB19: 2 | FC19: =ResultsCalc(Players!$E19,Players!$G19,Players!EZ19,Players!FB19) -> 6 | FD19: 1 | FE19: - | FF19: 2 | FG19: =ResultsCalc(Players!$E19,Players!$G19,Players!FD19,Players!FF19) -> 13 | FH19: 1 | FI19: - | FJ19: 1 | FK19: =ResultsCalc(Players!$E19,Players!$G19,Players!FH19,Players!FJ19) -> 2 | FL19: 0 | FM19: - | FN19: 2 | FO19: =ResultsCalc(Players!$E19,Players!$G19,Players!FL19,Players!FN19) -> 6 | FP19: 3 | FQ19: - | FR19: 2 | FS19: =ResultsCalc(Players!$E19,Players!$G19,Players!FP19,Players!FR19) -> 2 | FT19: 0 | FU19: - | FV19: 2 | FW19: =ResultsCalc(Players!$E19,Players!$G19,Players!FT19,Players!FV19) -> 6 | FX19: 1 | FY19: - | FZ19: 3 | GA19: =ResultsCalc(Players!$E19,Players!$G19,Players!FX19,Players!FZ19) -> 6 | GB19: 1 | GC19: - | GD19: 4 | GE19: =ResultsCalc(Players!$E19,Players!$G19,Players!GB19,Players!GD19) -> 6 | GF19: 0 | GG19: - | GH19: 1 | GI19: =ResultsCalc(Players!$E19,Players!$G19,Players!GF19,Players!GH19) -> 6 | GJ19: 0 | GK19: - | GL19: 3 | GM19: =ResultsCalc(Players!$E19,Players!$G19,Players!GJ19,Players!GL19) -> 4 | GN19: 1 | GO19: - | GP19: 2 | GQ19: =ResultsCalc(Players!$E19,Players!$G19,Players!GN19,Players!GP19) -> 13 | GR19: 0 | GS19: - | GT19: 2 | GU19: =ResultsCalc(Players!$E19,Players!$G19,Players!GR19,Players!GT19) -> 6 | GV19: 1 | GW19: - | GX19: 2 | GY19: =ResultsCalc(Players!$E19,Players!$G19,Players!GV19,Players!GX19) -> 13 | GZ19: 0 | HA19: - | HB19: 3 | HC19: =ResultsCalc(Players!$E19,Players!$G19,Players!GZ19,Players!HB19) -> 4 | HD19: 0 | HE19: - | HF19: 2 | HG19: =ResultsCalc(Players!$E19,Players!$G19,Players!HD19,Players!HF19) -> 6 | HH19: 2 | HI19: - | HJ19: 3 | HK19: =ResultsCalc(Players!$E19,Players!$G19,Players!HH19,Players!HJ19) -> 6 | HL19: 1 | HM19: - | HN19: 2 | HO19: =ResultsCalc(Players!$E19,Players!$G19,Players!HL19,Players!HN19) -> 13 | HP19: 2 | HQ19: - | HR19: 1 | HS19: =ResultsCalc(Players!$E19,Players!$G19,Players!HP19,Players!HR19) -> 0 | HT19: 0 | HU19: - | HV19: 2 | HW19: =ResultsCalc(Players!$E19,Players!$G19,Players!HT19,Players!HV19) -> 6 | HX19: 1 | HY19: - | HZ19: 2 | IA19: =ResultsCalc(Players!$E19,Players!$G19,Players!HX19,Players!HZ19) -> 13 | IB19: 0 | IC19: - | ID19: 4 | IE19: =ResultsCalc(Players!$E19,Players!$G19,Players!IB19,Players!ID19) -> 4 | IF19: 0 | IG19: - | IH19: 2 | II19: =ResultsCalc(Players!$E19,Players!$G19,Players!IF19,Players!IH19) -> 6 | IJ19: 0 | IK19: - | IL19: 1 | IM19: =ResultsCalc(Players!$E19,Players!$G19,Players!IJ19,Players!IL19) -> 6 | IN19: 2 | IO19: - | IP19: 2 | IQ19: =ResultsCalc(Players!$E19,Players!$G19,Players!IN19,Players!IP19) -> 2 | IR19: 0 | IS19: - | IT19: 2 | IU19: =ResultsCalc(Players!$E19,Players!$G19,Players!IR19,Players!IT19) -> 6 | IV19: 0 | IW19: - | IX19: 1 | IY19: =ResultsCalc(Players!$E19,Players!$G19,Players!IV19,Players!IX19) -> 6 | IZ19: 1 | JA19: - | JB19: 1 | JC19: =ResultsCalc(Players!$E19,Players!$G19,Players!IZ19,Players!JB19) -> 2 | JD19: 3 | JE19: - | JF19: 2 | JG19: =ResultsCalc(Players!$E19,Players!$G19,Players!JD19,Players!JF19) -> 2 | JH19: 1 | JI19: - | JJ19: 2 | JK19: =ResultsCalc(Players!$E19,Players!$G19,Players!JH19,Players!JJ19) -> 13 | JL19: 1 | JM19: - | JN19: 3 | JO19: =ResultsCalc(Players!$E19,Players!$G19,Players!JL19,Players!JN19) -> 6 | JP19: 1 | JQ19: - | JR19: 2 | JS19: =ResultsCalc(Players!$E19,Players!$G19,Players!JP19,Players!JR19) -> 13 | JT19: 1 | JU19: - | JV19: 2 | JW19: =ResultsCalc(Players!$E19,Players!$G19,Players!JT19,Players!JV19) -> 13 | JX19: 1 | JY19: - | JZ19: 2 | KA19: =ResultsCalc(Players!$E19,Players!$G19,Players!JX19,Players!JZ19) -> 13 | KB19: 0 | KC19: - | KD19: 3 | KE19: =ResultsCalc(Players!$E19,Players!$G19,Players!KB19,Players!KD19) -> 4 | KF19: 1 | KG19: - | KH19: 2 | KI19: =ResultsCalc(Players!$E19,Players!$G19,Players!KF19,Players!KH19) -> 13 | KJ19: 1 | KK19: - | KL19: 2 | KM19: =ResultsCalc(Players!$E19,Players!$G19,Players!KJ19,Players!KL19) -> 13 | KN19: 1 | KO19: - | KP19: 3 | KQ19: =ResultsCalc(Players!$E19,Players!$G19,Players!KN19,Players!KP19) -> 6 | KR19: 1 | KS19: - | KT19: 2 | KU19: =ResultsCalc(Players!$E19,Players!$G19,Players!KR19,Players!KT19) -> 13 | KV19: 2 | KW19: - | KX19: 4 | KY19: =ResultsCalc(Players!$E19,Players!$G19,Players!KV19,Players!KX19) -> 4 | KZ19: 1 | LA19: - | LB19: 2 | LC19: =ResultsCalc(Players!$E19,Players!$G19,Players!KZ19,Players!LB19) -> 13 | LD19: 2 | LE19: - | LF19: 1 | LG19: =ResultsCalc(Players!$E19,Players!$G19,Players!LD19,Players!LF19) -> 0 | LH19: 1 | LI19: - | LJ19: 3 | LK19: =ResultsCalc(Players!$E19,Players!$G19,Players!LH19,Players!LJ19) -> 6 | LL19: 0 | LM19: - | LN19: 1 | LO19: =ResultsCalc(Players!$E19,Players!$G19,Players!LL19,Players!LN19) -> 6 | LP19: 0 | LQ19: - | LR19: 1 | LS19: =ResultsCalc(Players!$E19,Players!$G19,Players!LP19,Players!LR19) -> 6 | LT19: 0 | LU19: - | LV19: 2 | LW19: =ResultsCalc(Players!$E19,Players!$G19,Players!LT19,Players!LV19) -> 6 | LX19: 1 | LY19: - | LZ19: 3 | MA19: =ResultsCalc(Players!$E19,Players!$G19,Players!LX19,Players!LZ19) -> 6 | MB19: 2 | MC19: - | MD19: 0 | ME19: =ResultsCalc(Players!$E19,Players!$G19,Players!MB19,Players!MD19) -> 0 | MF19: 0 | MG19: - | MH19: 2 | MI19: =ResultsCalc(Players!$E19,Players!$G19,Players!MF19,Players!MH19) -> 6 | MJ19: 1 | MK19: - | ML19: 3 | MM19: =ResultsCalc(Players!$E19,Players!$G19,Players!MJ19,Players!ML19) -> 6 | MN19: 0 | MO19: - | MP19: 2 | MQ19: =ResultsCalc(Players!$E19,Players!$G19,Players!MN19,Players!MP19) -> 6 | MR19: 0 | MS19: - | MT19: 2 | MU19: =ResultsCalc(Players!$E19,Players!$G19,Players!MR19,Players!MT19) -> 6 | MV19: 1 | MW19: - | MX19: 3 | MY19: =ResultsCalc(Players!$E19,Players!$G19,Players!MV19,Players!MX19) -> 6 | MZ19: 1 | NA19: - | NB19: 2 | NC19: =ResultsCalc(Players!$E19,Players!$G19,Players!MZ19,Players!NB19) -> 13 | ND19: 0 | NE19: - | NF19: 2 | NG19: =ResultsCalc(Players!$E19,Players!$G19,Players!ND19,Players!NF19) -> 6 | NH19: 0 | NI19: - | NJ19: 2 | NK19: =ResultsCalc(Players!$E19,Players!$G19,Players!NH19,Players!NJ19) -> 6 | NL19: 1 | NM19: - | NN19: 2 | NO19: =ResultsCalc(Players!$E19,Players!$G19,Players!NL19,Players!NN19) -> 13 | NP19: 1 | NQ19: - | NR19: 2 | NS19: =ResultsCalc(Players!$E19,Players!$G19,Players!NP19,Players!NR19) -> 13 | NT19: 1 | NU19: - | NV19: 3 | NW19: =ResultsCalc(Players!$E19,Players!$G19,Players!NT19,Players!NV19) -> 6 | NX19: 1 | NY19: - | NZ19: 3 | OA19: =ResultsCalc(Players!$E19,Players!$G19,Players!NX19,Players!NZ19) -> 6 | OB19: 0 | OC19: - | OD19: 2 | OE19: =ResultsCalc(Players!$E19,Players!$G19,Players!OB19,Players!OD19) -> 6 | OF19: 1 | OG19: - | OH19: 2 | OI19: =ResultsCalc(Players!$E19,Players!$G19,Players!OF19,Players!OH19) -> 13 | OJ19: 0 | OK19: - | OL19: 2 | OM19: =ResultsCalc(Players!$E19,Players!$G19,Players!OJ19,Players!OL19) -> 6 | ON19: 0 | OO19: - | OP19: 2 | OQ19: =ResultsCalc(Players!$E19,Players!$G19,Players!ON19,Players!OP19) -> 6 | OR19: 0 | OS19: - | OT19: 1 | OU19: =ResultsCalc(Players!$E19,Players!$G19,Players!OR19,Players!OT19) -> 6 | OV19: 1 | OW19: - | OX19: 4 | OY19: =ResultsCalc(Players!$E19,Players!$G19,Players!OV19,Players!OX19) -> 6 | OZ19: 1 | PA19: - | PB19: 1 | PC19: =ResultsCalc(Players!$E19,Players!$G19,Players!OZ19,Players!PB19) -> 2 | PD19: 1 | PE19: - | PF19: 0 | PG19: =ResultsCalc(Players!$E19,Players!$G19,Players!PD19,Players!PF19) -> 2 | PH19: 2 | PI19: - | PJ19: 1 | PK19: =ResultsCalc(Players!$E19,Players!$G19,Players!PH19,Players!PJ19) -> 0 | PL19: 1 | PM19: - | PN19: 1 | PO19: =ResultsCalc(Players!$E19,Players!$G19,Players!PL19,Players!PN19) -> 2 | PP19: 2 | PQ19: - | PR19: 2 | PS19: =ResultsCalc(Players!$E19,Players!$G19,Players!PP19,Players!PR19) -> 2 | PT19: 2 | PU19: - | PV19: 2 | PW19: =ResultsCalc(Players!$E19,Players!$G19,Players!PT19,Players!PV19) -> 2 | PX19: 2 | PY19: - | PZ19: 0 | QA19: =ResultsCalc(Players!$E19,Players!$G19,Players!PX19,Players!PZ19) -> 0 | QB19: 2 | QC19: - | QD19: 2 | QE19: =ResultsCalc(Players!$E19,Players!$G19,Players!QB19,Players!QD19) -> 2 | QF19: 0 | QG19: - | QH19: 3 | QI19: =ResultsCalc(Players!$E19,Players!$G19,Players!QF19,Players!QH19) -> 4 | QJ19: 1 | QK19: - | QL19: 2 | QM19: =ResultsCalc(Players!$E19,Players!$G19,Players!QJ19,Players!QL19) -> 13 | QO19: 28 | QQ19: 13 | QR19: 28
A20: 2021-06-17 | B20: 18 | C20: Netherlands | D20: Austria | E20: 2 | F20: - | G20: 0 | H20: 2 | I20: - | J20: 0 | K20: =ResultsCalc(Players!$E20,Players!$G20,Players!H20,Players!J20) -> 12 | L20: 0 | M20: - | N20: 1 | O20: =ResultsCalc(Players!$E20,Players!$G20,Players!L20,Players!N20) -> 0 | P20: 1 | Q20: - | R20: 1 | S20: =ResultsCalc(Players!$E20,Players!$G20,Players!P20,Players!R20) -> 0 | T20: 1 | U20: - | V20: 0 | W20: =ResultsCalc(Players!$E20,Players!$G20,Players!T20,Players!V20) -> 6 | X20: 2 | Y20: - | Z20: 2 | AA20: =ResultsCalc(Players!$E20,Players!$G20,Players!X20,Players!Z20) -> 2 | AB20: 1 | AC20: - | AD20: 0 | AE20: =ResultsCalc(Players!$E20,Players!$G20,Players!AB20,Players!AD20) -> 6 | AF20: 3 | AG20: - | AH20: 2 | AI20: =ResultsCalc(Players!$E20,Players!$G20,Players!AF20,Players!AH20) -> 4 | AJ20: 3 | AK20: - | AL20: 0 | AM20: =ResultsCalc(Players!$E20,Players!$G20,Players!AJ20,Players!AL20) -> 6 | AN20: 3 | AO20: - | AP20: 0 | AQ20: =ResultsCalc(Players!$E20,Players!$G20,Players!AN20,Players!AP20) -> 6 | AR20: 2 | AS20: - | AT20: 0 | AU20: =ResultsCalc(Players!$E20,Players!$G20,Players!AR20,Players!AT20) -> 12 | AV20: 2 | AW20: - | AX20: 1 | AY20: =ResultsCalc(Players!$E20,Players!$G20,Players!AV20,Players!AX20) -> 6 | AZ20: 1 | BA20: - | BB20: 0 | BC20: =ResultsCalc(Players!$E20,Players!$G20,Players!AZ20,Players!BB20) -> 6 | BD20: 2 | BE20: - | BF20: 1 | BG20: =ResultsCalc(Players!$E20,Players!$G20,Players!BD20,Players!BF20) -> 6 | BH20: 1 | BI20: - | BJ20: 3 | BK20: =ResultsCalc(Players!$E20,Players!$G20,Players!BH20,Players!BJ20) -> 0 | BL20: 1 | BM20: - | BN20: 1 | BO20: =ResultsCalc(Players!$E20,Players!$G20,Players!BL20,Players!BN20) -> 0 | BP20: 2 | BQ20: - | BR20: 1 | BS20: =ResultsCalc(Players!$E20,Players!$G20,Players!BP20,Players!BR20) -> 6 | BT20: 3 | BU20: - | BV20: 0 | BW20: =ResultsCalc(Players!$E20,Players!$G20,Players!BT20,Players!BV20) -> 6 | BX20: 2 | BY20: - | BZ20: 0 | CA20: =ResultsCalc(Players!$E20,Players!$G20,Players!BX20,Players!BZ20) -> 12 | CB20: 1 | CC20: - | CD20: 0 | CE20: =ResultsCalc(Players!$E20,Players!$G20,Players!CB20,Players!CD20) -> 6 | CF20: 3 | CG20: - | CH20: 0 | CI20: =ResultsCalc(Players!$E20,Players!$G20,Players!CF20,Players!CH20) -> 6 | CJ20: 1 | CK20: - | CL20: 1 | CM20: =ResultsCalc(Players!$E20,Players!$G20,Players!CJ20,Players!CL20) -> 0 | CN20: 2 | CO20: - | CP20: 2 | CQ20: =ResultsCalc(Players!$E20,Players!$G20,Players!CN20,Players!CP20) -> 2 | CR20: 1 | CS20: - | CT20: 1 | CU20: =ResultsCalc(Players!$E20,Players!$G20,Players!CR20,Players!CT20) -> 0 | CV20: 2 | CW20: - | CX20: 0 | CY20: =ResultsCalc(Players!$E20,Players!$G20,Players!CV20,Players!CX20) -> 12 | CZ20: 2 | DA20: - | DB20: 0 | DC20: =ResultsCalc(Players!$E20,Players!$G20,Players!CZ20,Players!DB20) -> 12 | DD20: 3 | DE20: - | DF20: 0 | DG20: =ResultsCalc(Players!$E20,Players!$G20,Players!DD20,Players!DF20) -> 6 | DH20: 3 | DI20: - | DJ20: 0 | DK20: =ResultsCalc(Players!$E20,Players!$G20,Players!DH20,Players!DJ20) -> 6 | DL20: 2 | DM20: - | DN20: 0 | DO20: =ResultsCalc(Players!$E20,Players!$G20,Players!DL20,Players!DN20) -> 12 | DP20: 1 | DQ20: - | DR20: 0 | DS20: =ResultsCalc(Players!$E20,Players!$G20,Players!DP20,Players!DR20) -> 6 | DT20: 3 | DU20: - | DV20: 0 | DW20: =ResultsCalc(Players!$E20,Players!$G20,Players!DT20,Players!DV20) -> 6 | DX20: 3 | DY20: - | DZ20: 0 | EA20: =ResultsCalc(Players!$E20,Players!$G20,Players!DX20,Players!DZ20) -> 6 | EB20: 2 | EC20: - | ED20: 1 | EE20: =ResultsCalc(Players!$E20,Players!$G20,Players!EB20,Players!ED20) -> 6 | EF20: 1 | EG20: - | EH20: 2 | EI20: =ResultsCalc(Players!$E20,Players!$G20,Players!EF20,Players!EH20) -> 0 | EJ20: 0 | EK20: - | EL20: 1 | EM20: =ResultsCalc(Players!$E20,Players!$G20,Players!EJ20,Players!EL20) -> 0 | EN20: 2 | EO20: - | EP20: 0 | EQ20: =ResultsCalc(Players!$E20,Players!$G20,Players!EN20,Players!EP20) -> 12 | ER20: 2 | ES20: - | ET20: 0 | EU20: =ResultsCalc(Players!$E20,Players!$G20,Players!ER20,Players!ET20) -> 12 | EV20: 2 | EW20: - | EX20: 1 | EY20: =ResultsCalc(Players!$E20,Players!$G20,Players!EV20,Players!EX20) -> 6 | EZ20: 2 | FA20: - | FB20: 1 | FC20: =ResultsCalc(Players!$E20,Players!$G20,Players!EZ20,Players!FB20) -> 6 | FD20: 1 | FE20: - | FF20: 0 | FG20: =ResultsCalc(Players!$E20,Players!$G20,Players!FD20,Players!FF20) -> 6 | FH20: 2 | FI20: - | FJ20: 1 | FK20: =ResultsCalc(Players!$E20,Players!$G20,Players!FH20,Players!FJ20) -> 6 | FL20: 2 | FM20: - | FN20: 0 | FO20: =ResultsCalc(Players!$E20,Players!$G20,Players!FL20,Players!FN20) -> 12 | FP20: 1 | FQ20: - | FR20: 3 | FS20: =ResultsCalc(Players!$E20,Players!$G20,Players!FP20,Players!FR20) -> 0 | FT20: 1 | FU20: - | FV20: 1 | FW20: =ResultsCalc(Players!$E20,Players!$G20,Players!FT20,Players!FV20) -> 0 | FX20: 2 | FY20: - | FZ20: 0 | GA20: =ResultsCalc(Players!$E20,Players!$G20,Players!FX20,Players!FZ20) -> 12 | GB20: 4 | GC20: - | GD20: 2 | GE20: =ResultsCalc(Players!$E20,Players!$G20,Players!GB20,Players!GD20) -> 6 | GF20: 1 | GG20: - | GH20: 0 | GI20: =ResultsCalc(Players!$E20,Players!$G20,Players!GF20,Players!GH20) -> 6 | GJ20: 2 | GK20: - | GL20: 0 | GM20: =ResultsCalc(Players!$E20,Players!$G20,Players!GJ20,Players!GL20) -> 12 | GN20: 4 | GO20: - | GP20: 1 | GQ20: =ResultsCalc(Players!$E20,Players!$G20,Players!GN20,Players!GP20) -> 4 | GR20: 1 | GS20: - | GT20: 0 | GU20: =ResultsCalc(Players!$E20,Players!$G20,Players!GR20,Players!GT20) -> 6 | GV20: 1 | GW20: - | GX20: 1 | GY20: =ResultsCalc(Players!$E20,Players!$G20,Players!GV20,Players!GX20) -> 0 | GZ20: 2 | HA20: - | HB20: 0 | HC20: =ResultsCalc(Players!$E20,Players!$G20,Players!GZ20,Players!HB20) -> 12 | HD20: 1 | HE20: - | HF20: 2 | HG20: =ResultsCalc(Players!$E20,Players!$G20,Players!HD20,Players!HF20) -> 0 | HH20: 1 | HI20: - | HJ20: 1 | HK20: =ResultsCalc(Players!$E20,Players!$G20,Players!HH20,Players!HJ20) -> 0 | HL20: 1 | HM20: - | HN20: 1 | HO20: =ResultsCalc(Players!$E20,Players!$G20,Players!HL20,Players!HN20) -> 0 | HP20: 3 | HQ20: - | HR20: 2 | HS20: =ResultsCalc(Players!$E20,Players!$G20,Players!HP20,Players!HR20) -> 4 | HT20: 2 | HU20: - | HV20: 0 | HW20: =ResultsCalc(Players!$E20,Players!$G20,Players!HT20,Players!HV20) -> 12 | HX20: 2 | HY20: - | HZ20: 1 | IA20: =ResultsCalc(Players!$E20,Players!$G20,Players!HX20,Players!HZ20) -> 6 | IB20: 2 | IC20: - | ID20: 1 | IE20: =ResultsCalc(Players!$E20,Players!$G20,Players!IB20,Players!ID20) -> 6 | IF20: 2 | IG20: - | IH20: 0 | II20: =ResultsCalc(Players!$E20,Players!$G20,Players!IF20,Players!IH20) -> 12 | IJ20: 2 | IK20: - | IL20: 0 | IM20: =ResultsCalc(Players!$E20,Players!$G20,Players!IJ20,Players!IL20) -> 12 | IN20: 3 | IO20: - | IP20: 1 | IQ20: =ResultsCalc(Players!$E20,Players!$G20,Players!IN20,Players!IP20) -> 6 | IR20: 0 | IS20: - | IT20: 0 | IU20: =ResultsCalc(Players!$E20,Players!$G20,Players!IR20,Players!IT20) -> 2 | IV20: 3 | IW20: - | IX20: 0 | IY20: =ResultsCalc(Players!$E20,Players!$G20,Players!IV20,Players!IX20) -> 6 | IZ20: 2 | JA20: - | JB20: 1 | JC20: =ResultsCalc(Players!$E20,Players!$G20,Players!IZ20,Players!JB20) -> 6 | JD20: 1 | JE20: - | JF20: 0 | JG20: =ResultsCalc(Players!$E20,Players!$G20,Players!JD20,Players!JF20) -> 6 | JH20: 2 | JI20: - | JJ20: 1 | JK20: =ResultsCalc(Players!$E20,Players!$G20,Players!JH20,Players!JJ20) -> 6 | JL20: 1 | JM20: - | JN20: 0 | JO20: =ResultsCalc(Players!$E20,Players!$G20,Players!JL20,Players!JN20) -> 6 | JP20: 2 | JQ20: - | JR20: 2 | JS20: =ResultsCalc(Players!$E20,Players!$G20,Players!JP20,Players!JR20) -> 2 | JT20: 3 | JU20: - | JV20: 2 | JW20: =ResultsCalc(Players!$E20,Players!$G20,Players!JT20,Players!JV20) -> 4 | JX20: 2 | JY20: - | JZ20: 0 | KA20: =ResultsCalc(Players!$E20,Players!$G20,Players!JX20,Players!JZ20) -> 12 | KB20: 2 | KC20: - | KD20: 0 | KE20: =ResultsCalc(Players!$E20,Players!$G20,Players!KB20,Players!KD20) -> 12 | KF20: 1 | KG20: - | KH20: 0 | KI20: =ResultsCalc(Players!$E20,Players!$G20,Players!KF20,Players!KH20) -> 6 | KJ20: 3 | KK20: - | KL20: 1 | KM20: =ResultsCalc(Players!$E20,Players!$G20,Players!KJ20,Players!KL20) -> 6 | KN20: 2 | KO20: - | KP20: 1 | KQ20: =ResultsCalc(Players!$E20,Players!$G20,Players!KN20,Players!KP20) -> 6 | KR20: 2 | KS20: - | KT20: 0 | KU20: =ResultsCalc(Players!$E20,Players!$G20,Players!KR20,Players!KT20) -> 12 | KV20: 2 | KW20: - | KX20: 1 | KY20: =ResultsCalc(Players!$E20,Players!$G20,Players!KV20,Players!KX20) -> 6 | KZ20: 1 | LA20: - | LB20: 0 | LC20: =ResultsCalc(Players!$E20,Players!$G20,Players!KZ20,Players!LB20) -> 6 | LD20: 1 | LE20: - | LF20: 0 | LG20: =ResultsCalc(Players!$E20,Players!$G20,Players!LD20,Players!LF20) -> 6 | LH20: 1 | LI20: - | LJ20: 0 | LK20: =ResultsCalc(Players!$E20,Players!$G20,Players!LH20,Players!LJ20) -> 6 | LL20: 2 | LM20: - | LN20: 1 | LO20: =ResultsCalc(Players!$E20,Players!$G20,Players!LL20,Players!LN20) -> 6 | LP20: 2 | LQ20: - | LR20: 2 | LS20: =ResultsCalc(Players!$E20,Players!$G20,Players!LP20,Players!LR20) -> 2 | LT20: 2 | LU20: - | LV20: 1 | LW20: =ResultsCalc(Players!$E20,Players!$G20,Players!LT20,Players!LV20) -> 6 | LX20: 3 | LY20: - | LZ20: 3 | MA20: =ResultsCalc(Players!$E20,Players!$G20,Players!LX20,Players!LZ20) -> 0 | MB20: 0 | MC20: - | MD20: 0 | ME20: =ResultsCalc(Players!$E20,Players!$G20,Players!MB20,Players!MD20) -> 2 | MF20: 2 | MG20: - | MH20: 1 | MI20: =ResultsCalc(Players!$E20,Players!$G20,Players!MF20,Players!MH20) -> 6 | MJ20: 2 | MK20: - | ML20: 0 | MM20: =ResultsCalc(Players!$E20,Players!$G20,Players!MJ20,Players!ML20) -> 12 | MN20: 2 | MO20: - | MP20: 0 | MQ20: =ResultsCalc(Players!$E20,Players!$G20,Players!MN20,Players!MP20) -> 12 | MR20: 2 | MS20: - | MT20: 0 | MU20: =ResultsCalc(Players!$E20,Players!$G20,Players!MR20,Players!MT20) -> 12 | MV20: 3 | MW20: - | MX20: 2 | MY20: =ResultsCalc(Players!$E20,Players!$G20,Players!MV20,Players!MX20) -> 4 | MZ20: 1 | NA20: - | NB20: 1 | NC20: =ResultsCalc(Players!$E20,Players!$G20,Players!MZ20,Players!NB20) -> 0 | ND20: 3 | NE20: - | NF20: 1 | NG20: =ResultsCalc(Players!$E20,Players!$G20,Players!ND20,Players!NF20) -> 6 | NH20: 0 | NI20: - | NJ20: 0 | NK20: =ResultsCalc(Players!$E20,Players!$G20,Players!NH20,Players!NJ20) -> 2 | NL20: 1 | NM20: - | NN20: 0 | NO20: =ResultsCalc(Players!$E20,Players!$G20,Players!NL20,Players!NN20) -> 6 | NP20: 2 | NQ20: - | NR20: 2 | NS20: =ResultsCalc(Players!$E20,Players!$G20,Players!NP20,Players!NR20) -> 2 | NT20: 2 | NU20: - | NV20: 0 | NW20: =ResultsCalc(Players!$E20,Players!$G20,Players!NT20,Players!NV20) -> 12 | NX20: 1 | NY20: - | NZ20: 0 | OA20: =ResultsCalc(Players!$E20,Players!$G20,Players!NX20,Players!NZ20) -> 6 | OB20: 0 | OC20: - | OD20: 0 | OE20: =ResultsCalc(Players!$E20,Players!$G20,Players!OB20,Players!OD20) -> 2 | OF20: 2 | OG20: - | OH20: 0 | OI20: =ResultsCalc(Players!$E20,Players!$G20,Players!OF20,Players!OH20) -> 12 | OJ20: 2 | OK20: - | OL20: 0 | OM20: =ResultsCalc(Players!$E20,Players!$G20,Players!OJ20,Players!OL20) -> 12 | ON20: 1 | OO20: - | OP20: 0 | OQ20: =ResultsCalc(Players!$E20,Players!$G20,Players!ON20,Players!OP20) -> 6 | OR20: 2 | OS20: - | OT20: 0 | OU20: =ResultsCalc(Players!$E20,Players!$G20,Players!OR20,Players!OT20) -> 12 | OV20: 2 | OW20: - | OX20: 2 | OY20: =ResultsCalc(Players!$E20,Players!$G20,Players!OV20,Players!OX20) -> 2 | OZ20: 2 | PA20: - | PB20: 1 | PC20: =ResultsCalc(Players!$E20,Players!$G20,Players!OZ20,Players!PB20) -> 6 | PD20: 2 | PE20: - | PF20: 0 | PG20: =ResultsCalc(Players!$E20,Players!$G20,Players!PD20,Players!PF20) -> 12 | PH20: 3 | PI20: - | PJ20: 1 | PK20: =ResultsCalc(Players!$E20,Players!$G20,Players!PH20,Players!PJ20) -> 6 | PL20: 3 | PM20: - | PN20: 3 | PO20: =ResultsCalc(Players!$E20,Players!$G20,Players!PL20,Players!PN20) -> 0 | PP20: 1 | PQ20: - | PR20: 2 | PS20: =ResultsCalc(Players!$E20,Players!$G20,Players!PP20,Players!PR20) -> 0 | PT20: 1 | PU20: - | PV20: 2 | PW20: =ResultsCalc(Players!$E20,Players!$G20,Players!PT20,Players!PV20) -> 0 | PX20: 1 | PY20: - | PZ20: 2 | QA20: =ResultsCalc(Players!$E20,Players!$G20,Players!PX20,Players!PZ20) -> 0 | QB20: 3 | QC20: - | QD20: 1 | QE20: =ResultsCalc(Players!$E20,Players!$G20,Players!QB20,Players!QD20) -> 6 | QF20: 2 | QG20: - | QH20: 0 | QI20: =ResultsCalc(Players!$E20,Players!$G20,Players!QF20,Players!QH20) -> 12 | QJ20: 1 | QK20: - | QL20: 0 | QM20: =ResultsCalc(Players!$E20,Players!$G20,Players!QJ20,Players!QL20) -> 6 | QO20: 27 | QQ20: 12 | QR20: 27
A21: 2021-06-18 | B21: 19 | C21: Sweden | D21: Slovakia | E21: 1 | F21: - | G21: 0 | H21: 1 | I21: - | J21: 0 | K21: =ResultsCalc(Players!$E21,Players!$G21,Players!H21,Players!J21) -> 11 | L21: 1 | M21: - | N21: 0 | O21: =ResultsCalc(Players!$E21,Players!$G21,Players!L21,Players!N21) -> 11 | P21: 1 | Q21: - | R21: 1 | S21: =ResultsCalc(Players!$E21,Players!$G21,Players!P21,Players!R21) -> 2 | T21: 0 | U21: - | V21: 1 | W21: =ResultsCalc(Players!$E21,Players!$G21,Players!T21,Players!V21) -> 0 | X21: 1 | Y21: - | Z21: 1 | AA21: =ResultsCalc(Players!$E21,Players!$G21,Players!X21,Players!Z21) -> 2 | AB21: 2 | AC21: - | AD21: 2 | AE21: =ResultsCalc(Players!$E21,Players!$G21,Players!AB21,Players!AD21) -> 0 | AF21: 3 | AG21: - | AH21: 2 | AI21: =ResultsCalc(Players!$E21,Players!$G21,Players!AF21,Players!AH21) -> 6 | AJ21: 2 | AK21: - | AL21: 1 | AM21: =ResultsCalc(Players!$E21,Players!$G21,Players!AJ21,Players!AL21) -> 6 | AN21: 1 | AO21: - | AP21: 2 | AQ21: =ResultsCalc(Players!$E21,Players!$G21,Players!AN21,Players!AP21) -> 2 | AR21: 1 | AS21: - | AT21: 0 | AU21: =ResultsCalc(Players!$E21,Players!$G21,Players!AR21,Players!AT21) -> 11 | AV21: 3 | AW21: - | AX21: 2 | AY21: =ResultsCalc(Players!$E21,Players!$G21,Players!AV21,Players!AX21) -> 6 | AZ21: 1 | BA21: - | BB21: 1 | BC21: =ResultsCalc(Players!$E21,Players!$G21,Players!AZ21,Players!BB21) -> 2 | BD21: 2 | BE21: - | BF21: 1 | BG21: =ResultsCalc(Players!$E21,Players!$G21,Players!BD21,Players!BF21) -> 6 | BH21: 2 | BI21: - | BJ21: 1 | BK21: =ResultsCalc(Players!$E21,Players!$G21,Players!BH21,Players!BJ21) -> 6 | BL21: 1 | BM21: - | BN21: 0 | BO21: =ResultsCalc(Players!$E21,Players!$G21,Players!BL21,Players!BN21) -> 11 | BP21: 2 | BQ21: - | BR21: 2 | BS21: =ResultsCalc(Players!$E21,Players!$G21,Players!BP21,Players!BR21) -> 0 | BT21: 2 | BU21: - | BV21: 2 | BW21: =ResultsCalc(Players!$E21,Players!$G21,Players!BT21,Players!BV21) -> 0 | BX21: 2 | BY21: - | BZ21: 1 | CA21: =ResultsCalc(Players!$E21,Players!$G21,Players!BX21,Players!BZ21) -> 6 | CB21: 1 | CC21: - | CD21: 0 | CE21: =ResultsCalc(Players!$E21,Players!$G21,Players!CB21,Players!CD21) -> 11 | CF21: 3 | CG21: - | CH21: 2 | CI21: =ResultsCalc(Players!$E21,Players!$G21,Players!CF21,Players!CH21) -> 6 | CJ21: 2 | CK21: - | CL21: 0 | CM21: =ResultsCalc(Players!$E21,Players!$G21,Players!CJ21,Players!CL21) -> 6 | CN21: 2 | CO21: - | CP21: 1 | CQ21: =ResultsCalc(Players!$E21,Players!$G21,Players!CN21,Players!CP21) -> 6 | CR21: 2 | CS21: - | CT21: 1 | CU21: =ResultsCalc(Players!$E21,Players!$G21,Players!CR21,Players!CT21) -> 6 | CV21: 2 | CW21: - | CX21: 0 | CY21: =ResultsCalc(Players!$E21,Players!$G21,Players!CV21,Players!CX21) -> 6 | CZ21: 1 | DA21: - | DB21: 0 | DC21: =ResultsCalc(Players!$E21,Players!$G21,Players!CZ21,Players!DB21) -> 11 | DD21: 2 | DE21: - | DF21: 0 | DG21: =ResultsCalc(Players!$E21,Players!$G21,Players!DD21,Players!DF21) -> 6 | DH21: 2 | DI21: - | DJ21: 2 | DK21: =ResultsCalc(Players!$E21,Players!$G21,Players!DH21,Players!DJ21) -> 0 | DL21: 2 | DM21: - | DN21: 0 | DO21: =ResultsCalc(Players!$E21,Players!$G21,Players!DL21,Players!DN21) -> 6 | DP21: 1 | DQ21: - | DR21: 1 | DS21: =ResultsCalc(Players!$E21,Players!$G21,Players!DP21,Players!DR21) -> 2 | DT21: 1 | DU21: - | DV21: 0 | DW21: =ResultsCalc(Players!$E21,Players!$G21,Players!DT21,Players!DV21) -> 11 | DX21: 2 | DY21: - | DZ21: 0 | EA21: =ResultsCalc(Players!$E21,Players!$G21,Players!DX21,Players!DZ21) -> 6 | EB21: 1 | EC21: - | ED21: 2 | EE21: =ResultsCalc(Players!$E21,Players!$G21,Players!EB21,Players!ED21) -> 2 | EF21: 0 | EG21: - | EH21: 1 | EI21: =ResultsCalc(Players!$E21,Players!$G21,Players!EF21,Players!EH21) -> 0 | EJ21: 1 | EK21: - | EL21: 0 | EM21: =ResultsCalc(Players!$E21,Players!$G21,Players!EJ21,Players!EL21) -> 11 | EN21: 0 | EO21: - | EP21: 0 | EQ21: =ResultsCalc(Players!$E21,Players!$G21,Players!EN21,Players!EP21) -> 2 | ER21: 1 | ES21: - | ET21: 0 | EU21: =ResultsCalc(Players!$E21,Players!$G21,Players!ER21,Players!ET21) -> 11 | EV21: 1 | EW21: - | EX21: 1 | EY21: =ResultsCalc(Players!$E21,Players!$G21,Players!EV21,Players!EX21) -> 2 | EZ21: 1 | FA21: - | FB21: 1 | FC21: =ResultsCalc(Players!$E21,Players!$G21,Players!EZ21,Players!FB21) -> 2 | FD21: 1 | FE21: - | FF21: 1 | FG21: =ResultsCalc(Players!$E21,Players!$G21,Players!FD21,Players!FF21) -> 2 | FH21: 1 | FI21: - | FJ21: 1 | FK21: =ResultsCalc(Players!$E21,Players!$G21,Players!FH21,Players!FJ21) -> 2 | FL21: 2 | FM21: - | FN21: 1 | FO21: =ResultsCalc(Players!$E21,Players!$G21,Players!FL21,Players!FN21) -> 6 | FP21: 2 | FQ21: - | FR21: 1 | FS21: =ResultsCalc(Players!$E21,Players!$G21,Players!FP21,Players!FR21) -> 6 | FT21: 3 | FU21: - | FV21: 1 | FW21: =ResultsCalc(Players!$E21,Players!$G21,Players!FT21,Players!FV21) -> 4 | FX21: 1 | FY21: - | FZ21: 0 | GA21: =ResultsCalc(Players!$E21,Players!$G21,Players!FX21,Players!FZ21) -> 11 | GB21: 0 | GC21: - | GD21: 0 | GE21: =ResultsCalc(Players!$E21,Players!$G21,Players!GB21,Players!GD21) -> 2 | GF21: 1 | GG21: - | GH21: 0 | GI21: =ResultsCalc(Players!$E21,Players!$G21,Players!GF21,Players!GH21) -> 11 | GJ21: 2 | GK21: - | GL21: 1 | GM21: =ResultsCalc(Players!$E21,Players!$G21,Players!GJ21,Players!GL21) -> 6 | GN21: 2 | GO21: - | GP21: 1 | GQ21: =ResultsCalc(Players!$E21,Players!$G21,Players!GN21,Players!GP21) -> 6 | GR21: 1 | GS21: - | GT21: 0 | GU21: =ResultsCalc(Players!$E21,Players!$G21,Players!GR21,Players!GT21) -> 11 | GV21: 2 | GW21: - | GX21: 1 | GY21: =ResultsCalc(Players!$E21,Players!$G21,Players!GV21,Players!GX21) -> 6 | GZ21: 0 | HA21: - | HB21: 0 | HC21: =ResultsCalc(Players!$E21,Players!$G21,Players!GZ21,Players!HB21) -> 2 | HD21: 1 | HE21: - | HF21: 0 | HG21: =ResultsCalc(Players!$E21,Players!$G21,Players!HD21,Players!HF21) -> 11 | HH21: 1 | HI21: - | HJ21: 0 | HK21: =ResultsCalc(Players!$E21,Players!$G21,Players!HH21,Players!HJ21) -> 11 | HL21: 2 | HM21: - | HN21: 0 | HO21: =ResultsCalc(Players!$E21,Players!$G21,Players!HL21,Players!HN21) -> 6 | HP21: 2 | HQ21: - | HR21: 1 | HS21: =ResultsCalc(Players!$E21,Players!$G21,Players!HP21,Players!HR21) -> 6 | HT21: 2 | HU21: - | HV21: 0 | HW21: =ResultsCalc(Players!$E21,Players!$G21,Players!HT21,Players!HV21) -> 6 | HX21: 1 | HY21: - | HZ21: 0 | IA21: =ResultsCalc(Players!$E21,Players!$G21,Players!HX21,Players!HZ21) -> 11 | IB21: 1 | IC21: - | ID21: 1 | IE21: =ResultsCalc(Players!$E21,Players!$G21,Players!IB21,Players!ID21) -> 2 | IF21: 1 | IG21: - | IH21: 1 | II21: =ResultsCalc(Players!$E21,Players!$G21,Players!IF21,Players!IH21) -> 2 | IJ21: 3 | IK21: - | IL21: 0 | IM21: =ResultsCalc(Players!$E21,Players!$G21,Players!IJ21,Players!IL21) -> 6 | IN21: 2 | IO21: - | IP21: 1 | IQ21: =ResultsCalc(Players!$E21,Players!$G21,Players!IN21,Players!IP21) -> 6 | IR21: 1 | IS21: - | IT21: 0 | IU21: =ResultsCalc(Players!$E21,Players!$G21,Players!IR21,Players!IT21) -> 11 | IV21: 1 | IW21: - | IX21: 1 | IY21: =ResultsCalc(Players!$E21,Players!$G21,Players!IV21,Players!IX21) -> 2 | IZ21: 2 | JA21: - | JB21: 0 | JC21: =ResultsCalc(Players!$E21,Players!$G21,Players!IZ21,Players!JB21) -> 6 | JD21: 2 | JE21: - | JF21: 1 | JG21: =ResultsCalc(Players!$E21,Players!$G21,Players!JD21,Players!JF21) -> 6 | JH21: 0 | JI21: - | JJ21: 0 | JK21: =ResultsCalc(Players!$E21,Players!$G21,Players!JH21,Players!JJ21) -> 2 | JL21: 1 | JM21: - | JN21: 0 | JO21: =ResultsCalc(Players!$E21,Players!$G21,Players!JL21,Players!JN21) -> 11 | JP21: 1 | JQ21: - | JR21: 1 | JS21: =ResultsCalc(Players!$E21,Players!$G21,Players!JP21,Players!JR21) -> 2 | JT21: 1 | JU21: - | JV21: 0 | JW21: =ResultsCalc(Players!$E21,Players!$G21,Players!JT21,Players!JV21) -> 11 | JX21: 1 | JY21: - | JZ21: 0 | KA21: =ResultsCalc(Players!$E21,Players!$G21,Players!JX21,Players!JZ21) -> 11 | KB21: 1 | KC21: - | KD21: 0 | KE21: =ResultsCalc(Players!$E21,Players!$G21,Players!KB21,Players!KD21) -> 11 | KF21: 2 | KG21: - | KH21: 0 | KI21: =ResultsCalc(Players!$E21,Players!$G21,Players!KF21,Players!KH21) -> 6 | KJ21: 1 | KK21: - | KL21: 0 | KM21: =ResultsCalc(Players!$E21,Players!$G21,Players!KJ21,Players!KL21) -> 11 | KN21: 2 | KO21: - | KP21: 0 | KQ21: =ResultsCalc(Players!$E21,Players!$G21,Players!KN21,Players!KP21) -> 6 | KR21: 2 | KS21: - | KT21: 0 | KU21: =ResultsCalc(Players!$E21,Players!$G21,Players!KR21,Players!KT21) -> 6 | KV21: 2 | KW21: - | KX21: 1 | KY21: =ResultsCalc(Players!$E21,Players!$G21,Players!KV21,Players!KX21) -> 6 | KZ21: 1 | LA21: - | LB21: 0 | LC21: =ResultsCalc(Players!$E21,Players!$G21,Players!KZ21,Players!LB21) -> 11 | LD21: 1 | LE21: - | LF21: 0 | LG21: =ResultsCalc(Players!$E21,Players!$G21,Players!LD21,Players!LF21) -> 11 | LH21: 1 | LI21: - | LJ21: 0 | LK21: =ResultsCalc(Players!$E21,Players!$G21,Players!LH21,Players!LJ21) -> 11 | LL21: 2 | LM21: - | LN21: 0 | LO21: =ResultsCalc(Players!$E21,Players!$G21,Players!LL21,Players!LN21) -> 6 | LP21: 0 | LQ21: - | LR21: 1 | LS21: =ResultsCalc(Players!$E21,Players!$G21,Players!LP21,Players!LR21) -> 0 | LT21: 2 | LU21: - | LV21: 1 | LW21: =ResultsCalc(Players!$E21,Players!$G21,Players!LT21,Players!LV21) -> 6 | LX21: 2 | LY21: - | LZ21: 1 | MA21: =ResultsCalc(Players!$E21,Players!$G21,Players!LX21,Players!LZ21) -> 6 | MB21: 1 | MC21: - | MD21: 0 | ME21: =ResultsCalc(Players!$E21,Players!$G21,Players!MB21,Players!MD21) -> 11 | MF21: 0 | MG21: - | MH21: 0 | MI21: =ResultsCalc(Players!$E21,Players!$G21,Players!MF21,Players!MH21) -> 2 | MJ21: 1 | MK21: - | ML21: 2 | MM21: =ResultsCalc(Players!$E21,Players!$G21,Players!MJ21,Players!ML21) -> 2 | MN21: 0 | MO21: - | MP21: 0 | MQ21: =ResultsCalc(Players!$E21,Players!$G21,Players!MN21,Players!MP21) -> 2 | MR21: 2 | MS21: - | MT21: 1 | MU21: =ResultsCalc(Players!$E21,Players!$G21,Players!MR21,Players!MT21) -> 6 | MV21: 2 | MW21: - | MX21: 1 | MY21: =ResultsCalc(Players!$E21,Players!$G21,Players!MV21,Players!MX21) -> 6 | MZ21: 2 | NA21: - | NB21: 0 | NC21: =ResultsCalc(Players!$E21,Players!$G21,Players!MZ21,Players!NB21) -> 6 | ND21: 2 | NE21: - | NF21: 0 | NG21: =ResultsCalc(Players!$E21,Players!$G21,Players!ND21,Players!NF21) -> 6 | NH21: 1 | NI21: - | NJ21: 2 | NK21: =ResultsCalc(Players!$E21,Players!$G21,Players!NH21,Players!NJ21) -> 2 | NL21: 2 | NM21: - | NN21: 2 | NO21: =ResultsCalc(Players!$E21,Players!$G21,Players!NL21,Players!NN21) -> 0 | NP21: 0 | NQ21: - | NR21: 0 | NS21: =ResultsCalc(Players!$E21,Players!$G21,Players!NP21,Players!NR21) -> 2 | NT21: 1 | NU21: - | NV21: 0 | NW21: =ResultsCalc(Players!$E21,Players!$G21,Players!NT21,Players!NV21) -> 11 | NX21: 1 | NY21: - | NZ21: 0 | OA21: =ResultsCalc(Players!$E21,Players!$G21,Players!NX21,Players!NZ21) -> 11 | OB21: 1 | OC21: - | OD21: 0 | OE21: =ResultsCalc(Players!$E21,Players!$G21,Players!OB21,Players!OD21) -> 11 | OF21: 1 | OG21: - | OH21: 0 | OI21: =ResultsCalc(Players!$E21,Players!$G21,Players!OF21,Players!OH21) -> 11 | OJ21: 2 | OK21: - | OL21: 1 | OM21: =ResultsCalc(Players!$E21,Players!$G21,Players!OJ21,Players!OL21) -> 6 | ON21: 1 | OO21: - | OP21: 2 | OQ21: =ResultsCalc(Players!$E21,Players!$G21,Players!ON21,Players!OP21) -> 2 | OR21: 1 | OS21: - | OT21: 0 | OU21: =ResultsCalc(Players!$E21,Players!$G21,Players!OR21,Players!OT21) -> 11 | OV21: 3 | OW21: - | OX21: 0 | OY21: =ResultsCalc(Players!$E21,Players!$G21,Players!OV21,Players!OX21) -> 6 | OZ21: 1 | PA21: - | PB21: 1 | PC21: =ResultsCalc(Players!$E21,Players!$G21,Players!OZ21,Players!PB21) -> 2 | PD21: 2 | PE21: - | PF21: 2 | PG21: =ResultsCalc(Players!$E21,Players!$G21,Players!PD21,Players!PF21) -> 0 | PH21: 2 | PI21: - | PJ21: 2 | PK21: =ResultsCalc(Players!$E21,Players!$G21,Players!PH21,Players!PJ21) -> 0 | PL21: 3 | PM21: - | PN21: 1 | PO21: =ResultsCalc(Players!$E21,Players!$G21,Players!PL21,Players!PN21) -> 4 | PP21: 2 | PQ21: - | PR21: 1 | PS21: =ResultsCalc(Players!$E21,Players!$G21,Players!PP21,Players!PR21) -> 6 | PT21: 1 | PU21: - | PV21: 1 | PW21: =ResultsCalc(Players!$E21,Players!$G21,Players!PT21,Players!PV21) -> 2 | PX21: 0 | PY21: - | PZ21: 0 | QA21: =ResultsCalc(Players!$E21,Players!$G21,Players!PX21,Players!PZ21) -> 2 | QB21: 2 | QC21: - | QD21: 0 | QE21: =ResultsCalc(Players!$E21,Players!$G21,Players!QB21,Players!QD21) -> 6 | QF21: 2 | QG21: - | QH21: 0 | QI21: =ResultsCalc(Players!$E21,Players!$G21,Players!QF21,Players!QH21) -> 6 | QJ21: 1 | QK21: - | QL21: 0 | QM21: =ResultsCalc(Players!$E21,Players!$G21,Players!QJ21,Players!QL21) -> 11 | QO21: 31 | QQ21: 11 | QR21: 31
A22: 2021-06-18 | B22: 20 | C22: Croatia | D22: Czech Republic | E22: 1 | F22: - | G22: 1 | H22: 2 | I22: - | J22: 0 | K22: =ResultsCalc(Players!$E22,Players!$G22,Players!H22,Players!J22) -> 0 | L22: 1 | M22: - | N22: 1 | O22: =ResultsCalc(Players!$E22,Players!$G22,Players!L22,Players!N22) -> 12 | P22: 2 | Q22: - | R22: 1 | S22: =ResultsCalc(Players!$E22,Players!$G22,Players!P22,Players!R22) -> 2 | T22: 3 | U22: - | V22: 1 | W22: =ResultsCalc(Players!$E22,Players!$G22,Players!T22,Players!V22) -> 2 | X22: 1 | Y22: - | Z22: 2 | AA22: =ResultsCalc(Players!$E22,Players!$G22,Players!X22,Players!Z22) -> 2 | AB22: 1 | AC22: - | AD22: 1 | AE22: =ResultsCalc(Players!$E22,Players!$G22,Players!AB22,Players!AD22) -> 12 | AF22: 1 | AG22: - | AH22: 1 | AI22: =ResultsCalc(Players!$E22,Players!$G22,Players!AF22,Players!AH22) -> 12 | AJ22: 2 | AK22: - | AL22: 0 | AM22: =ResultsCalc(Players!$E22,Players!$G22,Players!AJ22,Players!AL22) -> 0 | AN22: 1 | AO22: - | AP22: 2 | AQ22: =ResultsCalc(Players!$E22,Players!$G22,Players!AN22,Players!AP22) -> 2 | AR22: 1 | AS22: - | AT22: 0 | AU22: =ResultsCalc(Players!$E22,Players!$G22,Players!AR22,Players!AT22) -> 2 | AV22: 2 | AW22: - | AX22: 2 | AY22: =ResultsCalc(Players!$E22,Players!$G22,Players!AV22,Players!AX22) -> 6 | AZ22: 2 | BA22: - | BB22: 0 | BC22: =ResultsCalc(Players!$E22,Players!$G22,Players!AZ22,Players!BB22) -> 0 | BD22: 2 | BE22: - | BF22: 1 | BG22: =ResultsCalc(Players!$E22,Players!$G22,Players!BD22,Players!BF22) -> 2 | BH22: 2 | BI22: - | BJ22: 2 | BK22: =ResultsCalc(Players!$E22,Players!$G22,Players!BH22,Players!BJ22) -> 6 | BL22: 1 | BM22: - | BN22: 0 | BO22: =ResultsCalc(Players!$E22,Players!$G22,Players!BL22,Players!BN22) -> 2 | BP22: 2 | BQ22: - | BR22: 1 | BS22: =ResultsCalc(Players!$E22,Players!$G22,Players!BP22,Players!BR22) -> 2 | BT22: 3 | BU22: - | BV22: 2 | BW22: =ResultsCalc(Players!$E22,Players!$G22,Players!BT22,Players!BV22) -> 0 | BX22: 2 | BY22: - | BZ22: 2 | CA22: =ResultsCalc(Players!$E22,Players!$G22,Players!BX22,Players!BZ22) -> 6 | CB22: 2 | CC22: - | CD22: 1 | CE22: =ResultsCalc(Players!$E22,Players!$G22,Players!CB22,Players!CD22) -> 2 | CF22: 1 | CG22: - | CH22: 2 | CI22: =ResultsCalc(Players!$E22,Players!$G22,Players!CF22,Players!CH22) -> 2 | CJ22: 1 | CK22: - | CL22: 0 | CM22: =ResultsCalc(Players!$E22,Players!$G22,Players!CJ22,Players!CL22) -> 2 | CN22: 1 | CO22: - | CP22: 0 | CQ22: =ResultsCalc(Players!$E22,Players!$G22,Players!CN22,Players!CP22) -> 2 | CR22: 1 | CS22: - | CT22: 1 | CU22: =ResultsCalc(Players!$E22,Players!$G22,Players!CR22,Players!CT22) -> 12 | CV22: 2 | CW22: - | CX22: 0 | CY22: =ResultsCalc(Players!$E22,Players!$G22,Players!CV22,Players!CX22) -> 0 | CZ22: 1 | DA22: - | DB22: 1 | DC22: =ResultsCalc(Players!$E22,Players!$G22,Players!CZ22,Players!DB22) -> 12 | DD22: 1 | DE22: - | DF22: 1 | DG22: =ResultsCalc(Players!$E22,Players!$G22,Players!DD22,Players!DF22) -> 12 | DH22: 1 | DI22: - | DJ22: 1 | DK22: =ResultsCalc(Players!$E22,Players!$G22,Players!DH22,Players!DJ22) -> 12 | DL22: 2 | DM22: - | DN22: 1 | DO22: =ResultsCalc(Players!$E22,Players!$G22,Players!DL22,Players!DN22) -> 2 | DP22: 0 | DQ22: - | DR22: 0 | DS22: =ResultsCalc(Players!$E22,Players!$G22,Players!DP22,Players!DR22) -> 6 | DT22: 2 | DU22: - | DV22: 1 | DW22: =ResultsCalc(Players!$E22,Players!$G22,Players!DT22,Players!DV22) -> 2 | DX22: 1 | DY22: - | DZ22: 0 | EA22: =ResultsCalc(Players!$E22,Players!$G22,Players!DX22,Players!DZ22) -> 2 | EB22: 2 | EC22: - | ED22: 1 | EE22: =ResultsCalc(Players!$E22,Players!$G22,Players!EB22,Players!ED22) -> 2 | EF22: 3 | EG22: - | EH22: 1 | EI22: =ResultsCalc(Players!$E22,Players!$G22,Players!EF22,Players!EH22) -> 2 | EJ22: 2 | EK22: - | EL22: 1 | EM22: =ResultsCalc(Players!$E22,Players!$G22,Players!EJ22,Players!EL22) -> 2 | EN22: 2 | EO22: - | EP22: 0 | EQ22: =ResultsCalc(Players!$E22,Players!$G22,Players!EN22,Players!EP22) -> 0 | ER22: 2 | ES22: - | ET22: 1 | EU22: =ResultsCalc(Players!$E22,Players!$G22,Players!ER22,Players!ET22) -> 2 | EV22: 1 | EW22: - | EX22: 2 | EY22: =ResultsCalc(Players!$E22,Players!$G22,Players!EV22,Players!EX22) -> 2 | EZ22: 1 | FA22: - | FB22: 1 | FC22: =ResultsCalc(Players!$E22,Players!$G22,Players!EZ22,Players!FB22) -> 12 | FD22: 1 | FE22: - | FF22: 1 | FG22: =ResultsCalc(Players!$E22,Players!$G22,Players!FD22,Players!FF22) -> 12 | FH22: 3 | FI22: - | FJ22: 0 | FK22: =ResultsCalc(Players!$E22,Players!$G22,Players!FH22,Players!FJ22) -> 0 | FL22: 2 | FM22: - | FN22: 0 | FO22: =ResultsCalc(Players!$E22,Players!$G22,Players!FL22,Players!FN22) -> 0 | FP22: 3 | FQ22: - | FR22: 2 | FS22: =ResultsCalc(Players!$E22,Players!$G22,Players!FP22,Players!FR22) -> 0 | FT22: 2 | FU22: - | FV22: 0 | FW22: =ResultsCalc(Players!$E22,Players!$G22,Players!FT22,Players!FV22) -> 0 | FX22: 2 | FY22: - | FZ22: 1 | GA22: =ResultsCalc(Players!$E22,Players!$G22,Players!FX22,Players!FZ22) -> 2 | GB22: 2 | GC22: - | GD22: 2 | GE22: =ResultsCalc(Players!$E22,Players!$G22,Players!GB22,Players!GD22) -> 6 | GF22: 0 | GG22: - | GH22: 0 | GI22: =ResultsCalc(Players!$E22,Players!$G22,Players!GF22,Players!GH22) -> 6 | GJ22: 2 | GK22: - | GL22: 0 | GM22: =ResultsCalc(Players!$E22,Players!$G22,Players!GJ22,Players!GL22) -> 0 | GN22: 3 | GO22: - | GP22: 0 | GQ22: =ResultsCalc(Players!$E22,Players!$G22,Players!GN22,Players!GP22) -> 0 | GR22: 1 | GS22: - | GT22: 1 | GU22: =ResultsCalc(Players!$E22,Players!$G22,Players!GR22,Players!GT22) -> 12 | GV22: 2 | GW22: - | GX22: 0 | GY22: =ResultsCalc(Players!$E22,Players!$G22,Players!GV22,Players!GX22) -> 0 | GZ22: 2 | HA22: - | HB22: 0 | HC22: =ResultsCalc(Players!$E22,Players!$G22,Players!GZ22,Players!HB22) -> 0 | HD22: 0 | HE22: - | HF22: 2 | HG22: =ResultsCalc(Players!$E22,Players!$G22,Players!HD22,Players!HF22) -> 0 | HH22: 0 | HI22: - | HJ22: 1 | HK22: =ResultsCalc(Players!$E22,Players!$G22,Players!HH22,Players!HJ22) -> 2 | HL22: 2 | HM22: - | HN22: 1 | HO22: =ResultsCalc(Players!$E22,Players!$G22,Players!HL22,Players!HN22) -> 2 | HP22: 2 | HQ22: - | HR22: 1 | HS22: =ResultsCalc(Players!$E22,Players!$G22,Players!HP22,Players!HR22) -> 2 | HT22: 2 | HU22: - | HV22: 1 | HW22: =ResultsCalc(Players!$E22,Players!$G22,Players!HT22,Players!HV22) -> 2 | HX22: 2 | HY22: - | HZ22: 1 | IA22: =ResultsCalc(Players!$E22,Players!$G22,Players!HX22,Players!HZ22) -> 2 | IB22: 2 | IC22: - | ID22: 1 | IE22: =ResultsCalc(Players!$E22,Players!$G22,Players!IB22,Players!ID22) -> 2 | IF22: 2 | IG22: - | IH22: 1 | II22: =ResultsCalc(Players!$E22,Players!$G22,Players!IF22,Players!IH22) -> 2 | IJ22: 3 | IK22: - | IL22: 2 | IM22: =ResultsCalc(Players!$E22,Players!$G22,Players!IJ22,Players!IL22) -> 0 | IN22: 3 | IO22: - | IP22: 2 | IQ22: =ResultsCalc(Players!$E22,Players!$G22,Players!IN22,Players!IP22) -> 0 | IR22: 2 | IS22: - | IT22: 1 | IU22: =ResultsCalc(Players!$E22,Players!$G22,Players!IR22,Players!IT22) -> 2 | IV22: 2 | IW22: - | IX22: 0 | IY22: =ResultsCalc(Players!$E22,Players!$G22,Players!IV22,Players!IX22) -> 0 | IZ22: 3 | JA22: - | JB22: 1 | JC22: =ResultsCalc(Players!$E22,Players!$G22,Players!IZ22,Players!JB22) -> 2 | JD22: 4 | JE22: - | JF22: 0 | JG22: =ResultsCalc(Players!$E22,Players!$G22,Players!JD22,Players!JF22) -> 0 | JH22: 0 | JI22: - | JJ22: 1 | JK22: =ResultsCalc(Players!$E22,Players!$G22,Players!JH22,Players!JJ22) -> 2 | JL22: 1 | JM22: - | JN22: 1 | JO22: =ResultsCalc(Players!$E22,Players!$G22,Players!JL22,Players!JN22) -> 12 | JP22: 1 | JQ22: - | JR22: 2 | JS22: =ResultsCalc(Players!$E22,Players!$G22,Players!JP22,Players!JR22) -> 2 | JT22: 2 | JU22: - | JV22: 1 | JW22: =ResultsCalc(Players!$E22,Players!$G22,Players!JT22,Players!JV22) -> 2 | JX22: 1 | JY22: - | JZ22: 1 | KA22: =ResultsCalc(Players!$E22,Players!$G22,Players!JX22,Players!JZ22) -> 12 | KB22: 2 | KC22: - | KD22: 0 | KE22: =ResultsCalc(Players!$E22,Players!$G22,Players!KB22,Players!KD22) -> 0 | KF22: 0 | KG22: - | KH22: 3 | KI22: =ResultsCalc(Players!$E22,Players!$G22,Players!KF22,Players!KH22) -> 0 | KJ22: 1 | KK22: - | KL22: 0 | KM22: =ResultsCalc(Players!$E22,Players!$G22,Players!KJ22,Players!KL22) -> 2 | KN22: 1 | KO22: - | KP22: 0 | KQ22: =ResultsCalc(Players!$E22,Players!$G22,Players!KN22,Players!KP22) -> 2 | KR22: 1 | KS22: - | KT22: 0 | KU22: =ResultsCalc(Players!$E22,Players!$G22,Players!KR22,Players!KT22) -> 2 | KV22: 3 | KW22: - | KX22: 2 | KY22: =ResultsCalc(Players!$E22,Players!$G22,Players!KV22,Players!KX22) -> 0 | KZ22: 2 | LA22: - | LB22: 0 | LC22: =ResultsCalc(Players!$E22,Players!$G22,Players!KZ22,Players!LB22) -> 0 | LD22: 1 | LE22: - | LF22: 1 | LG22: =ResultsCalc(Players!$E22,Players!$G22,Players!LD22,Players!LF22) -> 12 | LH22: 2 | LI22: - | LJ22: 1 | LK22: =ResultsCalc(Players!$E22,Players!$G22,Players!LH22,Players!LJ22) -> 2 | LL22: 2 | LM22: - | LN22: 1 | LO22: =ResultsCalc(Players!$E22,Players!$G22,Players!LL22,Players!LN22) -> 2 | LP22: 1 | LQ22: - | LR22: 1 | LS22: =ResultsCalc(Players!$E22,Players!$G22,Players!LP22,Players!LR22) -> 12 | LT22: 1 | LU22: - | LV22: 0 | LW22: =ResultsCalc(Players!$E22,Players!$G22,Players!LT22,Players!LV22) -> 2 | LX22: 2 | LY22: - | LZ22: 2 | MA22: =ResultsCalc(Players!$E22,Players!$G22,Players!LX22,Players!LZ22) -> 6 | MB22: 1 | MC22: - | MD22: 0 | ME22: =ResultsCalc(Players!$E22,Players!$G22,Players!MB22,Players!MD22) -> 2 | MF22: 1 | MG22: - | MH22: 1 | MI22: =ResultsCalc(Players!$E22,Players!$G22,Players!MF22,Players!MH22) -> 12 | MJ22: 2 | MK22: - | ML22: 1 | MM22: =ResultsCalc(Players!$E22,Players!$G22,Players!MJ22,Players!ML22) -> 2 | MN22: 2 | MO22: - | MP22: 1 | MQ22: =ResultsCalc(Players!$E22,Players!$G22,Players!MN22,Players!MP22) -> 2 | MR22: 2 | MS22: - | MT22: 1 | MU22: =ResultsCalc(Players!$E22,Players!$G22,Players!MR22,Players!MT22) -> 2 | MV22: 3 | MW22: - | MX22: 2 | MY22: =ResultsCalc(Players!$E22,Players!$G22,Players!MV22,Players!MX22) -> 0 | MZ22: 1 | NA22: - | NB22: 0 | NC22: =ResultsCalc(Players!$E22,Players!$G22,Players!MZ22,Players!NB22) -> 2 | ND22: 4 | NE22: - | NF22: 3 | NG22: =ResultsCalc(Players!$E22,Players!$G22,Players!ND22,Players!NF22) -> 0 | NH22: 1 | NI22: - | NJ22: 1 | NK22: =ResultsCalc(Players!$E22,Players!$G22,Players!NH22,Players!NJ22) -> 12 | NL22: 3 | NM22: - | NN22: 0 | NO22: =ResultsCalc(Players!$E22,Players!$G22,Players!NL22,Players!NN22) -> 0 | NP22: 3 | NQ22: - | NR22: 1 | NS22: =ResultsCalc(Players!$E22,Players!$G22,Players!NP22,Players!NR22) -> 2 | NT22: 3 | NU22: - | NV22: 0 | NW22: =ResultsCalc(Players!$E22,Players!$G22,Players!NT22,Players!NV22) -> 0 | NX22: 2 | NY22: - | NZ22: 0 | OA22: =ResultsCalc(Players!$E22,Players!$G22,Players!NX22,Players!NZ22) -> 0 | OB22: 1 | OC22: - | OD22: 0 | OE22: =ResultsCalc(Players!$E22,Players!$G22,Players!OB22,Players!OD22) -> 2 | OF22: 2 | OG22: - | OH22: 1 | OI22: =ResultsCalc(Players!$E22,Players!$G22,Players!OF22,Players!OH22) -> 2 | OJ22: 3 | OK22: - | OL22: 2 | OM22: =ResultsCalc(Players!$E22,Players!$G22,Players!OJ22,Players!OL22) -> 0 | ON22: 1 | OO22: - | OP22: 0 | OQ22: =ResultsCalc(Players!$E22,Players!$G22,Players!ON22,Players!OP22) -> 2 | OR22: 4 | OS22: - | OT22: 0 | OU22: =ResultsCalc(Players!$E22,Players!$G22,Players!OR22,Players!OT22) -> 0 | OV22: 2 | OW22: - | OX22: 1 | OY22: =ResultsCalc(Players!$E22,Players!$G22,Players!OV22,Players!OX22) -> 2 | OZ22: 3 | PA22: - | PB22: 2 | PC22: =ResultsCalc(Players!$E22,Players!$G22,Players!OZ22,Players!PB22) -> 0 | PD22: 2 | PE22: - | PF22: 0 | PG22: =ResultsCalc(Players!$E22,Players!$G22,Players!PD22,Players!PF22) -> 0 | PH22: 0 | PI22: - | PJ22: 1 | PK22: =ResultsCalc(Players!$E22,Players!$G22,Players!PH22,Players!PJ22) -> 2 | PL22: 2 | PM22: - | PN22: 4 | PO22: =ResultsCalc(Players!$E22,Players!$G22,Players!PL22,Players!PN22) -> 0 | PP22: 2 | PQ22: - | PR22: 2 | PS22: =ResultsCalc(Players!$E22,Players!$G22,Players!PP22,Players!PR22) -> 6 | PT22: 1 | PU22: - | PV22: 2 | PW22: =ResultsCalc(Players!$E22,Players!$G22,Players!PT22,Players!PV22) -> 2 | PX22: 1 | PY22: - | PZ22: 1 | QA22: =ResultsCalc(Players!$E22,Players!$G22,Players!PX22,Players!PZ22) -> 12 | QB22: 1 | QC22: - | QD22: 0 | QE22: =ResultsCalc(Players!$E22,Players!$G22,Players!QB22,Players!QD22) -> 2 | QF22: 2 | QG22: - | QH22: 2 | QI22: =ResultsCalc(Players!$E22,Players!$G22,Players!QF22,Players!QH22) -> 6 | QJ22: 1 | QK22: - | QL22: 0 | QM22: =ResultsCalc(Players!$E22,Players!$G22,Players!QJ22,Players!QL22) -> 2 | QO22: 17 | QQ22: 12 | QR22: 17
A23: 2021-06-18 | B23: 21 | C23: England | D23: Scotland | E23: 0 | F23: - | G23: 0 | H23: 3 | I23: - | J23: 1 | K23: =ResultsCalc(Players!$E23,Players!$G23,Players!H23,Players!J23) -> 0 | L23: 2 | M23: - | N23: 0 | O23: =ResultsCalc(Players!$E23,Players!$G23,Players!L23,Players!N23) -> 2 | P23: 3 | Q23: - | R23: 0 | S23: =ResultsCalc(Players!$E23,Players!$G23,Players!P23,Players!R23) -> 2 | T23: 4 | U23: - | V23: 1 | W23: =ResultsCalc(Players!$E23,Players!$G23,Players!T23,Players!V23) -> 0 | X23: 3 | Y23: - | Z23: 0 | AA23: =ResultsCalc(Players!$E23,Players!$G23,Players!X23,Players!Z23) -> 2 | AB23: 2 | AC23: - | AD23: 1 | AE23: =ResultsCalc(Players!$E23,Players!$G23,Players!AB23,Players!AD23) -> 0 | AF23: 2 | AG23: - | AH23: 0 | AI23: =ResultsCalc(Players!$E23,Players!$G23,Players!AF23,Players!AH23) -> 2 | AJ23: 3 | AK23: - | AL23: 0 | AM23: =ResultsCalc(Players!$E23,Players!$G23,Players!AJ23,Players!AL23) -> 2 | AN23: 2 | AO23: - | AP23: 1 | AQ23: =ResultsCalc(Players!$E23,Players!$G23,Players!AN23,Players!AP23) -> 0 | AR23: 3 | AS23: - | AT23: 0 | AU23: =ResultsCalc(Players!$E23,Players!$G23,Players!AR23,Players!AT23) -> 2 | AV23: 3 | AW23: - | AX23: 1 | AY23: =ResultsCalc(Players!$E23,Players!$G23,Players!AV23,Players!AX23) -> 0 | AZ23: 3 | BA23: - | BB23: 2 | BC23: =ResultsCalc(Players!$E23,Players!$G23,Players!AZ23,Players!BB23) -> 0 | BD23: 1 | BE23: - | BF23: 2 | BG23: =ResultsCalc(Players!$E23,Players!$G23,Players!BD23,Players!BF23) -> 0 | BH23: 1 | BI23: - | BJ23: 1 | BK23: =ResultsCalc(Players!$E23,Players!$G23,Players!BH23,Players!BJ23) -> 6 | BL23: 2 | BM23: - | BN23: 1 | BO23: =ResultsCalc(Players!$E23,Players!$G23,Players!BL23,Players!BN23) -> 0 | BP23: 3 | BQ23: - | BR23: 1 | BS23: =ResultsCalc(Players!$E23,Players!$G23,Players!BP23,Players!BR23) -> 0 | BT23: 3 | BU23: - | BV23: 1 | BW23: =ResultsCalc(Players!$E23,Players!$G23,Players!BT23,Players!BV23) -> 0 | BX23: 3 | BY23: - | BZ23: 1 | CA23: =ResultsCalc(Players!$E23,Players!$G23,Players!BX23,Players!BZ23) -> 0 | CB23: 1 | CC23: - | CD23: 0 | CE23: =ResultsCalc(Players!$E23,Players!$G23,Players!CB23,Players!CD23) -> 2 | CF23: 2 | CG23: - | CH23: 0 | CI23: =ResultsCalc(Players!$E23,Players!$G23,Players!CF23,Players!CH23) -> 2 | CJ23: 3 | CK23: - | CL23: 2 | CM23: =ResultsCalc(Players!$E23,Players!$G23,Players!CJ23,Players!CL23) -> 0 | CN23: 2 | CO23: - | CP23: 2 | CQ23: =ResultsCalc(Players!$E23,Players!$G23,Players!CN23,Players!CP23) -> 6 | CR23: 2 | CS23: - | CT23: 0 | CU23: =ResultsCalc(Players!$E23,Players!$G23,Players!CR23,Players!CT23) -> 2 | CV23: 3 | CW23: - | CX23: 1 | CY23: =ResultsCalc(Players!$E23,Players!$G23,Players!CV23,Players!CX23) -> 0 | CZ23: 2 | DA23: - | DB23: 0 | DC23: =ResultsCalc(Players!$E23,Players!$G23,Players!CZ23,Players!DB23) -> 2 | DD23: 2 | DE23: - | DF23: 1 | DG23: =ResultsCalc(Players!$E23,Players!$G23,Players!DD23,Players!DF23) -> 0 | DH23: 2 | DI23: - | DJ23: 0 | DK23: =ResultsCalc(Players!$E23,Players!$G23,Players!DH23,Players!DJ23) -> 2 | DL23: 2 | DM23: - | DN23: 0 | DO23: =ResultsCalc(Players!$E23,Players!$G23,Players!DL23,Players!DN23) -> 2 | DP23: 2 | DQ23: - | DR23: 2 | DS23: =ResultsCalc(Players!$E23,Players!$G23,Players!DP23,Players!DR23) -> 6 | DT23: 2 | DU23: - | DV23: 0 | DW23: =ResultsCalc(Players!$E23,Players!$G23,Players!DT23,Players!DV23) -> 2 | DX23: 4 | DY23: - | DZ23: 0 | EA23: =ResultsCalc(Players!$E23,Players!$G23,Players!DX23,Players!DZ23) -> 2 | EB23: 4 | EC23: - | ED23: 1 | EE23: =ResultsCalc(Players!$E23,Players!$G23,Players!EB23,Players!ED23) -> 0 | EF23: 2 | EG23: - | EH23: 2 | EI23: =ResultsCalc(Players!$E23,Players!$G23,Players!EF23,Players!EH23) -> 6 | EJ23: 3 | EK23: - | EL23: 0 | EM23: =ResultsCalc(Players!$E23,Players!$G23,Players!EJ23,Players!EL23) -> 2 | EN23: 0 | EO23: - | EP23: 1 | EQ23: =ResultsCalc(Players!$E23,Players!$G23,Players!EN23,Players!EP23) -> 2 | ER23: 3 | ES23: - | ET23: 1 | EU23: =ResultsCalc(Players!$E23,Players!$G23,Players!ER23,Players!ET23) -> 0 | EV23: 3 | EW23: - | EX23: 0 | EY23: =ResultsCalc(Players!$E23,Players!$G23,Players!EV23,Players!EX23) -> 2 | EZ23: 3 | FA23: - | FB23: 2 | FC23: =ResultsCalc(Players!$E23,Players!$G23,Players!EZ23,Players!FB23) -> 0 | FD23: 2 | FE23: - | FF23: 1 | FG23: =ResultsCalc(Players!$E23,Players!$G23,Players!FD23,Players!FF23) -> 0 | FH23: 1 | FI23: - | FJ23: 1 | FK23: =ResultsCalc(Players!$E23,Players!$G23,Players!FH23,Players!FJ23) -> 6 | FL23: 2 | FM23: - | FN23: 0 | FO23: =ResultsCalc(Players!$E23,Players!$G23,Players!FL23,Players!FN23) -> 2 | FP23: 1 | FQ23: - | FR23: 3 | FS23: =ResultsCalc(Players!$E23,Players!$G23,Players!FP23,Players!FR23) -> 0 | FT23: 4 | FU23: - | FV23: 0 | FW23: =ResultsCalc(Players!$E23,Players!$G23,Players!FT23,Players!FV23) -> 2 | FX23: 3 | FY23: - | FZ23: 1 | GA23: =ResultsCalc(Players!$E23,Players!$G23,Players!FX23,Players!FZ23) -> 0 | GB23: 1 | GC23: - | GD23: 0 | GE23: =ResultsCalc(Players!$E23,Players!$G23,Players!GB23,Players!GD23) -> 2 | GF23: 1 | GG23: - | GH23: 1 | GI23: =ResultsCalc(Players!$E23,Players!$G23,Players!GF23,Players!GH23) -> 6 | GJ23: 2 | GK23: - | GL23: 1 | GM23: =ResultsCalc(Players!$E23,Players!$G23,Players!GJ23,Players!GL23) -> 0 | GN23: 3 | GO23: - | GP23: 1 | GQ23: =ResultsCalc(Players!$E23,Players!$G23,Players!GN23,Players!GP23) -> 0 | GR23: 2 | GS23: - | GT23: 0 | GU23: =ResultsCalc(Players!$E23,Players!$G23,Players!GR23,Players!GT23) -> 2 | GV23: 3 | GW23: - | GX23: 1 | GY23: =ResultsCalc(Players!$E23,Players!$G23,Players!GV23,Players!GX23) -> 0 | GZ23: 3 | HA23: - | HB23: 0 | HC23: =ResultsCalc(Players!$E23,Players!$G23,Players!GZ23,Players!HB23) -> 2 | HD23: 4 | HE23: - | HF23: 0 | HG23: =ResultsCalc(Players!$E23,Players!$G23,Players!HD23,Players!HF23) -> 2 | HH23: 2 | HI23: - | HJ23: 1 | HK23: =ResultsCalc(Players!$E23,Players!$G23,Players!HH23,Players!HJ23) -> 0 | HL23: 2 | HM23: - | HN23: 0 | HO23: =ResultsCalc(Players!$E23,Players!$G23,Players!HL23,Players!HN23) -> 2 | HP23: 2 | HQ23: - | HR23: 1 | HS23: =ResultsCalc(Players!$E23,Players!$G23,Players!HP23,Players!HR23) -> 0 | HT23: 2 | HU23: - | HV23: 0 | HW23: =ResultsCalc(Players!$E23,Players!$G23,Players!HT23,Players!HV23) -> 2 | HX23: 1 | HY23: - | HZ23: 7 | IA23: =ResultsCalc(Players!$E23,Players!$G23,Players!HX23,Players!HZ23) -> 0 | IB23: 3 | IC23: - | ID23: 1 | IE23: =ResultsCalc(Players!$E23,Players!$G23,Players!IB23,Players!ID23) -> 0 | IF23: 2 | IG23: - | IH23: 0 | II23: =ResultsCalc(Players!$E23,Players!$G23,Players!IF23,Players!IH23) -> 2 | IJ23: 4 | IK23: - | IL23: 1 | IM23: =ResultsCalc(Players!$E23,Players!$G23,Players!IJ23,Players!IL23) -> 0 | IN23: 1 | IO23: - | IP23: 3 | IQ23: =ResultsCalc(Players!$E23,Players!$G23,Players!IN23,Players!IP23) -> 0 | IR23: 4 | IS23: - | IT23: 1 | IU23: =ResultsCalc(Players!$E23,Players!$G23,Players!IR23,Players!IT23) -> 0 | IV23: 3 | IW23: - | IX23: 1 | IY23: =ResultsCalc(Players!$E23,Players!$G23,Players!IV23,Players!IX23) -> 0 | IZ23: 2 | JA23: - | JB23: 1 | JC23: =ResultsCalc(Players!$E23,Players!$G23,Players!IZ23,Players!JB23) -> 0 | JD23: 1 | JE23: - | JF23: 0 | JG23: =ResultsCalc(Players!$E23,Players!$G23,Players!JD23,Players!JF23) -> 2 | JH23: 1 | JI23: - | JJ23: 1 | JK23: =ResultsCalc(Players!$E23,Players!$G23,Players!JH23,Players!JJ23) -> 6 | JL23: 1 | JM23: - | JN23: 2 | JO23: =ResultsCalc(Players!$E23,Players!$G23,Players!JL23,Players!JN23) -> 0 | JP23: 1 | JQ23: - | JR23: 1 | JS23: =ResultsCalc(Players!$E23,Players!$G23,Players!JP23,Players!JR23) -> 6 | JT23: 1 | JU23: - | JV23: 1 | JW23: =ResultsCalc(Players!$E23,Players!$G23,Players!JT23,Players!JV23) -> 6 | JX23: 2 | JY23: - | JZ23: 0 | KA23: =ResultsCalc(Players!$E23,Players!$G23,Players!JX23,Players!JZ23) -> 2 | KB23: 3 | KC23: - | KD23: 1 | KE23: =ResultsCalc(Players!$E23,Players!$G23,Players!KB23,Players!KD23) -> 0 | KF23: 3 | KG23: - | KH23: 0 | KI23: =ResultsCalc(Players!$E23,Players!$G23,Players!KF23,Players!KH23) -> 2 | KJ23: 3 | KK23: - | KL23: 0 | KM23: =ResultsCalc(Players!$E23,Players!$G23,Players!KJ23,Players!KL23) -> 2 | KN23: 2 | KO23: - | KP23: 0 | KQ23: =ResultsCalc(Players!$E23,Players!$G23,Players!KN23,Players!KP23) -> 2 | KR23: 3 | KS23: - | KT23: 1 | KU23: =ResultsCalc(Players!$E23,Players!$G23,Players!KR23,Players!KT23) -> 0 | KV23: 2 | KW23: - | KX23: 0 | KY23: =ResultsCalc(Players!$E23,Players!$G23,Players!KV23,Players!KX23) -> 2 | KZ23: 2 | LA23: - | LB23: 0 | LC23: =ResultsCalc(Players!$E23,Players!$G23,Players!KZ23,Players!LB23) -> 2 | LD23: 2 | LE23: - | LF23: 1 | LG23: =ResultsCalc(Players!$E23,Players!$G23,Players!LD23,Players!LF23) -> 0 | LH23: 4 | LI23: - | LJ23: 1 | LK23: =ResultsCalc(Players!$E23,Players!$G23,Players!LH23,Players!LJ23) -> 0 | LL23: 3 | LM23: - | LN23: 1 | LO23: =ResultsCalc(Players!$E23,Players!$G23,Players!LL23,Players!LN23) -> 0 | LP23: 2 | LQ23: - | LR23: 0 | LS23: =ResultsCalc(Players!$E23,Players!$G23,Players!LP23,Players!LR23) -> 2 | LT23: 1 | LU23: - | LV23: 1 | LW23: =ResultsCalc(Players!$E23,Players!$G23,Players!LT23,Players!LV23) -> 6 | LX23: 1 | LY23: - | LZ23: 2 | MA23: =ResultsCalc(Players!$E23,Players!$G23,Players!LX23,Players!LZ23) -> 0 | MB23: 1 | MC23: - | MD23: 1 | ME23: =ResultsCalc(Players!$E23,Players!$G23,Players!MB23,Players!MD23) -> 6 | MF23: 2 | MG23: - | MH23: 1 | MI23: =ResultsCalc(Players!$E23,Players!$G23,Players!MF23,Players!MH23) -> 0 | MJ23: 3 | MK23: - | ML23: 1 | MM23: =ResultsCalc(Players!$E23,Players!$G23,Players!MJ23,Players!ML23) -> 0 | MN23: 3 | MO23: - | MP23: 0 | MQ23: =ResultsCalc(Players!$E23,Players!$G23,Players!MN23,Players!MP23) -> 2 | MR23: 4 | MS23: - | MT23: 1 | MU23: =ResultsCalc(Players!$E23,Players!$G23,Players!MR23,Players!MT23) -> 0 | MV23: 2 | MW23: - | MX23: 0 | MY23: =ResultsCalc(Players!$E23,Players!$G23,Players!MV23,Players!MX23) -> 2 | MZ23: 2 | NA23: - | NB23: 1 | NC23: =ResultsCalc(Players!$E23,Players!$G23,Players!MZ23,Players!NB23) -> 0 | ND23: 2 | NE23: - | NF23: 1 | NG23: =ResultsCalc(Players!$E23,Players!$G23,Players!ND23,Players!NF23) -> 0 | NH23: 1 | NI23: - | NJ23: 0 | NK23: =ResultsCalc(Players!$E23,Players!$G23,Players!NH23,Players!NJ23) -> 2 | NL23: 2 | NM23: - | NN23: 0 | NO23: =ResultsCalc(Players!$E23,Players!$G23,Players!NL23,Players!NN23) -> 2 | NP23: 3 | NQ23: - | NR23: 2 | NS23: =ResultsCalc(Players!$E23,Players!$G23,Players!NP23,Players!NR23) -> 0 | NT23: 2 | NU23: - | NV23: 0 | NW23: =ResultsCalc(Players!$E23,Players!$G23,Players!NT23,Players!NV23) -> 2 | NX23: 4 | NY23: - | NZ23: 0 | OA23: =ResultsCalc(Players!$E23,Players!$G23,Players!NX23,Players!NZ23) -> 2 | OB23: 2 | OC23: - | OD23: 1 | OE23: =ResultsCalc(Players!$E23,Players!$G23,Players!OB23,Players!OD23) -> 0 | OF23: 2 | OG23: - | OH23: 0 | OI23: =ResultsCalc(Players!$E23,Players!$G23,Players!OF23,Players!OH23) -> 2 | OJ23: 2 | OK23: - | OL23: 0 | OM23: =ResultsCalc(Players!$E23,Players!$G23,Players!OJ23,Players!OL23) -> 2 | ON23: 1 | OO23: - | OP23: 1 | OQ23: =ResultsCalc(Players!$E23,Players!$G23,Players!ON23,Players!OP23) -> 6 | OR23: 4 | OS23: - | OT23: 0 | OU23: =ResultsCalc(Players!$E23,Players!$G23,Players!OR23,Players!OT23) -> 2 | OV23: 2 | OW23: - | OX23: 0 | OY23: =ResultsCalc(Players!$E23,Players!$G23,Players!OV23,Players!OX23) -> 2 | OZ23: 3 | PA23: - | PB23: 2 | PC23: =ResultsCalc(Players!$E23,Players!$G23,Players!OZ23,Players!PB23) -> 0 | PD23: 3 | PE23: - | PF23: 1 | PG23: =ResultsCalc(Players!$E23,Players!$G23,Players!PD23,Players!PF23) -> 0 | PH23: 2 | PI23: - | PJ23: 1 | PK23: =ResultsCalc(Players!$E23,Players!$G23,Players!PH23,Players!PJ23) -> 0 | PL23: 4 | PM23: - | PN23: 3 | PO23: =ResultsCalc(Players!$E23,Players!$G23,Players!PL23,Players!PN23) -> 0 | PP23: 2 | PQ23: - | PR23: 1 | PS23: =ResultsCalc(Players!$E23,Players!$G23,Players!PP23,Players!PR23) -> 0 | PT23: 2 | PU23: - | PV23: 0 | PW23: =ResultsCalc(Players!$E23,Players!$G23,Players!PT23,Players!PV23) -> 2 | PX23: 1 | PY23: - | PZ23: 2 | QA23: =ResultsCalc(Players!$E23,Players!$G23,Players!PX23,Players!PZ23) -> 0 | QB23: 3 | QC23: - | QD23: 0 | QE23: =ResultsCalc(Players!$E23,Players!$G23,Players!QB23,Players!QD23) -> 2 | QF23: 2 | QG23: - | QH23: 2 | QI23: =ResultsCalc(Players!$E23,Players!$G23,Players!QF23,Players!QH23) -> 6 | QJ23: 2 | QK23: - | QL23: 1 | QM23: =ResultsCalc(Players!$E23,Players!$G23,Players!QJ23,Players!QL23) -> 0 | QO23: 0 | QQ23: 7 | QR23: 1
A24: 2021-06-19 | B24: 22 | C24: Hungary | D24: France | E24: 1 | F24: - | G24: 1 | H24: 1 | I24: - | J24: 1 | K24: =ResultsCalc(Players!$E24,Players!$G24,Players!H24,Players!J24) -> 12 | L24: 0 | M24: - | N24: 2 | O24: =ResultsCalc(Players!$E24,Players!$G24,Players!L24,Players!N24) -> 0 | P24: 0 | Q24: - | R24: 2 | S24: =ResultsCalc(Players!$E24,Players!$G24,Players!P24,Players!R24) -> 0 | T24: 1 | U24: - | V24: 5 | W24: =ResultsCalc(Players!$E24,Players!$G24,Players!T24,Players!V24) -> 2 | X24: 1 | Y24: - | Z24: 3 | AA24: =ResultsCalc(Players!$E24,Players!$G24,Players!X24,Players!Z24) -> 2 | AB24: 0 | AC24: - | AD24: 4 | AE24: =ResultsCalc(Players!$E24,Players!$G24,Players!AB24,Players!AD24) -> 0 | AF24: 1 | AG24: - | AH24: 3 | AI24: =ResultsCalc(Players!$E24,Players!$G24,Players!AF24,Players!AH24) -> 2 | AJ24: 0 | AK24: - | AL24: 4 | AM24: =ResultsCalc(Players!$E24,Players!$G24,Players!AJ24,Players!AL24) -> 0 | AN24: 0 | AO24: - | AP24: 2 | AQ24: =ResultsCalc(Players!$E24,Players!$G24,Players!AN24,Players!AP24) -> 0 | AR24: 0 | AS24: - | AT24: 1 | AU24: =ResultsCalc(Players!$E24,Players!$G24,Players!AR24,Players!AT24) -> 2 | AV24: 1 | AW24: - | AX24: 2 | AY24: =ResultsCalc(Players!$E24,Players!$G24,Players!AV24,Players!AX24) -> 2 | AZ24: 0 | BA24: - | BB24: 4 | BC24: =ResultsCalc(Players!$E24,Players!$G24,Players!AZ24,Players!BB24) -> 0 | BD24: 1 | BE24: - | BF24: 2 | BG24: =ResultsCalc(Players!$E24,Players!$G24,Players!BD24,Players!BF24) -> 2 | BH24: 2 | BI24: - | BJ24: 1 | BK24: =ResultsCalc(Players!$E24,Players!$G24,Players!BH24,Players!BJ24) -> 2 | BL24: 0 | BM24: - | BN24: 2 | BO24: =ResultsCalc(Players!$E24,Players!$G24,Players!BL24,Players!BN24) -> 0 | BP24: 1 | BQ24: - | BR24: 3 | BS24: =ResultsCalc(Players!$E24,Players!$G24,Players!BP24,Players!BR24) -> 2 | BT24: 0 | BU24: - | BV24: 3 | BW24: =ResultsCalc(Players!$E24,Players!$G24,Players!BT24,Players!BV24) -> 0 | BX24: 0 | BY24: - | BZ24: 3 | CA24: =ResultsCalc(Players!$E24,Players!$G24,Players!BX24,Players!BZ24) -> 0 | CB24: 0 | CC24: - | CD24: 2 | CE24: =ResultsCalc(Players!$E24,Players!$G24,Players!CB24,Players!CD24) -> 0 | CF24: 1 | CG24: - | CH24: 2 | CI24: =ResultsCalc(Players!$E24,Players!$G24,Players!CF24,Players!CH24) -> 2 | CJ24: 0 | CK24: - | CL24: 3 | CM24: =ResultsCalc(Players!$E24,Players!$G24,Players!CJ24,Players!CL24) -> 0 | CN24: 0 | CO24: - | CP24: 3 | CQ24: =ResultsCalc(Players!$E24,Players!$G24,Players!CN24,Players!CP24) -> 0 | CR24: 0 | CS24: - | CT24: 2 | CU24: =ResultsCalc(Players!$E24,Players!$G24,Players!CR24,Players!CT24) -> 0 | CV24: 0 | CW24: - | CX24: 3 | CY24: =ResultsCalc(Players!$E24,Players!$G24,Players!CV24,Players!CX24) -> 0 | CZ24: 0 | DA24: - | DB24: 3 | DC24: =ResultsCalc(Players!$E24,Players!$G24,Players!CZ24,Players!DB24) -> 0 | DD24: 0 | DE24: - | DF24: 3 | DG24: =ResultsCalc(Players!$E24,Players!$G24,Players!DD24,Players!DF24) -> 0 | DH24: 0 | DI24: - | DJ24: 3 | DK24: =ResultsCalc(Players!$E24,Players!$G24,Players!DH24,Players!DJ24) -> 0 | DL24: 0 | DM24: - | DN24: 3 | DO24: =ResultsCalc(Players!$E24,Players!$G24,Players!DL24,Players!DN24) -> 0 | DP24: 0 | DQ24: - | DR24: 2 | DS24: =ResultsCalc(Players!$E24,Players!$G24,Players!DP24,Players!DR24) -> 0 | DT24: 0 | DU24: - | DV24: 3 | DW24: =ResultsCalc(Players!$E24,Players!$G24,Players!DT24,Players!DV24) -> 0 | DX24: 0 | DY24: - | DZ24: 3 | EA24: =ResultsCalc(Players!$E24,Players!$G24,Players!DX24,Players!DZ24) -> 0 | EB24: 1 | EC24: - | ED24: 2 | EE24: =ResultsCalc(Players!$E24,Players!$G24,Players!EB24,Players!ED24) -> 2 | EF24: 0 | EG24: - | EH24: 2 | EI24: =ResultsCalc(Players!$E24,Players!$G24,Players!EF24,Players!EH24) -> 0 | EJ24: 0 | EK24: - | EL24: 2 | EM24: =ResultsCalc(Players!$E24,Players!$G24,Players!EJ24,Players!EL24) -> 0 | EN24: 0 | EO24: - | EP24: 3 | EQ24: =ResultsCalc(Players!$E24,Players!$G24,Players!EN24,Players!EP24) -> 0 | ER24: 0 | ES24: - | ET24: 4 | EU24: =ResultsCalc(Players!$E24,Players!$G24,Players!ER24,Players!ET24) -> 0 | EV24: 0 | EW24: - | EX24: 2 | EY24: =ResultsCalc(Players!$E24,Players!$G24,Players!EV24,Players!EX24) -> 0 | EZ24: 0 | FA24: - | FB24: 2 | FC24: =ResultsCalc(Players!$E24,Players!$G24,Players!EZ24,Players!FB24) -> 0 | FD24: 0 | FE24: - | FF24: 2 | FG24: =ResultsCalc(Players!$E24,Players!$G24,Players!FD24,Players!FF24) -> 0 | FH24: 1 | FI24: - | FJ24: 2 | FK24: =ResultsCalc(Players!$E24,Players!$G24,Players!FH24,Players!FJ24) -> 2 | FL24: 0 | FM24: - | FN24: 3 | FO24: =ResultsCalc(Players!$E24,Players!$G24,Players!FL24,Players!FN24) -> 0 | FP24: 2 | FQ24: - | FR24: 1 | FS24: =ResultsCalc(Players!$E24,Players!$G24,Players!FP24,Players!FR24) -> 2 | FT24: 0 | FU24: - | FV24: 4 | FW24: =ResultsCalc(Players!$E24,Players!$G24,Players!FT24,Players!FV24) -> 0 | FX24: 1 | FY24: - | FZ24: 4 | GA24: =ResultsCalc(Players!$E24,Players!$G24,Players!FX24,Players!FZ24) -> 2 | GB24: 3 | GC24: - | GD24: 3 | GE24: =ResultsCalc(Players!$E24,Players!$G24,Players!GB24,Players!GD24) -> 6 | GF24: 0 | GG24: - | GH24: 2 | GI24: =ResultsCalc(Players!$E24,Players!$G24,Players!GF24,Players!GH24) -> 0 | GJ24: 0 | GK24: - | GL24: 3 | GM24: =ResultsCalc(Players!$E24,Players!$G24,Players!GJ24,Players!GL24) -> 0 | GN24: 0 | GO24: - | GP24: 4 | GQ24: =ResultsCalc(Players!$E24,Players!$G24,Players!GN24,Players!GP24) -> 0 | GR24: 0 | GS24: - | GT24: 4 | GU24: =ResultsCalc(Players!$E24,Players!$G24,Players!GR24,Players!GT24) -> 0 | GV24: 0 | GW24: - | GX24: 4 | GY24: =ResultsCalc(Players!$E24,Players!$G24,Players!GV24,Players!GX24) -> 0 | GZ24: 0 | HA24: - | HB24: 4 | HC24: =ResultsCalc(Players!$E24,Players!$G24,Players!GZ24,Players!HB24) -> 0 | HD24: 0 | HE24: - | HF24: 3 | HG24: =ResultsCalc(Players!$E24,Players!$G24,Players!HD24,Players!HF24) -> 0 | HH24: 2 | HI24: - | HJ24: 3 | HK24: =ResultsCalc(Players!$E24,Players!$G24,Players!HH24,Players!HJ24) -> 0 | HL24: 0 | HM24: - | HN24: 3 | HO24: =ResultsCalc(Players!$E24,Players!$G24,Players!HL24,Players!HN24) -> 0 | HP24: 0 | HQ24: - | HR24: 2 | HS24: =ResultsCalc(Players!$E24,Players!$G24,Players!HP24,Players!HR24) -> 0 | HT24: 0 | HU24: - | HV24: 4 | HW24: =ResultsCalc(Players!$E24,Players!$G24,Players!HT24,Players!HV24) -> 0 | HX24: 0 | HY24: - | HZ24: 2 | IA24: =ResultsCalc(Players!$E24,Players!$G24,Players!HX24,Players!HZ24) -> 0 | IB24: 1 | IC24: - | ID24: 3 | IE24: =ResultsCalc(Players!$E24,Players!$G24,Players!IB24,Players!ID24) -> 2 | IF24: 1 | IG24: - | IH24: 2 | II24: =ResultsCalc(Players!$E24,Players!$G24,Players!IF24,Players!IH24) -> 2 | IJ24: 0 | IK24: - | IL24: 3 | IM24: =ResultsCalc(Players!$E24,Players!$G24,Players!IJ24,Players!IL24) -> 0 | IN24: 1 | IO24: - | IP24: 2 | IQ24: =ResultsCalc(Players!$E24,Players!$G24,Players!IN24,Players!IP24) -> 2 | IR24: 2 | IS24: - | IT24: 5 | IU24: =ResultsCalc(Players!$E24,Players!$G24,Players!IR24,Players!IT24) -> 0 | IV24: 0 | IW24: - | IX24: 3 | IY24: =ResultsCalc(Players!$E24,Players!$G24,Players!IV24,Players!IX24) -> 0 | IZ24: 0 | JA24: - | JB24: 5 | JC24: =ResultsCalc(Players!$E24,Players!$G24,Players!IZ24,Players!JB24) -> 0 | JD24: 0 | JE24: - | JF24: 1 | JG24: =ResultsCalc(Players!$E24,Players!$G24,Players!JD24,Players!JF24) -> 2 | JH24: 1 | JI24: - | JJ24: 2 | JK24: =ResultsCalc(Players!$E24,Players!$G24,Players!JH24,Players!JJ24) -> 2 | JL24: 1 | JM24: - | JN24: 2 | JO24: =ResultsCalc(Players!$E24,Players!$G24,Players!JL24,Players!JN24) -> 2 | JP24: 1 | JQ24: - | JR24: 3 | JS24: =ResultsCalc(Players!$E24,Players!$G24,Players!JP24,Players!JR24) -> 2 | JT24: 1 | JU24: - | JV24: 2 | JW24: =ResultsCalc(Players!$E24,Players!$G24,Players!JT24,Players!JV24) -> 2 | JX24: 0 | JY24: - | JZ24: 3 | KA24: =ResultsCalc(Players!$E24,Players!$G24,Players!JX24,Players!JZ24) -> 0 | KB24: 0 | KC24: - | KD24: 3 | KE24: =ResultsCalc(Players!$E24,Players!$G24,Players!KB24,Players!KD24) -> 0 | KF24: 1 | KG24: - | KH24: 4 | KI24: =ResultsCalc(Players!$E24,Players!$G24,Players!KF24,Players!KH24) -> 2 | KJ24: 1 | KK24: - | KL24: 2 | KM24: =ResultsCalc(Players!$E24,Players!$G24,Players!KJ24,Players!KL24) -> 2 | KN24: 0 | KO24: - | KP24: 3 | KQ24: =ResultsCalc(Players!$E24,Players!$G24,Players!KN24,Players!KP24) -> 0 | KR24: 0 | KS24: - | KT24: 2 | KU24: =ResultsCalc(Players!$E24,Players!$G24,Players!KR24,Players!KT24) -> 0 | KV24: 2 | KW24: - | KX24: 5 | KY24: =ResultsCalc(Players!$E24,Players!$G24,Players!KV24,Players!KX24) -> 0 | KZ24: 0 | LA24: - | LB24: 3 | LC24: =ResultsCalc(Players!$E24,Players!$G24,Players!KZ24,Players!LB24) -> 0 | LD24: 2 | LE24: - | LF24: 2 | LG24: =ResultsCalc(Players!$E24,Players!$G24,Players!LD24,Players!LF24) -> 6 | LH24: 1 | LI24: - | LJ24: 3 | LK24: =ResultsCalc(Players!$E24,Players!$G24,Players!LH24,Players!LJ24) -> 2 | LL24: 0 | LM24: - | LN24: 3 | LO24: =ResultsCalc(Players!$E24,Players!$G24,Players!LL24,Players!LN24) -> 0 | LP24: 1 | LQ24: - | LR24: 2 | LS24: =ResultsCalc(Players!$E24,Players!$G24,Players!LP24,Players!LR24) -> 2 | LT24: 1 | LU24: - | LV24: 3 | LW24: =ResultsCalc(Players!$E24,Players!$G24,Players!LT24,Players!LV24) -> 2 | LX24: 1 | LY24: - | LZ24: 3 | MA24: =ResultsCalc(Players!$E24,Players!$G24,Players!LX24,Players!LZ24) -> 2 | MB24: 0 | MC24: - | MD24: 1 | ME24: =ResultsCalc(Players!$E24,Players!$G24,Players!MB24,Players!MD24) -> 2 | MF24: 0 | MG24: - | MH24: 2 | MI24: =ResultsCalc(Players!$E24,Players!$G24,Players!MF24,Players!MH24) -> 0 | MJ24: 0 | MK24: - | ML24: 3 | MM24: =ResultsCalc(Players!$E24,Players!$G24,Players!MJ24,Players!ML24) -> 0 | MN24: 0 | MO24: - | MP24: 2 | MQ24: =ResultsCalc(Players!$E24,Players!$G24,Players!MN24,Players!MP24) -> 0 | MR24: 0 | MS24: - | MT24: 5 | MU24: =ResultsCalc(Players!$E24,Players!$G24,Players!MR24,Players!MT24) -> 0 | MV24: 1 | MW24: - | MX24: 3 | MY24: =ResultsCalc(Players!$E24,Players!$G24,Players!MV24,Players!MX24) -> 2 | MZ24: 0 | NA24: - | NB24: 3 | NC24: =ResultsCalc(Players!$E24,Players!$G24,Players!MZ24,Players!NB24) -> 0 | ND24: 0 | NE24: - | NF24: 4 | NG24: =ResultsCalc(Players!$E24,Players!$G24,Players!ND24,Players!NF24) -> 0 | NH24: 0 | NI24: - | NJ24: 2 | NK24: =ResultsCalc(Players!$E24,Players!$G24,Players!NH24,Players!NJ24) -> 0 | NL24: 0 | NM24: - | NN24: 2 | NO24: =ResultsCalc(Players!$E24,Players!$G24,Players!NL24,Players!NN24) -> 0 | NP24: 1 | NQ24: - | NR24: 5 | NS24: =ResultsCalc(Players!$E24,Players!$G24,Players!NP24,Players!NR24) -> 2 | NT24: 1 | NU24: - | NV24: 4 | NW24: =ResultsCalc(Players!$E24,Players!$G24,Players!NT24,Players!NV24) -> 2 | NX24: 0 | NY24: - | NZ24: 3 | OA24: =ResultsCalc(Players!$E24,Players!$G24,Players!NX24,Players!NZ24) -> 0 | OB24: 0 | OC24: - | OD24: 2 | OE24: =ResultsCalc(Players!$E24,Players!$G24,Players!OB24,Players!OD24) -> 0 | OF24: 0 | OG24: - | OH24: 4 | OI24: =ResultsCalc(Players!$E24,Players!$G24,Players!OF24,Players!OH24) -> 0 | OJ24: 0 | OK24: - | OL24: 3 | OM24: =ResultsCalc(Players!$E24,Players!$G24,Players!OJ24,Players!OL24) -> 0 | ON24: 0 | OO24: - | OP24: 1 | OQ24: =ResultsCalc(Players!$E24,Players!$G24,Players!ON24,Players!OP24) -> 2 | OR24: 0 | OS24: - | OT24: 5 | OU24: =ResultsCalc(Players!$E24,Players!$G24,Players!OR24,Players!OT24) -> 0 | OV24: 1 | OW24: - | OX24: 4 | OY24: =ResultsCalc(Players!$E24,Players!$G24,Players!OV24,Players!OX24) -> 2 | OZ24: 1 | PA24: - | PB24: 4 | PC24: =ResultsCalc(Players!$E24,Players!$G24,Players!OZ24,Players!PB24) -> 2 | PD24: 1 | PE24: - | PF24: 4 | PG24: =ResultsCalc(Players!$E24,Players!$G24,Players!PD24,Players!PF24) -> 2 | PH24: 1 | PI24: - | PJ24: 1 | PK24: =ResultsCalc(Players!$E24,Players!$G24,Players!PH24,Players!PJ24) -> 12 | PL24: 2 | PM24: - | PN24: 1 | PO24: =ResultsCalc(Players!$E24,Players!$G24,Players!PL24,Players!PN24) -> 2 | PP24: 2 | PQ24: - | PR24: 2 | PS24: =ResultsCalc(Players!$E24,Players!$G24,Players!PP24,Players!PR24) -> 6 | PT24: 2 | PU24: - | PV24: 3 | PW24: =ResultsCalc(Players!$E24,Players!$G24,Players!PT24,Players!PV24) -> 0 | PX24: 2 | PY24: - | PZ24: 0 | QA24: =ResultsCalc(Players!$E24,Players!$G24,Players!PX24,Players!PZ24) -> 0 | QB24: 1 | QC24: - | QD24: 2 | QE24: =ResultsCalc(Players!$E24,Players!$G24,Players!QB24,Players!QD24) -> 2 | QF24: 0 | QG24: - | QH24: 3 | QI24: =ResultsCalc(Players!$E24,Players!$G24,Players!QF24,Players!QH24) -> 0 | QJ24: 1 | QK24: - | QL24: 2 | QM24: =ResultsCalc(Players!$E24,Players!$G24,Players!QJ24,Players!QL24) -> 2 | QO24: 2 | QQ24: 12 | QR24: 2
A25: 2021-06-19 | B25: 23 | C25: Portugal | D25: Germany | E25: 2 | F25: - | G25: 4 | H25: 1 | I25: - | J25: 2 | K25: =ResultsCalc(Players!$E25,Players!$G25,Players!H25,Players!J25) -> 4 | L25: 1 | M25: - | N25: 0 | O25: =ResultsCalc(Players!$E25,Players!$G25,Players!L25,Players!N25) -> 0 | P25: 0 | Q25: - | R25: 1 | S25: =ResultsCalc(Players!$E25,Players!$G25,Players!P25,Players!R25) -> 4 | T25: 3 | U25: - | V25: 1 | W25: =ResultsCalc(Players!$E25,Players!$G25,Players!T25,Players!V25) -> 0 | X25: 2 | Y25: - | Z25: 2 | AA25: =ResultsCalc(Players!$E25,Players!$G25,Players!X25,Players!Z25) -> 2 | AB25: 0 | AC25: - | AD25: 1 | AE25: =ResultsCalc(Players!$E25,Players!$G25,Players!AB25,Players!AD25) -> 4 | AF25: 3 | AG25: - | AH25: 2 | AI25: =ResultsCalc(Players!$E25,Players!$G25,Players!AF25,Players!AH25) -> 0 | AJ25: 1 | AK25: - | AL25: 1 | AM25: =ResultsCalc(Players!$E25,Players!$G25,Players!AJ25,Players!AL25) -> 0 | AN25: 1 | AO25: - | AP25: 2 | AQ25: =ResultsCalc(Players!$E25,Players!$G25,Players!AN25,Players!AP25) -> 4 | AR25: 1 | AS25: - | AT25: 2 | AU25: =ResultsCalc(Players!$E25,Players!$G25,Players!AR25,Players!AT25) -> 4 | AV25: 3 | AW25: - | AX25: 3 | AY25: =ResultsCalc(Players!$E25,Players!$G25,Players!AV25,Players!AX25) -> 0 | AZ25: 2 | BA25: - | BB25: 2 | BC25: =ResultsCalc(Players!$E25,Players!$G25,Players!AZ25,Players!BB25) -> 2 | BD25: 2 | BE25: - | BF25: 2 | BG25: =ResultsCalc(Players!$E25,Players!$G25,Players!BD25,Players!BF25) -> 2 | BH25: 2 | BI25: - | BJ25: 2 | BK25: =ResultsCalc(Players!$E25,Players!$G25,Players!BH25,Players!BJ25) -> 2 | BL25: 1 | BM25: - | BN25: 1 | BO25: =ResultsCalc(Players!$E25,Players!$G25,Players!BL25,Players!BN25) -> 0 | BP25: 3 | BQ25: - | BR25: 3 | BS25: =ResultsCalc(Players!$E25,Players!$G25,Players!BP25,Players!BR25) -> 0 | BT25: 1 | BU25: - | BV25: 3 | BW25: =ResultsCalc(Players!$E25,Players!$G25,Players!BT25,Players!BV25) -> 6 | BX25: 2 | BY25: - | BZ25: 2 | CA25: =ResultsCalc(Players!$E25,Players!$G25,Players!BX25,Players!BZ25) -> 2 | CB25: 1 | CC25: - | CD25: 2 | CE25: =ResultsCalc(Players!$E25,Players!$G25,Players!CB25,Players!CD25) -> 4 | CF25: 3 | CG25: - | CH25: 2 | CI25: =ResultsCalc(Players!$E25,Players!$G25,Players!CF25,Players!CH25) -> 0 | CJ25: 2 | CK25: - | CL25: 1 | CM25: =ResultsCalc(Players!$E25,Players!$G25,Players!CJ25,Players!CL25) -> 2 | CN25: 1 | CO25: - | CP25: 1 | CQ25: =ResultsCalc(Players!$E25,Players!$G25,Players!CN25,Players!CP25) -> 0 | CR25: 0 | CS25: - | CT25: 1 | CU25: =ResultsCalc(Players!$E25,Players!$G25,Players!CR25,Players!CT25) -> 4 | CV25: 1 | CW25: - | CX25: 3 | CY25: =ResultsCalc(Players!$E25,Players!$G25,Players!CV25,Players!CX25) -> 6 | CZ25: 1 | DA25: - | DB25: 1 | DC25: =ResultsCalc(Players!$E25,Players!$G25,Players!CZ25,Players!DB25) -> 0 | DD25: 1 | DE25: - | DF25: 1 | DG25: =ResultsCalc(Players!$E25,Players!$G25,Players!DD25,Players!DF25) -> 0 | DH25: 2 | DI25: - | DJ25: 3 | DK25: =ResultsCalc(Players!$E25,Players!$G25,Players!DH25,Players!DJ25) -> 6 | DL25: 2 | DM25: - | DN25: 1 | DO25: =ResultsCalc(Players!$E25,Players!$G25,Players!DL25,Players!DN25) -> 2 | DP25: 1 | DQ25: - | DR25: 1 | DS25: =ResultsCalc(Players!$E25,Players!$G25,Players!DP25,Players!DR25) -> 0 | DT25: 1 | DU25: - | DV25: 2 | DW25: =ResultsCalc(Players!$E25,Players!$G25,Players!DT25,Players!DV25) -> 4 | DX25: 2 | DY25: - | DZ25: 2 | EA25: =ResultsCalc(Players!$E25,Players!$G25,Players!DX25,Players!DZ25) -> 2 | EB25: 1 | EC25: - | ED25: 2 | EE25: =ResultsCalc(Players!$E25,Players!$G25,Players!EB25,Players!ED25) -> 4 | EF25: 2 | EG25: - | EH25: 1 | EI25: =ResultsCalc(Players!$E25,Players!$G25,Players!EF25,Players!EH25) -> 2 | EJ25: 2 | EK25: - | EL25: 1 | EM25: =ResultsCalc(Players!$E25,Players!$G25,Players!EJ25,Players!EL25) -> 2 | EN25: 1 | EO25: - | EP25: 1 | EQ25: =ResultsCalc(Players!$E25,Players!$G25,Players!EN25,Players!EP25) -> 0 | ER25: 1 | ES25: - | ET25: 2 | EU25: =ResultsCalc(Players!$E25,Players!$G25,Players!ER25,Players!ET25) -> 4 | EV25: 2 | EW25: - | EX25: 1 | EY25: =ResultsCalc(Players!$E25,Players!$G25,Players!EV25,Players!EX25) -> 2 | EZ25: 3 | FA25: - | FB25: 4 | FC25: =ResultsCalc(Players!$E25,Players!$G25,Players!EZ25,Players!FB25) -> 6 | FD25: 1 | FE25: - | FF25: 1 | FG25: =ResultsCalc(Players!$E25,Players!$G25,Players!FD25,Players!FF25) -> 0 | FH25: 2 | FI25: - | FJ25: 1 | FK25: =ResultsCalc(Players!$E25,Players!$G25,Players!FH25,Players!FJ25) -> 2 | FL25: 2 | FM25: - | FN25: 2 | FO25: =ResultsCalc(Players!$E25,Players!$G25,Players!FL25,Players!FN25) -> 2 | FP25: 2 | FQ25: - | FR25: 2 | FS25: =ResultsCalc(Players!$E25,Players!$G25,Players!FP25,Players!FR25) -> 2 | FT25: 2 | FU25: - | FV25: 2 | FW25: =ResultsCalc(Players!$E25,Players!$G25,Players!FT25,Players!FV25) -> 2 | FX25: 2 | FY25: - | FZ25: 3 | GA25: =ResultsCalc(Players!$E25,Players!$G25,Players!FX25,Players!FZ25) -> 6 | GB25: 2 | GC25: - | GD25: 3 | GE25: =ResultsCalc(Players!$E25,Players!$G25,Players!GB25,Players!GD25) -> 6 | GF25: 2 | GG25: - | GH25: 1 | GI25: =ResultsCalc(Players!$E25,Players!$G25,Players!GF25,Players!GH25) -> 2 | GJ25: 1 | GK25: - | GL25: 2 | GM25: =ResultsCalc(Players!$E25,Players!$G25,Players!GJ25,Players!GL25) -> 4 | GN25: 2 | GO25: - | GP25: 3 | GQ25: =ResultsCalc(Players!$E25,Players!$G25,Players!GN25,Players!GP25) -> 6 | GR25: 2 | GS25: - | GT25: 1 | GU25: =ResultsCalc(Players!$E25,Players!$G25,Players!GR25,Players!GT25) -> 2 | GV25: 2 | GW25: - | GX25: 3 | GY25: =ResultsCalc(Players!$E25,Players!$G25,Players!GV25,Players!GX25) -> 6 | GZ25: 3 | HA25: - | HB25: 2 | HC25: =ResultsCalc(Players!$E25,Players!$G25,Players!GZ25,Players!HB25) -> 0 | HD25: 2 | HE25: - | HF25: 2 | HG25: =ResultsCalc(Players!$E25,Players!$G25,Players!HD25,Players!HF25) -> 2 | HH25: 2 | HI25: - | HJ25: 3 | HK25: =ResultsCalc(Players!$E25,Players!$G25,Players!HH25,Players!HJ25) -> 6 | HL25: 2 | HM25: - | HN25: 2 | HO25: =ResultsCalc(Players!$E25,Players!$G25,Players!HL25,Players!HN25) -> 2 | HP25: 2 | HQ25: - | HR25: 2 | HS25: =ResultsCalc(Players!$E25,Players!$G25,Players!HP25,Players!HR25) -> 2 | HT25: 2 | HU25: - | HV25: 2 | HW25: =ResultsCalc(Players!$E25,Players!$G25,Players!HT25,Players!HV25) -> 2 | HX25: 1 | HY25: - | HZ25: 0 | IA25: =ResultsCalc(Players!$E25,Players!$G25,Players!HX25,Players!HZ25) -> 0 | IB25: 1 | IC25: - | ID25: 2 | IE25: =ResultsCalc(Players!$E25,Players!$G25,Players!IB25,Players!ID25) -> 4 | IF25: 2 | IG25: - | IH25: 1 | II25: =ResultsCalc(Players!$E25,Players!$G25,Players!IF25,Players!IH25) -> 2 | IJ25: 3 | IK25: - | IL25: 4 | IM25: =ResultsCalc(Players!$E25,Players!$G25,Players!IJ25,Players!IL25) -> 6 | IN25: 2 | IO25: - | IP25: 2 | IQ25: =ResultsCalc(Players!$E25,Players!$G25,Players!IN25,Players!IP25) -> 2 | IR25: 3 | IS25: - | IT25: 3 | IU25: =ResultsCalc(Players!$E25,Players!$G25,Players!IR25,Players!IT25) -> 0 | IV25: 2 | IW25: - | IX25: 1 | IY25: =ResultsCalc(Players!$E25,Players!$G25,Players!IV25,Players!IX25) -> 2 | IZ25: 2 | JA25: - | JB25: 1 | JC25: =ResultsCalc(Players!$E25,Players!$G25,Players!IZ25,Players!JB25) -> 2 | JD25: 1 | JE25: - | JF25: 2 | JG25: =ResultsCalc(Players!$E25,Players!$G25,Players!JD25,Players!JF25) -> 4 | JH25: 1 | JI25: - | JJ25: 2 | JK25: =ResultsCalc(Players!$E25,Players!$G25,Players!JH25,Players!JJ25) -> 4 | JL25: 1 | JM25: - | JN25: 2 | JO25: =ResultsCalc(Players!$E25,Players!$G25,Players!JL25,Players!JN25) -> 4 | JP25: 3 | JQ25: - | JR25: 3 | JS25: =ResultsCalc(Players!$E25,Players!$G25,Players!JP25,Players!JR25) -> 0 | JT25: 3 | JU25: - | JV25: 3 | JW25: =ResultsCalc(Players!$E25,Players!$G25,Players!JT25,Players!JV25) -> 0 | JX25: 2 | JY25: - | JZ25: 2 | KA25: =ResultsCalc(Players!$E25,Players!$G25,Players!JX25,Players!JZ25) -> 2 | KB25: 3 | KC25: - | KD25: 3 | KE25: =ResultsCalc(Players!$E25,Players!$G25,Players!KB25,Players!KD25) -> 0 | KF25: 2 | KG25: - | KH25: 3 | KI25: =ResultsCalc(Players!$E25,Players!$G25,Players!KF25,Players!KH25) -> 6 | KJ25: 2 | KK25: - | KL25: 2 | KM25: =ResultsCalc(Players!$E25,Players!$G25,Players!KJ25,Players!KL25) -> 2 | KN25: 2 | KO25: - | KP25: 2 | KQ25: =ResultsCalc(Players!$E25,Players!$G25,Players!KN25,Players!KP25) -> 2 | KR25: 1 | KS25: - | KT25: 2 | KU25: =ResultsCalc(Players!$E25,Players!$G25,Players!KR25,Players!KT25) -> 4 | KV25: 2 | KW25: - | KX25: 1 | KY25: =ResultsCalc(Players!$E25,Players!$G25,Players!KV25,Players!KX25) -> 2 | KZ25: 1 | LA25: - | LB25: 0 | LC25: =ResultsCalc(Players!$E25,Players!$G25,Players!KZ25,Players!LB25) -> 0 | LD25: 2 | LE25: - | LF25: 2 | LG25: =ResultsCalc(Players!$E25,Players!$G25,Players!LD25,Players!LF25) -> 2 | LH25: 2 | LI25: - | LJ25: 2 | LK25: =ResultsCalc(Players!$E25,Players!$G25,Players!LH25,Players!LJ25) -> 2 | LL25: 1 | LM25: - | LN25: 2 | LO25: =ResultsCalc(Players!$E25,Players!$G25,Players!LL25,Players!LN25) -> 4 | LP25: 1 | LQ25: - | LR25: 1 | LS25: =ResultsCalc(Players!$E25,Players!$G25,Players!LP25,Players!LR25) -> 0 | LT25: 2 | LU25: - | LV25: 2 | LW25: =ResultsCalc(Players!$E25,Players!$G25,Players!LT25,Players!LV25) -> 2 | LX25: 3 | LY25: - | LZ25: 1 | MA25: =ResultsCalc(Players!$E25,Players!$G25,Players!LX25,Players!LZ25) -> 0 | MB25: 0 | MC25: - | MD25: 0 | ME25: =ResultsCalc(Players!$E25,Players!$G25,Players!MB25,Players!MD25) -> 0 | MF25: 1 | MG25: - | MH25: 1 | MI25: =ResultsCalc(Players!$E25,Players!$G25,Players!MF25,Players!MH25) -> 0 | MJ25: 2 | MK25: - | ML25: 2 | MM25: =ResultsCalc(Players!$E25,Players!$G25,Players!MJ25,Players!ML25) -> 2 | MN25: 1 | MO25: - | MP25: 2 | MQ25: =ResultsCalc(Players!$E25,Players!$G25,Players!MN25,Players!MP25) -> 4 | MR25: 2 | MS25: - | MT25: 3 | MU25: =ResultsCalc(Players!$E25,Players!$G25,Players!MR25,Players!MT25) -> 6 | MV25: 2 | MW25: - | MX25: 2 | MY25: =ResultsCalc(Players!$E25,Players!$G25,Players!MV25,Players!MX25) -> 2 | MZ25: 2 | NA25: - | NB25: 3 | NC25: =ResultsCalc(Players!$E25,Players!$G25,Players!MZ25,Players!NB25) -> 6 | ND25: 3 | NE25: - | NF25: 1 | NG25: =ResultsCalc(Players!$E25,Players!$G25,Players!ND25,Players!NF25) -> 0 | NH25: 2 | NI25: - | NJ25: 2 | NK25: =ResultsCalc(Players!$E25,Players!$G25,Players!NH25,Players!NJ25) -> 2 | NL25: 1 | NM25: - | NN25: 2 | NO25: =ResultsCalc(Players!$E25,Players!$G25,Players!NL25,Players!NN25) -> 4 | NP25: 2 | NQ25: - | NR25: 2 | NS25: =ResultsCalc(Players!$E25,Players!$G25,Players!NP25,Players!NR25) -> 2 | NT25: 3 | NU25: - | NV25: 3 | NW25: =ResultsCalc(Players!$E25,Players!$G25,Players!NT25,Players!NV25) -> 0 | NX25: 1 | NY25: - | NZ25: 1 | OA25: =ResultsCalc(Players!$E25,Players!$G25,Players!NX25,Players!NZ25) -> 0 | OB25: 1 | OC25: - | OD25: 1 | OE25: =ResultsCalc(Players!$E25,Players!$G25,Players!OB25,Players!OD25) -> 0 | OF25: 2 | OG25: - | OH25: 2 | OI25: =ResultsCalc(Players!$E25,Players!$G25,Players!OF25,Players!OH25) -> 2 | OJ25: 2 | OK25: - | OL25: 1 | OM25: =ResultsCalc(Players!$E25,Players!$G25,Players!OJ25,Players!OL25) -> 2 | ON25: 1 | OO25: - | OP25: 1 | OQ25: =ResultsCalc(Players!$E25,Players!$G25,Players!ON25,Players!OP25) -> 0 | OR25: 1 | OS25: - | OT25: 1 | OU25: =ResultsCalc(Players!$E25,Players!$G25,Players!OR25,Players!OT25) -> 0 | OV25: 3 | OW25: - | OX25: 4 | OY25: =ResultsCalc(Players!$E25,Players!$G25,Players!OV25,Players!OX25) -> 6 | OZ25: 3 | PA25: - | PB25: 3 | PC25: =ResultsCalc(Players!$E25,Players!$G25,Players!OZ25,Players!PB25) -> 0 | PD25: 2 | PE25: - | PF25: 3 | PG25: =ResultsCalc(Players!$E25,Players!$G25,Players!PD25,Players!PF25) -> 6 | PH25: 2 | PI25: - | PJ25: 2 | PK25: =ResultsCalc(Players!$E25,Players!$G25,Players!PH25,Players!PJ25) -> 2 | PL25: 2 | PM25: - | PN25: 6 | PO25: =ResultsCalc(Players!$E25,Players!$G25,Players!PL25,Players!PN25) -> 6 | PP25: 2 | PQ25: - | PR25: 2 | PS25: =ResultsCalc(Players!$E25,Players!$G25,Players!PP25,Players!PR25) -> 2 | PT25: 2 | PU25: - | PV25: 3 | PW25: =ResultsCalc(Players!$E25,Players!$G25,Players!PT25,Players!PV25) -> 6 | PX25: 1 | PY25: - | PZ25: 1 | QA25: =ResultsCalc(Players!$E25,Players!$G25,Players!PX25,Players!PZ25) -> 0 | QB25: 1 | QC25: - | QD25: 1 | QE25: =ResultsCalc(Players!$E25,Players!$G25,Players!QB25,Players!QD25) -> 0 | QF25: 3 | QG25: - | QH25: 2 | QI25: =ResultsCalc(Players!$E25,Players!$G25,Players!QF25,Players!QH25) -> 0 | QJ25: 2 | QK25: - | QL25: 2 | QM25: =ResultsCalc(Players!$E25,Players!$G25,Players!QJ25,Players!QL25) -> 2 | QO25: 0 | QQ25: 6 | QR25: 18
A26: 2021-06-19 | B26: 24 | C26: Spain | D26: Poland | E26: 1 | F26: - | G26: 1 | H26: 1 | I26: - | J26: 1 | K26: =ResultsCalc(Players!$E26,Players!$G26,Players!H26,Players!J26) -> 12 | L26: 2 | M26: - | N26: 1 | O26: =ResultsCalc(Players!$E26,Players!$G26,Players!L26,Players!N26) -> 2 | P26: 2 | Q26: - | R26: 1 | S26: =ResultsCalc(Players!$E26,Players!$G26,Players!P26,Players!R26) -> 2 | T26: 2 | U26: - | V26: 2 | W26: =ResultsCalc(Players!$E26,Players!$G26,Players!T26,Players!V26) -> 6 | X26: 3 | Y26: - | Z26: 0 | AA26: =ResultsCalc(Players!$E26,Players!$G26,Players!X26,Players!Z26) -> 0 | AB26: 3 | AC26: - | AD26: 2 | AE26: =ResultsCalc(Players!$E26,Players!$G26,Players!AB26,Players!AD26) -> 0 | AF26: 3 | AG26: - | AH26: 1 | AI26: =ResultsCalc(Players!$E26,Players!$G26,Players!AF26,Players!AH26) -> 2 | AJ26: 2 | AK26: - | AL26: 0 | AM26: =ResultsCalc(Players!$E26,Players!$G26,Players!AJ26,Players!AL26) -> 0 | AN26: 3 | AO26: - | AP26: 1 | AQ26: =ResultsCalc(Players!$E26,Players!$G26,Players!AN26,Players!AP26) -> 2 | AR26: 2 | AS26: - | AT26: 1 | AU26: =ResultsCalc(Players!$E26,Players!$G26,Players!AR26,Players!AT26) -> 2 | AV26: 2 | AW26: - | AX26: 1 | AY26: =ResultsCalc(Players!$E26,Players!$G26,Players!AV26,Players!AX26) -> 2 | AZ26: 2 | BA26: - | BB26: 1 | BC26: =ResultsCalc(Players!$E26,Players!$G26,Players!AZ26,Players!BB26) -> 2 | BD26: 3 | BE26: - | BF26: 1 | BG26: =ResultsCalc(Players!$E26,Players!$G26,Players!BD26,Players!BF26) -> 2 | BH26: 2 | BI26: - | BJ26: 1 | BK26: =ResultsCalc(Players!$E26,Players!$G26,Players!BH26,Players!BJ26) -> 2 | BL26: 2 | BM26: - | BN26: 1 | BO26: =ResultsCalc(Players!$E26,Players!$G26,Players!BL26,Players!BN26) -> 2 | BP26: 2 | BQ26: - | BR26: 1 | BS26: =ResultsCalc(Players!$E26,Players!$G26,Players!BP26,Players!BR26) -> 2 | BT26: 3 | BU26: - | BV26: 1 | BW26: =ResultsCalc(Players!$E26,Players!$G26,Players!BT26,Players!BV26) -> 2 | BX26: 3 | BY26: - | BZ26: 1 | CA26: =ResultsCalc(Players!$E26,Players!$G26,Players!BX26,Players!BZ26) -> 2 | CB26: 2 | CC26: - | CD26: 1 | CE26: =ResultsCalc(Players!$E26,Players!$G26,Players!CB26,Players!CD26) -> 2 | CF26: 2 | CG26: - | CH26: 1 | CI26: =ResultsCalc(Players!$E26,Players!$G26,Players!CF26,Players!CH26) -> 2 | CJ26: 2 | CK26: - | CL26: 1 | CM26: =ResultsCalc(Players!$E26,Players!$G26,Players!CJ26,Players!CL26) -> 2 | CN26: 2 | CO26: - | CP26: 2 | CQ26: =ResultsCalc(Players!$E26,Players!$G26,Players!CN26,Players!CP26) -> 6 | CR26: 2 | CS26: - | CT26: 1 | CU26: =ResultsCalc(Players!$E26,Players!$G26,Players!CR26,Players!CT26) -> 2 | CV26: 4 | CW26: - | CX26: 1 | CY26: =ResultsCalc(Players!$E26,Players!$G26,Players!CV26,Players!CX26) -> 2 | CZ26: 2 | DA26: - | DB26: 1 | DC26: =ResultsCalc(Players!$E26,Players!$G26,Players!CZ26,Players!DB26) -> 2 | DD26: 1 | DE26: - | DF26: 0 | DG26: =ResultsCalc(Players!$E26,Players!$G26,Players!DD26,Players!DF26) -> 2 | DH26: 2 | DI26: - | DJ26: 0 | DK26: =ResultsCalc(Players!$E26,Players!$G26,Players!DH26,Players!DJ26) -> 0 | DL26: 2 | DM26: - | DN26: 2 | DO26: =ResultsCalc(Players!$E26,Players!$G26,Players!DL26,Players!DN26) -> 6 | DP26: 2 | DQ26: - | DR26: 1 | DS26: =ResultsCalc(Players!$E26,Players!$G26,Players!DP26,Players!DR26) -> 2 | DT26: 2 | DU26: - | DV26: 1 | DW26: =ResultsCalc(Players!$E26,Players!$G26,Players!DT26,Players!DV26) -> 2 | DX26: 3 | DY26: - | DZ26: 0 | EA26: =ResultsCalc(Players!$E26,Players!$G26,Players!DX26,Players!DZ26) -> 0 | EB26: 2 | EC26: - | ED26: 1 | EE26: =ResultsCalc(Players!$E26,Players!$G26,Players!EB26,Players!ED26) -> 2 | EF26: 1 | EG26: - | EH26: 2 | EI26: =ResultsCalc(Players!$E26,Players!$G26,Players!EF26,Players!EH26) -> 2 | EJ26: 1 | EK26: - | EL26: 0 | EM26: =ResultsCalc(Players!$E26,Players!$G26,Players!EJ26,Players!EL26) -> 2 | EN26: 3 | EO26: - | EP26: 0 | EQ26: =ResultsCalc(Players!$E26,Players!$G26,Players!EN26,Players!EP26) -> 0 | ER26: 2 | ES26: - | ET26: 1 | EU26: =ResultsCalc(Players!$E26,Players!$G26,Players!ER26,Players!ET26) -> 2 | EV26: 2 | EW26: - | EX26: 1 | EY26: =ResultsCalc(Players!$E26,Players!$G26,Players!EV26,Players!EX26) -> 2 | EZ26: 3 | FA26: - | FB26: 1 | FC26: =ResultsCalc(Players!$E26,Players!$G26,Players!EZ26,Players!FB26) -> 2 | FD26: 2 | FE26: - | FF26: 1 | FG26: =ResultsCalc(Players!$E26,Players!$G26,Players!FD26,Players!FF26) -> 2 | FH26: 2 | FI26: - | FJ26: 0 | FK26: =ResultsCalc(Players!$E26,Players!$G26,Players!FH26,Players!FJ26) -> 0 | FL26: 2 | FM26: - | FN26: 1 | FO26: =ResultsCalc(Players!$E26,Players!$G26,Players!FL26,Players!FN26) -> 2 | FP26: 3 | FQ26: - | FR26: 2 | FS26: =ResultsCalc(Players!$E26,Players!$G26,Players!FP26,Players!FR26) -> 0 | FT26: 3 | FU26: - | FV26: 0 | FW26: =ResultsCalc(Players!$E26,Players!$G26,Players!FT26,Players!FV26) -> 0 | FX26: 2 | FY26: - | FZ26: 0 | GA26: =ResultsCalc(Players!$E26,Players!$G26,Players!FX26,Players!FZ26) -> 0 | GB26: 2 | GC26: - | GD26: 2 | GE26: =ResultsCalc(Players!$E26,Players!$G26,Players!GB26,Players!GD26) -> 6 | GF26: 1 | GG26: - | GH26: 0 | GI26: =ResultsCalc(Players!$E26,Players!$G26,Players!GF26,Players!GH26) -> 2 | GJ26: 2 | GK26: - | GL26: 0 | GM26: =ResultsCalc(Players!$E26,Players!$G26,Players!GJ26,Players!GL26) -> 0 | GN26: 3 | GO26: - | GP26: 0 | GQ26: =ResultsCalc(Players!$E26,Players!$G26,Players!GN26,Players!GP26) -> 0 | GR26: 2 | GS26: - | GT26: 0 | GU26: =ResultsCalc(Players!$E26,Players!$G26,Players!GR26,Players!GT26) -> 0 | GV26: 2 | GW26: - | GX26: 1 | GY26: =ResultsCalc(Players!$E26,Players!$G26,Players!GV26,Players!GX26) -> 2 | GZ26: 1 | HA26: - | HB26: 0 | HC26: =ResultsCalc(Players!$E26,Players!$G26,Players!GZ26,Players!HB26) -> 2 | HD26: 3 | HE26: - | HF26: 1 | HG26: =ResultsCalc(Players!$E26,Players!$G26,Players!HD26,Players!HF26) -> 2 | HH26: 2 | HI26: - | HJ26: 1 | HK26: =ResultsCalc(Players!$E26,Players!$G26,Players!HH26,Players!HJ26) -> 2 | HL26: 2 | HM26: - | HN26: 1 | HO26: =ResultsCalc(Players!$E26,Players!$G26,Players!HL26,Players!HN26) -> 2 | HP26: 3 | HQ26: - | HR26: 1 | HS26: =ResultsCalc(Players!$E26,Players!$G26,Players!HP26,Players!HR26) -> 2 | HT26: 3 | HU26: - | HV26: 1 | HW26: =ResultsCalc(Players!$E26,Players!$G26,Players!HT26,Players!HV26) -> 2 | HX26: 1 | HY26: - | HZ26: 0 | IA26: =ResultsCalc(Players!$E26,Players!$G26,Players!HX26,Players!HZ26) -> 2 | IB26: 3 | IC26: - | ID26: 1 | IE26: =ResultsCalc(Players!$E26,Players!$G26,Players!IB26,Players!ID26) -> 2 | IF26: 2 | IG26: - | IH26: 0 | II26: =ResultsCalc(Players!$E26,Players!$G26,Players!IF26,Players!IH26) -> 0 | IJ26: 2 | IK26: - | IL26: 2 | IM26: =ResultsCalc(Players!$E26,Players!$G26,Players!IJ26,Players!IL26) -> 6 | IN26: 3 | IO26: - | IP26: 2 | IQ26: =ResultsCalc(Players!$E26,Players!$G26,Players!IN26,Players!IP26) -> 0 | IR26: 2 | IS26: - | IT26: 3 | IU26: =ResultsCalc(Players!$E26,Players!$G26,Players!IR26,Players!IT26) -> 0 | IV26: 0 | IW26: - | IX26: 0 | IY26: =ResultsCalc(Players!$E26,Players!$G26,Players!IV26,Players!IX26) -> 6 | IZ26: 2 | JA26: - | JB26: 1 | JC26: =ResultsCalc(Players!$E26,Players!$G26,Players!IZ26,Players!JB26) -> 2 | JD26: 1 | JE26: - | JF26: 0 | JG26: =ResultsCalc(Players!$E26,Players!$G26,Players!JD26,Players!JF26) -> 2 | JH26: 2 | JI26: - | JJ26: 1 | JK26: =ResultsCalc(Players!$E26,Players!$G26,Players!JH26,Players!JJ26) -> 2 | JL26: 2 | JM26: - | JN26: 1 | JO26: =ResultsCalc(Players!$E26,Players!$G26,Players!JL26,Players!JN26) -> 2 | JP26: 2 | JQ26: - | JR26: 1 | JS26: =ResultsCalc(Players!$E26,Players!$G26,Players!JP26,Players!JR26) -> 2 | JT26: 1 | JU26: - | JV26: 0 | JW26: =ResultsCalc(Players!$E26,Players!$G26,Players!JT26,Players!JV26) -> 2 | JX26: 3 | JY26: - | JZ26: 1 | KA26: =ResultsCalc(Players!$E26,Players!$G26,Players!JX26,Players!JZ26) -> 2 | KB26: 3 | KC26: - | KD26: 0 | KE26: =ResultsCalc(Players!$E26,Players!$G26,Players!KB26,Players!KD26) -> 0 | KF26: 1 | KG26: - | KH26: 0 | KI26: =ResultsCalc(Players!$E26,Players!$G26,Players!KF26,Players!KH26) -> 2 | KJ26: 2 | KK26: - | KL26: 1 | KM26: =ResultsCalc(Players!$E26,Players!$G26,Players!KJ26,Players!KL26) -> 2 | KN26: 2 | KO26: - | KP26: 1 | KQ26: =ResultsCalc(Players!$E26,Players!$G26,Players!KN26,Players!KP26) -> 2 | KR26: 2 | KS26: - | KT26: 0 | KU26: =ResultsCalc(Players!$E26,Players!$G26,Players!KR26,Players!KT26) -> 0 | KV26: 2 | KW26: - | KX26: 2 | KY26: =ResultsCalc(Players!$E26,Players!$G26,Players!KV26,Players!KX26) -> 6 | KZ26: 1 | LA26: - | LB26: 0 | LC26: =ResultsCalc(Players!$E26,Players!$G26,Players!KZ26,Players!LB26) -> 2 | LD26: 3 | LE26: - | LF26: 1 | LG26: =ResultsCalc(Players!$E26,Players!$G26,Players!LD26,Players!LF26) -> 2 | LH26: 3 | LI26: - | LJ26: 2 | LK26: =ResultsCalc(Players!$E26,Players!$G26,Players!LH26,Players!LJ26) -> 0 | LL26: 2 | LM26: - | LN26: 1 | LO26: =ResultsCalc(Players!$E26,Players!$G26,Players!LL26,Players!LN26) -> 2 | LP26: 2 | LQ26: - | LR26: 1 | LS26: =ResultsCalc(Players!$E26,Players!$G26,Players!LP26,Players!LR26) -> 2 | LT26: 2 | LU26: - | LV26: 1 | LW26: =ResultsCalc(Players!$E26,Players!$G26,Players!LT26,Players!LV26) -> 2 | LX26: 4 | LY26: - | LZ26: 1 | MA26: =ResultsCalc(Players!$E26,Players!$G26,Players!LX26,Players!LZ26) -> 2 | MB26: 0 | MC26: - | MD26: 2 | ME26: =ResultsCalc(Players!$E26,Players!$G26,Players!MB26,Players!MD26) -> 0 | MF26: 2 | MG26: - | MH26: 1 | MI26: =ResultsCalc(Players!$E26,Players!$G26,Players!MF26,Players!MH26) -> 2 | MJ26: 2 | MK26: - | ML26: 1 | MM26: =ResultsCalc(Players!$E26,Players!$G26,Players!MJ26,Players!ML26) -> 2 | MN26: 1 | MO26: - | MP26: 1 | MQ26: =ResultsCalc(Players!$E26,Players!$G26,Players!MN26,Players!MP26) -> 12 | MR26: 3 | MS26: - | MT26: 1 | MU26: =ResultsCalc(Players!$E26,Players!$G26,Players!MR26,Players!MT26) -> 2 | MV26: 3 | MW26: - | MX26: 1 | MY26: =ResultsCalc(Players!$E26,Players!$G26,Players!MV26,Players!MX26) -> 2 | MZ26: 2 | NA26: - | NB26: 0 | NC26: =ResultsCalc(Players!$E26,Players!$G26,Players!MZ26,Players!NB26) -> 0 | ND26: 1 | NE26: - | NF26: 2 | NG26: =ResultsCalc(Players!$E26,Players!$G26,Players!ND26,Players!NF26) -> 2 | NH26: 3 | NI26: - | NJ26: 1 | NK26: =ResultsCalc(Players!$E26,Players!$G26,Players!NH26,Players!NJ26) -> 2 | NL26: 2 | NM26: - | NN26: 0 | NO26: =ResultsCalc(Players!$E26,Players!$G26,Players!NL26,Players!NN26) -> 0 | NP26: 1 | NQ26: - | NR26: 1 | NS26: =ResultsCalc(Players!$E26,Players!$G26,Players!NP26,Players!NR26) -> 12 | NT26: 2 | NU26: - | NV26: 0 | NW26: =ResultsCalc(Players!$E26,Players!$G26,Players!NT26,Players!NV26) -> 0 | NX26: 3 | NY26: - | NZ26: 1 | OA26: =ResultsCalc(Players!$E26,Players!$G26,Players!NX26,Players!NZ26) -> 2 | OB26: 1 | OC26: - | OD26: 0 | OE26: =ResultsCalc(Players!$E26,Players!$G26,Players!OB26,Players!OD26) -> 2 | OF26: 2 | OG26: - | OH26: 2 | OI26: =ResultsCalc(Players!$E26,Players!$G26,Players!OF26,Players!OH26) -> 6 | OJ26: 0 | OK26: - | OL26: 2 | OM26: =ResultsCalc(Players!$E26,Players!$G26,Players!OJ26,Players!OL26) -> 0 | ON26: 2 | OO26: - | OP26: 1 | OQ26: =ResultsCalc(Players!$E26,Players!$G26,Players!ON26,Players!OP26) -> 2 | OR26: 2 | OS26: - | OT26: 0 | OU26: =ResultsCalc(Players!$E26,Players!$G26,Players!OR26,Players!OT26) -> 0 | OV26: 3 | OW26: - | OX26: 2 | OY26: =ResultsCalc(Players!$E26,Players!$G26,Players!OV26,Players!OX26) -> 0 | OZ26: 1 | PA26: - | PB26: 0 | PC26: =ResultsCalc(Players!$E26,Players!$G26,Players!OZ26,Players!PB26) -> 2 | PD26: 1 | PE26: - | PF26: 0 | PG26: =ResultsCalc(Players!$E26,Players!$G26,Players!PD26,Players!PF26) -> 2 | PH26: 3 | PI26: - | PJ26: 1 | PK26: =ResultsCalc(Players!$E26,Players!$G26,Players!PH26,Players!PJ26) -> 2 | PL26: 4 | PM26: - | PN26: 5 | PO26: =ResultsCalc(Players!$E26,Players!$G26,Players!PL26,Players!PN26) -> 0 | PP26: 3 | PQ26: - | PR26: 1 | PS26: =ResultsCalc(Players!$E26,Players!$G26,Players!PP26,Players!PR26) -> 2 | PT26: 3 | PU26: - | PV26: 1 | PW26: =ResultsCalc(Players!$E26,Players!$G26,Players!PT26,Players!PV26) -> 2 | PX26: 1 | PY26: - | PZ26: 2 | QA26: =ResultsCalc(Players!$E26,Players!$G26,Players!PX26,Players!PZ26) -> 2 | QB26: 2 | QC26: - | QD26: 0 | QE26: =ResultsCalc(Players!$E26,Players!$G26,Players!QB26,Players!QD26) -> 0 | QF26: 2 | QG26: - | QH26: 0 | QI26: =ResultsCalc(Players!$E26,Players!$G26,Players!QF26,Players!QH26) -> 0 | QJ26: 2 | QK26: - | QL26: 0 | QM26: =ResultsCalc(Players!$E26,Players!$G26,Players!QJ26,Players!QL26) -> 0 | QO26: 3 | QQ26: 12 | QR26: 3
